Workbook

Sheet Erläuterung
D3: Allgemeine Erläuterungen und Hinweise zum Formular
D5: Sehr geehrte Zertifikats-Interessentin, sehr geehrter Zertifikats-Interessent,
D6: bitte beachten Sie die folgenden Informationen und füllen Sie danach das Formular aus. Ziel dieses Formulares ist es, Ihre Tätigkeiten auf den Gebieten Naturschutz, erneuerbare Energien, Energieeffizienz und Soziales in Form eines Zertifikates zu bewerten. Hierbei ermittelt das Berechnungstool automatisch, welche Zertifikate Sie erhalten können, als auch wie viele und welchen Wert diese haben.
D7: Mit Hilfe dieses Formulars wird Ihr Vorhaben auf Angemessenheit und auf Plausibilität geprüft. Deshalb bitten wir Sie, beim Ausfüllen genaue Angaben zu machen. Das Formular dient als Berechnungsgrundlage für den Antrag auf Zertifizierung. Die zehn Tabellenblätter "PJ" sind die Grundlage zur Ermittlung der Anzahl und des jeweiligen Wertes der Zertifikate. Die Zertifizierung erfolgt nach Überprüfung der Angaben durch das Institut für angewandtes Stoffstrommanagement. Füllen Sie bitte für jedes Projekt ein Tabellenblatt (PJ1 bis PJ10) aus.
D8: Sollten Sie sich mehr als zehn Projekte zertifizieren lassen wollen, füllen Sie bitte ein zweites Formular aus.
D9: Ausdrücklicher Hinweis: Durch das Zertifikat wird nicht Ihre Treibhausgasbilanz zertifiziert, es handelt sich um ein Zertifikat um Ihre Bemühungen im Bereich Natur- und Klimaschutz in Wert zu setzen! Der Handel mit den Treibhausgasemissionsreduktionen ist ausgeschlossen. Die Treibhausgasemissionsreduktionen dienen lediglich zur Ermittlung der Anzahl an Zertifikaten, erst durch Naturschutz- und Sozialkomponenten erhalten die Zertifikate ihren Wert.
D11: Die Zertifikate werden, abhängig von der erreichten Punktzahl, wie folgt unterteilt: "Bronze", "Silber" oder "Gold". Die Zertifkate werden zu folgenden Preisen zum Kauf angeboten: "Bronze"-Zertifkat: 25 €, "Silber"-Zertifikat 50 € und "Gold"-Zertifikat 75 €. Es können nur Naturschutzpunkte für Zusatzmaßnahmen vergeben werden. Jene Maßnahmen die vom Gesetzgeber vorgeschrieben werden, sind von dieser Zertifizierung ausgeschlossen.
D12: Ein Beispiel für die Ermittlung der angemessenen Anzahl auszufüllender Formularseiten:
D13: Für jede Tätigkeit auf den oben genannten Gebieten ist ein Formular auszufüllen. Hierbei dürfen Sie Ihre Tätigkeiten auf dem Gebiet des Natur-, bzw. des Artenschutzes, nicht doppelt angeben. Sollten Sie dies dennoch tun, werden wir nach Prüfung Ihrer Angaben kein Zertifikat ausstellen.
D14: Gesamte Tätigkeiten: | E14: Umstellung der Straßenbeleuchtung auf LED, PV-Aufdachanlage und Solarthermie-Aufdachanlage, LEDs mit < 2.000 K, Blühwiese, Insektenhotels, Schulklasseneinbindung bei den Insektenhotels
D15: Projekt 1: | E15: Umstellung Straßenbeleuchtung auf LED Naturschutzkomponente: LEDs mit < 2.000 K
D16: Projekt 2: | E16: PV-Aufdachanlage Naturschutzkomponente: Blühwiese
D17: Projekt 3: | E17: Solarthermie-Aufdachanlage Naturschutzkomponente: Insektenhotels Soziale Komponente: Bildungsmaßnahme (Schulklasse)
D18: Hierbei gilt es zu beachten, dass für die Ausstellung eines Zertifikates ein Punktevergabesystem zur Anwendung kommt. Um ein Zertifikat zu erhalten, benötigen Sie mindestens zehn Punkte für Bronze, mindestens 15 Punkte für Silber und mindestens 20 Punkte für Gold. Für jeden Zertifikattyp brauchen Sie grundsätzlich fünf Punkte dieser Art, also etwa fünf Goldpunkte für ein Goldzertifikat, ergänzt durch z.B. fünf Bronzepunkte und zehn Silberpunkte. Dadurch verlieren Sie etwaige Restpunkte nicht und Sie erhalten die optimale Anzahl an Zertifikaten. Die Exceltabelle berechnet automatisch die optimale Verteilung der Punkte, sodass Sie den größtmöglichen Wert aus den erzielten Punkten erhalten.
D20: Das Excel-Formular berechnet aus Ihrer angegebenen Investitionssumme und der Technologie die regionale Wertschöpfung. Gleichermaßen berechnet es aus Ihrer Angabe zu Natur-, bzw. Artenschutz, ob Ihnen Punkte fehlen oder ob Sie durch weiterführende Biodiversitätsmaßnehmen mehr Zertifikate erhalten könnten. Sie erhalten diese Informationen dann als Hinweis im jeweiligen Projekt.
D22: Zur Handhabung des Formulars
D23: In den grün und blau hinterlegten Feldern sind Eintragungen vorzunehmen. In den weißen (schreibgeschützten) Feldern werden automatische Berechnungen erstellt.
D24: Im Basisformular werden die Daten aus den einzelnen Projekten zusammengefasst und allgemeine Informationen abgefragt. Auf diesem Formular bestätigen Sie bitte Ihre Angaben mit Unterschrift und gegebenenfalls dem Stempel Ihrer Organisation.
D25: Alle Angaben zu den entstehenden Ausgaben sind in Netto zu tätigen, auch dann, wenn der Antragsteller nicht zum Vorsteuerabzug berechtigt ist.
D26: Nachdem Sie Ihren Namen im Tabellenblatt "Übersicht" eingetragen haben, füllen Sie zunächst das Tabellenblatt "PJ1" aus. Sofern Sie die übrigen Tabellenblätter "PJ" benötigen, füllen Sie auch diese aus. Haben Sie Ihre Eintragungen abgeschlossen und sind mit der Anzahl der Ihnen zustehenden Zertifikate einverstanden, so füllen Sie bitte das Übersichtsblatt aus. Überprüfen Sie zuvor, ob es noch Hinweise in den Anmerkungen gibt, die Sie beachten müssen.
D27: Wenn es sich bei Ihrem durchgeführten Projekt um einen Heizungstausch handelt, wählen Sie im jeweiligen "PJ"-Tabellenblatt "Energieeffizienz" und "Heizungstausch" aus. Anschließend füllen Sie bitte das Tabellenblatt "Eingabe Heizungstausch" vollständig und korrekt aus.
D28: Sollten Sie ein Biodiversitätsprojekt durchführen oder planen, welches nicht in den "PJ"-Tabellenblättern aufgeführt ist, kontaktieren Sie uns. Gerne prüfen wir, ob und wie wir Ihre Maßnahme in das Zertifikat integrieren können.
D29: Folgende Belege sind zum Nachweis Ihrer Maßnahmen einzureichen:
D30: - Fotodokumentation vor & nach der Maßnahme (Bei bereits umgesetzten Maßnahmen reichen Sie bitte eine kurze Erklärung mit ein) - Fotodokumentation des Umstellungsprozesses - Bei Bildungsmaßnahmen: Fotodokumentation der gemeinsamen Tätigkeit (z. B. mit der Schulklasse) und Bescheinigung (z. B. der Schule) über die Anzahl der Stunden - Sämtliche Rechnungen und Belege der umgesetzten Maßnahmen (auch der Naturschutzmaßnahmen) Wichtig: Die Biodiversitätsmaßnahmen können individuell anders geprüft werden. Daher schlagen Sie bitte im Leitfaden zu diesem Zertifikat nach, welche Nachweise Sie erbringen müssen.
D31: Der Status der Biodiversitätsmaßnahmen muss dauerhaft, mindestens jedoch für die betriebsgewöhnliche Nutzungsdauer, aufrechterhalten werden. Das Institut für angewandtes Stoffstrommanagement behält sich vor dies zu prüfen. Eine Nichteinhaltung bedeutet, dass das Zertifikat seine Gültigkeit verliert und empfangene Beträge anteilig zurückgezahlt werden müssen.
D32: Beispielhafte Berechnung der Anzahl und des Wertes der Zertifikate
D33: An folgendem Beispiel soll dargestellt werden, wie eine Berechnung aussehen kann. Hierbei wird das oben angeführte Beispiel fortgeführt:
E35: Projekt 1 (Zeile 16) | F35: Projekt 2 (Zeile 17) | G35: Projekt 3 (Zeile 18)
D36: Kategorie | E36: Energieeffizienz | F36: Erneuerbare Energien | G36: Erneuerbare Energien
D37: Technologie | E37: LED | F37: Photovoltaik | G37: Solarthermie
D38: Eingesparte oder erzeugte elektrische Energie | E38: 5000 kWh/a | F38: 8000 kWh/a | G38: -
D39: Eingesparte oder erzeugte thermische Energie | E39: - | F39: - | G39: 1000 kWh/a
D40: Investition | E40: 28000 | F40: 9000 | G40: 5000
D41: Regionale Wertschöpfung | E41: 33600 | F41: 14760 | G41: 9150
D42: Anzahl an Wertschöpfungs-punkten | E42: =E41/300 -> 112 | F42: =F41/300 -> 49.2 | G42: =ROUNDDOWN(G41/300,0) -> 30
D43: Biodiversitäts-maßnahme | E43: LEDs mit < 2.000 K | F43: Blühwiese | G43: Insektenhotel
D44: Fläche/Anzahl | E44: 15 | F44: 50 | G44: 5
D45: Bildungsmaßnahme | E45: - | F45: - | G45: 2
D46: Anzahl an Biodiversitäts-punkten | E46: Bronze: 0 Pkt. Silber: 0 Pkt. Gold: 375 Pkt. | F46: Bronze: 0 Pkt. Silber: 125 Pkt. Gold: 0 Pkt. | G46: Bronze: 125 Pkt. Silber: 0 Pkt. Gold: 100 Pkt.
D47: Anzahl an Bronze-Zertifikaten | E47: 0 | F47: 0 | G47: 2
D48: Anzahl an Silber-Zertifikaten | E48: 0 | F48: 8 | G48: 0
D49: Anzahl an Gold-Zertifikaten | E49: 18 | F49: 0 | G49: 10
D50: Wert der Zertifikate | E50: =E47*25+E48*50+E49*75 -> 1350 | F50: =F47*25+F48*50+F49*75 -> 400 | G50: =G47*25+G48*50+G49*75 -> 800
D51: Gesamtwert der Zertifikate | E51: =E50+F50+G50 -> 2550
D53: Bei Rückfragen, Anmerkungen oder konstruktiver Kritik kontaktieren Sie uns gerne!
D55: Berechnungsformular ZENAPA-Zertifizierung - Version 2021/10

Sheet Anmerkungen (hidden)
D3: Anmerkungen
D5: Hinweis auf geringe Regionale Wertschöpfung
D6: =IF(Abfr_PJ_RW_Ges<0,Hinweis_fehl_RW,"") -> 
D14: Hinweis auf fehlende Biodiversitätspunkte
D15: =IF(PIAbfr_PJ_NaturP_Ges<0,Hinweis_BioDiv,"") -> 
D24: Hinweis auf fehlende Projektbeschreibung
D25: =IF(Abfr_PJ_PB_Ges<=0,Hinweis_Amz,"") -> 
D34: Hinweis auf zu geringe Fläche
D35: =IF(Abfr_PJ_FL_Ges<0,Hinweis_Flaeche,"") -> 
D44: Hinweis auf Nicht-Ausschöpfung des Potenzials
D45: =IF(PlAbfr_Gesamt<1,Hinweis_MaxAusbeute,"") -> 
D54: Hinweis auf zu geringe Treibhausgasvermeidung
D55: =IF(PIAbfr_PJ_EnEf_Ges<=0,Hinweis_EnEf,"") -> 
D64: Hinweis fehlende Angabe im Feld 'Antragsteller'
D65: =IF(PIAbfr_BD_Ges<=0,Hinweis_Antragsteller,"") -> Bitte geben Sie im Tabellenblatt 'Übersicht' in Zeile 1 Ihren oder den Namen Ihrer Institution/Firma ein.
D73: Hinweis auf Eingaben zum Heizungstausch
D74: =IF(PIAbfr_PJ_01_GEsamt<0,Hinweis_01,"") -> 
D82: Hinweis zu den Bildungsmaßnahmen
D83: =IF(PlAbfr_PJ_SP_Ges <0,HInweis_Soz,"") -> 
D91: Hinweis auf Fehler bei der Eingabe
D92: =IF(PIAbfr_PJ_allg_ges <0,Hinweis_allg,"") -> 
C101: =Erläuterung!D55 -> Berechnungsformular ZENAPA-Zertifizierung - Version 2021/10

Sheet Übersicht (hidden)
D3: =C70 -> Berechnungsformular ZENAPA-Zertifizierung - Version 2021/10
D5: Antragsteller | N5: =IF(OR(Antragsteller="", Antragsteller=" "),-2,1) -> -2
E7: Art des Projekts | H7: Anzahl der Zertifikate | L7: Wert der Zertifikate
D8: Projekt 1 | E8: =IF(Berechnungen_2!C5=TRUE,Berechnungen_2!Y5,"") ->  | H8: =IF(Berechnungen_2!C5=TRUE,(Berechnungen_2!S5&"x Bronze, " &Berechnungen_2!P5& "x Silber, "&Berechnungen_2!K5& "x Gold"),"") ->  | L8: =IF(Berechnungen_2!C5=TRUE,Berechnungen_2!X5,"") -> 
D9: Projekt 2 | E9: =IF(Berechnungen_2!C6=TRUE,Berechnungen_2!Y6,"") ->  | H9: =IF(Berechnungen_2!C6=TRUE,(Berechnungen_2!S6&"x Bronze, " &Berechnungen_2!P6& "x Silber, "&Berechnungen_2!K6& "x Gold"),"") ->  | L9: =IF(Berechnungen_2!C6=TRUE,Berechnungen_2!X6,"") -> 
D10: Projekt 3 | E10: =IF(Berechnungen_2!C7=TRUE,Berechnungen_2!Y7,"") ->  | H10: =IF(Berechnungen_2!C7=TRUE,(Berechnungen_2!S7&"x Bronze, " &Berechnungen_2!P7& "x Silber, "&Berechnungen_2!K7& "x Gold"),"") ->  | L10: =IF(Berechnungen_2!C7=TRUE,Berechnungen_2!X7,"") -> 
D11: Projekt 4 | E11: =IF(Berechnungen_2!C8=TRUE,Berechnungen_2!Y8,"") ->  | H11: =IF(Berechnungen_2!C8=TRUE,(Berechnungen_2!S8&"x Bronze, " &Berechnungen_2!P8& "x Silber, "&Berechnungen_2!K8& "x Gold"),"") ->  | L11: =IF(Berechnungen_2!C8=TRUE,Berechnungen_2!X8,"") -> 
D12: Projekt 5 | E12: =IF(Berechnungen_2!C9=TRUE,Berechnungen_2!Y9,"") ->  | H12: =IF(Berechnungen_2!C9=TRUE,(Berechnungen_2!S9&"x Bronze, " &Berechnungen_2!P9& "x Silber, "&Berechnungen_2!K9& "x Gold"),"") ->  | L12: =IF(Berechnungen_2!C9=TRUE,Berechnungen_2!X9,"") -> 
D13: Projekt 6 | E13: =IF(Berechnungen_2!C10=TRUE,Berechnungen_2!Y10,"") ->  | H13: =IF(Berechnungen_2!C10=TRUE,(Berechnungen_2!S10&"x Bronze, " &Berechnungen_2!P10& "x Silber, "&Berechnungen_2!K10& "x Gold"),"") ->  | L13: =IF(Berechnungen_2!C10=TRUE,Berechnungen_2!X10,"") -> 
D14: Projekt 7 | E14: =IF(Berechnungen_2!C11=TRUE,Berechnungen_2!Y11,"") ->  | H14: =IF(Berechnungen_2!C11=TRUE,(Berechnungen_2!S11&"x Bronze, " &Berechnungen_2!P11& "x Silber, "&Berechnungen_2!K11& "x Gold"),"") ->  | L14: =IF(Berechnungen_2!C11=TRUE,Berechnungen_2!X11,"") -> 
D15: Projekt 8 | E15: =IF(Berechnungen_2!C12=TRUE,Berechnungen_2!Y12,"") ->  | H15: =IF(Berechnungen_2!C12=TRUE,(Berechnungen_2!S12&"x Bronze, " &Berechnungen_2!P12& "x Silber, "&Berechnungen_2!K12& "x Gold"),"") ->  | L15: =IF(Berechnungen_2!C12=TRUE,Berechnungen_2!X12,"") -> 
D16: Projekt 9 | E16: =IF(Berechnungen_2!C13=TRUE,Berechnungen_2!Y13,"") ->  | H16: =IF(Berechnungen_2!C13=TRUE,(Berechnungen_2!S13&"x Bronze, " &Berechnungen_2!P13& "x Silber, "&Berechnungen_2!K13& "x Gold"),"") ->  | L16: =IF(Berechnungen_2!C13=TRUE,Berechnungen_2!X13,"") -> 
D17: Projekt 10 | E17: =IF(Berechnungen_2!C14=TRUE,Berechnungen_2!Y14,"") ->  | H17: =IF(Berechnungen_2!C14=TRUE,(Berechnungen_2!S14&"x Bronze, " &Berechnungen_2!P14& "x Silber, "&Berechnungen_2!K14& "x Gold"),"") ->  | L17: =IF(Berechnungen_2!C14=TRUE,Berechnungen_2!X14,"") -> 
D18: Gesamt | H18: =(SUM(Berechnungen_2!S5:S14)&"x Bronze, " &SUM(Berechnungen_2!P5:P14)& "x Silber, "&SUM(Berechnungen_2!K5:K14)& "x Gold") -> 0x Bronze, 0x Silber, 0x Gold | L18: =SUM(L8:L17) -> 0
D20: Eingesparte CO2-Emissionen | L20: =THG -> 0
D21: Investition | L21: =Invest -> 0
D22: Regionale Wertschöpfung | L22: =RWS -> 0
D24: Schutzmaßnahme Status Bronze | H24: Anzahl/Fläche | L24: Punkte
D25: Installation von Nistkästen - Insekten | H25: =VLOOKUP($D25,Berechnungen_1!$B$6:$Y$32,23,FALSE) -> 0 | L25: =VLOOKUP($D25,Berechnungen_1!$B$6:$Y$32,24,FALSE) -> 0
D26: Installation von Insektenhotel | H26: =VLOOKUP($D26,Berechnungen_1!$B$6:$Y$32,23,FALSE) -> 0 | L26: =VLOOKUP($D26,Berechnungen_1!$B$6:$Y$32,24,FALSE) -> 0
D27: Installation von Nistkästen - Vögel | H27: =VLOOKUP($D27,Berechnungen_1!$B$6:$Y$32,23,FALSE) -> 0 | L27: =VLOOKUP($D27,Berechnungen_1!$B$6:$Y$32,24,FALSE) -> 0
D28: Installation von Nistkästen - Eulen & Greifvögel | H28: =VLOOKUP($D28,Berechnungen_1!$B$6:$Y$32,23,FALSE) -> 0 | L28: =VLOOKUP($D28,Berechnungen_1!$B$6:$Y$32,24,FALSE) -> 0
D29: Installation von Nistkästen - Fledermäuse | H29: =VLOOKUP($D29,Berechnungen_1!$B$6:$Y$32,23,FALSE) -> 0 | L29: =VLOOKUP($D29,Berechnungen_1!$B$6:$Y$32,24,FALSE) -> 0
D30: Nistmöglichkeiten in Dämmung | H30: =IF(ISNA(VLOOKUP($D30,Berechnungen_1!$B$6:$Y$32,23,FALSE)),0,VLOOKUP($D30,Berechnungen_1!$B$6:$Y$32,23,FALSE)) -> 0 | L30: =IF(ISNA(VLOOKUP($D30,Berechnungen_1!$B$6:$Y$32,24,FALSE)),0,VLOOKUP($D30,Berechnungen_1!$B$6:$Y$32,24,FALSE)) -> 0
D32: Schutzmaßnahme Status Silber | H32: Anzahl/Fläche | L32: Punkte
D33: Agrar Hölzer im Kurzumtrieb | H33: =VLOOKUP($D33,Berechnungen_1!$B$6:$Y$32,23,FALSE) -> 0 | L33: =VLOOKUP($D33,Berechnungen_1!$B$6:$Y$32,24,FALSE) -> 0
D34: Blühwiese | H34: =VLOOKUP($D34,Berechnungen_1!$B$6:$Y$32,23,FALSE) -> 0 | L34: =VLOOKUP($D34,Berechnungen_1!$B$6:$Y$32,24,FALSE) -> 0
D35: Begrenzungshecke/Sichtschutzhecke | H35: =VLOOKUP($D35,Berechnungen_1!$B$6:$Y$32,23,FALSE) -> 0 | L35: =VLOOKUP($D35,Berechnungen_1!$B$6:$Y$32,24,FALSE) -> 0
D36: Bäume pflanzen | H36: =VLOOKUP($D36,Berechnungen_1!$B$6:$Y$32,23,FALSE) -> 0 | L36: =VLOOKUP($D36,Berechnungen_1!$B$6:$Y$32,24,FALSE) -> 0
D37: Extensive Weidewirtschaft | H37: =VLOOKUP($D37,Berechnungen_1!$B$6:$Y$32,23,FALSE) -> 0 | L37: =VLOOKUP($D37,Berechnungen_1!$B$6:$Y$32,24,FALSE) -> 0
D38: Dachbegrünung in städtischen Gebieten | H38: =VLOOKUP($D38,Berechnungen_1!$B$6:$Y$32,23,FALSE) -> 0 | L38: =VLOOKUP($D38,Berechnungen_1!$B$6:$Y$32,24,FALSE) -> 0
D39: Dämmstoff: Holzartige / Zellulose | H39: =VLOOKUP($D39,Berechnungen_1!$B$6:$Y$32,23,FALSE) -> 0 | L39: =VLOOKUP($D39,Berechnungen_1!$B$6:$Y$32,24,FALSE) -> 0
D41: Schutzmaßnahme Status Gold | H41: Anzahl/Fläche | L41: Punkte
D42: Wiederherstellung / Schaffung von Weihern | H42: =VLOOKUP($D42,Berechnungen_1!$B$6:$Y$32,23,FALSE) -> 0 | L42: =VLOOKUP($D42,Berechnungen_1!$B$6:$Y$32,24,FALSE) -> 0
D43: Wiederherstellung / Schaffung von Feuchtgebieten | H43: =VLOOKUP($D43,Berechnungen_1!$B$6:$Y$32,23,FALSE) -> 0 | L43: =VLOOKUP($D43,Berechnungen_1!$B$6:$Y$32,24,FALSE) -> 0
D44: Streuobstwiese | H44: =VLOOKUP($D44,Berechnungen_1!$B$6:$Y$32,23,FALSE) -> 0 | L44: =VLOOKUP($D44,Berechnungen_1!$B$6:$Y$32,24,FALSE) -> 0
D45: Amphibienschutzzaun | H45: =VLOOKUP($D45,Berechnungen_1!$B$6:$Y$32,23,FALSE) -> 0 | L45: =VLOOKUP($D45,Berechnungen_1!$B$6:$Y$32,24,FALSE) -> 0
D46: Trockenmauer | H46: =VLOOKUP($D46,Berechnungen_1!$B$6:$Y$32,23,FALSE) -> 0 | L46: =VLOOKUP($D46,Berechnungen_1!$B$6:$Y$32,24,FALSE) -> 0
D47: Benjeshecken anlegen | H47: =VLOOKUP($D47,Berechnungen_1!$B$6:$Y$32,23,FALSE) -> 0 | L47: =VLOOKUP($D47,Berechnungen_1!$B$6:$Y$32,24,FALSE) -> 0
D48: Bildungsmaßnahmen (z. B. Schulklassen, Menschen mit Behinderung etc.) | H48: =VLOOKUP($D48,Berechnungen_1!$B$6:$Y$32,23,FALSE) -> 0 | L48: =VLOOKUP($D48,Berechnungen_1!$B$6:$Y$32,24,FALSE) -> 0
D49: LEDs mit < 2.000 K | H49: =IF(ISNA(VLOOKUP($D49,Berechnungen_1!$B$6:$Y$32,23,FALSE)),0,VLOOKUP($D49,Berechnungen_1!$B$6:$Y$32,23,FALSE)) -> 0 | L49: =IF(ISNA(VLOOKUP($D49,Berechnungen_1!$B$6:$Y$32,24,FALSE)),0,VLOOKUP($D49,Berechnungen_1!$B$6:$Y$32,24,FALSE)) -> 0
D50: LEDs voll abgeschirmt | H50: =IF(ISNA(VLOOKUP($D50,Berechnungen_1!$B$6:$Y$32,23,FALSE)),0,VLOOKUP($D50,Berechnungen_1!$B$6:$Y$32,23,FALSE)) -> 0 | L50: =IF(ISNA(VLOOKUP($D50,Berechnungen_1!$B$6:$Y$32,24,FALSE)),0,VLOOKUP($D50,Berechnungen_1!$B$6:$Y$32,24,FALSE)) -> 0
D51: Einsatz von alternativen Biogassubstraten | H51: =VLOOKUP($D51,Berechnungen_1!$B$6:$Y$32,23,FALSE) -> 0 | L51: =IF(ISNA(VLOOKUP($D51,Berechnungen_1!$B$6:$Y$32,24,FALSE)),0,(VLOOKUP($D51,Berechnungen_1!$B$6:$Y$32,24,FALSE))) -> 0
D52: Bei Freifläche: Weidetierhaltung | H52: =IF(ISNA(VLOOKUP($D52,Berechnungen_1!$B$6:$Y$32,23,FALSE)),0,VLOOKUP($D52,Berechnungen_1!$B$6:$Y$32,23,FALSE)) -> 0 | L52: =IF(ISNA(VLOOKUP($D52,Berechnungen_1!$B$6:$Y$32,24,FALSE)),0,VLOOKUP($D52,Berechnungen_1!$B$6:$Y$32,24,FALSE)) -> 0
D53: Kavitation in Kombination mit dem Einsatz von alternativen Biogassubstraten | H53: =VLOOKUP($D53,Berechnungen_1!$B$6:$Y$32,23,FALSE) -> 0 | L53: =IF(ISNA(VLOOKUP($D53,Berechnungen_1!$B$6:$Y$32,24,FALSE)),0,VLOOKUP($D53,Berechnungen_1!$B$6:$Y$32,24,FALSE)) -> 0
D54: Dämmstoff: Hanf / Flachs / Schafwolle | H54: =VLOOKUP($D54,Berechnungen_1!$B$6:$Y$32,23,FALSE) -> 0 | L54: =IF(ISNA(VLOOKUP($D54,Berechnungen_1!$B$6:$Y$32,24,FALSE)),0,VLOOKUP($D54,Berechnungen_1!$B$6:$Y$32,24,FALSE)) -> 0
D56: Gesamtwert der Zertifikate | L56: =L18 -> 0
D58: Hiermit bestätige ich die Richtigkeit der Angaben im Formular und erkläre mich dazu bereit im Falle einer Überprüfung alle notwendigen Daten bereitzustellen.
D61: Bestätigungen des Antragstellers
D62: Hiermit wird bestätigt, dass die im Merkblatt genannten Zertifizierungsvoraussetzungen eingehalten werden sowie die Dokumentation inkl. Berechnungsergebnisse zur Kenntnis genommen wurden.
D63: =IF(Gesamtabfrage<0,Hinweis_BDB,IF(Ausw_Bestätigung=FALSE,Hinweis_Best_Ausgaben,"")) -> Mindestens eines Ihrer Projekte ist entweder nicht zertifizierbar oder weist Fehler auf. Bitte überprüfen Sie Ihre Angaben und beachten Sie das Tabellenblatt 'Anmerkungen'!
D68: Stempel und Unterschrift Antragsteller (Name Unterzeichner bitte zusätzlich in Druckbuchstaben angeben)
C70: =Erläuterung!D55 -> Berechnungsformular ZENAPA-Zertifizierung - Version 2021/10
E79: 0
E80: TRUE

Sheet Admin (hidden)
E5: Benutzeranmeldung & Sicherheitsrechte | I5: Ð | J5: Blatt sichtbar machen und Blattschutz aufheben | N5: Ï | O5: Blatt sichtbar machen und Blattschutz aktivieren | S5: x | T5: Blatt ausblenden (sehr versteckt)
E8: Benutzerverwaltung | H8: Arbeitsblätter
E9: Name | F9: Username | G9: Passwort | H9: Alle Seiten | I9: Admin | J9: Erläuterung | K9: Übersicht | L9: Anmerkungen | M9: PJ1 | N9: PJ2 | O9: PJ3 | P9: PJ4 | Q9: PJ5 | R9: PJ6 | S9: PJ7 | T9: PJ8 | U9: PJ9 | V9: PJ10 | W9: Eingabe Heizungstausch | X9: Berechnungen Heizungstausch | Y9: Dropdowns | Z9: THG-Faktoren | AA9: Hinweistexte | AB9: Berechnungen_1 | AC9: Berechnungen_2 | AD9: RWS Cockpit | AE9: RWS Strom | AF9: RWS Wärme | AG9: RWS Heizung
B10: Username | E10: Admin | F10: Admin | G10: Em!Ja18 | H10: Ð | I10: Ð | J10: Ð | K10: Ð | L10: Ð | M10: Ð | N10: Ð | O10: Ð | P10: Ð | Q10: Ð | R10: Ð | S10: Ð | T10: Ð | U10: Ð | V10: Ð | W10: Ð | X10: Ð | Y10: Ð | Z10: Ð | AA10: Ð | AB10: Ð | AC10: Ð | AD10: Ð | AE10: Ð | AF10: Ð | AG10: Ð
B11: Passwort | E11: Jacob Bußmann | F11: Jacob | G11: Em!Ja18 | H11: Ð | I11: x | J11: Ï | K11: Ï | L11: Ï | M11: Ð | N11: Ð | O11: Ð | P11: Ð | Q11: Ð | R11: Ð | S11: Ð | T11: Ð | U11: Ð | V11: Ð | W11: Ð | X11: Ð | Y11: x | Z11: x | AA11: x | AB11: x | AC11: x | AD11: x | AE11: x | AF11: x | AG11: x
B12: PW Correct | C12: =IF(INDEX(UserTable,MATCH(C10,UserName,0),2)=C11,TRUE,FALSE) ->  | E12: Anwender | F12: Anwender | H12: Ï | I12: x | J12: Ï | K12: Ï | L12: Ï | M12: Ï | N12: Ï | O12: Ï | P12: Ï | Q12: Ï | R12: Ï | S12: Ï | T12: Ï | U12: Ï | V12: Ï | W12: Ï | X12: x | Y12: x | Z12: x | AA12: x | AB12: x | AC12: x | AD12: x | AE12: x | AF12: x | AG12: x
B13: UserRow | C13: =IFERROR(MATCH(C10,UserName,0)+9,"") -> 

Sheet Tabelle1 (hidden)

Sheet Start (hidden)

Sheet PJ1 (hidden)
C2: =C67 -> Berechnungsformular ZENAPA-Zertifizierung - Version 2021/10
C3: Bitte beachten Sie beim Ausfüllen des Formulars die Hinweise im Tabellenblatt Anmerkungen. | I3: Projekt 1 | J3: PJ1
B4: 1 | C4: Antragsteller | G4: =IF(Übersicht!H5="","Bitte im Tabellenblatt 'Übersicht' den Namen eintragen!",Übersicht!H5) -> Bitte im Tabellenblatt 'Übersicht' den Namen eintragen!
B5: =B4+1 -> 2 | C5: Auswahl der Kategorie | G5: Bitte auswählen! | J5: =IF('PJ1'!Ausw_PJ_aktiv,IF(Kategorie="Bitte auswählen!",-2,1),2) -> 2
B6: =B5+1 -> 3 | C6: Technologie | G6: Bitte auswählen! | J6: =IF('PJ1'!Ausw_PJ_aktiv,IF(Projekt="Bitte auswählen!",-2,1),2) -> 2
B7: 4 | C7: =IFERROR(IF(VLOOKUP(Projekt,Dropdowns!B15:D27,3,FALSE)=1,"Einstufung","-"),"") ->  | G7: Bitte auswählen! | J7: =IF('PJ1'!Ausw_PJ_aktiv,IF(OR($G$6="LED",$G$6="Brauchwasserpumpe",$G$6="Heizungspumpe",$G$6="GreenIT",$G$6="Lüftungsanlage_oder_Klimaanlage",$G$6="Wind",$G$6="Photovoltaik",$G$6="Wasserkraft",Projekt="Heizungstausch"),2,IF(Einstufung="Bitte auswählen!",-2,0)),2) -> 2
B8: 5 | C8: =IFERROR(IF(Projekt="Biogasanlage mit Kavitation","Mehrertrag an thermischer Energie",IF(OR(VLOOKUP(Projekt,Dropdowns!B15:C27,2,FALSE)="erz",VLOOKUP(Projekt,Dropdowns!B15:C27,2,FALSE)="Wärme erz"),"Erzeugte thermische Energie",IF(VLOOKUP(Projekt,Dropdowns!B15:C27,2,FALSE)="Wärme eing", "Eingesparte thermische Energie","-"))),"") ->  | G8: 0 | J8: =IF('PJ1'!Ausw_PJ_aktiv,IF(OR($G$6="LED",$G$6="Brauchwasserpumpe",$G$6="Heizungspumpe",$G$6="GreenIT",$G$6="Lüftungsanlage_oder_Klimaanlage",$G$6="Wind",$G$6="Photovoltaik",$G$6="Wasserkraft",Projekt="Heizungstausch"),2,IF(Eingrenzung=0,-2,1)),2) -> 2
B9: 6 | C9: =IFERROR(IF(Projekt="Biogasanlage mit Kavitation","Mehrertrag an elektrischer Energie",IF(OR(VLOOKUP(Projekt,Dropdowns!B15:C27,2,FALSE)="erz",VLOOKUP(Projekt,Dropdowns!B15:C27,2,FALSE)="Strom erz"),"Erzeugte elektrische Energie",IF(VLOOKUP(Projekt,Dropdowns!B15:C27,2,FALSE)="Strom eing", "Eingesparte elektrische Energie","-"))),"") ->  | G9: 0 | J9: =IF('PJ1'!Ausw_PJ_aktiv,IF(OR($G$6="Solarthermie",$G$6="Künstlicher_Dämmstoff",$G$6="Naturdämmstoff",$G$6="Wärmepumpe",Projekt="Heizungstausch"),2,IF(OR(Stromeinsparung=0,Stromeinsparung=""),-2,1)),2) -> 2
B10: 7 | C10: Betriebsgewöhnliche Nutzungsdauer | G10: 0 | J10: =IF('PJ1'!Ausw_PJ_aktiv,IF(Projekt="Heizungstausch",2,IF(OR(Nutzungsdauer="",Nutzungsdauer=0),-2,1))) -> FALSE
B11: 8 | C11: CO2-Minderung über Lebensdauer | G11: =IF(Projekt="Heizungstausch",IF(HLOOKUP(J3,'Eingabe Heizungstausch'!C6:L39,34,FALSE)=0,"Bitte Tabellenblatt 'Eingabe Heizungstausch' vollständig ausfüllen!",HLOOKUP(J3,'Eingabe Heizungstausch'!C6:L39,34,FALSE)),VLOOKUP(J3,Berechnungen_1!C34:S44,16,FALSE)) ->  | J11: =IF(OR(AND('PJ1'!Ausw_PJ_aktiv,GHGZ<1),AND('PJ1'!Ausw_PJ_aktiv,GHGZ="Bitte Tabellenblatt 'Eingabe Heizungstausch' vollständig ausfüllen!"),J6<0),-2,IF('PJ1'!Ausw_PJ_aktiv=FALSE,2,1)) -> 2
B12: 9 | C12: Investition [Netto / ohne Förderung] | G12: 0 | J12: =IF('PJ1'!Ausw_PJ_aktiv,IF(OR(Investition=0,Investition=""),-2,1),2) -> 2
B13: 10 | C13: Regionale Wertschöpfung | G13: =IF(AND('PJ1'!Ausw_PJ_aktiv,G5="Bitte auswählen!"),0,VLOOKUP(J3,Berechnungen_2!$B$5:$AR$14,43,FALSE)) -> 
B14: 11 | C14: Anzahl an Wertschöpfungspunkte | G14: =IF(Kategorie="Bitte auswählen!",0,ROUNDDOWN(G13/300,0)) -> 0 | J14: =IF('PJ1'!Ausw_PJ_aktiv,IF(WZ>0,0,-1),2) -> 2
B15: 12 | C15: Maximal erreichbare Anzahl an Zertifikaten | G15: =ROUNDDOWN(AVERAGE(GHGZ,WZ),0) -> 0 | J15: =IF('PJ1'!Ausw_PJ_aktiv,IF(G15=0,-2,IF((Zertifikate+G55+D55)<G15,0,1)),2) -> 2
B16: 13 | C16: Beschreibung der Maßnahme | J16: =IF('PJ1'!Ausw_PJ_aktiv,IF(AND(G16=0,'PJ1'!Ausw_PJ_aktiv),-2,IF(AND('PJ1'!Ausw_PJ_aktiv,G16>0),1,1)),2) -> 2
C18: =IF(Ausw_PJ_aktiv,IFERROR("Für die maximal erreichbare Zertifikatausbeute brauchen Sie je nach Kategorie folgende Anzahl an Naturschutzpunkten:",""),"") -> 
C19: =IF(Ausw_PJ_aktiv,IFERROR("Bronze: " &Berechnungen_2!AN5& " Punkte",""),"") ->  | J19: =IF('PJ1'!Ausw_PJ_aktiv,IF(Berechnungen_2!AN5>0,0,1),1) -> 1
C20: =IF(Ausw_PJ_aktiv,IFERROR("Silber: " &Berechnungen_2!AO5& " Punkte (Mindestens fünf Punkte aus der Silberkategorie nötig)",""),"") ->  | J20: =IF('PJ1'!Ausw_PJ_aktiv,IF(Berechnungen_2!AO5>0,0,1),1) -> 1
C21: =IF(Ausw_PJ_aktiv,IFERROR("Gold: " &Berechnungen_2!AP5& " Punkte (Mindestens fünf Punkte aus der Goldkategorie nötig)",""),"") ->  | J21: =IF('PJ1'!Ausw_PJ_aktiv,IF(Berechnungen_2!AP5>0,0,1),1) -> 1
C23: Schutzmaßnahme Status Bronze | G23: Anzahl/Fläche | I23: Punkte
B24: =B16+1 -> 14 | C24: Installation von Nistkästen - Insekten | G24: 0 | I24: =IF(Kategorie="Bitte auswählen!",0,ROUNDDOWN(G24*VLOOKUP(C24,Dropdowns!$B$48:$C$76,2,FALSE),0)) -> 0
B25: =B24+1 -> 15 | C25: Installation von Insektenhotel | G25: 0 | I25: =IF(Kategorie="Bitte auswählen!",0,ROUNDDOWN(G25*VLOOKUP(C25,Dropdowns!$B$48:$C$76,2,FALSE),0)) -> 0
B26: =B25+1 -> 16 | C26: Installation von Nistkästen - Vögel | G26: 0 | I26: =IF(Kategorie="Bitte auswählen!",0,ROUNDDOWN(G26*VLOOKUP(C26,Dropdowns!$B$48:$C$76,2,FALSE),0)) -> 0
B27: 17 | C27: Installation von Nistkästen - Eulen & Greifvögel | G27: 0 | I27: =IF(Kategorie="Bitte auswählen!",0,ROUNDDOWN(G27*VLOOKUP(C27,Dropdowns!$B$48:$C$76,2,FALSE),0)) -> 0
B28: 18 | C28: Installation von Nistkästen - Fledermäuse | G28: 0 | I28: =IF(Kategorie="Bitte auswählen!",0,ROUNDDOWN(G28*VLOOKUP(C28,Dropdowns!$B$48:$C$76,2,FALSE),0)) -> 0
A29: =Feld0 -> 0 | B29: 19 | C29: =IF(ISNA(VLOOKUP(Projekt,Dropdowns!B31:F44,2,FALSE)),0,VLOOKUP(Projekt,Dropdowns!B31:F44,2,FALSE)) -> 0 | G29: 0 | I29: =IF(C29=0,0,IF(Kategorie="Bitte auswählen!",0,IF(Feld0=Dropdowns!E40,IF(OR(bronzefeld<0,bronzefeld>1),0,ROUNDDOWN(G29*VLOOKUP(C29,Dropdowns!B48:C76,2,FALSE),0)),ROUNDDOWN(G29*VLOOKUP(C29,Dropdowns!B48:C76,2,FALSE),0)))) -> 0
B30: 20 | C30: Summe (Bronze) | G30: =SUM(I24:I29) -> 0
C32: Schutzmaßnahme Status Silber | G32: Anzahl/Fläche | I32: Punkte
B33: =B30+1 -> 21 | C33: Agrar Hölzer im Kurzumtrieb (min. 30 m) | G33: 0 | I33: =IF(OR(Kategorie="Bitte auswählen!",G33<30),0,ROUNDDOWN(G33*VLOOKUP(C33,Dropdowns!$B$48:$C$76,2,FALSE),0)) -> 0 | J33: =IF('PJ1'!Ausw_PJ_aktiv,IF(AND(G33>=30,'PJ1'!Ausw_PJ_aktiv),1,IF(AND(G33=0,'PJ1'!Ausw_PJ_aktiv),2,IF(AND(G33>0,G33<30,'PJ1'!Ausw_PJ_aktiv),-2))),2) -> 2
B34: =B33+1 -> 22 | C34: Blühwiese (min. 50 m2) | G34: 0 | I34: =IF(OR(Kategorie="Bitte auswählen!",G34<50),0,ROUNDDOWN(G34*VLOOKUP(C34,Dropdowns!$B$48:$C$76,2,FALSE),0)) -> 0 | J34: =IF('PJ1'!Ausw_PJ_aktiv,IF(AND(G34>=50,'PJ1'!Ausw_PJ_aktiv),1,IF(AND(G34=0,'PJ1'!Ausw_PJ_aktiv),2,IF(AND(G34>0,G34<50,'PJ1'!Ausw_PJ_aktiv),-2))),2) -> 2
B35: =B34+1 -> 23 | C35: Begrenzungshecke/Sichtschutzhecke (min. 50 m²) | G35: 0 | I35: =IF(OR(Kategorie="Bitte auswählen!",G35<50),0,ROUNDDOWN(G35*VLOOKUP(C35,Dropdowns!$B$48:$C$76,2,FALSE),0)) -> 0 | J35: =IF('PJ1'!Ausw_PJ_aktiv,IF(AND(G35>=50,'PJ1'!Ausw_PJ_aktiv),1,IF(AND(G35=0,'PJ1'!Ausw_PJ_aktiv),2,IF(AND(G35>0,G35<50,'PJ1'!Ausw_PJ_aktiv),-2))),2) -> 2
B36: 24 | C36: Bäume pflanzen | G36: 0 | I36: =IF(Kategorie="Bitte auswählen!",0,ROUNDDOWN(G36*VLOOKUP(C36,Dropdowns!$B$48:$C$76,2,FALSE),0)) -> 0
B37: 25 | C37: Extensive Weidewirtschaft (min. 10.000 m2) | G37: 0 | I37: =IF(OR(Kategorie="Bitte auswählen!",G37<10000),0,ROUNDDOWN(G37*VLOOKUP(C37,Dropdowns!$B$48:$C$76,2,FALSE),0)) -> 0 | J37: =IF('PJ1'!Ausw_PJ_aktiv,IF(AND(G37>=10000,'PJ1'!Ausw_PJ_aktiv),1,IF(AND(G37=0,'PJ1'!Ausw_PJ_aktiv),2,IF(AND(G37>0,G37<10000,'PJ1'!Ausw_PJ_aktiv),-2))),2) -> 2
B38: 26 | C38: Dachbegrünung in städtischen Gebieten (min. 10 m2) | G38: 0 | I38: =IF(OR(Kategorie="Bitte auswählen!",G38<10),0,ROUNDDOWN(G38*VLOOKUP(C38,Dropdowns!$B$48:$C$76,2,FALSE),0)) -> 0 | J38: =IF('PJ1'!Ausw_PJ_aktiv,IF(AND(G38>=10,'PJ1'!Ausw_PJ_aktiv),1,IF(AND(G38=0,'PJ1'!Ausw_PJ_aktiv),2,IF(AND(G38>0,G38<10,'PJ1'!Ausw_PJ_aktiv),-2))),2) -> 2
A39: =feld1 -> 0 | B39: 27 | C39: =IF(ISNA(VLOOKUP(Projekt,Dropdowns!B31:F44,3,FALSE)),0,VLOOKUP(Projekt,Dropdowns!B31:F44,3,FALSE)) -> 0 | G39: 0 | I39: =IF(C39=0,0,IF(Kategorie="Bitte auswählen!",0,IF(feld1=Dropdowns!E40,IF(OR(silberfeld<0,),0,ROUNDDOWN(G39*VLOOKUP(C39,Dropdowns!B48:C76,2,FALSE),0)),ROUNDDOWN(G39*VLOOKUP(C39,Dropdowns!B48:C76,2,FALSE),0)))) -> 0
B40: 28 | C40: Summe (Silber) | G40: =SUM(I33:I39) -> 0
C42: Schutzmaßnahme Status Gold | G42: Anzahl/Fläche | I42: Punkte
B43: =B40+1 -> 29 | C43: Wiederherstellung / Schaffung von Weihern (min. 50 m2) | G43: 0 | I43: =IF(OR(Kategorie="Bitte auswählen!",G43<50),0,ROUNDDOWN(G43*VLOOKUP(C43,Dropdowns!$B$48:$C$76,2,FALSE),0)) -> 0 | J43: =IF('PJ1'!Ausw_PJ_aktiv,IF(AND(G43>=50,'PJ1'!Ausw_PJ_aktiv),1,IF(AND(G43=0,'PJ1'!Ausw_PJ_aktiv),2,IF(AND(G43>0,G43<50,'PJ1'!Ausw_PJ_aktiv),-2))),2) -> 2
B44: =B43+1 -> 30 | C44: Wiederherstellung / Schaffung von Feuchtgebieten (min. 50 m2) | G44: 0 | I44: =IF(OR(Kategorie="Bitte auswählen!",G44<50),0,ROUNDDOWN(G44*VLOOKUP(C44,Dropdowns!$B$48:$C$76,2,FALSE),0)) -> 0 | J44: =IF('PJ1'!Ausw_PJ_aktiv,IF(AND(G44>=50,'PJ1'!Ausw_PJ_aktiv),1,IF(AND(G44=0,'PJ1'!Ausw_PJ_aktiv),2,IF(AND(G44>0,G44<50,'PJ1'!Ausw_PJ_aktiv),-2))),2) -> 2
B45: =B44+1 -> 31 | C45: Streuobstwiese (min. 100 m2) | G45: 0 | I45: =IF(OR(Kategorie="Bitte auswählen!",G45<100),0,ROUNDDOWN(G45*VLOOKUP(C45,Dropdowns!$B$48:$C$76,2,FALSE),0)) -> 0 | J45: =IF('PJ1'!Ausw_PJ_aktiv,IF(AND(G45>=100,'PJ1'!Ausw_PJ_aktiv),1,IF(AND(G45=0,'PJ1'!Ausw_PJ_aktiv),2,IF(AND(G45>0,G45<100,'PJ1'!Ausw_PJ_aktiv),-2))),2) -> 2
B46: 32 | C46: Amphibienschutzzaun (min. 100 m) | G46: 0 | I46: =IF(OR(Kategorie="Bitte auswählen!",Bienen<100),0,ROUNDDOWN(G46*VLOOKUP(C46,Dropdowns!$B$48:$C$76,2,FALSE),0)) -> 0 | J46: =IF('PJ1'!Ausw_PJ_aktiv,IF(AND(G46>=100,'PJ1'!Ausw_PJ_aktiv),1,IF(AND(G46=0,'PJ1'!Ausw_PJ_aktiv),2,IF(AND(G46>0,G46<100,'PJ1'!Ausw_PJ_aktiv),-2))),2) -> 2
B47: 33 | C47: Trockenmauer (min. 10 m) | G47: 0 | I47: =IF(OR(Kategorie="Bitte auswählen!",Mauer<10),0,ROUNDDOWN(G47*VLOOKUP(C47,Dropdowns!$B$48:$C$76,2,FALSE),0)) -> 0 | J47: =IF('PJ1'!Ausw_PJ_aktiv,IF(AND(G47>=10,'PJ1'!Ausw_PJ_aktiv),1,IF(AND(G47=0,'PJ1'!Ausw_PJ_aktiv),2,IF(AND(G47>0,G47<10,'PJ1'!Ausw_PJ_aktiv),-2))),2) -> 2
B48: 34 | C48: Benjeshecken anlegen (min. 30 m) | G48: 0 | I48: =IF(OR(Kategorie="Bitte auswählen!",G48<30),0,ROUNDDOWN(G48*VLOOKUP(C48,Dropdowns!$B$48:$C$76,2,FALSE),0)) -> 0 | J48: =IF('PJ1'!Ausw_PJ_aktiv,IF(AND(G48>=30,'PJ1'!Ausw_PJ_aktiv),1,IF(AND(G48=0,'PJ1'!Ausw_PJ_aktiv),2,IF(AND(G48>0,G48<30,'PJ1'!Ausw_PJ_aktiv),-2))),2) -> 2
B49: 35 | C49: Bildungsmaßnahmen (z. B. Schulklassen, Menschen mit Behinderung etc.) | G49: 0 | I49: =IF(OR(Kategorie="Bitte auswählen!",Sozi<1),0,ROUNDDOWN(G49*VLOOKUP(C49,Dropdowns!B48:C76,2,FALSE),0)) -> 0 | J49: =IF('PJ1'!Ausw_PJ_aktiv,IF(AND(G49>=1,'PJ1'!Ausw_PJ_aktiv),1,IF(AND(G49=0,'PJ1'!Ausw_PJ_aktiv),2,IF(AND(G49>0,G49<1,'PJ1'!Ausw_PJ_aktiv),-2))),2) -> 2
A50: =feld2 -> 0 | B50: 36 | C50: =IF(ISNA(VLOOKUP(Projekt,Dropdowns!B31:F44,4,FALSE)),0,VLOOKUP(Projekt,Dropdowns!B31:F44,4,FALSE)) -> 0 | G50: 0 | I50: =IF(C50=0,0,IF(Kategorie="Bitte auswählen!",0,IF(feld2=Dropdowns!E41,IF(OR(goldfeld1<0,goldfeld1>1,AND(goldfeld1>0,goldfeld1<1)),0,ROUNDDOWN(G50*VLOOKUP(C50,Dropdowns!B48:C76,2,FALSE),0)),ROUNDDOWN(G50*VLOOKUP(C50,Dropdowns!B48:C76,2,FALSE),0)))) -> 0 | J50: =IF(A50=0,"",IF('PJ1'!Ausw_PJ_aktiv,IF(OR(AND(OR(feld2=Dropdowns!E39,feld2=Dropdowns!E37),OR(goldfeld1=0,goldfeld1=1)),feld2=0),0,IF(AND(feld2<>Dropdowns!E39,feld2<>Dropdowns!E37),2,-2)),2)) -> 
A51: =feld3 -> 0 | B51: 37 | C51: =IF(ISNA(VLOOKUP(Projekt,Dropdowns!B31:F44,5,FALSE)),0,VLOOKUP(Projekt,Dropdowns!B31:F44,5,FALSE)) -> 0 | G51: 0 | I51: =IF(C51=0,0,IF(Kategorie="Bitte auswählen!",0,IF(feld3=Dropdowns!E41,IF(OR(goldfeld2<0,goldfeld2>1,AND(goldfeld2>0,goldfeld2<1)),0,ROUNDDOWN(G51*VLOOKUP(C51,Dropdowns!B48:C76,2,FALSE),0)),ROUNDDOWN(G51*VLOOKUP(C51,Dropdowns!B48:C76,2,FALSE),0)))) -> 0
B52: 38 | C52: Summe (Gold) | G52: =SUM(I43:I51) -> 0
D54: Bronze | G54: Silber | I54: Gold
B55: =B52+1 -> 39 | C55: Anzahl der Zertifikate | D55: =IF(Berechnungen_2!S5=0,0,Berechnungen_2!S5) -> 0 | G55: =Berechnungen_2!P5 -> 0 | I55: =Berechnungen_2!K5 -> 0 | J55: =IF('PJ1'!Ausw_PJ_aktiv,IF(SUM(D55:I55)=G15,1,IF(AND(SUM(D55:I55)<G15,SUM(D55:I55)>0,'PJ1'!Ausw_PJ_aktiv),0,IF(AND(SUM(D55:I55)=0,'PJ1'!Ausw_PJ_aktiv),-2))),2) -> 2
B56: =B55+1 -> 40 | C56: Wert der Zertifikate | D56: =D55*25 -> 0 | G56: =G55*50 -> 0 | I56: =75*Zertifikate -> 0
B57: =B56+1 -> 41 | C57: Gesamtwert der Zertifikate | D57: =SUM(D56:I56) -> 0
C60: Sonstige Anmerkungen
B61: =B57+1 -> 42
C67: =Erläuterung!D55 -> Berechnungsformular ZENAPA-Zertifizierung - Version 2021/10
E140: Ausw_PJ_aktiv | G140: FALSE
E141: PlAbfr_PJ_RW | G141: =IF('PJ1'!Ausw_PJ_aktiv,(J13),1) -> 1
E142: PlAbfr_PJ_PB | G142: =IF('PJ1'!Ausw_PJ_aktiv,(J16),1) -> 1
E143: PlAbfr_PJ_FL | G143: =IF('PJ1'!Ausw_PJ_aktiv,MIN(J33:J35,J37:J38,J43:J48),1) -> 1
E144: PlAbfr_PJ_SP | G144: =IF('PJ1'!Ausw_PJ_aktiv,J49,1) -> 1
E145: PlAbfr_PJ_AP | G145: =IF('PJ1'!Ausw_PJ_aktiv,(J55),1) -> 1
E146: PIAbfr_PJ_EnEf | G146: =IF('PJ1'!Ausw_PJ_aktiv,J11,1) -> 1
E147: Anzahl_BPkt | G147: =IF('PJ1'!Ausw_PJ_aktiv,SUM(G30,G40,G52-Anzahl_SPkt),0) -> 0
E148: Anzahl_SPkt | G148: =IF('PJ1'!Ausw_PJ_aktiv,SUM($I$49:$I$49),0) -> 0
E149: PIAbfr_PJ_01 | G149: =IF(AND('PJ1'!Ausw_PJ_aktiv,GHGZ="Bitte Tabellenblatt 'Eingabe Heizungstausch' vollständig ausfüllen!"),-1,1) -> 1
E150: PIAbfr_PJ_Max | G150: =IF('PJ1'!Ausw_PJ_aktiv,MIN(J19:J21),1) -> 1
E151: PIAbfr_PJ_BD | G151: =IF('PJ1'!Ausw_PJ_aktiv,PIAbfr_BD,1) -> 1
E152: PIAbfr_PJ_NaturP | G152: =IF(AND(Ausw_PJ_aktiv,G15>=1,SUM(D55:I55)=0),-1,1) -> 1
E153: PIAbfr_PJ_allg | G153: =MIN(J5:J10,J12) -> 2

Sheet PJ2 (hidden)
C2: =C67 -> Berechnungsformular ZENAPA-Zertifizierung - Version 2021/10
C3: Bitte beachten Sie beim Ausfüllen des Formulars die Hinweise im Tabellenblatt Anmerkungen. | I3: Projekt 2 | J3: PJ2
B4: 1 | C4: Antragsteller | G4: =IF(Übersicht!H5="","Bitte im Tabellenblatt 'Übersicht' den Namen eintragen!",Übersicht!H5) -> Bitte im Tabellenblatt 'Übersicht' den Namen eintragen!
B5: =B4+1 -> 2 | C5: Auswahl der Kategorie | G5: Bitte auswählen! | J5: =IF('PJ2'!Ausw_PJ_aktiv,IF(Kategorie="Bitte auswählen!",-2,1),2) -> 2
B6: =B5+1 -> 3 | C6: Technologie | G6: Bitte auswählen! | J6: =IF('PJ2'!Ausw_PJ_aktiv,IF(Projekt="Bitte auswählen!",-2,1),2) -> 2
B7: 4 | C7: =IFERROR(IF(VLOOKUP(Projekt,Dropdowns!B15:D27,3,FALSE)=1,"Einstufung","-"),"") ->  | G7: Bitte auswählen! | J7: =IF('PJ2'!Ausw_PJ_aktiv,IF(OR($G$6="LED",$G$6="Brauchwasserpumpe",$G$6="Heizungspumpe",$G$6="GreenIT",$G$6="Lüftungsanlage_oder_Klimaanlage",$G$6="Wind",$G$6="Photovoltaik",$G$6="Wasserkraft",Projekt="Heizungstausch"),2,IF(Einstufung="Bitte auswählen!",-2,0)),2) -> 2
B8: 5 | C8: =IFERROR(IF(Projekt="Biogasanlage mit Kavitation","Mehrertrag an thermischer Energie",IF(OR(VLOOKUP(Projekt,Dropdowns!B15:C27,2,FALSE)="erz",VLOOKUP(Projekt,Dropdowns!B15:C27,2,FALSE)="Wärme erz"),"Erzeugte thermische Energie",IF(VLOOKUP(Projekt,Dropdowns!B15:C27,2,FALSE)="Wärme eing", "Eingesparte thermische Energie","-"))),"") ->  | G8: 0 | J8: =IF('PJ2'!Ausw_PJ_aktiv,IF(OR($G$6="LED",$G$6="Brauchwasserpumpe",$G$6="Heizungspumpe",$G$6="GreenIT",$G$6="Lüftungsanlage_oder_Klimaanlage",$G$6="Wind",$G$6="Photovoltaik",$G$6="Wasserkraft",Projekt="Heizungstausch"),2,IF(Eingrenzung=0,-2,1)),2) -> 2
B9: 6 | C9: =IFERROR(IF(Projekt="Biogasanlage mit Kavitation","Mehrertrag an elektrischer Energie",IF(OR(VLOOKUP(Projekt,Dropdowns!B15:C27,2,FALSE)="erz",VLOOKUP(Projekt,Dropdowns!B15:C27,2,FALSE)="Strom erz"),"Erzeugte elektrische Energie",IF(VLOOKUP(Projekt,Dropdowns!B15:C27,2,FALSE)="Strom eing", "Eingesparte elektrische Energie","-"))),"") ->  | G9: 0 | J9: =IF('PJ2'!Ausw_PJ_aktiv,IF(OR($G$6="Solarthermie",$G$6="Künstlicher_Dämmstoff",$G$6="Naturdämmstoff",$G$6="Wärmepumpe",Projekt="Heizungstausch"),2,IF(OR(Stromeinsparung=0,Stromeinsparung=""),-2,1)),2) -> 2
B10: 7 | C10: Betriebsgewöhnliche Nutzungsdauer | G10: 0 | J10: =IF('PJ2'!Ausw_PJ_aktiv,IF(Projekt="Heizungstausch",2,IF(OR(Nutzungsdauer="",Nutzungsdauer=0),-2,1))) -> FALSE
B11: 8 | C11: CO2-Minderung über Lebensdauer | G11: =IF(Projekt="Heizungstausch",IF(HLOOKUP(J3,'Eingabe Heizungstausch'!C6:L39,34,FALSE)=0,"Bitte Tabellenblatt 'Eingabe Heizungstausch' vollständig ausfüllen!",HLOOKUP(J3,'Eingabe Heizungstausch'!C6:L39,34,FALSE)),VLOOKUP(J3,Berechnungen_1!C34:S44,16,FALSE)) ->  | J11: =IF(OR(AND('PJ2'!Ausw_PJ_aktiv,GHGZ<1),AND('PJ2'!Ausw_PJ_aktiv,GHGZ="Bitte Tabellenblatt 'Eingabe Heizungstausch' vollständig ausfüllen!"),J6<0),-2,IF('PJ2'!Ausw_PJ_aktiv=FALSE,2,1)) -> 2
B12: 9 | C12: Investition [Netto / ohne Förderung] | G12: 0 | J12: =IF('PJ2'!Ausw_PJ_aktiv,IF(OR(Investition=0,Investition=""),-2,1),2) -> 2
B13: 10 | C13: Regionale Wertschöpfung | G13: =IF(AND('PJ2'!Ausw_PJ_aktiv,G5="Bitte auswählen!"),0,VLOOKUP(J3,Berechnungen_2!$B$5:$AR$14,43,FALSE)) -> 
B14: 11 | C14: Anzahl an Wertschöpfungspunkte | G14: =IF(Kategorie="Bitte auswählen!",0,ROUNDDOWN(G13/300,0)) -> 0 | J14: =IF('PJ2'!Ausw_PJ_aktiv,IF(WZ>0,0,-1),2) -> 2
B15: 12 | C15: Maximal erreichbare Anzahl an Zertifikaten | G15: =ROUNDDOWN(AVERAGE(GHGZ,WZ),0) -> 0 | J15: =IF('PJ2'!Ausw_PJ_aktiv,IF(G15=0,-2,IF((Zertifikate+G55+D55)<G15,0,1)),2) -> 2
B16: 13 | C16: Beschreibung der Maßnahme | J16: =IF('PJ2'!Ausw_PJ_aktiv,IF(AND(G16=0,'PJ2'!Ausw_PJ_aktiv),-2,IF(AND('PJ2'!Ausw_PJ_aktiv,G16>0),1,1)),2) -> 2
C18: =IF(Ausw_PJ_aktiv,IFERROR("Für die maximal erreichbare Zertifikatausbeute brauchen Sie je nach Kategorie folgende Anzahl an Naturschutzpunkten:",""),"") -> 
C19: =IF(Ausw_PJ_aktiv,IFERROR("Bronze: " &Berechnungen_2!AN6& " Punkte",""),"") ->  | J19: =IF('PJ2'!Ausw_PJ_aktiv,IF(Berechnungen_2!AN5>0,0,1),1) -> 1
C20: =IF(Ausw_PJ_aktiv,IFERROR("Silber: " &Berechnungen_2!AO6& " Punkte (Mindestens fünf Punkte aus der Silberkategorie nötig)",""),"") ->  | J20: =IF('PJ2'!Ausw_PJ_aktiv,IF(Berechnungen_2!AO5>0,0,1),1) -> 1
C21: =IF(Ausw_PJ_aktiv,IFERROR("Gold: " &Berechnungen_2!AP6& " Punkte (Mindestens fünf Punkte aus der Goldkategorie nötig)",""),"") ->  | J21: =IF('PJ2'!Ausw_PJ_aktiv,IF(Berechnungen_2!AP5>0,0,1),1) -> 1
C23: Schutzmaßnahme Status Bronze | G23: Anzahl/Fläche | I23: Punkte
B24: =B16+1 -> 14 | C24: Installation von Nistkästen - Insekten | G24: 0 | I24: =IF(Kategorie="Bitte auswählen!",0,ROUNDDOWN(G24*VLOOKUP(C24,Dropdowns!$B$48:$C$76,2,FALSE),0)) -> 0
B25: =B24+1 -> 15 | C25: Installation von Insektenhotel | G25: 0 | I25: =IF(Kategorie="Bitte auswählen!",0,ROUNDDOWN(G25*VLOOKUP(C25,Dropdowns!$B$48:$C$76,2,FALSE),0)) -> 0
B26: =B25+1 -> 16 | C26: Installation von Nistkästen - Vögel | G26: 0 | I26: =IF(Kategorie="Bitte auswählen!",0,ROUNDDOWN(G26*VLOOKUP(C26,Dropdowns!$B$48:$C$76,2,FALSE),0)) -> 0
B27: 17 | C27: Installation von Nistkästen - Eulen & Greifvögel | G27: 0 | I27: =IF(Kategorie="Bitte auswählen!",0,ROUNDDOWN(G27*VLOOKUP(C27,Dropdowns!$B$48:$C$76,2,FALSE),0)) -> 0
B28: 18 | C28: Installation von Nistkästen - Fledermäuse | G28: 0 | I28: =IF(Kategorie="Bitte auswählen!",0,ROUNDDOWN(G28*VLOOKUP(C28,Dropdowns!$B$48:$C$76,2,FALSE),0)) -> 0
A29: =Feld0 -> 0 | B29: 19 | C29: =IF(ISNA(VLOOKUP(Projekt,Dropdowns!B31:F44,2,FALSE)),0,VLOOKUP(Projekt,Dropdowns!B31:F44,2,FALSE)) -> 0 | G29: 0 | I29: =IF(C29=0,0,IF(Kategorie="Bitte auswählen!",0,IF(Feld0=Dropdowns!E40,IF(OR(bronzefeld<0,bronzefeld>1),0,ROUNDDOWN(G29*VLOOKUP(C29,Dropdowns!B48:C76,2,FALSE),0)),ROUNDDOWN(G29*VLOOKUP(C29,Dropdowns!B48:C76,2,FALSE),0)))) -> 0
B30: 20 | C30: Summe (Bronze) | G30: =SUM(I24:I29) -> 0
C32: Schutzmaßnahme Status Silber | G32: Anzahl/Fläche | I32: Punkte
B33: =B30+1 -> 21 | C33: Agrar Hölzer im Kurzumtrieb (min. 30 m) | G33: 0 | I33: =IF(OR(Kategorie="Bitte auswählen!",G33<30),0,ROUNDDOWN(G33*VLOOKUP(C33,Dropdowns!$B$48:$C$76,2,FALSE),0)) -> 0 | J33: =IF('PJ2'!Ausw_PJ_aktiv,IF(AND(G33>=30,'PJ2'!Ausw_PJ_aktiv),1,IF(AND(G33=0,'PJ2'!Ausw_PJ_aktiv),2,IF(AND(G33>0,G33<30,'PJ2'!Ausw_PJ_aktiv),-2))),2) -> 2
B34: =B33+1 -> 22 | C34: Blühwiese (min. 50 m2) | G34: 0 | I34: =IF(OR(Kategorie="Bitte auswählen!",G34<50),0,ROUNDDOWN(G34*VLOOKUP(C34,Dropdowns!$B$48:$C$76,2,FALSE),0)) -> 0 | J34: =IF('PJ2'!Ausw_PJ_aktiv,IF(AND(G34>=50,'PJ2'!Ausw_PJ_aktiv),1,IF(AND(G34=0,'PJ2'!Ausw_PJ_aktiv),2,IF(AND(G34>0,G34<50,'PJ2'!Ausw_PJ_aktiv),-2))),2) -> 2
B35: =B34+1 -> 23 | C35: Begrenzungshecke/Sichtschutzhecke (min. 50 m²) | G35: 0 | I35: =IF(OR(Kategorie="Bitte auswählen!",G35<50),0,ROUNDDOWN(G35*VLOOKUP(C35,Dropdowns!$B$48:$C$76,2,FALSE),0)) -> 0 | J35: =IF('PJ2'!Ausw_PJ_aktiv,IF(AND(G35>=50,'PJ2'!Ausw_PJ_aktiv),1,IF(AND(G35=0,'PJ2'!Ausw_PJ_aktiv),2,IF(AND(G35>0,G35<50,'PJ2'!Ausw_PJ_aktiv),-2))),2) -> 2
B36: 24 | C36: Bäume pflanzen | G36: 0 | I36: =IF(Kategorie="Bitte auswählen!",0,ROUNDDOWN(G36*VLOOKUP(C36,Dropdowns!$B$48:$C$76,2,FALSE),0)) -> 0
B37: 25 | C37: Extensive Weidewirtschaft (min. 10.000 m2) | G37: 0 | I37: =IF(OR(Kategorie="Bitte auswählen!",G37<10000),0,ROUNDDOWN(G37*VLOOKUP(C37,Dropdowns!$B$48:$C$76,2,FALSE),0)) -> 0 | J37: =IF('PJ2'!Ausw_PJ_aktiv,IF(AND(G37>=10000,'PJ2'!Ausw_PJ_aktiv),1,IF(AND(G37=0,'PJ2'!Ausw_PJ_aktiv),2,IF(AND(G37>0,G37<10000,'PJ2'!Ausw_PJ_aktiv),-2))),2) -> 2
B38: 26 | C38: Dachbegrünung in städtischen Gebieten (min. 10 m2) | G38: 0 | I38: =IF(OR(Kategorie="Bitte auswählen!",G38<10),0,ROUNDDOWN(G38*VLOOKUP(C38,Dropdowns!$B$48:$C$76,2,FALSE),0)) -> 0 | J38: =IF('PJ2'!Ausw_PJ_aktiv,IF(AND(G38>=10,'PJ2'!Ausw_PJ_aktiv),1,IF(AND(G38=0,'PJ2'!Ausw_PJ_aktiv),2,IF(AND(G38>0,G38<10,'PJ2'!Ausw_PJ_aktiv),-2))),2) -> 2
A39: =feld1 -> 0 | B39: 27 | C39: =IF(ISNA(VLOOKUP(Projekt,Dropdowns!B31:F44,3,FALSE)),0,VLOOKUP(Projekt,Dropdowns!B31:F44,3,FALSE)) -> 0 | G39: 0 | I39: =IF(C39=0,0,IF(Kategorie="Bitte auswählen!",0,IF(feld1=Dropdowns!E40,IF(OR(silberfeld<0,),0,ROUNDDOWN(G39*VLOOKUP(C39,Dropdowns!B48:C76,2,FALSE),0)),ROUNDDOWN(G39*VLOOKUP(C39,Dropdowns!B48:C76,2,FALSE),0)))) -> 0
B40: 28 | C40: Summe (Silber) | G40: =SUM(I33:I39) -> 0
C42: Schutzmaßnahme Status Gold | G42: Anzahl/Fläche | I42: Punkte
B43: =B40+1 -> 29 | C43: Wiederherstellung / Schaffung von Weihern (min. 50 m2) | G43: 0 | I43: =IF(OR(Kategorie="Bitte auswählen!",G43<50),0,ROUNDDOWN(G43*VLOOKUP(C43,Dropdowns!$B$48:$C$76,2,FALSE),0)) -> 0 | J43: =IF('PJ2'!Ausw_PJ_aktiv,IF(AND(G43>=50,'PJ2'!Ausw_PJ_aktiv),1,IF(AND(G43=0,'PJ2'!Ausw_PJ_aktiv),2,IF(AND(G43>0,G43<50,'PJ2'!Ausw_PJ_aktiv),-2))),2) -> 2
B44: =B43+1 -> 30 | C44: Wiederherstellung / Schaffung von Feuchtgebieten (min. 50 m2) | G44: 0 | I44: =IF(OR(Kategorie="Bitte auswählen!",G44<50),0,ROUNDDOWN(G44*VLOOKUP(C44,Dropdowns!$B$48:$C$76,2,FALSE),0)) -> 0 | J44: =IF('PJ2'!Ausw_PJ_aktiv,IF(AND(G44>=50,'PJ2'!Ausw_PJ_aktiv),1,IF(AND(G44=0,'PJ2'!Ausw_PJ_aktiv),2,IF(AND(G44>0,G44<50,'PJ2'!Ausw_PJ_aktiv),-2))),2) -> 2
B45: =B44+1 -> 31 | C45: Streuobstwiese (min. 100 m2) | G45: 0 | I45: =IF(OR(Kategorie="Bitte auswählen!",G45<100),0,ROUNDDOWN(G45*VLOOKUP(C45,Dropdowns!$B$48:$C$76,2,FALSE),0)) -> 0 | J45: =IF('PJ2'!Ausw_PJ_aktiv,IF(AND(G45>=100,'PJ2'!Ausw_PJ_aktiv),1,IF(AND(G45=0,'PJ2'!Ausw_PJ_aktiv),2,IF(AND(G45>0,G45<100,'PJ2'!Ausw_PJ_aktiv),-2))),2) -> 2
B46: 32 | C46: Amphibienschutzzaun (min. 100 m) | G46: 0 | I46: =IF(OR(Kategorie="Bitte auswählen!",Bienen<100),0,ROUNDDOWN(G46*VLOOKUP(C46,Dropdowns!$B$48:$C$76,2,FALSE),0)) -> 0 | J46: =IF('PJ2'!Ausw_PJ_aktiv,IF(AND(G46>=100,'PJ2'!Ausw_PJ_aktiv),1,IF(AND(G46=0,'PJ2'!Ausw_PJ_aktiv),2,IF(AND(G46>0,G46<100,'PJ2'!Ausw_PJ_aktiv),-2))),2) -> 2
B47: 33 | C47: Trockenmauer (min. 10 m) | G47: 0 | I47: =IF(OR(Kategorie="Bitte auswählen!",Mauer<10),0,ROUNDDOWN(G47*VLOOKUP(C47,Dropdowns!$B$48:$C$76,2,FALSE),0)) -> 0 | J47: =IF('PJ2'!Ausw_PJ_aktiv,IF(AND(G47>=10,'PJ2'!Ausw_PJ_aktiv),1,IF(AND(G47=0,'PJ2'!Ausw_PJ_aktiv),2,IF(AND(G47>0,G47<10,'PJ2'!Ausw_PJ_aktiv),-2))),2) -> 2
B48: 34 | C48: Benjeshecken anlegen (min. 30 m) | G48: 0 | I48: =IF(OR(Kategorie="Bitte auswählen!",G48<30),0,ROUNDDOWN(G48*VLOOKUP(C48,Dropdowns!$B$48:$C$76,2,FALSE),0)) -> 0 | J48: =IF('PJ2'!Ausw_PJ_aktiv,IF(AND(G48>=30,'PJ2'!Ausw_PJ_aktiv),1,IF(AND(G48=0,'PJ2'!Ausw_PJ_aktiv),2,IF(AND(G48>0,G48<30,'PJ2'!Ausw_PJ_aktiv),-2))),2) -> 2
B49: 35 | C49: Bildungsmaßnahmen (z. B. Schulklassen, Menschen mit Behinderung etc.) | G49: 0 | I49: =IF(OR(Kategorie="Bitte auswählen!",Sozi<1),0,ROUNDDOWN(G49*VLOOKUP(C49,Dropdowns!B48:C76,2,FALSE),0)) -> 0 | J49: =IF('PJ2'!Ausw_PJ_aktiv,IF(AND(G49>=1,'PJ2'!Ausw_PJ_aktiv),1,IF(AND(G49=0,'PJ2'!Ausw_PJ_aktiv),2,IF(AND(G49>0,G49<1,'PJ2'!Ausw_PJ_aktiv),-2))),2) -> 2
A50: =feld2 -> 0 | B50: 36 | C50: =IF(ISNA(VLOOKUP(Projekt,Dropdowns!B31:F44,4,FALSE)),0,VLOOKUP(Projekt,Dropdowns!B31:F44,4,FALSE)) -> 0 | G50: 0 | I50: =IF(C50=0,0,IF(Kategorie="Bitte auswählen!",0,IF(feld2=Dropdowns!E41,IF(OR(goldfeld1<0,goldfeld1>1,AND(goldfeld1>0,goldfeld1<1)),0,ROUNDDOWN(G50*VLOOKUP(C50,Dropdowns!B48:C76,2,FALSE),0)),ROUNDDOWN(G50*VLOOKUP(C50,Dropdowns!B48:C76,2,FALSE),0)))) -> 0 | J50: =IF(A50=0,"",IF('PJ2'!Ausw_PJ_aktiv,IF(OR(AND('PJ2'!Ausw_PJ_aktiv,OR(feld2=Dropdowns!E39,feld2=Dropdowns!E37),OR(goldfeld1=0,goldfeld1=1)),feld2=0),0,IF(AND(feld2<>Dropdowns!E39,feld2<>Dropdowns!E37),2,-2)),2)) -> 
A51: =feld3 -> 0 | B51: 37 | C51: =IF(ISNA(VLOOKUP(Projekt,Dropdowns!B31:F44,5,FALSE)),0,VLOOKUP(Projekt,Dropdowns!B31:F44,5,FALSE)) -> 0 | G51: 0 | I51: =IF(C51=0,0,IF(Kategorie="Bitte auswählen!",0,IF(feld3=Dropdowns!E41,IF(OR(goldfeld2<0,goldfeld2>1,AND(goldfeld2>0,goldfeld2<1)),0,ROUNDDOWN(G51*VLOOKUP(C51,Dropdowns!B48:C76,2,FALSE),0)),ROUNDDOWN(G51*VLOOKUP(C51,Dropdowns!B48:C76,2,FALSE),0)))) -> 0
B52: 38 | C52: Summe (Gold) | G52: =SUM(I43:I51) -> 0
D54: Bronze | G54: Silber | I54: Gold
B55: =B52+1 -> 39 | C55: Anzahl der Zertifikate | D55: =IF(Berechnungen_2!S6=0,0,Berechnungen_2!S6) -> 0 | G55: =Berechnungen_2!P6 -> 0 | I55: =Berechnungen_2!K6 -> 0 | J55: =IF('PJ2'!Ausw_PJ_aktiv,IF(SUM(D55:I55)=G15,1,IF(AND(SUM(D55:I55)<G15,SUM(D55:I55)>0,'PJ2'!Ausw_PJ_aktiv),0,IF(AND(SUM(D55:I55)=0,'PJ2'!Ausw_PJ_aktiv),-2))),2) -> 2
B56: =B55+1 -> 40 | C56: Wert der Zertifikate | D56: =D55*25 -> 0 | G56: =G55*50 -> 0 | I56: =75*Zertifikate -> 0
B57: =B56+1 -> 41 | C57: Gesamtwert der Zertifikate | D57: =SUM(D56:I56) -> 0
C60: Sonstige Anmerkungen
B61: =B57+1 -> 42
C67: =Erläuterung!D55 -> Berechnungsformular ZENAPA-Zertifizierung - Version 2021/10
E140: Ausw_PJ_aktiv | G140: FALSE
E141: PlAbfr_PJ_RW | G141: =IF('PJ2'!Ausw_PJ_aktiv,(J13),1) -> 1
E142: PlAbfr_PJ_PB | G142: =IF('PJ2'!Ausw_PJ_aktiv,(J16),1) -> 1
E143: PlAbfr_PJ_FL | G143: =IF('PJ2'!Ausw_PJ_aktiv,MIN(J33:J35,J37:J38,J43:J48),1) -> 1
E144: PlAbfr_PJ_SP | G144: =IF('PJ2'!Ausw_PJ_aktiv,J49,1) -> 1
E145: PlAbfr_PJ_AP | G145: =IF('PJ2'!Ausw_PJ_aktiv,(J55),1) -> 1
E146: PIAbfr_PJ_EnEf | G146: =IF('PJ2'!Ausw_PJ_aktiv,J11,1) -> 1
E147: Anzahl_BPkt | G147: =IF('PJ2'!Ausw_PJ_aktiv,SUM(G30,G40,G52-Anzahl_SPkt),0) -> 0
E148: Anzahl_SPkt | G148: =IF('PJ2'!Ausw_PJ_aktiv,SUM($I$49:$I$49),0) -> 0
E149: PIAbfr_PJ_01 | G149: =IF(AND('PJ2'!Ausw_PJ_aktiv,GHGZ="Bitte Tabellenblatt 'Eingabe Heizungstausch' vollständig ausfüllen!"),-1,1) -> 1
E150: PIAbfr_PJ_Max | G150: =IF('PJ2'!Ausw_PJ_aktiv,MIN(J19:J21),1) -> 1
E151: PIAbfr_PJ_BD | G151: =IF('PJ2'!Ausw_PJ_aktiv,PIAbfr_BD,1) -> 1
E152: PIAbfr_PJ_NaturP | G152: =IF(AND(Ausw_PJ_aktiv,G15>=1,SUM(D55:I55)=0),-1,1) -> 1
E153: PIAbfr_PJ_allg | G153: =MIN(J5:J10,J12) -> 2

Sheet PJ3 (hidden)
C2: =C67 -> Berechnungsformular ZENAPA-Zertifizierung - Version 2021/10
C3: Bitte beachten Sie beim Ausfüllen des Formulars die Hinweise im Tabellenblatt Anmerkungen. | I3: Projekt 3 | J3: PJ3
B4: 1 | C4: Antragsteller | G4: =IF(Übersicht!H5="","Bitte im Tabellenblatt 'Übersicht' den Namen eintragen!",Übersicht!H5) -> Bitte im Tabellenblatt 'Übersicht' den Namen eintragen!
B5: =B4+1 -> 2 | C5: Auswahl der Kategorie | G5: Bitte auswählen! | J5: =IF('PJ3'!Ausw_PJ_aktiv,IF(Kategorie="Bitte auswählen!",-2,1),2) -> 2
B6: =B5+1 -> 3 | C6: Technologie | G6: Bitte auswählen! | J6: =IF('PJ3'!Ausw_PJ_aktiv,IF(Projekt="Bitte auswählen!",-2,1),2) -> 2
B7: 4 | C7: =IFERROR(IF(VLOOKUP(Projekt,Dropdowns!B15:D27,3,FALSE)=1,"Einstufung","-"),"") ->  | G7: Bitte auswählen! | J7: =IF('PJ3'!Ausw_PJ_aktiv,IF(OR($G$6="LED",$G$6="Brauchwasserpumpe",$G$6="Heizungspumpe",$G$6="GreenIT",$G$6="Lüftungsanlage_oder_Klimaanlage",$G$6="Wind",$G$6="Photovoltaik",$G$6="Wasserkraft",Projekt="Heizungstausch"),2,IF(Einstufung="Bitte auswählen!",-2,0)),2) -> 2
B8: 5 | C8: =IFERROR(IF(Projekt="Biogasanlage mit Kavitation","Mehrertrag an thermischer Energie",IF(OR(VLOOKUP(Projekt,Dropdowns!B15:C27,2,FALSE)="erz",VLOOKUP(Projekt,Dropdowns!B15:C27,2,FALSE)="Wärme erz"),"Erzeugte thermische Energie",IF(VLOOKUP(Projekt,Dropdowns!B15:C27,2,FALSE)="Wärme eing", "Eingesparte thermische Energie","-"))),"") ->  | G8: 0 | J8: =IF('PJ3'!Ausw_PJ_aktiv,IF(OR($G$6="LED",$G$6="Brauchwasserpumpe",$G$6="Heizungspumpe",$G$6="GreenIT",$G$6="Lüftungsanlage_oder_Klimaanlage",$G$6="Wind",$G$6="Photovoltaik",$G$6="Wasserkraft",Projekt="Heizungstausch"),2,IF(Eingrenzung=0,-2,1)),2) -> 2
B9: 6 | C9: =IFERROR(IF(Projekt="Biogasanlage mit Kavitation","Mehrertrag an elektrischer Energie",IF(OR(VLOOKUP(Projekt,Dropdowns!B15:C27,2,FALSE)="erz",VLOOKUP(Projekt,Dropdowns!B15:C27,2,FALSE)="Strom erz"),"Erzeugte elektrische Energie",IF(VLOOKUP(Projekt,Dropdowns!B15:C27,2,FALSE)="Strom eing", "Eingesparte elektrische Energie","-"))),"") ->  | G9: 0 | J9: =IF('PJ3'!Ausw_PJ_aktiv,IF(OR($G$6="Solarthermie",$G$6="Künstlicher_Dämmstoff",$G$6="Naturdämmstoff",$G$6="Wärmepumpe",Projekt="Heizungstausch"),2,IF(OR(Stromeinsparung=0,Stromeinsparung=""),-2,1)),2) -> 2
B10: 7 | C10: Betriebsgewöhnliche Nutzungsdauer | G10: 0 | J10: =IF('PJ3'!Ausw_PJ_aktiv,IF(Projekt="Heizungstausch",2,IF(OR(Nutzungsdauer="",Nutzungsdauer=0),-2,1))) -> FALSE
B11: 8 | C11: CO2-Minderung über Lebensdauer | G11: =IF(Projekt="Heizungstausch",IF(HLOOKUP(J3,'Eingabe Heizungstausch'!C6:L39,34,FALSE)=0,"Bitte Tabellenblatt 'Eingabe Heizungstausch' vollständig ausfüllen!",HLOOKUP(J3,'Eingabe Heizungstausch'!C6:L39,34,FALSE)),VLOOKUP(J3,Berechnungen_1!C34:S44,16,FALSE)) ->  | J11: =IF(OR(AND('PJ3'!Ausw_PJ_aktiv,GHGZ<1),AND('PJ3'!Ausw_PJ_aktiv,GHGZ="Bitte Tabellenblatt 'Eingabe Heizungstausch' vollständig ausfüllen!"),J6<0),-2,IF('PJ3'!Ausw_PJ_aktiv=FALSE,2,1)) -> 2
B12: 9 | C12: Investition [Netto / ohne Förderung] | G12: 0 | J12: =IF('PJ3'!Ausw_PJ_aktiv,IF(OR(Investition=0,Investition=""),-2,1),2) -> 2
B13: 10 | C13: Regionale Wertschöpfung | G13: =IF(AND('PJ3'!Ausw_PJ_aktiv,G5="Bitte auswählen!"),0,VLOOKUP(J3,Berechnungen_2!$B$5:$AR$14,43,FALSE)) -> 
B14: 11 | C14: Anzahl an Wertschöpfungspunkte | G14: =IF(Kategorie="Bitte auswählen!",0,ROUNDDOWN(G13/300,0)) -> 0 | J14: =IF('PJ3'!Ausw_PJ_aktiv,IF(WZ>0,0,-1),2) -> 2
B15: 12 | C15: Maximal erreichbare Anzahl an Zertifikaten | G15: =ROUNDDOWN(AVERAGE(GHGZ,WZ),0) -> 0 | J15: =IF('PJ3'!Ausw_PJ_aktiv,IF(G15=0,-2,IF((Zertifikate+G55+D55)<G15,0,1)),2) -> 2
B16: 13 | C16: Beschreibung der Maßnahme | J16: =IF('PJ3'!Ausw_PJ_aktiv,IF(AND(G16=0,'PJ3'!Ausw_PJ_aktiv),-2,IF(AND('PJ3'!Ausw_PJ_aktiv,G16>0),1,1)),2) -> 2
C18: =IF(Ausw_PJ_aktiv,IFERROR("Für die maximal erreichbare Zertifikatausbeute brauchen Sie je nach Kategorie folgende Anzahl an Naturschutzpunkten:",""),"") -> 
C19: =IF(Ausw_PJ_aktiv,IFERROR("Bronze: " &Berechnungen_2!AN7& " Punkte",""),"") ->  | J19: =IF('PJ3'!Ausw_PJ_aktiv,IF(Berechnungen_2!AN5>0,0,1),1) -> 1
C20: =IF(Ausw_PJ_aktiv,IFERROR("Silber: " &Berechnungen_2!AO7& " Punkte (Mindestens fünf Punkte aus der Silberkategorie nötig)",""),"") ->  | J20: =IF('PJ3'!Ausw_PJ_aktiv,IF(Berechnungen_2!AO5>0,0,1),1) -> 1
C21: =IF(Ausw_PJ_aktiv,IFERROR("Gold: " &Berechnungen_2!AP7& " Punkte (Mindestens fünf Punkte aus der Goldkategorie nötig)",""),"") ->  | J21: =IF('PJ3'!Ausw_PJ_aktiv,IF(Berechnungen_2!AP5>0,0,1),1) -> 1
C23: Schutzmaßnahme Status Bronze | G23: Anzahl/Fläche | I23: Punkte
B24: =B16+1 -> 14 | C24: Installation von Nistkästen - Insekten | G24: 0 | I24: =IF(Kategorie="Bitte auswählen!",0,ROUNDDOWN(G24*VLOOKUP(C24,Dropdowns!$B$48:$C$76,2,FALSE),0)) -> 0
B25: =B24+1 -> 15 | C25: Installation von Insektenhotel | G25: 0 | I25: =IF(Kategorie="Bitte auswählen!",0,ROUNDDOWN(G25*VLOOKUP(C25,Dropdowns!$B$48:$C$76,2,FALSE),0)) -> 0
B26: =B25+1 -> 16 | C26: Installation von Nistkästen - Vögel | G26: 0 | I26: =IF(Kategorie="Bitte auswählen!",0,ROUNDDOWN(G26*VLOOKUP(C26,Dropdowns!$B$48:$C$76,2,FALSE),0)) -> 0
B27: 17 | C27: Installation von Nistkästen - Eulen & Greifvögel | G27: 0 | I27: =IF(Kategorie="Bitte auswählen!",0,ROUNDDOWN(G27*VLOOKUP(C27,Dropdowns!$B$48:$C$76,2,FALSE),0)) -> 0
B28: 18 | C28: Installation von Nistkästen - Fledermäuse | G28: 0 | I28: =IF(Kategorie="Bitte auswählen!",0,ROUNDDOWN(G28*VLOOKUP(C28,Dropdowns!$B$48:$C$76,2,FALSE),0)) -> 0
A29: =Feld0 -> 0 | B29: 19 | C29: =IF(ISNA(VLOOKUP(Projekt,Dropdowns!B31:F44,2,FALSE)),0,VLOOKUP(Projekt,Dropdowns!B31:F44,2,FALSE)) -> 0 | G29: 0 | I29: =IF(C29=0,0,IF(Kategorie="Bitte auswählen!",0,IF(Feld0=Dropdowns!E40,IF(OR(bronzefeld<0,bronzefeld>1),0,ROUNDDOWN(G29*VLOOKUP(C29,Dropdowns!B48:C76,2,FALSE),0)),ROUNDDOWN(G29*VLOOKUP(C29,Dropdowns!B48:C76,2,FALSE),0)))) -> 0
B30: 20 | C30: Summe (Bronze) | G30: =SUM(I24:I29) -> 0
C32: Schutzmaßnahme Status Silber | G32: Anzahl/Fläche | I32: Punkte
B33: =B30+1 -> 21 | C33: Agrar Hölzer im Kurzumtrieb (min. 30 m) | G33: 0 | I33: =IF(OR(Kategorie="Bitte auswählen!",G33<30),0,ROUNDDOWN(G33*VLOOKUP(C33,Dropdowns!$B$48:$C$76,2,FALSE),0)) -> 0 | J33: =IF('PJ3'!Ausw_PJ_aktiv,IF(AND(G33>=30,'PJ3'!Ausw_PJ_aktiv),1,IF(AND(G33=0,'PJ3'!Ausw_PJ_aktiv),2,IF(AND(G33>0,G33<30,'PJ3'!Ausw_PJ_aktiv),-2))),2) -> 2
B34: =B33+1 -> 22 | C34: Blühwiese (min. 50 m2) | G34: 0 | I34: =IF(OR(Kategorie="Bitte auswählen!",G34<50),0,ROUNDDOWN(G34*VLOOKUP(C34,Dropdowns!$B$48:$C$76,2,FALSE),0)) -> 0 | J34: =IF('PJ3'!Ausw_PJ_aktiv,IF(AND(G34>=50,'PJ3'!Ausw_PJ_aktiv),1,IF(AND(G34=0,'PJ3'!Ausw_PJ_aktiv),2,IF(AND(G34>0,G34<50,'PJ3'!Ausw_PJ_aktiv),-2))),2) -> 2
B35: =B34+1 -> 23 | C35: Begrenzungshecke/Sichtschutzhecke (min. 50 m²) | G35: 0 | I35: =IF(OR(Kategorie="Bitte auswählen!",G35<50),0,ROUNDDOWN(G35*VLOOKUP(C35,Dropdowns!$B$48:$C$76,2,FALSE),0)) -> 0 | J35: =IF('PJ3'!Ausw_PJ_aktiv,IF(AND(G35>=50,'PJ3'!Ausw_PJ_aktiv),1,IF(AND(G35=0,'PJ3'!Ausw_PJ_aktiv),2,IF(AND(G35>0,G35<50,'PJ3'!Ausw_PJ_aktiv),-2))),2) -> 2
B36: 24 | C36: Bäume pflanzen | G36: 0 | I36: =IF(Kategorie="Bitte auswählen!",0,ROUNDDOWN(G36*VLOOKUP(C36,Dropdowns!$B$48:$C$76,2,FALSE),0)) -> 0
B37: 25 | C37: Extensive Weidewirtschaft (min. 10.000 m2) | G37: 0 | I37: =IF(OR(Kategorie="Bitte auswählen!",G37<10000),0,ROUNDDOWN(G37*VLOOKUP(C37,Dropdowns!$B$48:$C$76,2,FALSE),0)) -> 0 | J37: =IF('PJ3'!Ausw_PJ_aktiv,IF(AND(G37>=10000,'PJ3'!Ausw_PJ_aktiv),1,IF(AND(G37=0,'PJ3'!Ausw_PJ_aktiv),2,IF(AND(G37>0,G37<10000,'PJ3'!Ausw_PJ_aktiv),-2))),2) -> 2
B38: 26 | C38: Dachbegrünung in städtischen Gebieten (min. 10 m2) | G38: 0 | I38: =IF(OR(Kategorie="Bitte auswählen!",G38<10),0,ROUNDDOWN(G38*VLOOKUP(C38,Dropdowns!$B$48:$C$76,2,FALSE),0)) -> 0 | J38: =IF('PJ3'!Ausw_PJ_aktiv,IF(AND(G38>=10,'PJ3'!Ausw_PJ_aktiv),1,IF(AND(G38=0,'PJ3'!Ausw_PJ_aktiv),2,IF(AND(G38>0,G38<10,'PJ3'!Ausw_PJ_aktiv),-2))),2) -> 2
A39: =feld1 -> 0 | B39: 27 | C39: =IF(ISNA(VLOOKUP(Projekt,Dropdowns!B31:F44,3,FALSE)),0,VLOOKUP(Projekt,Dropdowns!B31:F44,3,FALSE)) -> 0 | G39: 0 | I39: =IF(C39=0,0,IF(Kategorie="Bitte auswählen!",0,IF(feld1=Dropdowns!E40,IF(OR(silberfeld<0,),0,ROUNDDOWN(G39*VLOOKUP(C39,Dropdowns!B48:C76,2,FALSE),0)),ROUNDDOWN(G39*VLOOKUP(C39,Dropdowns!B48:C76,2,FALSE),0)))) -> 0
B40: 28 | C40: Summe (Silber) | G40: =SUM(I33:I39) -> 0
C42: Schutzmaßnahme Status Gold | G42: Anzahl/Fläche | I42: Punkte
B43: =B40+1 -> 29 | C43: Wiederherstellung / Schaffung von Weihern (min. 50 m2) | G43: 0 | I43: =IF(OR(Kategorie="Bitte auswählen!",G43<50),0,ROUNDDOWN(G43*VLOOKUP(C43,Dropdowns!$B$48:$C$76,2,FALSE),0)) -> 0 | J43: =IF('PJ3'!Ausw_PJ_aktiv,IF(AND(G43>=50,'PJ3'!Ausw_PJ_aktiv),1,IF(AND(G43=0,'PJ3'!Ausw_PJ_aktiv),2,IF(AND(G43>0,G43<50,'PJ3'!Ausw_PJ_aktiv),-2))),2) -> 2
B44: =B43+1 -> 30 | C44: Wiederherstellung / Schaffung von Feuchtgebieten (min. 50 m2) | G44: 0 | I44: =IF(OR(Kategorie="Bitte auswählen!",G44<50),0,ROUNDDOWN(G44*VLOOKUP(C44,Dropdowns!$B$48:$C$76,2,FALSE),0)) -> 0 | J44: =IF('PJ3'!Ausw_PJ_aktiv,IF(AND(G44>=50,'PJ3'!Ausw_PJ_aktiv),1,IF(AND(G44=0,'PJ3'!Ausw_PJ_aktiv),2,IF(AND(G44>0,G44<50,'PJ3'!Ausw_PJ_aktiv),-2))),2) -> 2
B45: =B44+1 -> 31 | C45: Streuobstwiese (min. 100 m2) | G45: 0 | I45: =IF(OR(Kategorie="Bitte auswählen!",G45<100),0,ROUNDDOWN(G45*VLOOKUP(C45,Dropdowns!$B$48:$C$76,2,FALSE),0)) -> 0 | J45: =IF('PJ3'!Ausw_PJ_aktiv,IF(AND(G45>=100,'PJ3'!Ausw_PJ_aktiv),1,IF(AND(G45=0,'PJ3'!Ausw_PJ_aktiv),2,IF(AND(G45>0,G45<100,'PJ3'!Ausw_PJ_aktiv),-2))),2) -> 2
B46: 32 | C46: Amphibienschutzzaun (min. 100 m) | G46: 0 | I46: =IF(OR(Kategorie="Bitte auswählen!",Bienen<100),0,ROUNDDOWN(G46*VLOOKUP(C46,Dropdowns!$B$48:$C$76,2,FALSE),0)) -> 0 | J46: =IF('PJ3'!Ausw_PJ_aktiv,IF(AND(G46>=100,'PJ3'!Ausw_PJ_aktiv),1,IF(AND(G46=0,'PJ3'!Ausw_PJ_aktiv),2,IF(AND(G46>0,G46<100,'PJ3'!Ausw_PJ_aktiv),-2))),2) -> 2
B47: 33 | C47: Trockenmauer (min. 10 m) | G47: 0 | I47: =IF(OR(Kategorie="Bitte auswählen!",Mauer<10),0,ROUNDDOWN(G47*VLOOKUP(C47,Dropdowns!$B$48:$C$76,2,FALSE),0)) -> 0 | J47: =IF('PJ3'!Ausw_PJ_aktiv,IF(AND(G47>=10,'PJ3'!Ausw_PJ_aktiv),1,IF(AND(G47=0,'PJ3'!Ausw_PJ_aktiv),2,IF(AND(G47>0,G47<10,'PJ3'!Ausw_PJ_aktiv),-2))),2) -> 2
B48: 34 | C48: Benjeshecken anlegen (min. 30 m) | G48: 0 | I48: =IF(OR(Kategorie="Bitte auswählen!",G48<30),0,ROUNDDOWN(G48*VLOOKUP(C48,Dropdowns!$B$48:$C$76,2,FALSE),0)) -> 0 | J48: =IF('PJ3'!Ausw_PJ_aktiv,IF(AND(G48>=30,'PJ3'!Ausw_PJ_aktiv),1,IF(AND(G48=0,'PJ3'!Ausw_PJ_aktiv),2,IF(AND(G48>0,G48<30,'PJ3'!Ausw_PJ_aktiv),-2))),2) -> 2
B49: 35 | C49: Bildungsmaßnahmen (z. B. Schulklassen, Menschen mit Behinderung etc.) | G49: 0 | I49: =IF(OR(Kategorie="Bitte auswählen!",Sozi<1),0,ROUNDDOWN(G49*VLOOKUP(C49,Dropdowns!B48:C76,2,FALSE),0)) -> 0 | J49: =IF('PJ3'!Ausw_PJ_aktiv,IF(AND(G49>=1,'PJ3'!Ausw_PJ_aktiv),1,IF(AND(G49=0,'PJ3'!Ausw_PJ_aktiv),2,IF(AND(G49>0,G49<1,'PJ3'!Ausw_PJ_aktiv),-2))),2) -> 2
A50: =feld2 -> 0 | B50: 36 | C50: =IF(ISNA(VLOOKUP(Projekt,Dropdowns!B31:F44,4,FALSE)),0,VLOOKUP(Projekt,Dropdowns!B31:F44,4,FALSE)) -> 0 | G50: 0 | I50: =IF(C50=0,0,IF(Kategorie="Bitte auswählen!",0,IF(feld2=Dropdowns!E41,IF(OR(goldfeld1<0,goldfeld1>1,AND(goldfeld1>0,goldfeld1<1)),0,ROUNDDOWN(G50*VLOOKUP(C50,Dropdowns!B48:C76,2,FALSE),0)),ROUNDDOWN(G50*VLOOKUP(C50,Dropdowns!B48:C76,2,FALSE),0)))) -> 0 | J50: =IF(A50=0,"",IF('PJ3'!Ausw_PJ_aktiv,IF(OR(AND('PJ3'!Ausw_PJ_aktiv,OR(feld2=Dropdowns!E39,feld2=Dropdowns!E37),OR(goldfeld1=0,goldfeld1=1)),feld2=0),0,IF(AND(feld2<>Dropdowns!E39,feld2<>Dropdowns!E37),2,-2)),2)) -> 
A51: =feld3 -> 0 | B51: 37 | C51: =IF(ISNA(VLOOKUP(Projekt,Dropdowns!B31:F44,5,FALSE)),0,VLOOKUP(Projekt,Dropdowns!B31:F44,5,FALSE)) -> 0 | G51: 0 | I51: =IF(C51=0,0,IF(Kategorie="Bitte auswählen!",0,IF(feld3=Dropdowns!E41,IF(OR(goldfeld2<0,goldfeld2>1,AND(goldfeld2>0,goldfeld2<1)),0,ROUNDDOWN(G51*VLOOKUP(C51,Dropdowns!B48:C76,2,FALSE),0)),ROUNDDOWN(G51*VLOOKUP(C51,Dropdowns!B48:C76,2,FALSE),0)))) -> 0
B52: 38 | C52: Summe (Gold) | G52: =SUM(I43:I51) -> 0
D54: Bronze | G54: Silber | I54: Gold
B55: =B52+1 -> 39 | C55: Anzahl der Zertifikate | D55: =IF(Berechnungen_2!S7=0,0,Berechnungen_2!S7) -> 0 | G55: =Berechnungen_2!P7 -> 0 | I55: =Berechnungen_2!K7 -> 0 | J55: =IF('PJ3'!Ausw_PJ_aktiv,IF(SUM(D55:I55)=G15,1,IF(AND(SUM(D55:I55)<G15,SUM(D55:I55)>0,'PJ3'!Ausw_PJ_aktiv),0,IF(AND(SUM(D55:I55)=0,'PJ3'!Ausw_PJ_aktiv),-2))),2) -> 2
B56: =B55+1 -> 40 | C56: Wert der Zertifikate | D56: =D55*25 -> 0 | G56: =G55*50 -> 0 | I56: =75*Zertifikate -> 0
B57: =B56+1 -> 41 | C57: Gesamtwert der Zertifikate | D57: =SUM(D56:I56) -> 0
C60: Sonstige Anmerkungen
B61: =B57+1 -> 42
C67: =Erläuterung!D55 -> Berechnungsformular ZENAPA-Zertifizierung - Version 2021/10
E140: Ausw_PJ_aktiv | G140: FALSE
E141: PlAbfr_PJ_RW | G141: =IF('PJ3'!Ausw_PJ_aktiv,(J13),1) -> 1
E142: PlAbfr_PJ_PB | G142: =IF('PJ3'!Ausw_PJ_aktiv,(J16),1) -> 1
E143: PlAbfr_PJ_FL | G143: =IF('PJ3'!Ausw_PJ_aktiv,MIN(J33:J35,J37:J38,J43:J48),1) -> 1
E144: PlAbfr_PJ_SP | G144: =IF('PJ3'!Ausw_PJ_aktiv,J49,1) -> 1
E145: PlAbfr_PJ_AP | G145: =IF('PJ3'!Ausw_PJ_aktiv,(J55),1) -> 1
E146: PIAbfr_PJ_EnEf | G146: =IF('PJ3'!Ausw_PJ_aktiv,J11,1) -> 1
E147: Anzahl_BPkt | G147: =IF('PJ3'!Ausw_PJ_aktiv,SUM(G30,G40,G52-Anzahl_SPkt),0) -> 0
E148: Anzahl_SPkt | G148: =IF('PJ3'!Ausw_PJ_aktiv,SUM($I$49:$I$49),0) -> 0
E149: PIAbfr_PJ_01 | G149: =IF(AND('PJ3'!Ausw_PJ_aktiv,GHGZ="Bitte Tabellenblatt 'Eingabe Heizungstausch' vollständig ausfüllen!"),-1,1) -> 1
E150: PIAbfr_PJ_Max | G150: =IF('PJ3'!Ausw_PJ_aktiv,MIN(J19:J21),1) -> 1
E151: PIAbfr_PJ_BD | G151: =IF('PJ3'!Ausw_PJ_aktiv,PIAbfr_BD,1) -> 1
E152: PIAbfr_PJ_NaturP | G152: =IF(AND(Ausw_PJ_aktiv,G15>=1,SUM(D55:I55)=0),-1,1) -> 1
E153: PIAbfr_PJ_allg | G153: =MIN(J5:J10,J12) -> 2

Sheet PJ4 (hidden)
C2: =C67 -> Berechnungsformular ZENAPA-Zertifizierung - Version 2021/10
C3: Bitte beachten Sie beim Ausfüllen des Formulars die Hinweise im Tabellenblatt Anmerkungen. | I3: Projekt 4 | J3: PJ4
B4: 1 | C4: Antragsteller | G4: =IF(Übersicht!H5="","Bitte im Tabellenblatt 'Übersicht' den Namen eintragen!",Übersicht!H5) -> Bitte im Tabellenblatt 'Übersicht' den Namen eintragen!
B5: =B4+1 -> 2 | C5: Auswahl der Kategorie | G5: Bitte auswählen! | J5: =IF('PJ4'!Ausw_PJ_aktiv,IF(Kategorie="Bitte auswählen!",-2,1),2) -> 2
B6: =B5+1 -> 3 | C6: Technologie | G6: Bitte auswählen! | J6: =IF('PJ4'!Ausw_PJ_aktiv,IF(Projekt="Bitte auswählen!",-2,1),2) -> 2
B7: 4 | C7: =IFERROR(IF(VLOOKUP(Projekt,Dropdowns!B15:D27,3,FALSE)=1,"Einstufung","-"),"") ->  | G7: Bitte auswählen! | J7: =IF('PJ4'!Ausw_PJ_aktiv,IF(OR($G$6="LED",$G$6="Brauchwasserpumpe",$G$6="Heizungspumpe",$G$6="GreenIT",$G$6="Lüftungsanlage_oder_Klimaanlage",$G$6="Wind",$G$6="Photovoltaik",$G$6="Wasserkraft",Projekt="Heizungstausch"),2,IF(Einstufung="Bitte auswählen!",-2,0)),2) -> 2
B8: 5 | C8: =IFERROR(IF(Projekt="Biogasanlage mit Kavitation","Mehrertrag an thermischer Energie",IF(OR(VLOOKUP(Projekt,Dropdowns!B15:C27,2,FALSE)="erz",VLOOKUP(Projekt,Dropdowns!B15:C27,2,FALSE)="Wärme erz"),"Erzeugte thermische Energie",IF(VLOOKUP(Projekt,Dropdowns!B15:C27,2,FALSE)="Wärme eing", "Eingesparte thermische Energie","-"))),"") ->  | G8: 0 | J8: =IF('PJ4'!Ausw_PJ_aktiv,IF(OR($G$6="LED",$G$6="Brauchwasserpumpe",$G$6="Heizungspumpe",$G$6="GreenIT",$G$6="Lüftungsanlage_oder_Klimaanlage",$G$6="Wind",$G$6="Photovoltaik",$G$6="Wasserkraft",Projekt="Heizungstausch"),2,IF(Eingrenzung=0,-2,1)),2) -> 2
B9: 6 | C9: =IFERROR(IF(Projekt="Biogasanlage mit Kavitation","Mehrertrag an elektrischer Energie",IF(OR(VLOOKUP(Projekt,Dropdowns!B15:C27,2,FALSE)="erz",VLOOKUP(Projekt,Dropdowns!B15:C27,2,FALSE)="Strom erz"),"Erzeugte elektrische Energie",IF(VLOOKUP(Projekt,Dropdowns!B15:C27,2,FALSE)="Strom eing", "Eingesparte elektrische Energie","-"))),"") ->  | G9: 0 | J9: =IF('PJ4'!Ausw_PJ_aktiv,IF(OR($G$6="Solarthermie",$G$6="Künstlicher_Dämmstoff",$G$6="Naturdämmstoff",$G$6="Wärmepumpe",Projekt="Heizungstausch"),2,IF(OR(Stromeinsparung=0,Stromeinsparung=""),-2,1)),2) -> 2
B10: 7 | C10: Betriebsgewöhnliche Nutzungsdauer | G10: 0 | J10: =IF('PJ4'!Ausw_PJ_aktiv,IF(Projekt="Heizungstausch",2,IF(OR(Nutzungsdauer="",Nutzungsdauer=0),-2,1))) -> FALSE
B11: 8 | C11: CO2-Minderung über Lebensdauer | G11: =IF(Projekt="Heizungstausch",IF(HLOOKUP(J3,'Eingabe Heizungstausch'!C6:L39,34,FALSE)=0,"Bitte Tabellenblatt 'Eingabe Heizungstausch' vollständig ausfüllen!",HLOOKUP(J3,'Eingabe Heizungstausch'!C6:L39,34,FALSE)),VLOOKUP(J3,Berechnungen_1!C34:S44,16,FALSE)) ->  | J11: =IF(OR(AND('PJ4'!Ausw_PJ_aktiv,GHGZ<1),AND('PJ4'!Ausw_PJ_aktiv,GHGZ="Bitte Tabellenblatt 'Eingabe Heizungstausch' vollständig ausfüllen!"),J6<0),-2,IF('PJ4'!Ausw_PJ_aktiv=FALSE,2,1)) -> 2
B12: 9 | C12: Investition [Netto / ohne Förderung] | G12: 0 | J12: =IF('PJ4'!Ausw_PJ_aktiv,IF(OR(Investition=0,Investition=""),-2,1),2) -> 2
B13: 10 | C13: Regionale Wertschöpfung | G13: =IF(AND('PJ4'!Ausw_PJ_aktiv,G5="Bitte auswählen!"),0,VLOOKUP(J3,Berechnungen_2!$B$5:$AR$14,43,FALSE)) -> 
B14: 11 | C14: Anzahl an Wertschöpfungspunkte | G14: =IF(Kategorie="Bitte auswählen!",0,ROUNDDOWN(G13/300,0)) -> 0 | J14: =IF('PJ4'!Ausw_PJ_aktiv,IF(WZ>0,0,-1),2) -> 2
B15: 12 | C15: Maximal erreichbare Anzahl an Zertifikaten | G15: =ROUNDDOWN(AVERAGE(GHGZ,WZ),0) -> 0 | J15: =IF('PJ4'!Ausw_PJ_aktiv,IF(G15=0,-2,IF((Zertifikate+G55+D55)<G15,0,1)),2) -> 2
B16: 13 | C16: Beschreibung der Maßnahme | J16: =IF('PJ4'!Ausw_PJ_aktiv,IF(AND(G16=0,'PJ4'!Ausw_PJ_aktiv),-2,IF(AND('PJ4'!Ausw_PJ_aktiv,G16>0),1,1)),2) -> 2
C18: =IF(Ausw_PJ_aktiv,IFERROR("Für die maximal erreichbare Zertifikatausbeute brauchen Sie je nach Kategorie folgende Anzahl an Naturschutzpunkten:",""),"") -> 
C19: =IF(Ausw_PJ_aktiv,IFERROR("Bronze: " &Berechnungen_2!AN8& " Punkte",""),"") ->  | J19: =IF('PJ4'!Ausw_PJ_aktiv,IF(Berechnungen_2!AN5>0,0,1),1) -> 1
C20: =IF(Ausw_PJ_aktiv,IFERROR("Silber: " &Berechnungen_2!AO8& " Punkte (Mindestens fünf Punkte aus der Silberkategorie nötig)",""),"") ->  | J20: =IF('PJ4'!Ausw_PJ_aktiv,IF(Berechnungen_2!AO5>0,0,1),1) -> 1
C21: =IF(Ausw_PJ_aktiv,IFERROR("Gold: " &Berechnungen_2!AP8& " Punkte (Mindestens fünf Punkte aus der Goldkategorie nötig)",""),"") ->  | J21: =IF('PJ4'!Ausw_PJ_aktiv,IF(Berechnungen_2!AP5>0,0,1),1) -> 1
C23: Schutzmaßnahme Status Bronze | G23: Anzahl/Fläche | I23: Punkte
B24: =B16+1 -> 14 | C24: Installation von Nistkästen - Insekten | G24: 0 | I24: =IF(Kategorie="Bitte auswählen!",0,ROUNDDOWN(G24*VLOOKUP(C24,Dropdowns!$B$48:$C$76,2,FALSE),0)) -> 0
B25: =B24+1 -> 15 | C25: Installation von Insektenhotel | G25: 0 | I25: =IF(Kategorie="Bitte auswählen!",0,ROUNDDOWN(G25*VLOOKUP(C25,Dropdowns!$B$48:$C$76,2,FALSE),0)) -> 0
B26: =B25+1 -> 16 | C26: Installation von Nistkästen - Vögel | G26: 0 | I26: =IF(Kategorie="Bitte auswählen!",0,ROUNDDOWN(G26*VLOOKUP(C26,Dropdowns!$B$48:$C$76,2,FALSE),0)) -> 0
B27: 17 | C27: Installation von Nistkästen - Eulen & Greifvögel | G27: 0 | I27: =IF(Kategorie="Bitte auswählen!",0,ROUNDDOWN(G27*VLOOKUP(C27,Dropdowns!$B$48:$C$76,2,FALSE),0)) -> 0
B28: 18 | C28: Installation von Nistkästen - Fledermäuse | G28: 0 | I28: =IF(Kategorie="Bitte auswählen!",0,ROUNDDOWN(G28*VLOOKUP(C28,Dropdowns!$B$48:$C$76,2,FALSE),0)) -> 0
A29: =Feld0 -> 0 | B29: 19 | C29: =IF(ISNA(VLOOKUP(Projekt,Dropdowns!B31:F44,2,FALSE)),0,VLOOKUP(Projekt,Dropdowns!B31:F44,2,FALSE)) -> 0 | G29: 0 | I29: =IF(C29=0,0,IF(Kategorie="Bitte auswählen!",0,IF(Feld0=Dropdowns!E40,IF(OR(bronzefeld<0,bronzefeld>1),0,ROUNDDOWN(G29*VLOOKUP(C29,Dropdowns!B48:C76,2,FALSE),0)),ROUNDDOWN(G29*VLOOKUP(C29,Dropdowns!B48:C76,2,FALSE),0)))) -> 0
B30: 20 | C30: Summe (Bronze) | G30: =SUM(I24:I29) -> 0
C32: Schutzmaßnahme Status Silber | G32: Anzahl/Fläche | I32: Punkte
B33: =B30+1 -> 21 | C33: Agrar Hölzer im Kurzumtrieb (min. 30 m) | G33: 0 | I33: =IF(OR(Kategorie="Bitte auswählen!",G33<30),0,ROUNDDOWN(G33*VLOOKUP(C33,Dropdowns!$B$48:$C$76,2,FALSE),0)) -> 0 | J33: =IF('PJ4'!Ausw_PJ_aktiv,IF(AND(G33>=30,'PJ4'!Ausw_PJ_aktiv),1,IF(AND(G33=0,'PJ4'!Ausw_PJ_aktiv),2,IF(AND(G33>0,G33<30,'PJ4'!Ausw_PJ_aktiv),-2))),2) -> 2
B34: =B33+1 -> 22 | C34: Blühwiese (min. 50 m2) | G34: 0 | I34: =IF(OR(Kategorie="Bitte auswählen!",G34<50),0,ROUNDDOWN(G34*VLOOKUP(C34,Dropdowns!$B$48:$C$76,2,FALSE),0)) -> 0 | J34: =IF('PJ4'!Ausw_PJ_aktiv,IF(AND(G34>=50,'PJ4'!Ausw_PJ_aktiv),1,IF(AND(G34=0,'PJ4'!Ausw_PJ_aktiv),2,IF(AND(G34>0,G34<50,'PJ4'!Ausw_PJ_aktiv),-2))),2) -> 2
B35: =B34+1 -> 23 | C35: Begrenzungshecke/Sichtschutzhecke (min. 50 m²) | G35: 0 | I35: =IF(OR(Kategorie="Bitte auswählen!",G35<50),0,ROUNDDOWN(G35*VLOOKUP(C35,Dropdowns!$B$48:$C$76,2,FALSE),0)) -> 0 | J35: =IF('PJ4'!Ausw_PJ_aktiv,IF(AND(G35>=50,'PJ4'!Ausw_PJ_aktiv),1,IF(AND(G35=0,'PJ4'!Ausw_PJ_aktiv),2,IF(AND(G35>0,G35<50,'PJ4'!Ausw_PJ_aktiv),-2))),2) -> 2
B36: 24 | C36: Bäume pflanzen | G36: 0 | I36: =IF(Kategorie="Bitte auswählen!",0,ROUNDDOWN(G36*VLOOKUP(C36,Dropdowns!$B$48:$C$76,2,FALSE),0)) -> 0
B37: 25 | C37: Extensive Weidewirtschaft (min. 10.000 m2) | G37: 0 | I37: =IF(OR(Kategorie="Bitte auswählen!",G37<10000),0,ROUNDDOWN(G37*VLOOKUP(C37,Dropdowns!$B$48:$C$76,2,FALSE),0)) -> 0 | J37: =IF('PJ4'!Ausw_PJ_aktiv,IF(AND(G37>=10000,'PJ4'!Ausw_PJ_aktiv),1,IF(AND(G37=0,'PJ4'!Ausw_PJ_aktiv),2,IF(AND(G37>0,G37<10000,'PJ4'!Ausw_PJ_aktiv),-2))),2) -> 2
B38: 26 | C38: Dachbegrünung in städtischen Gebieten (min. 10 m2) | G38: 0 | I38: =IF(OR(Kategorie="Bitte auswählen!",G38<10),0,ROUNDDOWN(G38*VLOOKUP(C38,Dropdowns!$B$48:$C$76,2,FALSE),0)) -> 0 | J38: =IF('PJ4'!Ausw_PJ_aktiv,IF(AND(G38>=10,'PJ4'!Ausw_PJ_aktiv),1,IF(AND(G38=0,'PJ4'!Ausw_PJ_aktiv),2,IF(AND(G38>0,G38<10,'PJ4'!Ausw_PJ_aktiv),-2))),2) -> 2
A39: =feld1 -> 0 | B39: 27 | C39: =IF(ISNA(VLOOKUP(Projekt,Dropdowns!B31:F44,3,FALSE)),0,VLOOKUP(Projekt,Dropdowns!B31:F44,3,FALSE)) -> 0 | G39: 0 | I39: =IF(C39=0,0,IF(Kategorie="Bitte auswählen!",0,IF(feld1=Dropdowns!E40,IF(OR(silberfeld<0,),0,ROUNDDOWN(G39*VLOOKUP(C39,Dropdowns!B48:C76,2,FALSE),0)),ROUNDDOWN(G39*VLOOKUP(C39,Dropdowns!B48:C76,2,FALSE),0)))) -> 0
B40: 28 | C40: Summe (Silber) | G40: =SUM(I33:I39) -> 0
C42: Schutzmaßnahme Status Gold | G42: Anzahl/Fläche | I42: Punkte
B43: =B40+1 -> 29 | C43: Wiederherstellung / Schaffung von Weihern (min. 50 m2) | G43: 0 | I43: =IF(OR(Kategorie="Bitte auswählen!",G43<50),0,ROUNDDOWN(G43*VLOOKUP(C43,Dropdowns!$B$48:$C$76,2,FALSE),0)) -> 0 | J43: =IF('PJ4'!Ausw_PJ_aktiv,IF(AND(G43>=50,'PJ4'!Ausw_PJ_aktiv),1,IF(AND(G43=0,'PJ4'!Ausw_PJ_aktiv),2,IF(AND(G43>0,G43<50,'PJ4'!Ausw_PJ_aktiv),-2))),2) -> 2
B44: =B43+1 -> 30 | C44: Wiederherstellung / Schaffung von Feuchtgebieten (min. 50 m2) | G44: 0 | I44: =IF(OR(Kategorie="Bitte auswählen!",G44<50),0,ROUNDDOWN(G44*VLOOKUP(C44,Dropdowns!$B$48:$C$76,2,FALSE),0)) -> 0 | J44: =IF('PJ4'!Ausw_PJ_aktiv,IF(AND(G44>=50,'PJ4'!Ausw_PJ_aktiv),1,IF(AND(G44=0,'PJ4'!Ausw_PJ_aktiv),2,IF(AND(G44>0,G44<50,'PJ4'!Ausw_PJ_aktiv),-2))),2) -> 2
B45: =B44+1 -> 31 | C45: Streuobstwiese (min. 100 m2) | G45: 0 | I45: =IF(OR(Kategorie="Bitte auswählen!",G45<100),0,ROUNDDOWN(G45*VLOOKUP(C45,Dropdowns!$B$48:$C$76,2,FALSE),0)) -> 0 | J45: =IF('PJ4'!Ausw_PJ_aktiv,IF(AND(G45>=100,'PJ4'!Ausw_PJ_aktiv),1,IF(AND(G45=0,'PJ4'!Ausw_PJ_aktiv),2,IF(AND(G45>0,G45<100,'PJ4'!Ausw_PJ_aktiv),-2))),2) -> 2
B46: 32 | C46: Amphibienschutzzaun (min. 100 m) | G46: 0 | I46: =IF(OR(Kategorie="Bitte auswählen!",Bienen<100),0,ROUNDDOWN(G46*VLOOKUP(C46,Dropdowns!$B$48:$C$76,2,FALSE),0)) -> 0 | J46: =IF('PJ4'!Ausw_PJ_aktiv,IF(AND(G46>=100,'PJ4'!Ausw_PJ_aktiv),1,IF(AND(G46=0,'PJ4'!Ausw_PJ_aktiv),2,IF(AND(G46>0,G46<100,'PJ4'!Ausw_PJ_aktiv),-2))),2) -> 2
B47: 33 | C47: Trockenmauer (min. 10 m) | G47: 0 | I47: =IF(OR(Kategorie="Bitte auswählen!",Mauer<10),0,ROUNDDOWN(G47*VLOOKUP(C47,Dropdowns!$B$48:$C$76,2,FALSE),0)) -> 0 | J47: =IF('PJ4'!Ausw_PJ_aktiv,IF(AND(G47>=10,'PJ4'!Ausw_PJ_aktiv),1,IF(AND(G47=0,'PJ4'!Ausw_PJ_aktiv),2,IF(AND(G47>0,G47<10,'PJ4'!Ausw_PJ_aktiv),-2))),2) -> 2
B48: 34 | C48: Benjeshecken anlegen (min. 30 m) | G48: 0 | I48: =IF(OR(Kategorie="Bitte auswählen!",G48<30),0,ROUNDDOWN(G48*VLOOKUP(C48,Dropdowns!$B$48:$C$76,2,FALSE),0)) -> 0 | J48: =IF('PJ4'!Ausw_PJ_aktiv,IF(AND(G48>=30,'PJ4'!Ausw_PJ_aktiv),1,IF(AND(G48=0,'PJ4'!Ausw_PJ_aktiv),2,IF(AND(G48>0,G48<30,'PJ4'!Ausw_PJ_aktiv),-2))),2) -> 2
B49: 35 | C49: Bildungsmaßnahmen (z. B. Schulklassen, Menschen mit Behinderung etc.) | G49: 0 | I49: =IF(OR(Kategorie="Bitte auswählen!",Sozi<1),0,ROUNDDOWN(G49*VLOOKUP(C49,Dropdowns!B48:C76,2,FALSE),0)) -> 0 | J49: =IF('PJ4'!Ausw_PJ_aktiv,IF(AND(G49>=1,'PJ4'!Ausw_PJ_aktiv),1,IF(AND(G49=0,'PJ4'!Ausw_PJ_aktiv),2,IF(AND(G49>0,G49<1,'PJ4'!Ausw_PJ_aktiv),-2))),2) -> 2
A50: =feld2 -> 0 | B50: 36 | C50: =IF(ISNA(VLOOKUP(Projekt,Dropdowns!B31:F44,4,FALSE)),0,VLOOKUP(Projekt,Dropdowns!B31:F44,4,FALSE)) -> 0 | G50: 0 | I50: =IF(C50=0,0,IF(Kategorie="Bitte auswählen!",0,IF(feld2=Dropdowns!E41,IF(OR(goldfeld1<0,goldfeld1>1,AND(goldfeld1>0,goldfeld1<1)),0,ROUNDDOWN(G50*VLOOKUP(C50,Dropdowns!B48:C76,2,FALSE),0)),ROUNDDOWN(G50*VLOOKUP(C50,Dropdowns!B48:C76,2,FALSE),0)))) -> 0 | J50: =IF(A50=0,"",IF('PJ4'!Ausw_PJ_aktiv,IF(OR(AND('PJ4'!Ausw_PJ_aktiv,OR(feld2=Dropdowns!E39,feld2=Dropdowns!E37),OR(goldfeld1=0,goldfeld1=1)),feld2=0),0,IF(AND(feld2<>Dropdowns!E39,feld2<>Dropdowns!E37),2,-2)),2)) -> 
A51: =feld3 -> 0 | B51: 37 | C51: =IF(ISNA(VLOOKUP(Projekt,Dropdowns!B31:F44,5,FALSE)),0,VLOOKUP(Projekt,Dropdowns!B31:F44,5,FALSE)) -> 0 | G51: 0 | I51: =IF(C51=0,0,IF(Kategorie="Bitte auswählen!",0,IF(feld3=Dropdowns!E41,IF(OR(goldfeld2<0,goldfeld2>1,AND(goldfeld2>0,goldfeld2<1)),0,ROUNDDOWN(G51*VLOOKUP(C51,Dropdowns!B48:C76,2,FALSE),0)),ROUNDDOWN(G51*VLOOKUP(C51,Dropdowns!B48:C76,2,FALSE),0)))) -> 0
B52: 38 | C52: Summe (Gold) | G52: =SUM(I43:I51) -> 0
D54: Bronze | G54: Silber | I54: Gold
B55: =B52+1 -> 39 | C55: Anzahl der Zertifikate | D55: =IF(Berechnungen_2!S8=0,0,Berechnungen_2!S8) -> 0 | G55: =Berechnungen_2!P8 -> 0 | I55: =Berechnungen_2!K8 -> 0 | J55: =IF('PJ4'!Ausw_PJ_aktiv,IF(SUM(D55:I55)=G15,1,IF(AND(SUM(D55:I55)<G15,SUM(D55:I55)>0,'PJ4'!Ausw_PJ_aktiv),0,IF(AND(SUM(D55:I55)=0,'PJ4'!Ausw_PJ_aktiv),-2))),2) -> 2
B56: =B55+1 -> 40 | C56: Wert der Zertifikate | D56: =D55*25 -> 0 | G56: =G55*50 -> 0 | I56: =75*Zertifikate -> 0
B57: =B56+1 -> 41 | C57: Gesamtwert der Zertifikate | D57: =SUM(D56:I56) -> 0
C60: Sonstige Anmerkungen
B61: =B57+1 -> 42
C67: =Erläuterung!D55 -> Berechnungsformular ZENAPA-Zertifizierung - Version 2021/10
E140: Ausw_PJ_aktiv | G140: FALSE
E141: PlAbfr_PJ_RW | G141: =IF('PJ4'!Ausw_PJ_aktiv,(J13),1) -> 1
E142: PlAbfr_PJ_PB | G142: =IF('PJ4'!Ausw_PJ_aktiv,(J16),1) -> 1
E143: PlAbfr_PJ_FL | G143: =IF('PJ4'!Ausw_PJ_aktiv,MIN(J33:J35,J37:J38,J43:J48),1) -> 1
E144: PlAbfr_PJ_SP | G144: =IF('PJ4'!Ausw_PJ_aktiv,J49,1) -> 1
E145: PlAbfr_PJ_AP | G145: =IF('PJ4'!Ausw_PJ_aktiv,(J55),1) -> 1
E146: PIAbfr_PJ_EnEf | G146: =IF('PJ4'!Ausw_PJ_aktiv,J11,1) -> 1
E147: Anzahl_BPkt | G147: =IF('PJ4'!Ausw_PJ_aktiv,SUM(G30,G40,G52-Anzahl_SPkt),0) -> 0
E148: Anzahl_SPkt | G148: =IF('PJ4'!Ausw_PJ_aktiv,SUM($I$49:$I$49),0) -> 0
E149: PIAbfr_PJ_01 | G149: =IF(AND('PJ4'!Ausw_PJ_aktiv,GHGZ="Bitte Tabellenblatt 'Eingabe Heizungstausch' vollständig ausfüllen!"),-1,1) -> 1
E150: PIAbfr_PJ_Max | G150: =IF('PJ4'!Ausw_PJ_aktiv,MIN(J19:J21),1) -> 1
E151: PIAbfr_PJ_BD | G151: =IF('PJ4'!Ausw_PJ_aktiv,PIAbfr_BD,1) -> 1
E152: PIAbfr_PJ_NaturP | G152: =IF(AND(Ausw_PJ_aktiv,G15>=1,SUM(D55:I55)=0),-1,1) -> 1
E153: PIAbfr_PJ_allg | G153: =MIN(J5:J10,J12) -> 2

Sheet PJ5 (hidden)
C2: =C67 -> Berechnungsformular ZENAPA-Zertifizierung - Version 2021/10
C3: Bitte beachten Sie beim Ausfüllen des Formulars die Hinweise im Tabellenblatt Anmerkungen. | I3: Projekt 5 | J3: PJ5
B4: 1 | C4: Antragsteller | G4: =IF(Übersicht!H5="","Bitte im Tabellenblatt 'Übersicht' den Namen eintragen!",Übersicht!H5) -> Bitte im Tabellenblatt 'Übersicht' den Namen eintragen!
B5: =B4+1 -> 2 | C5: Auswahl der Kategorie | G5: Bitte auswählen! | J5: =IF('PJ5'!Ausw_PJ_aktiv,IF(Kategorie="Bitte auswählen!",-2,1),2) -> 2
B6: =B5+1 -> 3 | C6: Technologie | G6: Bitte auswählen! | J6: =IF('PJ5'!Ausw_PJ_aktiv,IF(Projekt="Bitte auswählen!",-2,1),2) -> 2
B7: 4 | C7: =IFERROR(IF(VLOOKUP(Projekt,Dropdowns!B15:D27,3,FALSE)=1,"Einstufung","-"),"") ->  | G7: Bitte auswählen! | J7: =IF('PJ5'!Ausw_PJ_aktiv,IF(OR($G$6="LED",$G$6="Brauchwasserpumpe",$G$6="Heizungspumpe",$G$6="GreenIT",$G$6="Lüftungsanlage_oder_Klimaanlage",$G$6="Wind",$G$6="Photovoltaik",$G$6="Wasserkraft",Projekt="Heizungstausch"),2,IF(Einstufung="Bitte auswählen!",-2,0)),2) -> 2
B8: 5 | C8: =IFERROR(IF(Projekt="Biogasanlage mit Kavitation","Mehrertrag an thermischer Energie",IF(OR(VLOOKUP(Projekt,Dropdowns!B15:C27,2,FALSE)="erz",VLOOKUP(Projekt,Dropdowns!B15:C27,2,FALSE)="Wärme erz"),"Erzeugte thermische Energie",IF(VLOOKUP(Projekt,Dropdowns!B15:C27,2,FALSE)="Wärme eing", "Eingesparte thermische Energie","-"))),"") ->  | G8: 0 | J8: =IF('PJ5'!Ausw_PJ_aktiv,IF(OR($G$6="LED",$G$6="Brauchwasserpumpe",$G$6="Heizungspumpe",$G$6="GreenIT",$G$6="Lüftungsanlage_oder_Klimaanlage",$G$6="Wind",$G$6="Photovoltaik",$G$6="Wasserkraft",Projekt="Heizungstausch"),2,IF(Eingrenzung=0,-2,1)),2) -> 2
B9: 6 | C9: =IFERROR(IF(Projekt="Biogasanlage mit Kavitation","Mehrertrag an elektrischer Energie",IF(OR(VLOOKUP(Projekt,Dropdowns!B15:C27,2,FALSE)="erz",VLOOKUP(Projekt,Dropdowns!B15:C27,2,FALSE)="Strom erz"),"Erzeugte elektrische Energie",IF(VLOOKUP(Projekt,Dropdowns!B15:C27,2,FALSE)="Strom eing", "Eingesparte elektrische Energie","-"))),"") ->  | G9: 0 | J9: =IF('PJ5'!Ausw_PJ_aktiv,IF(OR($G$6="Solarthermie",$G$6="Künstlicher_Dämmstoff",$G$6="Naturdämmstoff",$G$6="Wärmepumpe",Projekt="Heizungstausch"),2,IF(OR(Stromeinsparung=0,Stromeinsparung=""),-2,1)),2) -> 2
B10: 7 | C10: Betriebsgewöhnliche Nutzungsdauer | G10: 0 | J10: =IF('PJ5'!Ausw_PJ_aktiv,IF(Projekt="Heizungstausch",2,IF(OR(Nutzungsdauer="",Nutzungsdauer=0),-2,1))) -> FALSE
B11: 8 | C11: CO2-Minderung über Lebensdauer | G11: =IF(Projekt="Heizungstausch",IF(HLOOKUP(J3,'Eingabe Heizungstausch'!C6:L39,34,FALSE)=0,"Bitte Tabellenblatt 'Eingabe Heizungstausch' vollständig ausfüllen!",HLOOKUP(J3,'Eingabe Heizungstausch'!C6:L39,34,FALSE)),VLOOKUP(J3,Berechnungen_1!C34:S44,16,FALSE)) ->  | J11: =IF(OR(AND('PJ5'!Ausw_PJ_aktiv,GHGZ<1),AND('PJ5'!Ausw_PJ_aktiv,GHGZ="Bitte Tabellenblatt 'Eingabe Heizungstausch' vollständig ausfüllen!"),J6<0),-2,IF('PJ5'!Ausw_PJ_aktiv=FALSE,2,1)) -> 2
B12: 9 | C12: Investition [Netto / ohne Förderung] | G12: 0 | J12: =IF('PJ5'!Ausw_PJ_aktiv,IF(OR(Investition=0,Investition=""),-2,1),2) -> 2
B13: 10 | C13: Regionale Wertschöpfung | G13: =IF(AND('PJ5'!Ausw_PJ_aktiv,G5="Bitte auswählen!"),0,VLOOKUP(J3,Berechnungen_2!$B$5:$AR$14,43,FALSE)) -> 
B14: 11 | C14: Anzahl an Wertschöpfungspunkte | G14: =IF(Kategorie="Bitte auswählen!",0,ROUNDDOWN(G13/300,0)) -> 0 | J14: =IF('PJ5'!Ausw_PJ_aktiv,IF(WZ>0,0,-1),2) -> 2
B15: 12 | C15: Maximal erreichbare Anzahl an Zertifikaten | G15: =ROUNDDOWN(AVERAGE(GHGZ,WZ),0) -> 0 | J15: =IF('PJ5'!Ausw_PJ_aktiv,IF(G15=0,-2,IF((Zertifikate+G55+D55)<G15,0,1)),2) -> 2
B16: 13 | C16: Beschreibung der Maßnahme | J16: =IF('PJ5'!Ausw_PJ_aktiv,IF(AND(G16=0,'PJ5'!Ausw_PJ_aktiv),-2,IF(AND('PJ5'!Ausw_PJ_aktiv,G16>0),1,1)),2) -> 2
C18: =IF(Ausw_PJ_aktiv,IFERROR("Für die maximal erreichbare Zertifikatausbeute brauchen Sie je nach Kategorie folgende Anzahl an Naturschutzpunkten:",""),"") -> 
C19: =IF(Ausw_PJ_aktiv,IFERROR("Bronze: " &Berechnungen_2!AN9& " Punkte",""),"") ->  | J19: =IF('PJ5'!Ausw_PJ_aktiv,IF(Berechnungen_2!AN5>0,0,1),1) -> 1
C20: =IF(Ausw_PJ_aktiv,IFERROR("Silber: " &Berechnungen_2!AO9& " Punkte (Mindestens fünf Punkte aus der Silberkategorie nötig)",""),"") ->  | J20: =IF('PJ5'!Ausw_PJ_aktiv,IF(Berechnungen_2!AO5>0,0,1),1) -> 1
C21: =IF(Ausw_PJ_aktiv,IFERROR("Gold: " &Berechnungen_2!AP9& " Punkte (Mindestens fünf Punkte aus der Goldkategorie nötig)",""),"") ->  | J21: =IF('PJ5'!Ausw_PJ_aktiv,IF(Berechnungen_2!AP5>0,0,1),1) -> 1
C23: Schutzmaßnahme Status Bronze | G23: Anzahl/Fläche | I23: Punkte
B24: =B16+1 -> 14 | C24: Installation von Nistkästen - Insekten | G24: 0 | I24: =IF(Kategorie="Bitte auswählen!",0,ROUNDDOWN(G24*VLOOKUP(C24,Dropdowns!$B$48:$C$76,2,FALSE),0)) -> 0
B25: =B24+1 -> 15 | C25: Installation von Insektenhotel | G25: 0 | I25: =IF(Kategorie="Bitte auswählen!",0,ROUNDDOWN(G25*VLOOKUP(C25,Dropdowns!$B$48:$C$76,2,FALSE),0)) -> 0
B26: =B25+1 -> 16 | C26: Installation von Nistkästen - Vögel | G26: 0 | I26: =IF(Kategorie="Bitte auswählen!",0,ROUNDDOWN(G26*VLOOKUP(C26,Dropdowns!$B$48:$C$76,2,FALSE),0)) -> 0
B27: 17 | C27: Installation von Nistkästen - Eulen & Greifvögel | G27: 0 | I27: =IF(Kategorie="Bitte auswählen!",0,ROUNDDOWN(G27*VLOOKUP(C27,Dropdowns!$B$48:$C$76,2,FALSE),0)) -> 0
B28: 18 | C28: Installation von Nistkästen - Fledermäuse | G28: 0 | I28: =IF(Kategorie="Bitte auswählen!",0,ROUNDDOWN(G28*VLOOKUP(C28,Dropdowns!$B$48:$C$76,2,FALSE),0)) -> 0
A29: =Feld0 -> 0 | B29: 19 | C29: =IF(ISNA(VLOOKUP(Projekt,Dropdowns!B31:F44,2,FALSE)),0,VLOOKUP(Projekt,Dropdowns!B31:F44,2,FALSE)) -> 0 | G29: 0 | I29: =IF(C29=0,0,IF(Kategorie="Bitte auswählen!",0,IF(Feld0=Dropdowns!E40,IF(OR(bronzefeld<0,bronzefeld>1),0,ROUNDDOWN(G29*VLOOKUP(C29,Dropdowns!B48:C76,2,FALSE),0)),ROUNDDOWN(G29*VLOOKUP(C29,Dropdowns!B48:C76,2,FALSE),0)))) -> 0
B30: 20 | C30: Summe (Bronze) | G30: =SUM(I24:I29) -> 0
C32: Schutzmaßnahme Status Silber | G32: Anzahl/Fläche | I32: Punkte
B33: =B30+1 -> 21 | C33: Agrar Hölzer im Kurzumtrieb (min. 30 m) | G33: 0 | I33: =IF(OR(Kategorie="Bitte auswählen!",G33<30),0,ROUNDDOWN(G33*VLOOKUP(C33,Dropdowns!$B$48:$C$76,2,FALSE),0)) -> 0 | J33: =IF('PJ5'!Ausw_PJ_aktiv,IF(AND(G33>=30,'PJ5'!Ausw_PJ_aktiv),1,IF(AND(G33=0,'PJ5'!Ausw_PJ_aktiv),2,IF(AND(G33>0,G33<30,'PJ5'!Ausw_PJ_aktiv),-2))),2) -> 2
B34: =B33+1 -> 22 | C34: Blühwiese (min. 50 m2) | G34: 0 | I34: =IF(OR(Kategorie="Bitte auswählen!",G34<50),0,ROUNDDOWN(G34*VLOOKUP(C34,Dropdowns!$B$48:$C$76,2,FALSE),0)) -> 0 | J34: =IF('PJ5'!Ausw_PJ_aktiv,IF(AND(G34>=50,'PJ5'!Ausw_PJ_aktiv),1,IF(AND(G34=0,'PJ5'!Ausw_PJ_aktiv),2,IF(AND(G34>0,G34<50,'PJ5'!Ausw_PJ_aktiv),-2))),2) -> 2
B35: =B34+1 -> 23 | C35: Begrenzungshecke/Sichtschutzhecke (min. 50 m²) | G35: 0 | I35: =IF(OR(Kategorie="Bitte auswählen!",G35<50),0,ROUNDDOWN(G35*VLOOKUP(C35,Dropdowns!$B$48:$C$76,2,FALSE),0)) -> 0 | J35: =IF('PJ5'!Ausw_PJ_aktiv,IF(AND(G35>=50,'PJ5'!Ausw_PJ_aktiv),1,IF(AND(G35=0,'PJ5'!Ausw_PJ_aktiv),2,IF(AND(G35>0,G35<50,'PJ5'!Ausw_PJ_aktiv),-2))),2) -> 2
B36: 24 | C36: Bäume pflanzen | G36: 0 | I36: =IF(Kategorie="Bitte auswählen!",0,ROUNDDOWN(G36*VLOOKUP(C36,Dropdowns!$B$48:$C$76,2,FALSE),0)) -> 0
B37: 25 | C37: Extensive Weidewirtschaft (min. 10.000 m2) | G37: 0 | I37: =IF(OR(Kategorie="Bitte auswählen!",G37<10000),0,ROUNDDOWN(G37*VLOOKUP(C37,Dropdowns!$B$48:$C$76,2,FALSE),0)) -> 0 | J37: =IF('PJ5'!Ausw_PJ_aktiv,IF(AND(G37>=10000,'PJ5'!Ausw_PJ_aktiv),1,IF(AND(G37=0,'PJ5'!Ausw_PJ_aktiv),2,IF(AND(G37>0,G37<10000,'PJ5'!Ausw_PJ_aktiv),-2))),2) -> 2
B38: 26 | C38: Dachbegrünung in städtischen Gebieten (min. 10 m2) | G38: 0 | I38: =IF(OR(Kategorie="Bitte auswählen!",G38<10),0,ROUNDDOWN(G38*VLOOKUP(C38,Dropdowns!$B$48:$C$76,2,FALSE),0)) -> 0 | J38: =IF('PJ5'!Ausw_PJ_aktiv,IF(AND(G38>=10,'PJ5'!Ausw_PJ_aktiv),1,IF(AND(G38=0,'PJ5'!Ausw_PJ_aktiv),2,IF(AND(G38>0,G38<10,'PJ5'!Ausw_PJ_aktiv),-2))),2) -> 2
A39: =feld1 -> 0 | B39: 27 | C39: =IF(ISNA(VLOOKUP(Projekt,Dropdowns!B31:F44,3,FALSE)),0,VLOOKUP(Projekt,Dropdowns!B31:F44,3,FALSE)) -> 0 | G39: 0 | I39: =IF(C39=0,0,IF(Kategorie="Bitte auswählen!",0,IF(feld1=Dropdowns!E40,IF(OR(silberfeld<0,),0,ROUNDDOWN(G39*VLOOKUP(C39,Dropdowns!B48:C76,2,FALSE),0)),ROUNDDOWN(G39*VLOOKUP(C39,Dropdowns!B48:C76,2,FALSE),0)))) -> 0
B40: 28 | C40: Summe (Silber) | G40: =SUM(I33:I39) -> 0
C42: Schutzmaßnahme Status Gold | G42: Anzahl/Fläche | I42: Punkte
B43: =B40+1 -> 29 | C43: Wiederherstellung / Schaffung von Weihern (min. 50 m2) | G43: 0 | I43: =IF(OR(Kategorie="Bitte auswählen!",G43<50),0,ROUNDDOWN(G43*VLOOKUP(C43,Dropdowns!$B$48:$C$76,2,FALSE),0)) -> 0 | J43: =IF('PJ5'!Ausw_PJ_aktiv,IF(AND(G43>=50,'PJ5'!Ausw_PJ_aktiv),1,IF(AND(G43=0,'PJ5'!Ausw_PJ_aktiv),2,IF(AND(G43>0,G43<50,'PJ5'!Ausw_PJ_aktiv),-2))),2) -> 2
B44: =B43+1 -> 30 | C44: Wiederherstellung / Schaffung von Feuchtgebieten (min. 50 m2) | G44: 0 | I44: =IF(OR(Kategorie="Bitte auswählen!",G44<50),0,ROUNDDOWN(G44*VLOOKUP(C44,Dropdowns!$B$48:$C$76,2,FALSE),0)) -> 0 | J44: =IF('PJ5'!Ausw_PJ_aktiv,IF(AND(G44>=50,'PJ5'!Ausw_PJ_aktiv),1,IF(AND(G44=0,'PJ5'!Ausw_PJ_aktiv),2,IF(AND(G44>0,G44<50,'PJ5'!Ausw_PJ_aktiv),-2))),2) -> 2
B45: =B44+1 -> 31 | C45: Streuobstwiese (min. 100 m2) | G45: 0 | I45: =IF(OR(Kategorie="Bitte auswählen!",G45<100),0,ROUNDDOWN(G45*VLOOKUP(C45,Dropdowns!$B$48:$C$76,2,FALSE),0)) -> 0 | J45: =IF('PJ5'!Ausw_PJ_aktiv,IF(AND(G45>=100,'PJ5'!Ausw_PJ_aktiv),1,IF(AND(G45=0,'PJ5'!Ausw_PJ_aktiv),2,IF(AND(G45>0,G45<100,'PJ5'!Ausw_PJ_aktiv),-2))),2) -> 2
B46: 32 | C46: Amphibienschutzzaun (min. 100 m) | G46: 0 | I46: =IF(OR(Kategorie="Bitte auswählen!",Bienen<100),0,ROUNDDOWN(G46*VLOOKUP(C46,Dropdowns!$B$48:$C$76,2,FALSE),0)) -> 0 | J46: =IF('PJ5'!Ausw_PJ_aktiv,IF(AND(G46>=100,'PJ5'!Ausw_PJ_aktiv),1,IF(AND(G46=0,'PJ5'!Ausw_PJ_aktiv),2,IF(AND(G46>0,G46<100,'PJ5'!Ausw_PJ_aktiv),-2))),2) -> 2
B47: 33 | C47: Trockenmauer (min. 10 m) | G47: 0 | I47: =IF(OR(Kategorie="Bitte auswählen!",Mauer<10),0,ROUNDDOWN(G47*VLOOKUP(C47,Dropdowns!$B$48:$C$76,2,FALSE),0)) -> 0 | J47: =IF('PJ5'!Ausw_PJ_aktiv,IF(AND(G47>=10,'PJ5'!Ausw_PJ_aktiv),1,IF(AND(G47=0,'PJ5'!Ausw_PJ_aktiv),2,IF(AND(G47>0,G47<10,'PJ5'!Ausw_PJ_aktiv),-2))),2) -> 2
B48: 34 | C48: Benjeshecken anlegen (min. 30 m) | G48: 0 | I48: =IF(OR(Kategorie="Bitte auswählen!",G48<30),0,ROUNDDOWN(G48*VLOOKUP(C48,Dropdowns!$B$48:$C$76,2,FALSE),0)) -> 0 | J48: =IF('PJ5'!Ausw_PJ_aktiv,IF(AND(G48>=30,'PJ5'!Ausw_PJ_aktiv),1,IF(AND(G48=0,'PJ5'!Ausw_PJ_aktiv),2,IF(AND(G48>0,G48<30,'PJ5'!Ausw_PJ_aktiv),-2))),2) -> 2
B49: 35 | C49: Bildungsmaßnahmen (z. B. Schulklassen, Menschen mit Behinderung etc.) | G49: 0 | I49: =IF(OR(Kategorie="Bitte auswählen!",Sozi<1),0,ROUNDDOWN(G49*VLOOKUP(C49,Dropdowns!B48:C76,2,FALSE),0)) -> 0 | J49: =IF('PJ5'!Ausw_PJ_aktiv,IF(AND(G49>=1,'PJ5'!Ausw_PJ_aktiv),1,IF(AND(G49=0,'PJ5'!Ausw_PJ_aktiv),2,IF(AND(G49>0,G49<1,'PJ5'!Ausw_PJ_aktiv),-2))),2) -> 2
A50: =feld2 -> 0 | B50: 36 | C50: =IF(ISNA(VLOOKUP(Projekt,Dropdowns!B31:F44,4,FALSE)),0,VLOOKUP(Projekt,Dropdowns!B31:F44,4,FALSE)) -> 0 | G50: 0 | I50: =IF(C50=0,0,IF(Kategorie="Bitte auswählen!",0,IF(feld2=Dropdowns!E41,IF(OR(goldfeld1<0,goldfeld1>1,AND(goldfeld1>0,goldfeld1<1)),0,ROUNDDOWN(G50*VLOOKUP(C50,Dropdowns!B48:C76,2,FALSE),0)),ROUNDDOWN(G50*VLOOKUP(C50,Dropdowns!B48:C76,2,FALSE),0)))) -> 0 | J50: =IF(A50=0,"",IF('PJ5'!Ausw_PJ_aktiv,IF(OR(AND('PJ5'!Ausw_PJ_aktiv,OR(feld2=Dropdowns!E39,feld2=Dropdowns!E37),OR(goldfeld1=0,goldfeld1=1)),feld2=0),0,IF(AND(feld2<>Dropdowns!E39,feld2<>Dropdowns!E37),2,-2)),2)) -> 
A51: =feld3 -> 0 | B51: 37 | C51: =IF(ISNA(VLOOKUP(Projekt,Dropdowns!B31:F44,5,FALSE)),0,VLOOKUP(Projekt,Dropdowns!B31:F44,5,FALSE)) -> 0 | G51: 0 | I51: =IF(C51=0,0,IF(Kategorie="Bitte auswählen!",0,IF(feld3=Dropdowns!E41,IF(OR(goldfeld2<0,goldfeld2>1,AND(goldfeld2>0,goldfeld2<1)),0,ROUNDDOWN(G51*VLOOKUP(C51,Dropdowns!B48:C76,2,FALSE),0)),ROUNDDOWN(G51*VLOOKUP(C51,Dropdowns!B48:C76,2,FALSE),0)))) -> 0
B52: 38 | C52: Summe (Gold) | G52: =SUM(I43:I51) -> 0
D54: Bronze | G54: Silber | I54: Gold
B55: =B52+1 -> 39 | C55: Anzahl der Zertifikate | D55: =IF(Berechnungen_2!S9=0,0,Berechnungen_2!S9) -> 0 | G55: =Berechnungen_2!P9 -> 0 | I55: =Berechnungen_2!K9 -> 0 | J55: =IF('PJ5'!Ausw_PJ_aktiv,IF(SUM(D55:I55)=G15,1,IF(AND(SUM(D55:I55)<G15,SUM(D55:I55)>0,'PJ5'!Ausw_PJ_aktiv),0,IF(AND(SUM(D55:I55)=0,'PJ5'!Ausw_PJ_aktiv),-2))),2) -> 2
B56: =B55+1 -> 40 | C56: Wert der Zertifikate | D56: =D55*25 -> 0 | G56: =G55*50 -> 0 | I56: =75*Zertifikate -> 0
B57: =B56+1 -> 41 | C57: Gesamtwert der Zertifikate | D57: =SUM(D56:I56) -> 0
C60: Sonstige Anmerkungen
B61: =B57+1 -> 42
C67: =Erläuterung!D55 -> Berechnungsformular ZENAPA-Zertifizierung - Version 2021/10
E140: Ausw_PJ_aktiv | G140: FALSE
E141: PlAbfr_PJ_RW | G141: =IF('PJ5'!Ausw_PJ_aktiv,(J13),1) -> 1
E142: PlAbfr_PJ_PB | G142: =IF('PJ5'!Ausw_PJ_aktiv,(J16),1) -> 1
E143: PlAbfr_PJ_FL | G143: =IF('PJ5'!Ausw_PJ_aktiv,MIN(J33:J35,J37:J38,J43:J48),1) -> 1
E144: PlAbfr_PJ_SP | G144: =IF('PJ5'!Ausw_PJ_aktiv,J49,1) -> 1
E145: PlAbfr_PJ_AP | G145: =IF('PJ5'!Ausw_PJ_aktiv,(J55),1) -> 1
E146: PIAbfr_PJ_EnEf | G146: =IF('PJ5'!Ausw_PJ_aktiv,J11,1) -> 1
E147: Anzahl_BPkt | G147: =IF('PJ5'!Ausw_PJ_aktiv,SUM(G30,G40,G52-Anzahl_SPkt),0) -> 0
E148: Anzahl_SPkt | G148: =IF('PJ5'!Ausw_PJ_aktiv,SUM($I$49:$I$49),0) -> 0
E149: PIAbfr_PJ_01 | G149: =IF(AND('PJ5'!Ausw_PJ_aktiv,GHGZ="Bitte Tabellenblatt 'Eingabe Heizungstausch' vollständig ausfüllen!"),-1,1) -> 1
E150: PIAbfr_PJ_Max | G150: =IF('PJ5'!Ausw_PJ_aktiv,MIN(J19:J21),1) -> 1
E151: PIAbfr_PJ_BD | G151: =IF('PJ5'!Ausw_PJ_aktiv,PIAbfr_BD,1) -> 1
E152: PIAbfr_PJ_NaturP | G152: =IF(AND(Ausw_PJ_aktiv,G15>=1,SUM(D55:I55)=0),-1,1) -> 1
E153: PIAbfr_PJ_allg | G153: =MIN(J5:J10,J12) -> 2

Sheet PJ6 (hidden)
C2: =C67 -> Berechnungsformular ZENAPA-Zertifizierung - Version 2021/10
C3: Bitte beachten Sie beim Ausfüllen des Formulars die Hinweise im Tabellenblatt Anmerkungen. | I3: Projekt 6 | J3: PJ6
B4: 1 | C4: Antragsteller | G4: =IF(Übersicht!H5="","Bitte im Tabellenblatt 'Übersicht' den Namen eintragen!",Übersicht!H5) -> Bitte im Tabellenblatt 'Übersicht' den Namen eintragen!
B5: =B4+1 -> 2 | C5: Auswahl der Kategorie | G5: Bitte auswählen! | J5: =IF('PJ6'!Ausw_PJ_aktiv,IF(Kategorie="Bitte auswählen!",-2,1),2) -> 2
B6: =B5+1 -> 3 | C6: Technologie | G6: Bitte auswählen! | J6: =IF('PJ6'!Ausw_PJ_aktiv,IF(Projekt="Bitte auswählen!",-2,1),2) -> 2
B7: 4 | C7: =IFERROR(IF(VLOOKUP(Projekt,Dropdowns!B15:D27,3,FALSE)=1,"Einstufung","-"),"") ->  | G7: Bitte auswählen! | J7: =IF('PJ6'!Ausw_PJ_aktiv,IF(OR($G$6="LED",$G$6="Brauchwasserpumpe",$G$6="Heizungspumpe",$G$6="GreenIT",$G$6="Lüftungsanlage_oder_Klimaanlage",$G$6="Wind",$G$6="Photovoltaik",$G$6="Wasserkraft",Projekt="Heizungstausch"),2,IF(Einstufung="Bitte auswählen!",-2,0)),2) -> 2
B8: 5 | C8: =IFERROR(IF(Projekt="Biogasanlage mit Kavitation","Mehrertrag an thermischer Energie",IF(OR(VLOOKUP(Projekt,Dropdowns!B15:C27,2,FALSE)="erz",VLOOKUP(Projekt,Dropdowns!B15:C27,2,FALSE)="Wärme erz"),"Erzeugte thermische Energie",IF(VLOOKUP(Projekt,Dropdowns!B15:C27,2,FALSE)="Wärme eing", "Eingesparte thermische Energie","-"))),"") ->  | G8: 0 | J8: =IF('PJ6'!Ausw_PJ_aktiv,IF(OR($G$6="LED",$G$6="Brauchwasserpumpe",$G$6="Heizungspumpe",$G$6="GreenIT",$G$6="Lüftungsanlage_oder_Klimaanlage",$G$6="Wind",$G$6="Photovoltaik",$G$6="Wasserkraft",Projekt="Heizungstausch"),2,IF(Eingrenzung=0,-2,1)),2) -> 2
B9: 6 | C9: =IFERROR(IF(Projekt="Biogasanlage mit Kavitation","Mehrertrag an elektrischer Energie",IF(OR(VLOOKUP(Projekt,Dropdowns!B15:C27,2,FALSE)="erz",VLOOKUP(Projekt,Dropdowns!B15:C27,2,FALSE)="Strom erz"),"Erzeugte elektrische Energie",IF(VLOOKUP(Projekt,Dropdowns!B15:C27,2,FALSE)="Strom eing", "Eingesparte elektrische Energie","-"))),"") ->  | G9: 0 | J9: =IF('PJ6'!Ausw_PJ_aktiv,IF(OR($G$6="Solarthermie",$G$6="Künstlicher_Dämmstoff",$G$6="Naturdämmstoff",$G$6="Wärmepumpe",Projekt="Heizungstausch"),2,IF(OR(Stromeinsparung=0,Stromeinsparung=""),-2,1)),2) -> 2
B10: 7 | C10: Betriebsgewöhnliche Nutzungsdauer | G10: 0 | J10: =IF('PJ6'!Ausw_PJ_aktiv,IF(Projekt="Heizungstausch",2,IF(OR(Nutzungsdauer="",Nutzungsdauer=0),-2,1))) -> FALSE
B11: 8 | C11: CO2-Minderung über Lebensdauer | G11: =IF(Projekt="Heizungstausch",IF(HLOOKUP(J3,'Eingabe Heizungstausch'!C6:L39,34,FALSE)=0,"Bitte Tabellenblatt 'Eingabe Heizungstausch' vollständig ausfüllen!",HLOOKUP(J3,'Eingabe Heizungstausch'!C6:L39,34,FALSE)),VLOOKUP(J3,Berechnungen_1!C34:S44,16,FALSE)) ->  | J11: =IF(OR(AND('PJ6'!Ausw_PJ_aktiv,GHGZ<1),AND('PJ6'!Ausw_PJ_aktiv,GHGZ="Bitte Tabellenblatt 'Eingabe Heizungstausch' vollständig ausfüllen!"),J6<0),-2,IF('PJ6'!Ausw_PJ_aktiv=FALSE,2,1)) -> 2
B12: 9 | C12: Investition [Netto / ohne Förderung] | G12: 0 | J12: =IF('PJ6'!Ausw_PJ_aktiv,IF(OR(Investition=0,Investition=""),-2,1),2) -> 2
B13: 10 | C13: Regionale Wertschöpfung | G13: =IF(AND('PJ6'!Ausw_PJ_aktiv,G5="Bitte auswählen!"),0,VLOOKUP(J3,Berechnungen_2!$B$5:$AR$14,43,FALSE)) -> 
B14: 11 | C14: Anzahl an Wertschöpfungspunkte | G14: =IF(Kategorie="Bitte auswählen!",0,ROUNDDOWN(G13/300,0)) -> 0 | J14: =IF('PJ6'!Ausw_PJ_aktiv,IF(WZ>0,0,-1),2) -> 2
B15: 12 | C15: Maximal erreichbare Anzahl an Zertifikaten | G15: =ROUNDDOWN(AVERAGE(GHGZ,WZ),0) -> 0 | J15: =IF('PJ6'!Ausw_PJ_aktiv,IF(G15=0,-2,IF((Zertifikate+G55+D55)<G15,0,1)),2) -> 2
B16: 13 | C16: Beschreibung der Maßnahme | J16: =IF('PJ6'!Ausw_PJ_aktiv,IF(AND(G16=0,'PJ6'!Ausw_PJ_aktiv),-2,IF(AND('PJ6'!Ausw_PJ_aktiv,G16>0),1,1)),2) -> 2
C18: =IF(Ausw_PJ_aktiv,IFERROR("Für die maximal erreichbare Zertifikatausbeute brauchen Sie je nach Kategorie folgende Anzahl an Naturschutzpunkten:",""),"") -> 
C19: =IF(Ausw_PJ_aktiv,IFERROR("Bronze: " &Berechnungen_2!AN10& " Punkte",""),"") ->  | J19: =IF('PJ6'!Ausw_PJ_aktiv,IF(Berechnungen_2!AN5>0,0,1),1) -> 1
C20: =IF(Ausw_PJ_aktiv,IFERROR("Silber: " &Berechnungen_2!AO10& " Punkte (Mindestens fünf Punkte aus der Silberkategorie nötig)",""),"") ->  | J20: =IF('PJ6'!Ausw_PJ_aktiv,IF(Berechnungen_2!AO5>0,0,1),1) -> 1
C21: =IF(Ausw_PJ_aktiv,IFERROR("Gold: " &Berechnungen_2!AP10& " Punkte (Mindestens fünf Punkte aus der Goldkategorie nötig)",""),"") ->  | J21: =IF('PJ6'!Ausw_PJ_aktiv,IF(Berechnungen_2!AP5>0,0,1),1) -> 1
C23: Schutzmaßnahme Status Bronze | G23: Anzahl/Fläche | I23: Punkte
B24: =B16+1 -> 14 | C24: Installation von Nistkästen - Insekten | G24: 0 | I24: =IF(Kategorie="Bitte auswählen!",0,ROUNDDOWN(G24*VLOOKUP(C24,Dropdowns!$B$48:$C$76,2,FALSE),0)) -> 0
B25: =B24+1 -> 15 | C25: Installation von Insektenhotel | G25: 0 | I25: =IF(Kategorie="Bitte auswählen!",0,ROUNDDOWN(G25*VLOOKUP(C25,Dropdowns!$B$48:$C$76,2,FALSE),0)) -> 0
B26: =B25+1 -> 16 | C26: Installation von Nistkästen - Vögel | G26: 0 | I26: =IF(Kategorie="Bitte auswählen!",0,ROUNDDOWN(G26*VLOOKUP(C26,Dropdowns!$B$48:$C$76,2,FALSE),0)) -> 0
B27: 17 | C27: Installation von Nistkästen - Eulen & Greifvögel | G27: 0 | I27: =IF(Kategorie="Bitte auswählen!",0,ROUNDDOWN(G27*VLOOKUP(C27,Dropdowns!$B$48:$C$76,2,FALSE),0)) -> 0
B28: 18 | C28: Installation von Nistkästen - Fledermäuse | G28: 0 | I28: =IF(Kategorie="Bitte auswählen!",0,ROUNDDOWN(G28*VLOOKUP(C28,Dropdowns!$B$48:$C$76,2,FALSE),0)) -> 0
A29: =Feld0 -> 0 | B29: 19 | C29: =IF(ISNA(VLOOKUP(Projekt,Dropdowns!B31:F44,2,FALSE)),0,VLOOKUP(Projekt,Dropdowns!B31:F44,2,FALSE)) -> 0 | G29: 0 | I29: =IF(C29=0,0,IF(Kategorie="Bitte auswählen!",0,IF(Feld0=Dropdowns!E40,IF(OR(bronzefeld<0,bronzefeld>1),0,ROUNDDOWN(G29*VLOOKUP(C29,Dropdowns!B48:C76,2,FALSE),0)),ROUNDDOWN(G29*VLOOKUP(C29,Dropdowns!B48:C76,2,FALSE),0)))) -> 0
B30: 20 | C30: Summe (Bronze) | G30: =SUM(I24:I29) -> 0
C32: Schutzmaßnahme Status Silber | G32: Anzahl/Fläche | I32: Punkte
B33: =B30+1 -> 21 | C33: Agrar Hölzer im Kurzumtrieb (min. 30 m) | G33: 0 | I33: =IF(OR(Kategorie="Bitte auswählen!",G33<30),0,ROUNDDOWN(G33*VLOOKUP(C33,Dropdowns!$B$48:$C$76,2,FALSE),0)) -> 0 | J33: =IF('PJ6'!Ausw_PJ_aktiv,IF(AND(G33>=30,'PJ6'!Ausw_PJ_aktiv),1,IF(AND(G33=0,'PJ6'!Ausw_PJ_aktiv),2,IF(AND(G33>0,G33<30,'PJ6'!Ausw_PJ_aktiv),-2))),2) -> 2
B34: =B33+1 -> 22 | C34: Blühwiese (min. 50 m2) | G34: 0 | I34: =IF(OR(Kategorie="Bitte auswählen!",G34<50),0,ROUNDDOWN(G34*VLOOKUP(C34,Dropdowns!$B$48:$C$76,2,FALSE),0)) -> 0 | J34: =IF('PJ6'!Ausw_PJ_aktiv,IF(AND(G34>=50,'PJ6'!Ausw_PJ_aktiv),1,IF(AND(G34=0,'PJ6'!Ausw_PJ_aktiv),2,IF(AND(G34>0,G34<50,'PJ6'!Ausw_PJ_aktiv),-2))),2) -> 2
B35: =B34+1 -> 23 | C35: Begrenzungshecke/Sichtschutzhecke (min. 50 m²) | G35: 0 | I35: =IF(OR(Kategorie="Bitte auswählen!",G35<50),0,ROUNDDOWN(G35*VLOOKUP(C35,Dropdowns!$B$48:$C$76,2,FALSE),0)) -> 0 | J35: =IF('PJ6'!Ausw_PJ_aktiv,IF(AND(G35>=50,'PJ6'!Ausw_PJ_aktiv),1,IF(AND(G35=0,'PJ6'!Ausw_PJ_aktiv),2,IF(AND(G35>0,G35<50,'PJ6'!Ausw_PJ_aktiv),-2))),2) -> 2
B36: 24 | C36: Bäume pflanzen | G36: 0 | I36: =IF(Kategorie="Bitte auswählen!",0,ROUNDDOWN(G36*VLOOKUP(C36,Dropdowns!$B$48:$C$76,2,FALSE),0)) -> 0
B37: 25 | C37: Extensive Weidewirtschaft (min. 10.000 m2) | G37: 0 | I37: =IF(OR(Kategorie="Bitte auswählen!",G37<10000),0,ROUNDDOWN(G37*VLOOKUP(C37,Dropdowns!$B$48:$C$76,2,FALSE),0)) -> 0 | J37: =IF('PJ6'!Ausw_PJ_aktiv,IF(AND(G37>=10000,'PJ6'!Ausw_PJ_aktiv),1,IF(AND(G37=0,'PJ6'!Ausw_PJ_aktiv),2,IF(AND(G37>0,G37<10000,'PJ6'!Ausw_PJ_aktiv),-2))),2) -> 2
B38: 26 | C38: Dachbegrünung in städtischen Gebieten (min. 10 m2) | G38: 0 | I38: =IF(OR(Kategorie="Bitte auswählen!",G38<10),0,ROUNDDOWN(G38*VLOOKUP(C38,Dropdowns!$B$48:$C$76,2,FALSE),0)) -> 0 | J38: =IF('PJ6'!Ausw_PJ_aktiv,IF(AND(G38>=10,'PJ6'!Ausw_PJ_aktiv),1,IF(AND(G38=0,'PJ6'!Ausw_PJ_aktiv),2,IF(AND(G38>0,G38<10,'PJ6'!Ausw_PJ_aktiv),-2))),2) -> 2
A39: =feld1 -> 0 | B39: 27 | C39: =IF(ISNA(VLOOKUP(Projekt,Dropdowns!B31:F44,3,FALSE)),0,VLOOKUP(Projekt,Dropdowns!B31:F44,3,FALSE)) -> 0 | G39: 0 | I39: =IF(C39=0,0,IF(Kategorie="Bitte auswählen!",0,IF(feld1=Dropdowns!E40,IF(OR(silberfeld<0,),0,ROUNDDOWN(G39*VLOOKUP(C39,Dropdowns!B48:C76,2,FALSE),0)),ROUNDDOWN(G39*VLOOKUP(C39,Dropdowns!B48:C76,2,FALSE),0)))) -> 0
B40: 28 | C40: Summe (Silber) | G40: =SUM(I33:I39) -> 0
C42: Schutzmaßnahme Status Gold | G42: Anzahl/Fläche | I42: Punkte
B43: =B40+1 -> 29 | C43: Wiederherstellung / Schaffung von Weihern (min. 50 m2) | G43: 0 | I43: =IF(OR(Kategorie="Bitte auswählen!",G43<50),0,ROUNDDOWN(G43*VLOOKUP(C43,Dropdowns!$B$48:$C$76,2,FALSE),0)) -> 0 | J43: =IF('PJ6'!Ausw_PJ_aktiv,IF(AND(G43>=50,'PJ6'!Ausw_PJ_aktiv),1,IF(AND(G43=0,'PJ6'!Ausw_PJ_aktiv),2,IF(AND(G43>0,G43<50,'PJ6'!Ausw_PJ_aktiv),-2))),2) -> 2
B44: =B43+1 -> 30 | C44: Wiederherstellung / Schaffung von Feuchtgebieten (min. 50 m2) | G44: 0 | I44: =IF(OR(Kategorie="Bitte auswählen!",G44<50),0,ROUNDDOWN(G44*VLOOKUP(C44,Dropdowns!$B$48:$C$76,2,FALSE),0)) -> 0 | J44: =IF('PJ6'!Ausw_PJ_aktiv,IF(AND(G44>=50,'PJ6'!Ausw_PJ_aktiv),1,IF(AND(G44=0,'PJ6'!Ausw_PJ_aktiv),2,IF(AND(G44>0,G44<50,'PJ6'!Ausw_PJ_aktiv),-2))),2) -> 2
B45: =B44+1 -> 31 | C45: Streuobstwiese (min. 100 m2) | G45: 0 | I45: =IF(OR(Kategorie="Bitte auswählen!",G45<100),0,ROUNDDOWN(G45*VLOOKUP(C45,Dropdowns!$B$48:$C$76,2,FALSE),0)) -> 0 | J45: =IF('PJ6'!Ausw_PJ_aktiv,IF(AND(G45>=100,'PJ6'!Ausw_PJ_aktiv),1,IF(AND(G45=0,'PJ6'!Ausw_PJ_aktiv),2,IF(AND(G45>0,G45<100,'PJ6'!Ausw_PJ_aktiv),-2))),2) -> 2
B46: 32 | C46: Amphibienschutzzaun (min. 100 m) | G46: 0 | I46: =IF(OR(Kategorie="Bitte auswählen!",Bienen<100),0,ROUNDDOWN(G46*VLOOKUP(C46,Dropdowns!$B$48:$C$76,2,FALSE),0)) -> 0 | J46: =IF('PJ6'!Ausw_PJ_aktiv,IF(AND(G46>=100,'PJ6'!Ausw_PJ_aktiv),1,IF(AND(G46=0,'PJ6'!Ausw_PJ_aktiv),2,IF(AND(G46>0,G46<100,'PJ6'!Ausw_PJ_aktiv),-2))),2) -> 2
B47: 33 | C47: Trockenmauer (min. 10 m) | G47: 0 | I47: =IF(OR(Kategorie="Bitte auswählen!",Mauer<10),0,ROUNDDOWN(G47*VLOOKUP(C47,Dropdowns!$B$48:$C$76,2,FALSE),0)) -> 0 | J47: =IF('PJ6'!Ausw_PJ_aktiv,IF(AND(G47>=10,'PJ6'!Ausw_PJ_aktiv),1,IF(AND(G47=0,'PJ6'!Ausw_PJ_aktiv),2,IF(AND(G47>0,G47<10,'PJ6'!Ausw_PJ_aktiv),-2))),2) -> 2
B48: 34 | C48: Benjeshecken anlegen (min. 30 m) | G48: 0 | I48: =IF(OR(Kategorie="Bitte auswählen!",G48<30),0,ROUNDDOWN(G48*VLOOKUP(C48,Dropdowns!$B$48:$C$76,2,FALSE),0)) -> 0 | J48: =IF('PJ6'!Ausw_PJ_aktiv,IF(AND(G48>=30,'PJ6'!Ausw_PJ_aktiv),1,IF(AND(G48=0,'PJ6'!Ausw_PJ_aktiv),2,IF(AND(G48>0,G48<30,'PJ6'!Ausw_PJ_aktiv),-2))),2) -> 2
B49: 35 | C49: Bildungsmaßnahmen (z. B. Schulklassen, Menschen mit Behinderung etc.) | G49: 0 | I49: =IF(OR(Kategorie="Bitte auswählen!",Sozi<1),0,ROUNDDOWN(G49*VLOOKUP(C49,Dropdowns!B48:C76,2,FALSE),0)) -> 0 | J49: =IF('PJ6'!Ausw_PJ_aktiv,IF(AND(G49>=1,'PJ6'!Ausw_PJ_aktiv),1,IF(AND(G49=0,'PJ6'!Ausw_PJ_aktiv),2,IF(AND(G49>0,G49<1,'PJ6'!Ausw_PJ_aktiv),-2))),2) -> 2
A50: =feld2 -> 0 | B50: 36 | C50: =IF(ISNA(VLOOKUP(Projekt,Dropdowns!B31:F44,4,FALSE)),0,VLOOKUP(Projekt,Dropdowns!B31:F44,4,FALSE)) -> 0 | G50: 0 | I50: =IF(C50=0,0,IF(Kategorie="Bitte auswählen!",0,IF(feld2=Dropdowns!E41,IF(OR(goldfeld1<0,goldfeld1>1,AND(goldfeld1>0,goldfeld1<1)),0,ROUNDDOWN(G50*VLOOKUP(C50,Dropdowns!B48:C76,2,FALSE),0)),ROUNDDOWN(G50*VLOOKUP(C50,Dropdowns!B48:C76,2,FALSE),0)))) -> 0 | J50: =IF(A50=0,"",IF('PJ6'!Ausw_PJ_aktiv,IF(OR(AND('PJ6'!Ausw_PJ_aktiv,OR(feld2=Dropdowns!E39,feld2=Dropdowns!E37),OR(goldfeld1=0,goldfeld1=1)),feld2=0),0,IF(AND(feld2<>Dropdowns!E39,feld2<>Dropdowns!E37),2,-2)),2)) -> 
A51: =feld3 -> 0 | B51: 37 | C51: =IF(ISNA(VLOOKUP(Projekt,Dropdowns!B31:F44,5,FALSE)),0,VLOOKUP(Projekt,Dropdowns!B31:F44,5,FALSE)) -> 0 | G51: 0 | I51: =IF(C51=0,0,IF(Kategorie="Bitte auswählen!",0,IF(feld3=Dropdowns!E41,IF(OR(goldfeld2<0,goldfeld2>1,AND(goldfeld2>0,goldfeld2<1)),0,ROUNDDOWN(G51*VLOOKUP(C51,Dropdowns!B48:C76,2,FALSE),0)),ROUNDDOWN(G51*VLOOKUP(C51,Dropdowns!B48:C76,2,FALSE),0)))) -> 0
B52: 38 | C52: Summe (Gold) | G52: =SUM(I43:I51) -> 0
D54: Bronze | G54: Silber | I54: Gold
B55: =B52+1 -> 39 | C55: Anzahl der Zertifikate | D55: =IF(Berechnungen_2!S10=0,0,Berechnungen_2!S10) -> 0 | G55: =Berechnungen_2!P10 -> 0 | I55: =Berechnungen_2!K10 -> 0 | J55: =IF('PJ6'!Ausw_PJ_aktiv,IF(SUM(D55:I55)=G15,1,IF(AND(SUM(D55:I55)<G15,SUM(D55:I55)>0,'PJ6'!Ausw_PJ_aktiv),0,IF(AND(SUM(D55:I55)=0,'PJ6'!Ausw_PJ_aktiv),-2))),2) -> 2
B56: =B55+1 -> 40 | C56: Wert der Zertifikate | D56: =D55*25 -> 0 | G56: =G55*50 -> 0 | I56: =75*Zertifikate -> 0
B57: =B56+1 -> 41 | C57: Gesamtwert der Zertifikate | D57: =SUM(D56:I56) -> 0
C60: Sonstige Anmerkungen
B61: =B57+1 -> 42
C67: =Erläuterung!D55 -> Berechnungsformular ZENAPA-Zertifizierung - Version 2021/10
E140: Ausw_PJ_aktiv | G140: FALSE
E141: PlAbfr_PJ_RW | G141: =IF('PJ6'!Ausw_PJ_aktiv,(J13),1) -> 1
E142: PlAbfr_PJ_PB | G142: =IF('PJ6'!Ausw_PJ_aktiv,(J16),1) -> 1
E143: PlAbfr_PJ_FL | G143: =IF('PJ6'!Ausw_PJ_aktiv,MIN(J33:J35,J37:J38,J43:J48),1) -> 1
E144: PlAbfr_PJ_SP | G144: =IF('PJ6'!Ausw_PJ_aktiv,J49,1) -> 1
E145: PlAbfr_PJ_AP | G145: =IF('PJ6'!Ausw_PJ_aktiv,(J55),1) -> 1
E146: PIAbfr_PJ_EnEf | G146: =IF('PJ6'!Ausw_PJ_aktiv,J11,1) -> 1
E147: Anzahl_BPkt | G147: =IF('PJ6'!Ausw_PJ_aktiv,SUM(G30,G40,G52-Anzahl_SPkt),0) -> 0
E148: Anzahl_SPkt | G148: =IF('PJ6'!Ausw_PJ_aktiv,SUM($I$49:$I$49),0) -> 0
E149: PIAbfr_PJ_01 | G149: =IF(AND('PJ6'!Ausw_PJ_aktiv,GHGZ="Bitte Tabellenblatt 'Eingabe Heizungstausch' vollständig ausfüllen!"),-1,1) -> 1
E150: PIAbfr_PJ_Max | G150: =IF('PJ6'!Ausw_PJ_aktiv,MIN(J19:J21),1) -> 1
E151: PIAbfr_PJ_BD | G151: =IF('PJ6'!Ausw_PJ_aktiv,PIAbfr_BD,1) -> 1
E152: PIAbfr_PJ_NaturP | G152: =IF(AND(Ausw_PJ_aktiv,G15>=1,SUM(D55:I55)=0),-1,1) -> 1
E153: PIAbfr_PJ_allg | G153: =MIN(J5:J10,J12) -> 2

Sheet PJ7 (hidden)
C2: =C67 -> Berechnungsformular ZENAPA-Zertifizierung - Version 2021/10
C3: Bitte beachten Sie beim Ausfüllen des Formulars die Hinweise im Tabellenblatt Anmerkungen. | I3: Projekt 7 | J3: PJ7
B4: 1 | C4: Antragsteller | G4: =IF(Übersicht!H5="","Bitte im Tabellenblatt 'Übersicht' den Namen eintragen!",Übersicht!H5) -> Bitte im Tabellenblatt 'Übersicht' den Namen eintragen!
B5: =B4+1 -> 2 | C5: Auswahl der Kategorie | G5: Bitte auswählen! | J5: =IF('PJ7'!Ausw_PJ_aktiv,IF(Kategorie="Bitte auswählen!",-2,1),2) -> 2
B6: =B5+1 -> 3 | C6: Technologie | G6: Bitte auswählen! | J6: =IF('PJ7'!Ausw_PJ_aktiv,IF(Projekt="Bitte auswählen!",-2,1),2) -> 2
B7: 4 | C7: =IFERROR(IF(VLOOKUP(Projekt,Dropdowns!B15:D27,3,FALSE)=1,"Einstufung","-"),"") ->  | G7: Bitte auswählen! | J7: =IF('PJ7'!Ausw_PJ_aktiv,IF(OR($G$6="LED",$G$6="Brauchwasserpumpe",$G$6="Heizungspumpe",$G$6="GreenIT",$G$6="Lüftungsanlage_oder_Klimaanlage",$G$6="Wind",$G$6="Photovoltaik",$G$6="Wasserkraft",Projekt="Heizungstausch"),2,IF(Einstufung="Bitte auswählen!",-2,0)),2) -> 2
B8: 5 | C8: =IFERROR(IF(Projekt="Biogasanlage mit Kavitation","Mehrertrag an thermischer Energie",IF(OR(VLOOKUP(Projekt,Dropdowns!B15:C27,2,FALSE)="erz",VLOOKUP(Projekt,Dropdowns!B15:C27,2,FALSE)="Wärme erz"),"Erzeugte thermische Energie",IF(VLOOKUP(Projekt,Dropdowns!B15:C27,2,FALSE)="Wärme eing", "Eingesparte thermische Energie","-"))),"") ->  | G8: 0 | J8: =IF('PJ7'!Ausw_PJ_aktiv,IF(OR($G$6="LED",$G$6="Brauchwasserpumpe",$G$6="Heizungspumpe",$G$6="GreenIT",$G$6="Lüftungsanlage_oder_Klimaanlage",$G$6="Wind",$G$6="Photovoltaik",$G$6="Wasserkraft",Projekt="Heizungstausch"),2,IF(Eingrenzung=0,-2,1)),2) -> 2
B9: 6 | C9: =IFERROR(IF(Projekt="Biogasanlage mit Kavitation","Mehrertrag an elektrischer Energie",IF(OR(VLOOKUP(Projekt,Dropdowns!B15:C27,2,FALSE)="erz",VLOOKUP(Projekt,Dropdowns!B15:C27,2,FALSE)="Strom erz"),"Erzeugte elektrische Energie",IF(VLOOKUP(Projekt,Dropdowns!B15:C27,2,FALSE)="Strom eing", "Eingesparte elektrische Energie","-"))),"") ->  | G9: 0 | J9: =IF('PJ7'!Ausw_PJ_aktiv,IF(OR($G$6="Solarthermie",$G$6="Künstlicher_Dämmstoff",$G$6="Naturdämmstoff",$G$6="Wärmepumpe",Projekt="Heizungstausch"),2,IF(OR(Stromeinsparung=0,Stromeinsparung=""),-2,1)),2) -> 2
B10: 7 | C10: Betriebsgewöhnliche Nutzungsdauer | G10: 0 | J10: =IF('PJ7'!Ausw_PJ_aktiv,IF(Projekt="Heizungstausch",2,IF(OR(Nutzungsdauer="",Nutzungsdauer=0),-2,1))) -> FALSE
B11: 8 | C11: CO2-Minderung über Lebensdauer | G11: =IF(Projekt="Heizungstausch",IF(HLOOKUP(J3,'Eingabe Heizungstausch'!C6:L39,34,FALSE)=0,"Bitte Tabellenblatt 'Eingabe Heizungstausch' vollständig ausfüllen!",HLOOKUP(J3,'Eingabe Heizungstausch'!C6:L39,34,FALSE)),VLOOKUP(J3,Berechnungen_1!C34:S44,16,FALSE)) ->  | J11: =IF(OR(AND('PJ7'!Ausw_PJ_aktiv,GHGZ<1),AND('PJ7'!Ausw_PJ_aktiv,GHGZ="Bitte Tabellenblatt 'Eingabe Heizungstausch' vollständig ausfüllen!"),J6<0),-2,IF('PJ7'!Ausw_PJ_aktiv=FALSE,2,1)) -> 2
B12: 9 | C12: Investition [Netto / ohne Förderung] | G12: 0 | J12: =IF('PJ7'!Ausw_PJ_aktiv,IF(OR(Investition=0,Investition=""),-2,1),2) -> 2
B13: 10 | C13: Regionale Wertschöpfung | G13: =IF(AND('PJ7'!Ausw_PJ_aktiv,G5="Bitte auswählen!"),0,VLOOKUP(J3,Berechnungen_2!$B$5:$AR$14,43,FALSE)) -> 
B14: 11 | C14: Anzahl an Wertschöpfungspunkte | G14: =IF(Kategorie="Bitte auswählen!",0,ROUNDDOWN(G13/300,0)) -> 0 | J14: =IF('PJ7'!Ausw_PJ_aktiv,IF(WZ>0,0,-1),2) -> 2
B15: 12 | C15: Maximal erreichbare Anzahl an Zertifikaten | G15: =ROUNDDOWN(AVERAGE(GHGZ,WZ),0) -> 0 | J15: =IF('PJ7'!Ausw_PJ_aktiv,IF(G15=0,-2,IF((Zertifikate+G55+D55)<G15,0,1)),2) -> 2
B16: 13 | C16: Beschreibung der Maßnahme | J16: =IF('PJ7'!Ausw_PJ_aktiv,IF(AND(G16=0,'PJ7'!Ausw_PJ_aktiv),-2,IF(AND('PJ7'!Ausw_PJ_aktiv,G16>0),1,1)),2) -> 2
C18: =IF(Ausw_PJ_aktiv,IFERROR("Für die maximal erreichbare Zertifikatausbeute brauchen Sie je nach Kategorie folgende Anzahl an Naturschutzpunkten:",""),"") -> 
C19: =IF(Ausw_PJ_aktiv,IFERROR("Bronze: " &Berechnungen_2!AN11& " Punkte",""),"") ->  | J19: =IF('PJ7'!Ausw_PJ_aktiv,IF(Berechnungen_2!AN5>0,0,1),1) -> 1
C20: =IF(Ausw_PJ_aktiv,IFERROR("Silber: " &Berechnungen_2!AO11& " Punkte (Mindestens fünf Punkte aus der Silberkategorie nötig)",""),"") ->  | J20: =IF('PJ7'!Ausw_PJ_aktiv,IF(Berechnungen_2!AO5>0,0,1),1) -> 1
C21: =IF(Ausw_PJ_aktiv,IFERROR("Gold: " &Berechnungen_2!AP11& " Punkte (Mindestens fünf Punkte aus der Goldkategorie nötig)",""),"") ->  | J21: =IF('PJ7'!Ausw_PJ_aktiv,IF(Berechnungen_2!AP5>0,0,1),1) -> 1
C23: Schutzmaßnahme Status Bronze | G23: Anzahl/Fläche | I23: Punkte
B24: =B16+1 -> 14 | C24: Installation von Nistkästen - Insekten | G24: 0 | I24: =IF(Kategorie="Bitte auswählen!",0,ROUNDDOWN(G24*VLOOKUP(C24,Dropdowns!$B$48:$C$76,2,FALSE),0)) -> 0
B25: =B24+1 -> 15 | C25: Installation von Insektenhotel | G25: 0 | I25: =IF(Kategorie="Bitte auswählen!",0,ROUNDDOWN(G25*VLOOKUP(C25,Dropdowns!$B$48:$C$76,2,FALSE),0)) -> 0
B26: =B25+1 -> 16 | C26: Installation von Nistkästen - Vögel | G26: 0 | I26: =IF(Kategorie="Bitte auswählen!",0,ROUNDDOWN(G26*VLOOKUP(C26,Dropdowns!$B$48:$C$76,2,FALSE),0)) -> 0
B27: 17 | C27: Installation von Nistkästen - Eulen & Greifvögel | G27: 0 | I27: =IF(Kategorie="Bitte auswählen!",0,ROUNDDOWN(G27*VLOOKUP(C27,Dropdowns!$B$48:$C$76,2,FALSE),0)) -> 0
B28: 18 | C28: Installation von Nistkästen - Fledermäuse | G28: 0 | I28: =IF(Kategorie="Bitte auswählen!",0,ROUNDDOWN(G28*VLOOKUP(C28,Dropdowns!$B$48:$C$76,2,FALSE),0)) -> 0
A29: =Feld0 -> 0 | B29: 19 | C29: =IF(ISNA(VLOOKUP(Projekt,Dropdowns!B31:F44,2,FALSE)),0,VLOOKUP(Projekt,Dropdowns!B31:F44,2,FALSE)) -> 0 | G29: 0 | I29: =IF(C29=0,0,IF(Kategorie="Bitte auswählen!",0,IF(Feld0=Dropdowns!E40,IF(OR(bronzefeld<0,bronzefeld>1),0,ROUNDDOWN(G29*VLOOKUP(C29,Dropdowns!B48:C76,2,FALSE),0)),ROUNDDOWN(G29*VLOOKUP(C29,Dropdowns!B48:C76,2,FALSE),0)))) -> 0
B30: 20 | C30: Summe (Bronze) | G30: =SUM(I24:I29) -> 0
C32: Schutzmaßnahme Status Silber | G32: Anzahl/Fläche | I32: Punkte
B33: =B30+1 -> 21 | C33: Agrar Hölzer im Kurzumtrieb (min. 30 m) | G33: 0 | I33: =IF(OR(Kategorie="Bitte auswählen!",G33<30),0,ROUNDDOWN(G33*VLOOKUP(C33,Dropdowns!$B$48:$C$76,2,FALSE),0)) -> 0 | J33: =IF('PJ7'!Ausw_PJ_aktiv,IF(AND(G33>=30,'PJ7'!Ausw_PJ_aktiv),1,IF(AND(G33=0,'PJ7'!Ausw_PJ_aktiv),2,IF(AND(G33>0,G33<30,'PJ7'!Ausw_PJ_aktiv),-2))),2) -> 2
B34: =B33+1 -> 22 | C34: Blühwiese (min. 50 m2) | G34: 0 | I34: =IF(OR(Kategorie="Bitte auswählen!",G34<50),0,ROUNDDOWN(G34*VLOOKUP(C34,Dropdowns!$B$48:$C$76,2,FALSE),0)) -> 0 | J34: =IF('PJ7'!Ausw_PJ_aktiv,IF(AND(G34>=50,'PJ7'!Ausw_PJ_aktiv),1,IF(AND(G34=0,'PJ7'!Ausw_PJ_aktiv),2,IF(AND(G34>0,G34<50,'PJ7'!Ausw_PJ_aktiv),-2))),2) -> 2
B35: =B34+1 -> 23 | C35: Begrenzungshecke/Sichtschutzhecke (min. 50 m²) | G35: 0 | I35: =IF(OR(Kategorie="Bitte auswählen!",G35<50),0,ROUNDDOWN(G35*VLOOKUP(C35,Dropdowns!$B$48:$C$76,2,FALSE),0)) -> 0 | J35: =IF('PJ7'!Ausw_PJ_aktiv,IF(AND(G35>=50,'PJ7'!Ausw_PJ_aktiv),1,IF(AND(G35=0,'PJ7'!Ausw_PJ_aktiv),2,IF(AND(G35>0,G35<50,'PJ7'!Ausw_PJ_aktiv),-2))),2) -> 2
B36: 24 | C36: Bäume pflanzen | G36: 0 | I36: =IF(Kategorie="Bitte auswählen!",0,ROUNDDOWN(G36*VLOOKUP(C36,Dropdowns!$B$48:$C$76,2,FALSE),0)) -> 0
B37: 25 | C37: Extensive Weidewirtschaft (min. 10.000 m2) | G37: 0 | I37: =IF(OR(Kategorie="Bitte auswählen!",G37<10000),0,ROUNDDOWN(G37*VLOOKUP(C37,Dropdowns!$B$48:$C$76,2,FALSE),0)) -> 0 | J37: =IF('PJ7'!Ausw_PJ_aktiv,IF(AND(G37>=10000,'PJ7'!Ausw_PJ_aktiv),1,IF(AND(G37=0,'PJ7'!Ausw_PJ_aktiv),2,IF(AND(G37>0,G37<10000,'PJ7'!Ausw_PJ_aktiv),-2))),2) -> 2
B38: 26 | C38: Dachbegrünung in städtischen Gebieten (min. 10 m2) | G38: 0 | I38: =IF(OR(Kategorie="Bitte auswählen!",G38<10),0,ROUNDDOWN(G38*VLOOKUP(C38,Dropdowns!$B$48:$C$76,2,FALSE),0)) -> 0 | J38: =IF('PJ7'!Ausw_PJ_aktiv,IF(AND(G38>=10,'PJ7'!Ausw_PJ_aktiv),1,IF(AND(G38=0,'PJ7'!Ausw_PJ_aktiv),2,IF(AND(G38>0,G38<10,'PJ7'!Ausw_PJ_aktiv),-2))),2) -> 2
A39: =feld1 -> 0 | B39: 27 | C39: =IF(ISNA(VLOOKUP(Projekt,Dropdowns!B31:F44,3,FALSE)),0,VLOOKUP(Projekt,Dropdowns!B31:F44,3,FALSE)) -> 0 | G39: 0 | I39: =IF(C39=0,0,IF(Kategorie="Bitte auswählen!",0,IF(feld1=Dropdowns!E40,IF(OR(silberfeld<0,),0,ROUNDDOWN(G39*VLOOKUP(C39,Dropdowns!B48:C76,2,FALSE),0)),ROUNDDOWN(G39*VLOOKUP(C39,Dropdowns!B48:C76,2,FALSE),0)))) -> 0
B40: 28 | C40: Summe (Silber) | G40: =SUM(I33:I39) -> 0
C42: Schutzmaßnahme Status Gold | G42: Anzahl/Fläche | I42: Punkte
B43: =B40+1 -> 29 | C43: Wiederherstellung / Schaffung von Weihern (min. 50 m2) | G43: 0 | I43: =IF(OR(Kategorie="Bitte auswählen!",G43<50),0,ROUNDDOWN(G43*VLOOKUP(C43,Dropdowns!$B$48:$C$76,2,FALSE),0)) -> 0 | J43: =IF('PJ7'!Ausw_PJ_aktiv,IF(AND(G43>=50,'PJ7'!Ausw_PJ_aktiv),1,IF(AND(G43=0,'PJ7'!Ausw_PJ_aktiv),2,IF(AND(G43>0,G43<50,'PJ7'!Ausw_PJ_aktiv),-2))),2) -> 2
B44: =B43+1 -> 30 | C44: Wiederherstellung / Schaffung von Feuchtgebieten (min. 50 m2) | G44: 0 | I44: =IF(OR(Kategorie="Bitte auswählen!",G44<50),0,ROUNDDOWN(G44*VLOOKUP(C44,Dropdowns!$B$48:$C$76,2,FALSE),0)) -> 0 | J44: =IF('PJ7'!Ausw_PJ_aktiv,IF(AND(G44>=50,'PJ7'!Ausw_PJ_aktiv),1,IF(AND(G44=0,'PJ7'!Ausw_PJ_aktiv),2,IF(AND(G44>0,G44<50,'PJ7'!Ausw_PJ_aktiv),-2))),2) -> 2
B45: =B44+1 -> 31 | C45: Streuobstwiese (min. 100 m2) | G45: 0 | I45: =IF(OR(Kategorie="Bitte auswählen!",G45<100),0,ROUNDDOWN(G45*VLOOKUP(C45,Dropdowns!$B$48:$C$76,2,FALSE),0)) -> 0 | J45: =IF('PJ7'!Ausw_PJ_aktiv,IF(AND(G45>=100,'PJ7'!Ausw_PJ_aktiv),1,IF(AND(G45=0,'PJ7'!Ausw_PJ_aktiv),2,IF(AND(G45>0,G45<100,'PJ7'!Ausw_PJ_aktiv),-2))),2) -> 2
B46: 32 | C46: Amphibienschutzzaun (min. 100 m) | G46: 0 | I46: =IF(OR(Kategorie="Bitte auswählen!",Bienen<100),0,ROUNDDOWN(G46*VLOOKUP(C46,Dropdowns!$B$48:$C$76,2,FALSE),0)) -> 0 | J46: =IF('PJ7'!Ausw_PJ_aktiv,IF(AND(G46>=100,'PJ7'!Ausw_PJ_aktiv),1,IF(AND(G46=0,'PJ7'!Ausw_PJ_aktiv),2,IF(AND(G46>0,G46<100,'PJ7'!Ausw_PJ_aktiv),-2))),2) -> 2
B47: 33 | C47: Trockenmauer (min. 10 m) | G47: 0 | I47: =IF(OR(Kategorie="Bitte auswählen!",Mauer<10),0,ROUNDDOWN(G47*VLOOKUP(C47,Dropdowns!$B$48:$C$76,2,FALSE),0)) -> 0 | J47: =IF('PJ7'!Ausw_PJ_aktiv,IF(AND(G47>=10,'PJ7'!Ausw_PJ_aktiv),1,IF(AND(G47=0,'PJ7'!Ausw_PJ_aktiv),2,IF(AND(G47>0,G47<10,'PJ7'!Ausw_PJ_aktiv),-2))),2) -> 2
B48: 34 | C48: Benjeshecken anlegen (min. 30 m) | G48: 0 | I48: =IF(OR(Kategorie="Bitte auswählen!",G48<30),0,ROUNDDOWN(G48*VLOOKUP(C48,Dropdowns!$B$48:$C$76,2,FALSE),0)) -> 0 | J48: =IF('PJ7'!Ausw_PJ_aktiv,IF(AND(G48>=30,'PJ7'!Ausw_PJ_aktiv),1,IF(AND(G48=0,'PJ7'!Ausw_PJ_aktiv),2,IF(AND(G48>0,G48<30,'PJ7'!Ausw_PJ_aktiv),-2))),2) -> 2
B49: 35 | C49: Bildungsmaßnahmen (z. B. Schulklassen, Menschen mit Behinderung etc.) | G49: 0 | I49: =IF(OR(Kategorie="Bitte auswählen!",Sozi<1),0,ROUNDDOWN(G49*VLOOKUP(C49,Dropdowns!B48:C76,2,FALSE),0)) -> 0 | J49: =IF('PJ7'!Ausw_PJ_aktiv,IF(AND(G49>=1,'PJ7'!Ausw_PJ_aktiv),1,IF(AND(G49=0,'PJ7'!Ausw_PJ_aktiv),2,IF(AND(G49>0,G49<1,'PJ7'!Ausw_PJ_aktiv),-2))),2) -> 2
A50: =feld2 -> 0 | B50: 36 | C50: =IF(ISNA(VLOOKUP(Projekt,Dropdowns!B31:F44,4,FALSE)),0,VLOOKUP(Projekt,Dropdowns!B31:F44,4,FALSE)) -> 0 | G50: 0 | I50: =IF(C50=0,0,IF(Kategorie="Bitte auswählen!",0,IF(feld2=Dropdowns!E41,IF(OR(goldfeld1<0,goldfeld1>1,AND(goldfeld1>0,goldfeld1<1)),0,ROUNDDOWN(G50*VLOOKUP(C50,Dropdowns!B48:C76,2,FALSE),0)),ROUNDDOWN(G50*VLOOKUP(C50,Dropdowns!B48:C76,2,FALSE),0)))) -> 0 | J50: =IF(A50=0,"",IF('PJ7'!Ausw_PJ_aktiv,IF(OR(AND('PJ7'!Ausw_PJ_aktiv,OR(feld2=Dropdowns!E39,feld2=Dropdowns!E37),OR(goldfeld1=0,goldfeld1=1)),feld2=0),0,IF(AND(feld2<>Dropdowns!E39,feld2<>Dropdowns!E37),2,-2)),2)) -> 
A51: =feld3 -> 0 | B51: 37 | C51: =IF(ISNA(VLOOKUP(Projekt,Dropdowns!B31:F44,5,FALSE)),0,VLOOKUP(Projekt,Dropdowns!B31:F44,5,FALSE)) -> 0 | G51: 0 | I51: =IF(C51=0,0,IF(Kategorie="Bitte auswählen!",0,IF(feld3=Dropdowns!E41,IF(OR(goldfeld2<0,goldfeld2>1,AND(goldfeld2>0,goldfeld2<1)),0,ROUNDDOWN(G51*VLOOKUP(C51,Dropdowns!B48:C76,2,FALSE),0)),ROUNDDOWN(G51*VLOOKUP(C51,Dropdowns!B48:C76,2,FALSE),0)))) -> 0
B52: 38 | C52: Summe (Gold) | G52: =SUM(I43:I51) -> 0
D54: Bronze | G54: Silber | I54: Gold
B55: =B52+1 -> 39 | C55: Anzahl der Zertifikate | D55: =IF(Berechnungen_2!S11=0,0,Berechnungen_2!S11) -> 0 | G55: =Berechnungen_2!P11 -> 0 | I55: =Berechnungen_2!K11 -> 0 | J55: =IF('PJ7'!Ausw_PJ_aktiv,IF(SUM(D55:I55)=G15,1,IF(AND(SUM(D55:I55)<G15,SUM(D55:I55)>0,'PJ7'!Ausw_PJ_aktiv),0,IF(AND(SUM(D55:I55)=0,'PJ7'!Ausw_PJ_aktiv),-2))),2) -> 2
B56: =B55+1 -> 40 | C56: Wert der Zertifikate | D56: =D55*25 -> 0 | G56: =G55*50 -> 0 | I56: =75*Zertifikate -> 0
B57: =B56+1 -> 41 | C57: Gesamtwert der Zertifikate | D57: =SUM(D56:I56) -> 0
C60: Sonstige Anmerkungen
B61: =B57+1 -> 42
C67: =Erläuterung!D55 -> Berechnungsformular ZENAPA-Zertifizierung - Version 2021/10
E140: Ausw_PJ_aktiv | G140: FALSE
E141: PlAbfr_PJ_RW | G141: =IF('PJ7'!Ausw_PJ_aktiv,(J13),1) -> 1
E142: PlAbfr_PJ_PB | G142: =IF('PJ7'!Ausw_PJ_aktiv,(J16),1) -> 1
E143: PlAbfr_PJ_FL | G143: =IF('PJ7'!Ausw_PJ_aktiv,MIN(J33:J35,J37:J38,J43:J48),1) -> 1
E144: PlAbfr_PJ_SP | G144: =IF('PJ7'!Ausw_PJ_aktiv,J49,1) -> 1
E145: PlAbfr_PJ_AP | G145: =IF('PJ7'!Ausw_PJ_aktiv,(J55),1) -> 1
E146: PIAbfr_PJ_EnEf | G146: =IF('PJ7'!Ausw_PJ_aktiv,J11,1) -> 1
E147: Anzahl_BPkt | G147: =IF('PJ7'!Ausw_PJ_aktiv,SUM(G30,G40,G52-Anzahl_SPkt),0) -> 0
E148: Anzahl_SPkt | G148: =IF('PJ7'!Ausw_PJ_aktiv,SUM($I$49:$I$49),0) -> 0
E149: PIAbfr_PJ_01 | G149: =IF(AND('PJ7'!Ausw_PJ_aktiv,GHGZ="Bitte Tabellenblatt 'Eingabe Heizungstausch' vollständig ausfüllen!"),-1,1) -> 1
E150: PIAbfr_PJ_Max | G150: =IF('PJ7'!Ausw_PJ_aktiv,MIN(J19:J21),1) -> 1
E151: PIAbfr_PJ_BD | G151: =IF('PJ7'!Ausw_PJ_aktiv,PIAbfr_BD,1) -> 1
E152: PIAbfr_PJ_NaturP | G152: =IF(AND(Ausw_PJ_aktiv,G15>=1,SUM(D55:I55)=0),-1,1) -> 1
E153: PIAbfr_PJ_allg | G153: =MIN(J5:J10,J12) -> 2

Sheet PJ8 (hidden)
C2: =C67 -> Berechnungsformular ZENAPA-Zertifizierung - Version 2021/10
C3: Bitte beachten Sie beim Ausfüllen des Formulars die Hinweise im Tabellenblatt Anmerkungen. | I3: Projekt 8 | J3: PJ8
B4: 1 | C4: Antragsteller | G4: =IF(Übersicht!H5="","Bitte im Tabellenblatt 'Übersicht' den Namen eintragen!",Übersicht!H5) -> Bitte im Tabellenblatt 'Übersicht' den Namen eintragen!
B5: =B4+1 -> 2 | C5: Auswahl der Kategorie | G5: Bitte auswählen! | J5: =IF('PJ8'!Ausw_PJ_aktiv,IF(Kategorie="Bitte auswählen!",-2,1),2) -> 2
B6: =B5+1 -> 3 | C6: Technologie | G6: Bitte auswählen! | J6: =IF('PJ8'!Ausw_PJ_aktiv,IF(Projekt="Bitte auswählen!",-2,1),2) -> 2
B7: 4 | C7: =IFERROR(IF(VLOOKUP(Projekt,Dropdowns!B15:D27,3,FALSE)=1,"Einstufung","-"),"") ->  | G7: Bitte auswählen! | J7: =IF('PJ8'!Ausw_PJ_aktiv,IF(OR($G$6="LED",$G$6="Brauchwasserpumpe",$G$6="Heizungspumpe",$G$6="GreenIT",$G$6="Lüftungsanlage_oder_Klimaanlage",$G$6="Wind",$G$6="Photovoltaik",$G$6="Wasserkraft",Projekt="Heizungstausch"),2,IF(Einstufung="Bitte auswählen!",-2,0)),2) -> 2
B8: 5 | C8: =IFERROR(IF(Projekt="Biogasanlage mit Kavitation","Mehrertrag an thermischer Energie",IF(OR(VLOOKUP(Projekt,Dropdowns!B15:C27,2,FALSE)="erz",VLOOKUP(Projekt,Dropdowns!B15:C27,2,FALSE)="Wärme erz"),"Erzeugte thermische Energie",IF(VLOOKUP(Projekt,Dropdowns!B15:C27,2,FALSE)="Wärme eing", "Eingesparte thermische Energie","-"))),"") ->  | G8: 0 | J8: =IF('PJ8'!Ausw_PJ_aktiv,IF(OR($G$6="LED",$G$6="Brauchwasserpumpe",$G$6="Heizungspumpe",$G$6="GreenIT",$G$6="Lüftungsanlage_oder_Klimaanlage",$G$6="Wind",$G$6="Photovoltaik",$G$6="Wasserkraft",Projekt="Heizungstausch"),2,IF(Eingrenzung=0,-2,1)),2) -> 2
B9: 6 | C9: =IFERROR(IF(Projekt="Biogasanlage mit Kavitation","Mehrertrag an elektrischer Energie",IF(OR(VLOOKUP(Projekt,Dropdowns!B15:C27,2,FALSE)="erz",VLOOKUP(Projekt,Dropdowns!B15:C27,2,FALSE)="Strom erz"),"Erzeugte elektrische Energie",IF(VLOOKUP(Projekt,Dropdowns!B15:C27,2,FALSE)="Strom eing", "Eingesparte elektrische Energie","-"))),"") ->  | G9: 0 | J9: =IF('PJ8'!Ausw_PJ_aktiv,IF(OR($G$6="Solarthermie",$G$6="Künstlicher_Dämmstoff",$G$6="Naturdämmstoff",$G$6="Wärmepumpe",Projekt="Heizungstausch"),2,IF(OR(Stromeinsparung=0,Stromeinsparung=""),-2,1)),2) -> 2
B10: 7 | C10: Betriebsgewöhnliche Nutzungsdauer | G10: 0 | J10: =IF('PJ8'!Ausw_PJ_aktiv,IF(Projekt="Heizungstausch",2,IF(OR(Nutzungsdauer="",Nutzungsdauer=0),-2,1))) -> FALSE
B11: 8 | C11: CO2-Minderung über Lebensdauer | G11: =IF(Projekt="Heizungstausch",IF(HLOOKUP(J3,'Eingabe Heizungstausch'!C6:L39,34,FALSE)=0,"Bitte Tabellenblatt 'Eingabe Heizungstausch' vollständig ausfüllen!",HLOOKUP(J3,'Eingabe Heizungstausch'!C6:L39,34,FALSE)),VLOOKUP(J3,Berechnungen_1!C34:S44,16,FALSE)) ->  | J11: =IF(OR(AND('PJ8'!Ausw_PJ_aktiv,GHGZ<1),AND('PJ8'!Ausw_PJ_aktiv,GHGZ="Bitte Tabellenblatt 'Eingabe Heizungstausch' vollständig ausfüllen!"),J6<0),-2,IF('PJ8'!Ausw_PJ_aktiv=FALSE,2,1)) -> 2
B12: 9 | C12: Investition [Netto / ohne Förderung] | G12: 0 | J12: =IF('PJ8'!Ausw_PJ_aktiv,IF(OR(Investition=0,Investition=""),-2,1),2) -> 2
B13: 10 | C13: Regionale Wertschöpfung | G13: =IF(AND('PJ8'!Ausw_PJ_aktiv,G5="Bitte auswählen!"),0,VLOOKUP(J3,Berechnungen_2!$B$5:$AR$14,43,FALSE)) -> 
B14: 11 | C14: Anzahl an Wertschöpfungspunkte | G14: =IF(Kategorie="Bitte auswählen!",0,ROUNDDOWN(G13/300,0)) -> 0 | J14: =IF('PJ8'!Ausw_PJ_aktiv,IF(WZ>0,0,-1),2) -> 2
B15: 12 | C15: Maximal erreichbare Anzahl an Zertifikaten | G15: =ROUNDDOWN(AVERAGE(GHGZ,WZ),0) -> 0 | J15: =IF('PJ8'!Ausw_PJ_aktiv,IF(G15=0,-2,IF((Zertifikate+G55+D55)<G15,0,1)),2) -> 2
B16: 13 | C16: Beschreibung der Maßnahme | J16: =IF('PJ8'!Ausw_PJ_aktiv,IF(AND(G16=0,'PJ8'!Ausw_PJ_aktiv),-2,IF(AND('PJ8'!Ausw_PJ_aktiv,G16>0),1,1)),2) -> 2
C18: =IF(Ausw_PJ_aktiv,IFERROR("Für die maximal erreichbare Zertifikatausbeute brauchen Sie je nach Kategorie folgende Anzahl an Naturschutzpunkten:",""),"") -> 
C19: =IF(Ausw_PJ_aktiv,IFERROR("Bronze: " &Berechnungen_2!AN12& " Punkte",""),"") ->  | J19: =IF('PJ8'!Ausw_PJ_aktiv,IF(Berechnungen_2!AN5>0,0,1),1) -> 1
C20: =IF(Ausw_PJ_aktiv,IFERROR("Silber: " &Berechnungen_2!AO12& " Punkte (Mindestens fünf Punkte aus der Silberkategorie nötig)",""),"") ->  | J20: =IF('PJ8'!Ausw_PJ_aktiv,IF(Berechnungen_2!AO5>0,0,1),1) -> 1
C21: =IF(Ausw_PJ_aktiv,IFERROR("Gold: " &Berechnungen_2!AP12& " Punkte (Mindestens fünf Punkte aus der Goldkategorie nötig)",""),"") ->  | J21: =IF('PJ8'!Ausw_PJ_aktiv,IF(Berechnungen_2!AP5>0,0,1),1) -> 1
C23: Schutzmaßnahme Status Bronze | G23: Anzahl/Fläche | I23: Punkte
B24: =B16+1 -> 14 | C24: Installation von Nistkästen - Insekten | G24: 0 | I24: =IF(Kategorie="Bitte auswählen!",0,ROUNDDOWN(G24*VLOOKUP(C24,Dropdowns!$B$48:$C$76,2,FALSE),0)) -> 0
B25: =B24+1 -> 15 | C25: Installation von Insektenhotel | G25: 0 | I25: =IF(Kategorie="Bitte auswählen!",0,ROUNDDOWN(G25*VLOOKUP(C25,Dropdowns!$B$48:$C$76,2,FALSE),0)) -> 0
B26: =B25+1 -> 16 | C26: Installation von Nistkästen - Vögel | G26: 0 | I26: =IF(Kategorie="Bitte auswählen!",0,ROUNDDOWN(G26*VLOOKUP(C26,Dropdowns!$B$48:$C$76,2,FALSE),0)) -> 0
B27: 17 | C27: Installation von Nistkästen - Eulen & Greifvögel | G27: 0 | I27: =IF(Kategorie="Bitte auswählen!",0,ROUNDDOWN(G27*VLOOKUP(C27,Dropdowns!$B$48:$C$76,2,FALSE),0)) -> 0
B28: 18 | C28: Installation von Nistkästen - Fledermäuse | G28: 0 | I28: =IF(Kategorie="Bitte auswählen!",0,ROUNDDOWN(G28*VLOOKUP(C28,Dropdowns!$B$48:$C$76,2,FALSE),0)) -> 0
A29: =Feld0 -> 0 | B29: 19 | C29: =IF(ISNA(VLOOKUP(Projekt,Dropdowns!B31:F44,2,FALSE)),0,VLOOKUP(Projekt,Dropdowns!B31:F44,2,FALSE)) -> 0 | G29: 0 | I29: =IF(C29=0,0,IF(Kategorie="Bitte auswählen!",0,IF(Feld0=Dropdowns!E40,IF(OR(bronzefeld<0,bronzefeld>1),0,ROUNDDOWN(G29*VLOOKUP(C29,Dropdowns!B48:C76,2,FALSE),0)),ROUNDDOWN(G29*VLOOKUP(C29,Dropdowns!B48:C76,2,FALSE),0)))) -> 0
B30: 20 | C30: Summe (Bronze) | G30: =SUM(I24:I29) -> 0
C32: Schutzmaßnahme Status Silber | G32: Anzahl/Fläche | I32: Punkte
B33: =B30+1 -> 21 | C33: Agrar Hölzer im Kurzumtrieb (min. 30 m) | G33: 0 | I33: =IF(OR(Kategorie="Bitte auswählen!",G33<30),0,ROUNDDOWN(G33*VLOOKUP(C33,Dropdowns!$B$48:$C$76,2,FALSE),0)) -> 0 | J33: =IF('PJ8'!Ausw_PJ_aktiv,IF(AND(G33>=30,'PJ8'!Ausw_PJ_aktiv),1,IF(AND(G33=0,'PJ8'!Ausw_PJ_aktiv),2,IF(AND(G33>0,G33<30,'PJ8'!Ausw_PJ_aktiv),-2))),2) -> 2
B34: =B33+1 -> 22 | C34: Blühwiese (min. 50 m2) | G34: 0 | I34: =IF(OR(Kategorie="Bitte auswählen!",G34<50),0,ROUNDDOWN(G34*VLOOKUP(C34,Dropdowns!$B$48:$C$76,2,FALSE),0)) -> 0 | J34: =IF('PJ8'!Ausw_PJ_aktiv,IF(AND(G34>=50,'PJ8'!Ausw_PJ_aktiv),1,IF(AND(G34=0,'PJ8'!Ausw_PJ_aktiv),2,IF(AND(G34>0,G34<50,'PJ8'!Ausw_PJ_aktiv),-2))),2) -> 2
B35: =B34+1 -> 23 | C35: Begrenzungshecke/Sichtschutzhecke (min. 50 m²) | G35: 0 | I35: =IF(OR(Kategorie="Bitte auswählen!",G35<50),0,ROUNDDOWN(G35*VLOOKUP(C35,Dropdowns!$B$48:$C$76,2,FALSE),0)) -> 0 | J35: =IF('PJ8'!Ausw_PJ_aktiv,IF(AND(G35>=50,'PJ8'!Ausw_PJ_aktiv),1,IF(AND(G35=0,'PJ8'!Ausw_PJ_aktiv),2,IF(AND(G35>0,G35<50,'PJ8'!Ausw_PJ_aktiv),-2))),2) -> 2
B36: 24 | C36: Bäume pflanzen | G36: 0 | I36: =IF(Kategorie="Bitte auswählen!",0,ROUNDDOWN(G36*VLOOKUP(C36,Dropdowns!$B$48:$C$76,2,FALSE),0)) -> 0
B37: 25 | C37: Extensive Weidewirtschaft (min. 10.000 m2) | G37: 0 | I37: =IF(OR(Kategorie="Bitte auswählen!",G37<10000),0,ROUNDDOWN(G37*VLOOKUP(C37,Dropdowns!$B$48:$C$76,2,FALSE),0)) -> 0 | J37: =IF('PJ8'!Ausw_PJ_aktiv,IF(AND(G37>=10000,'PJ8'!Ausw_PJ_aktiv),1,IF(AND(G37=0,'PJ8'!Ausw_PJ_aktiv),2,IF(AND(G37>0,G37<10000,'PJ8'!Ausw_PJ_aktiv),-2))),2) -> 2
B38: 26 | C38: Dachbegrünung in städtischen Gebieten (min. 10 m2) | G38: 0 | I38: =IF(OR(Kategorie="Bitte auswählen!",G38<10),0,ROUNDDOWN(G38*VLOOKUP(C38,Dropdowns!$B$48:$C$76,2,FALSE),0)) -> 0 | J38: =IF('PJ8'!Ausw_PJ_aktiv,IF(AND(G38>=10,'PJ8'!Ausw_PJ_aktiv),1,IF(AND(G38=0,'PJ8'!Ausw_PJ_aktiv),2,IF(AND(G38>0,G38<10,'PJ8'!Ausw_PJ_aktiv),-2))),2) -> 2
A39: =feld1 -> 0 | B39: 27 | C39: =IF(ISNA(VLOOKUP(Projekt,Dropdowns!B31:F44,3,FALSE)),0,VLOOKUP(Projekt,Dropdowns!B31:F44,3,FALSE)) -> 0 | G39: 0 | I39: =IF(C39=0,0,IF(Kategorie="Bitte auswählen!",0,IF(feld1=Dropdowns!E40,IF(OR(silberfeld<0,),0,ROUNDDOWN(G39*VLOOKUP(C39,Dropdowns!B48:C76,2,FALSE),0)),ROUNDDOWN(G39*VLOOKUP(C39,Dropdowns!B48:C76,2,FALSE),0)))) -> 0
B40: 28 | C40: Summe (Silber) | G40: =SUM(I33:I39) -> 0
C42: Schutzmaßnahme Status Gold | G42: Anzahl/Fläche | I42: Punkte
B43: =B40+1 -> 29 | C43: Wiederherstellung / Schaffung von Weihern (min. 50 m2) | G43: 0 | I43: =IF(OR(Kategorie="Bitte auswählen!",G43<50),0,ROUNDDOWN(G43*VLOOKUP(C43,Dropdowns!$B$48:$C$76,2,FALSE),0)) -> 0 | J43: =IF('PJ8'!Ausw_PJ_aktiv,IF(AND(G43>=50,'PJ8'!Ausw_PJ_aktiv),1,IF(AND(G43=0,'PJ8'!Ausw_PJ_aktiv),2,IF(AND(G43>0,G43<50,'PJ8'!Ausw_PJ_aktiv),-2))),2) -> 2
B44: =B43+1 -> 30 | C44: Wiederherstellung / Schaffung von Feuchtgebieten (min. 50 m2) | G44: 0 | I44: =IF(OR(Kategorie="Bitte auswählen!",G44<50),0,ROUNDDOWN(G44*VLOOKUP(C44,Dropdowns!$B$48:$C$76,2,FALSE),0)) -> 0 | J44: =IF('PJ8'!Ausw_PJ_aktiv,IF(AND(G44>=50,'PJ8'!Ausw_PJ_aktiv),1,IF(AND(G44=0,'PJ8'!Ausw_PJ_aktiv),2,IF(AND(G44>0,G44<50,'PJ8'!Ausw_PJ_aktiv),-2))),2) -> 2
B45: =B44+1 -> 31 | C45: Streuobstwiese (min. 100 m2) | G45: 0 | I45: =IF(OR(Kategorie="Bitte auswählen!",G45<100),0,ROUNDDOWN(G45*VLOOKUP(C45,Dropdowns!$B$48:$C$76,2,FALSE),0)) -> 0 | J45: =IF('PJ8'!Ausw_PJ_aktiv,IF(AND(G45>=100,'PJ8'!Ausw_PJ_aktiv),1,IF(AND(G45=0,'PJ8'!Ausw_PJ_aktiv),2,IF(AND(G45>0,G45<100,'PJ8'!Ausw_PJ_aktiv),-2))),2) -> 2
B46: 32 | C46: Amphibienschutzzaun (min. 100 m) | G46: 0 | I46: =IF(OR(Kategorie="Bitte auswählen!",Bienen<100),0,ROUNDDOWN(G46*VLOOKUP(C46,Dropdowns!$B$48:$C$76,2,FALSE),0)) -> 0 | J46: =IF('PJ8'!Ausw_PJ_aktiv,IF(AND(G46>=100,'PJ8'!Ausw_PJ_aktiv),1,IF(AND(G46=0,'PJ8'!Ausw_PJ_aktiv),2,IF(AND(G46>0,G46<100,'PJ8'!Ausw_PJ_aktiv),-2))),2) -> 2
B47: 33 | C47: Trockenmauer (min. 10 m) | G47: 0 | I47: =IF(OR(Kategorie="Bitte auswählen!",Mauer<10),0,ROUNDDOWN(G47*VLOOKUP(C47,Dropdowns!$B$48:$C$76,2,FALSE),0)) -> 0 | J47: =IF('PJ8'!Ausw_PJ_aktiv,IF(AND(G47>=10,'PJ8'!Ausw_PJ_aktiv),1,IF(AND(G47=0,'PJ8'!Ausw_PJ_aktiv),2,IF(AND(G47>0,G47<10,'PJ8'!Ausw_PJ_aktiv),-2))),2) -> 2
B48: 34 | C48: Benjeshecken anlegen (min. 30 m) | G48: 0 | I48: =IF(OR(Kategorie="Bitte auswählen!",G48<30),0,ROUNDDOWN(G48*VLOOKUP(C48,Dropdowns!$B$48:$C$76,2,FALSE),0)) -> 0 | J48: =IF('PJ8'!Ausw_PJ_aktiv,IF(AND(G48>=30,'PJ8'!Ausw_PJ_aktiv),1,IF(AND(G48=0,'PJ8'!Ausw_PJ_aktiv),2,IF(AND(G48>0,G48<30,'PJ8'!Ausw_PJ_aktiv),-2))),2) -> 2
B49: 35 | C49: Bildungsmaßnahmen (z. B. Schulklassen, Menschen mit Behinderung etc.) | G49: 0 | I49: =IF(OR(Kategorie="Bitte auswählen!",Sozi<1),0,ROUNDDOWN(G49*VLOOKUP(C49,Dropdowns!B48:C76,2,FALSE),0)) -> 0 | J49: =IF('PJ8'!Ausw_PJ_aktiv,IF(AND(G49>=1,'PJ8'!Ausw_PJ_aktiv),1,IF(AND(G49=0,'PJ8'!Ausw_PJ_aktiv),2,IF(AND(G49>0,G49<1,'PJ8'!Ausw_PJ_aktiv),-2))),2) -> 2
A50: =feld2 -> 0 | B50: 36 | C50: =IF(ISNA(VLOOKUP(Projekt,Dropdowns!B31:F44,4,FALSE)),0,VLOOKUP(Projekt,Dropdowns!B31:F44,4,FALSE)) -> 0 | G50: 0 | I50: =IF(C50=0,0,IF(Kategorie="Bitte auswählen!",0,IF(feld2=Dropdowns!E41,IF(OR(goldfeld1<0,goldfeld1>1,AND(goldfeld1>0,goldfeld1<1)),0,ROUNDDOWN(G50*VLOOKUP(C50,Dropdowns!B48:C76,2,FALSE),0)),ROUNDDOWN(G50*VLOOKUP(C50,Dropdowns!B48:C76,2,FALSE),0)))) -> 0 | J50: =IF(A50=0,"",IF('PJ8'!Ausw_PJ_aktiv,IF(OR(AND('PJ8'!Ausw_PJ_aktiv,OR(feld2=Dropdowns!E39,feld2=Dropdowns!E37),OR(goldfeld1=0,goldfeld1=1)),feld2=0),0,IF(AND(feld2<>Dropdowns!E39,feld2<>Dropdowns!E37),2,-2)),2)) -> 
A51: =feld3 -> 0 | B51: 37 | C51: =IF(ISNA(VLOOKUP(Projekt,Dropdowns!B31:F44,5,FALSE)),0,VLOOKUP(Projekt,Dropdowns!B31:F44,5,FALSE)) -> 0 | G51: 0 | I51: =IF(C51=0,0,IF(Kategorie="Bitte auswählen!",0,IF(feld3=Dropdowns!E41,IF(OR(goldfeld2<0,goldfeld2>1,AND(goldfeld2>0,goldfeld2<1)),0,ROUNDDOWN(G51*VLOOKUP(C51,Dropdowns!B48:C76,2,FALSE),0)),ROUNDDOWN(G51*VLOOKUP(C51,Dropdowns!B48:C76,2,FALSE),0)))) -> 0
B52: 38 | C52: Summe (Gold) | G52: =SUM(I43:I51) -> 0
D54: Bronze | G54: Silber | I54: Gold
B55: =B52+1 -> 39 | C55: Anzahl der Zertifikate | D55: =IF(Berechnungen_2!S12=0,0,Berechnungen_2!S12) -> 0 | G55: =Berechnungen_2!P12 -> 0 | I55: =Berechnungen_2!K12 -> 0 | J55: =IF('PJ8'!Ausw_PJ_aktiv,IF(SUM(D55:I55)=G15,1,IF(AND(SUM(D55:I55)<G15,SUM(D55:I55)>0,'PJ8'!Ausw_PJ_aktiv),0,IF(AND(SUM(D55:I55)=0,'PJ8'!Ausw_PJ_aktiv),-2))),2) -> 2
B56: =B55+1 -> 40 | C56: Wert der Zertifikate | D56: =D55*25 -> 0 | G56: =G55*50 -> 0 | I56: =75*Zertifikate -> 0
B57: =B56+1 -> 41 | C57: Gesamtwert der Zertifikate | D57: =SUM(D56:I56) -> 0
C60: Sonstige Anmerkungen
B61: =B57+1 -> 42
C67: =Erläuterung!D55 -> Berechnungsformular ZENAPA-Zertifizierung - Version 2021/10
E140: Ausw_PJ_aktiv | G140: FALSE
E141: PlAbfr_PJ_RW | G141: =IF('PJ8'!Ausw_PJ_aktiv,(J13),1) -> 1
E142: PlAbfr_PJ_PB | G142: =IF('PJ8'!Ausw_PJ_aktiv,(J16),1) -> 1
E143: PlAbfr_PJ_FL | G143: =IF('PJ8'!Ausw_PJ_aktiv,MIN(J33:J35,J37:J38,J43:J48),1) -> 1
E144: PlAbfr_PJ_SP | G144: =IF('PJ8'!Ausw_PJ_aktiv,J49,1) -> 1
E145: PlAbfr_PJ_AP | G145: =IF('PJ8'!Ausw_PJ_aktiv,(J55),1) -> 1
E146: PIAbfr_PJ_EnEf | G146: =IF('PJ8'!Ausw_PJ_aktiv,J11,1) -> 1
E147: Anzahl_BPkt | G147: =IF('PJ8'!Ausw_PJ_aktiv,SUM(G30,G40,G52-Anzahl_SPkt),0) -> 0
E148: Anzahl_SPkt | G148: =IF('PJ8'!Ausw_PJ_aktiv,SUM($I$49:$I$49),0) -> 0
E149: PIAbfr_PJ_01 | G149: =IF(AND('PJ8'!Ausw_PJ_aktiv,GHGZ="Bitte Tabellenblatt 'Eingabe Heizungstausch' vollständig ausfüllen!"),-1,1) -> 1
E150: PIAbfr_PJ_Max | G150: =IF('PJ8'!Ausw_PJ_aktiv,MIN(J19:J21),1) -> 1
E151: PIAbfr_PJ_BD | G151: =IF('PJ8'!Ausw_PJ_aktiv,PIAbfr_BD,1) -> 1
E152: PIAbfr_PJ_NaturP | G152: =IF(AND(Ausw_PJ_aktiv,G15>=1,SUM(D55:I55)=0),-1,1) -> 1
E153: PIAbfr_PJ_allg | G153: =MIN(J5:J10,J12) -> 2

Sheet PJ9 (hidden)
C2: =C67 -> Berechnungsformular ZENAPA-Zertifizierung - Version 2021/10
C3: Bitte beachten Sie beim Ausfüllen des Formulars die Hinweise im Tabellenblatt Anmerkungen. | I3: Projekt 9 | J3: PJ9
B4: 1 | C4: Antragsteller | G4: =IF(Übersicht!H5="","Bitte im Tabellenblatt 'Übersicht' den Namen eintragen!",Übersicht!H5) -> Bitte im Tabellenblatt 'Übersicht' den Namen eintragen!
B5: =B4+1 -> 2 | C5: Auswahl der Kategorie | G5: Bitte auswählen! | J5: =IF('PJ9'!Ausw_PJ_aktiv,IF(Kategorie="Bitte auswählen!",-2,1),2) -> 2
B6: =B5+1 -> 3 | C6: Technologie | G6: Bitte auswählen! | J6: =IF('PJ9'!Ausw_PJ_aktiv,IF(Projekt="Bitte auswählen!",-2,1),2) -> 2
B7: 4 | C7: =IFERROR(IF(VLOOKUP(Projekt,Dropdowns!B15:D27,3,FALSE)=1,"Einstufung","-"),"") ->  | G7: Bitte auswählen! | J7: =IF('PJ9'!Ausw_PJ_aktiv,IF(OR($G$6="LED",$G$6="Brauchwasserpumpe",$G$6="Heizungspumpe",$G$6="GreenIT",$G$6="Lüftungsanlage_oder_Klimaanlage",$G$6="Wind",$G$6="Photovoltaik",$G$6="Wasserkraft",Projekt="Heizungstausch"),2,IF(Einstufung="Bitte auswählen!",-2,0)),2) -> 2
B8: 5 | C8: =IFERROR(IF(Projekt="Biogasanlage mit Kavitation","Mehrertrag an thermischer Energie",IF(OR(VLOOKUP(Projekt,Dropdowns!B15:C27,2,FALSE)="erz",VLOOKUP(Projekt,Dropdowns!B15:C27,2,FALSE)="Wärme erz"),"Erzeugte thermische Energie",IF(VLOOKUP(Projekt,Dropdowns!B15:C27,2,FALSE)="Wärme eing", "Eingesparte thermische Energie","-"))),"") ->  | G8: 0 | J8: =IF('PJ9'!Ausw_PJ_aktiv,IF(OR($G$6="LED",$G$6="Brauchwasserpumpe",$G$6="Heizungspumpe",$G$6="GreenIT",$G$6="Lüftungsanlage_oder_Klimaanlage",$G$6="Wind",$G$6="Photovoltaik",$G$6="Wasserkraft",Projekt="Heizungstausch"),2,IF(Eingrenzung=0,-2,1)),2) -> 2
B9: 6 | C9: =IFERROR(IF(Projekt="Biogasanlage mit Kavitation","Mehrertrag an elektrischer Energie",IF(OR(VLOOKUP(Projekt,Dropdowns!B15:C27,2,FALSE)="erz",VLOOKUP(Projekt,Dropdowns!B15:C27,2,FALSE)="Strom erz"),"Erzeugte elektrische Energie",IF(VLOOKUP(Projekt,Dropdowns!B15:C27,2,FALSE)="Strom eing", "Eingesparte elektrische Energie","-"))),"") ->  | G9: 0 | J9: =IF('PJ9'!Ausw_PJ_aktiv,IF(OR($G$6="Solarthermie",$G$6="Künstlicher_Dämmstoff",$G$6="Naturdämmstoff",$G$6="Wärmepumpe",Projekt="Heizungstausch"),2,IF(OR(Stromeinsparung=0,Stromeinsparung=""),-2,1)),2) -> 2
B10: 7 | C10: Betriebsgewöhnliche Nutzungsdauer | G10: 0 | J10: =IF('PJ9'!Ausw_PJ_aktiv,IF(Projekt="Heizungstausch",2,IF(OR(Nutzungsdauer="",Nutzungsdauer=0),-2,1))) -> FALSE
B11: 8 | C11: CO2-Minderung über Lebensdauer | G11: =IF(Projekt="Heizungstausch",IF(HLOOKUP(J3,'Eingabe Heizungstausch'!C6:L39,34,FALSE)=0,"Bitte Tabellenblatt 'Eingabe Heizungstausch' vollständig ausfüllen!",HLOOKUP(J3,'Eingabe Heizungstausch'!C6:L39,34,FALSE)),VLOOKUP(J3,Berechnungen_1!C34:S44,16,FALSE)) ->  | J11: =IF(OR(AND('PJ9'!Ausw_PJ_aktiv,GHGZ<1),AND('PJ9'!Ausw_PJ_aktiv,GHGZ="Bitte Tabellenblatt 'Eingabe Heizungstausch' vollständig ausfüllen!"),J6<0),-2,IF('PJ9'!Ausw_PJ_aktiv=FALSE,2,1)) -> 2
B12: 9 | C12: Investition [Netto / ohne Förderung] | G12: 0 | J12: =IF('PJ9'!Ausw_PJ_aktiv,IF(OR(Investition=0,Investition=""),-2,1),2) -> 2
B13: 10 | C13: Regionale Wertschöpfung | G13: =IF(AND('PJ9'!Ausw_PJ_aktiv,G5="Bitte auswählen!"),0,VLOOKUP(J3,Berechnungen_2!$B$5:$AR$14,43,FALSE)) -> 
B14: 11 | C14: Anzahl an Wertschöpfungspunkte | G14: =IF(Kategorie="Bitte auswählen!",0,ROUNDDOWN(G13/300,0)) -> 0 | J14: =IF('PJ9'!Ausw_PJ_aktiv,IF(WZ>0,0,-1),2) -> 2
B15: 12 | C15: Maximal erreichbare Anzahl an Zertifikaten | G15: =ROUNDDOWN(AVERAGE(GHGZ,WZ),0) -> 0 | J15: =IF('PJ9'!Ausw_PJ_aktiv,IF(G15=0,-2,IF((Zertifikate+G55+D55)<G15,0,1)),2) -> 2
B16: 13 | C16: Beschreibung der Maßnahme | J16: =IF('PJ9'!Ausw_PJ_aktiv,IF(AND(G16=0,'PJ9'!Ausw_PJ_aktiv),-2,IF(AND('PJ9'!Ausw_PJ_aktiv,G16>0),1,1)),2) -> 2
C18: =IF(Ausw_PJ_aktiv,IFERROR("Für die maximal erreichbare Zertifikatausbeute brauchen Sie je nach Kategorie folgende Anzahl an Naturschutzpunkten:",""),"") -> 
C19: =IF(Ausw_PJ_aktiv,IFERROR("Bronze: " &Berechnungen_2!AN13& " Punkte",""),"") ->  | J19: =IF('PJ9'!Ausw_PJ_aktiv,IF(Berechnungen_2!AN5>0,0,1),1) -> 1
C20: =IF(Ausw_PJ_aktiv,IFERROR("Silber: " &Berechnungen_2!AO13& " Punkte (Mindestens fünf Punkte aus der Silberkategorie nötig)",""),"") ->  | J20: =IF('PJ9'!Ausw_PJ_aktiv,IF(Berechnungen_2!AO5>0,0,1),1) -> 1
C21: =IF(Ausw_PJ_aktiv,IFERROR("Gold: " &Berechnungen_2!AP13& " Punkte (Mindestens fünf Punkte aus der Goldkategorie nötig)",""),"") ->  | J21: =IF('PJ9'!Ausw_PJ_aktiv,IF(Berechnungen_2!AP5>0,0,1),1) -> 1
C23: Schutzmaßnahme Status Bronze | G23: Anzahl/Fläche | I23: Punkte
B24: =B16+1 -> 14 | C24: Installation von Nistkästen - Insekten | G24: 0 | I24: =IF(Kategorie="Bitte auswählen!",0,ROUNDDOWN(G24*VLOOKUP(C24,Dropdowns!$B$48:$C$76,2,FALSE),0)) -> 0
B25: =B24+1 -> 15 | C25: Installation von Insektenhotel | G25: 0 | I25: =IF(Kategorie="Bitte auswählen!",0,ROUNDDOWN(G25*VLOOKUP(C25,Dropdowns!$B$48:$C$76,2,FALSE),0)) -> 0
B26: =B25+1 -> 16 | C26: Installation von Nistkästen - Vögel | G26: 0 | I26: =IF(Kategorie="Bitte auswählen!",0,ROUNDDOWN(G26*VLOOKUP(C26,Dropdowns!$B$48:$C$76,2,FALSE),0)) -> 0
B27: 17 | C27: Installation von Nistkästen - Eulen & Greifvögel | G27: 0 | I27: =IF(Kategorie="Bitte auswählen!",0,ROUNDDOWN(G27*VLOOKUP(C27,Dropdowns!$B$48:$C$76,2,FALSE),0)) -> 0
B28: 18 | C28: Installation von Nistkästen - Fledermäuse | G28: 0 | I28: =IF(Kategorie="Bitte auswählen!",0,ROUNDDOWN(G28*VLOOKUP(C28,Dropdowns!$B$48:$C$76,2,FALSE),0)) -> 0
A29: =Feld0 -> 0 | B29: 19 | C29: =IF(ISNA(VLOOKUP(Projekt,Dropdowns!B31:F44,2,FALSE)),0,VLOOKUP(Projekt,Dropdowns!B31:F44,2,FALSE)) -> 0 | G29: 0 | I29: =IF(C29=0,0,IF(Kategorie="Bitte auswählen!",0,IF(Feld0=Dropdowns!E40,IF(OR(bronzefeld<0,bronzefeld>1),0,ROUNDDOWN(G29*VLOOKUP(C29,Dropdowns!B48:C76,2,FALSE),0)),ROUNDDOWN(G29*VLOOKUP(C29,Dropdowns!B48:C76,2,FALSE),0)))) -> 0
B30: 20 | C30: Summe (Bronze) | G30: =SUM(I24:I29) -> 0
C32: Schutzmaßnahme Status Silber | G32: Anzahl/Fläche | I32: Punkte
B33: =B30+1 -> 21 | C33: Agrar Hölzer im Kurzumtrieb (min. 30 m) | G33: 0 | I33: =IF(OR(Kategorie="Bitte auswählen!",G33<30),0,ROUNDDOWN(G33*VLOOKUP(C33,Dropdowns!$B$48:$C$76,2,FALSE),0)) -> 0 | J33: =IF('PJ9'!Ausw_PJ_aktiv,IF(AND(G33>=30,'PJ9'!Ausw_PJ_aktiv),1,IF(AND(G33=0,'PJ9'!Ausw_PJ_aktiv),2,IF(AND(G33>0,G33<30,'PJ9'!Ausw_PJ_aktiv),-2))),2) -> 2
B34: =B33+1 -> 22 | C34: Blühwiese (min. 50 m2) | G34: 0 | I34: =IF(OR(Kategorie="Bitte auswählen!",G34<50),0,ROUNDDOWN(G34*VLOOKUP(C34,Dropdowns!$B$48:$C$76,2,FALSE),0)) -> 0 | J34: =IF('PJ9'!Ausw_PJ_aktiv,IF(AND(G34>=50,'PJ9'!Ausw_PJ_aktiv),1,IF(AND(G34=0,'PJ9'!Ausw_PJ_aktiv),2,IF(AND(G34>0,G34<50,'PJ9'!Ausw_PJ_aktiv),-2))),2) -> 2
B35: =B34+1 -> 23 | C35: Begrenzungshecke/Sichtschutzhecke (min. 50 m²) | G35: 0 | I35: =IF(OR(Kategorie="Bitte auswählen!",G35<50),0,ROUNDDOWN(G35*VLOOKUP(C35,Dropdowns!$B$48:$C$76,2,FALSE),0)) -> 0 | J35: =IF('PJ9'!Ausw_PJ_aktiv,IF(AND(G35>=50,'PJ9'!Ausw_PJ_aktiv),1,IF(AND(G35=0,'PJ9'!Ausw_PJ_aktiv),2,IF(AND(G35>0,G35<50,'PJ9'!Ausw_PJ_aktiv),-2))),2) -> 2
B36: 24 | C36: Bäume pflanzen | G36: 0 | I36: =IF(Kategorie="Bitte auswählen!",0,ROUNDDOWN(G36*VLOOKUP(C36,Dropdowns!$B$48:$C$76,2,FALSE),0)) -> 0
B37: 25 | C37: Extensive Weidewirtschaft (min. 10.000 m2) | G37: 0 | I37: =IF(OR(Kategorie="Bitte auswählen!",G37<10000),0,ROUNDDOWN(G37*VLOOKUP(C37,Dropdowns!$B$48:$C$76,2,FALSE),0)) -> 0 | J37: =IF('PJ9'!Ausw_PJ_aktiv,IF(AND(G37>=10000,'PJ9'!Ausw_PJ_aktiv),1,IF(AND(G37=0,'PJ9'!Ausw_PJ_aktiv),2,IF(AND(G37>0,G37<10000,'PJ9'!Ausw_PJ_aktiv),-2))),2) -> 2
B38: 26 | C38: Dachbegrünung in städtischen Gebieten (min. 10 m2) | G38: 0 | I38: =IF(OR(Kategorie="Bitte auswählen!",G38<10),0,ROUNDDOWN(G38*VLOOKUP(C38,Dropdowns!$B$48:$C$76,2,FALSE),0)) -> 0 | J38: =IF('PJ9'!Ausw_PJ_aktiv,IF(AND(G38>=10,'PJ9'!Ausw_PJ_aktiv),1,IF(AND(G38=0,'PJ9'!Ausw_PJ_aktiv),2,IF(AND(G38>0,G38<10,'PJ9'!Ausw_PJ_aktiv),-2))),2) -> 2
A39: =feld1 -> 0 | B39: 27 | C39: =IF(ISNA(VLOOKUP(Projekt,Dropdowns!B31:F44,3,FALSE)),0,VLOOKUP(Projekt,Dropdowns!B31:F44,3,FALSE)) -> 0 | G39: 0 | I39: =IF(C39=0,0,IF(Kategorie="Bitte auswählen!",0,IF(feld1=Dropdowns!E40,IF(OR(silberfeld<0,),0,ROUNDDOWN(G39*VLOOKUP(C39,Dropdowns!B48:C76,2,FALSE),0)),ROUNDDOWN(G39*VLOOKUP(C39,Dropdowns!B48:C76,2,FALSE),0)))) -> 0
B40: 28 | C40: Summe (Silber) | G40: =SUM(I33:I39) -> 0
C42: Schutzmaßnahme Status Gold | G42: Anzahl/Fläche | I42: Punkte
B43: =B40+1 -> 29 | C43: Wiederherstellung / Schaffung von Weihern (min. 50 m2) | G43: 0 | I43: =IF(OR(Kategorie="Bitte auswählen!",G43<50),0,ROUNDDOWN(G43*VLOOKUP(C43,Dropdowns!$B$48:$C$76,2,FALSE),0)) -> 0 | J43: =IF('PJ9'!Ausw_PJ_aktiv,IF(AND(G43>=50,'PJ9'!Ausw_PJ_aktiv),1,IF(AND(G43=0,'PJ9'!Ausw_PJ_aktiv),2,IF(AND(G43>0,G43<50,'PJ9'!Ausw_PJ_aktiv),-2))),2) -> 2
B44: =B43+1 -> 30 | C44: Wiederherstellung / Schaffung von Feuchtgebieten (min. 50 m2) | G44: 0 | I44: =IF(OR(Kategorie="Bitte auswählen!",G44<50),0,ROUNDDOWN(G44*VLOOKUP(C44,Dropdowns!$B$48:$C$76,2,FALSE),0)) -> 0 | J44: =IF('PJ9'!Ausw_PJ_aktiv,IF(AND(G44>=50,'PJ9'!Ausw_PJ_aktiv),1,IF(AND(G44=0,'PJ9'!Ausw_PJ_aktiv),2,IF(AND(G44>0,G44<50,'PJ9'!Ausw_PJ_aktiv),-2))),2) -> 2
B45: =B44+1 -> 31 | C45: Streuobstwiese (min. 100 m2) | G45: 0 | I45: =IF(OR(Kategorie="Bitte auswählen!",G45<100),0,ROUNDDOWN(G45*VLOOKUP(C45,Dropdowns!$B$48:$C$76,2,FALSE),0)) -> 0 | J45: =IF('PJ9'!Ausw_PJ_aktiv,IF(AND(G45>=100,'PJ9'!Ausw_PJ_aktiv),1,IF(AND(G45=0,'PJ9'!Ausw_PJ_aktiv),2,IF(AND(G45>0,G45<100,'PJ9'!Ausw_PJ_aktiv),-2))),2) -> 2
B46: 32 | C46: Amphibienschutzzaun (min. 100 m) | G46: 0 | I46: =IF(OR(Kategorie="Bitte auswählen!",Bienen<100),0,ROUNDDOWN(G46*VLOOKUP(C46,Dropdowns!$B$48:$C$76,2,FALSE),0)) -> 0 | J46: =IF('PJ9'!Ausw_PJ_aktiv,IF(AND(G46>=100,'PJ9'!Ausw_PJ_aktiv),1,IF(AND(G46=0,'PJ9'!Ausw_PJ_aktiv),2,IF(AND(G46>0,G46<100,'PJ9'!Ausw_PJ_aktiv),-2))),2) -> 2
B47: 33 | C47: Trockenmauer (min. 10 m) | G47: 0 | I47: =IF(OR(Kategorie="Bitte auswählen!",Mauer<10),0,ROUNDDOWN(G47*VLOOKUP(C47,Dropdowns!$B$48:$C$76,2,FALSE),0)) -> 0 | J47: =IF('PJ9'!Ausw_PJ_aktiv,IF(AND(G47>=10,'PJ9'!Ausw_PJ_aktiv),1,IF(AND(G47=0,'PJ9'!Ausw_PJ_aktiv),2,IF(AND(G47>0,G47<10,'PJ9'!Ausw_PJ_aktiv),-2))),2) -> 2
B48: 34 | C48: Benjeshecken anlegen (min. 30 m) | G48: 0 | I48: =IF(OR(Kategorie="Bitte auswählen!",G48<30),0,ROUNDDOWN(G48*VLOOKUP(C48,Dropdowns!$B$48:$C$76,2,FALSE),0)) -> 0 | J48: =IF('PJ9'!Ausw_PJ_aktiv,IF(AND(G48>=30,'PJ9'!Ausw_PJ_aktiv),1,IF(AND(G48=0,'PJ9'!Ausw_PJ_aktiv),2,IF(AND(G48>0,G48<30,'PJ9'!Ausw_PJ_aktiv),-2))),2) -> 2
B49: 35 | C49: Bildungsmaßnahmen (z. B. Schulklassen, Menschen mit Behinderung etc.) | G49: 0 | I49: =IF(OR(Kategorie="Bitte auswählen!",Sozi<1),0,ROUNDDOWN(G49*VLOOKUP(C49,Dropdowns!B48:C76,2,FALSE),0)) -> 0 | J49: =IF('PJ9'!Ausw_PJ_aktiv,IF(AND(G49>=1,'PJ9'!Ausw_PJ_aktiv),1,IF(AND(G49=0,'PJ9'!Ausw_PJ_aktiv),2,IF(AND(G49>0,G49<1,'PJ9'!Ausw_PJ_aktiv),-2))),2) -> 2
A50: =feld2 -> 0 | B50: 36 | C50: =IF(ISNA(VLOOKUP(Projekt,Dropdowns!B31:F44,4,FALSE)),0,VLOOKUP(Projekt,Dropdowns!B31:F44,4,FALSE)) -> 0 | G50: 0 | I50: =IF(C50=0,0,IF(Kategorie="Bitte auswählen!",0,IF(feld2=Dropdowns!E41,IF(OR(goldfeld1<0,goldfeld1>1,AND(goldfeld1>0,goldfeld1<1)),0,ROUNDDOWN(G50*VLOOKUP(C50,Dropdowns!B48:C76,2,FALSE),0)),ROUNDDOWN(G50*VLOOKUP(C50,Dropdowns!B48:C76,2,FALSE),0)))) -> 0 | J50: =IF(A50=0,"",IF('PJ9'!Ausw_PJ_aktiv,IF(OR(AND('PJ9'!Ausw_PJ_aktiv,OR(feld2=Dropdowns!E39,feld2=Dropdowns!E37),OR(goldfeld1=0,goldfeld1=1)),feld2=0),0,IF(AND(feld2<>Dropdowns!E39,feld2<>Dropdowns!E37),2,-2)),2)) -> 
A51: =feld3 -> 0 | B51: 37 | C51: =IF(ISNA(VLOOKUP(Projekt,Dropdowns!B31:F44,5,FALSE)),0,VLOOKUP(Projekt,Dropdowns!B31:F44,5,FALSE)) -> 0 | G51: 0 | I51: =IF(C51=0,0,IF(Kategorie="Bitte auswählen!",0,IF(feld3=Dropdowns!E41,IF(OR(goldfeld2<0,goldfeld2>1,AND(goldfeld2>0,goldfeld2<1)),0,ROUNDDOWN(G51*VLOOKUP(C51,Dropdowns!B48:C76,2,FALSE),0)),ROUNDDOWN(G51*VLOOKUP(C51,Dropdowns!B48:C76,2,FALSE),0)))) -> 0
B52: 38 | C52: Summe (Gold) | G52: =SUM(I43:I51) -> 0
D54: Bronze | G54: Silber | I54: Gold
B55: =B52+1 -> 39 | C55: Anzahl der Zertifikate | D55: =IF(Berechnungen_2!S13=0,0,Berechnungen_2!S13) -> 0 | G55: =Berechnungen_2!P13 -> 0 | I55: =Berechnungen_2!K13 -> 0 | J55: =IF('PJ9'!Ausw_PJ_aktiv,IF(SUM(D55:I55)=G15,1,IF(AND(SUM(D55:I55)<G15,SUM(D55:I55)>0,'PJ9'!Ausw_PJ_aktiv),0,IF(AND(SUM(D55:I55)=0,'PJ9'!Ausw_PJ_aktiv),-2))),2) -> 2
B56: =B55+1 -> 40 | C56: Wert der Zertifikate | D56: =D55*25 -> 0 | G56: =G55*50 -> 0 | I56: =75*Zertifikate -> 0
B57: =B56+1 -> 41 | C57: Gesamtwert der Zertifikate | D57: =SUM(D56:I56) -> 0
C60: Sonstige Anmerkungen
B61: =B57+1 -> 42
C67: =Erläuterung!D55 -> Berechnungsformular ZENAPA-Zertifizierung - Version 2021/10
E140: Ausw_PJ_aktiv | G140: FALSE
E141: PlAbfr_PJ_RW | G141: =IF('PJ9'!Ausw_PJ_aktiv,(J13),1) -> 1
E142: PlAbfr_PJ_PB | G142: =IF('PJ9'!Ausw_PJ_aktiv,(J16),1) -> 1
E143: PlAbfr_PJ_FL | G143: =IF('PJ9'!Ausw_PJ_aktiv,MIN(J33:J35,J37:J38,J43:J48),1) -> 1
E144: PlAbfr_PJ_SP | G144: =IF('PJ9'!Ausw_PJ_aktiv,J49,1) -> 1
E145: PlAbfr_PJ_AP | G145: =IF('PJ9'!Ausw_PJ_aktiv,(J55),1) -> 1
E146: PIAbfr_PJ_EnEf | G146: =IF('PJ9'!Ausw_PJ_aktiv,J11,1) -> 1
E147: Anzahl_BPkt | G147: =IF('PJ9'!Ausw_PJ_aktiv,SUM(G30,G40,G52-Anzahl_SPkt),0) -> 0
E148: Anzahl_SPkt | G148: =IF('PJ9'!Ausw_PJ_aktiv,SUM($I$49:$I$49),0) -> 0
E149: PIAbfr_PJ_01 | G149: =IF(AND('PJ9'!Ausw_PJ_aktiv,GHGZ="Bitte Tabellenblatt 'Eingabe Heizungstausch' vollständig ausfüllen!"),-1,1) -> 1
E150: PIAbfr_PJ_Max | G150: =IF('PJ9'!Ausw_PJ_aktiv,MIN(J19:J21),1) -> 1
E151: PIAbfr_PJ_BD | G151: =IF('PJ9'!Ausw_PJ_aktiv,PIAbfr_BD,1) -> 1
E152: PIAbfr_PJ_NaturP | G152: =IF(AND(Ausw_PJ_aktiv,G15>=1,SUM(D55:I55)=0),-1,1) -> 1
E153: PIAbfr_PJ_allg | G153: =MIN(J5:J10,J12) -> 2

Sheet PJ10 (hidden)
C2: =C67 -> Berechnungsformular ZENAPA-Zertifizierung - Version 2021/10
C3: Bitte beachten Sie beim Ausfüllen des Formulars die Hinweise im Tabellenblatt Anmerkungen. | I3: Projekt 10 | J3: PJ10
B4: 1 | C4: Antragsteller | G4: =IF(Übersicht!H5="","Bitte im Tabellenblatt 'Übersicht' den Namen eintragen!",Übersicht!H5) -> Bitte im Tabellenblatt 'Übersicht' den Namen eintragen!
B5: =B4+1 -> 2 | C5: Auswahl der Kategorie | G5: Bitte auswählen! | J5: =IF('PJ10'!Ausw_PJ_aktiv,IF(Kategorie="Bitte auswählen!",-2,1),2) -> 2
B6: =B5+1 -> 3 | C6: Technologie | G6: Bitte auswählen! | J6: =IF('PJ10'!Ausw_PJ_aktiv,IF(Projekt="Bitte auswählen!",-2,1),2) -> 2
B7: 4 | C7: =IFERROR(IF(VLOOKUP(Projekt,Dropdowns!B15:D27,3,FALSE)=1,"Einstufung","-"),"") ->  | G7: Bitte auswählen! | J7: =IF('PJ10'!Ausw_PJ_aktiv,IF(OR($G$6="LED",$G$6="Brauchwasserpumpe",$G$6="Heizungspumpe",$G$6="GreenIT",$G$6="Lüftungsanlage_oder_Klimaanlage",$G$6="Wind",$G$6="Photovoltaik",$G$6="Wasserkraft",Projekt="Heizungstausch"),2,IF(Einstufung="Bitte auswählen!",-2,0)),2) -> 2
B8: 5 | C8: =IFERROR(IF(Projekt="Biogasanlage mit Kavitation","Mehrertrag an thermischer Energie",IF(OR(VLOOKUP(Projekt,Dropdowns!B15:C27,2,FALSE)="erz",VLOOKUP(Projekt,Dropdowns!B15:C27,2,FALSE)="Wärme erz"),"Erzeugte thermische Energie",IF(VLOOKUP(Projekt,Dropdowns!B15:C27,2,FALSE)="Wärme eing", "Eingesparte thermische Energie","-"))),"") ->  | G8: 0 | J8: =IF('PJ10'!Ausw_PJ_aktiv,IF(OR($G$6="LED",$G$6="Brauchwasserpumpe",$G$6="Heizungspumpe",$G$6="GreenIT",$G$6="Lüftungsanlage_oder_Klimaanlage",$G$6="Wind",$G$6="Photovoltaik",$G$6="Wasserkraft",Projekt="Heizungstausch"),2,IF(Eingrenzung=0,-2,1)),2) -> 2
B9: 6 | C9: =IFERROR(IF(Projekt="Biogasanlage mit Kavitation","Mehrertrag an elektrischer Energie",IF(OR(VLOOKUP(Projekt,Dropdowns!B15:C27,2,FALSE)="erz",VLOOKUP(Projekt,Dropdowns!B15:C27,2,FALSE)="Strom erz"),"Erzeugte elektrische Energie",IF(VLOOKUP(Projekt,Dropdowns!B15:C27,2,FALSE)="Strom eing", "Eingesparte elektrische Energie","-"))),"") ->  | G9: 0 | J9: =IF('PJ10'!Ausw_PJ_aktiv,IF(OR($G$6="Solarthermie",$G$6="Künstlicher_Dämmstoff",$G$6="Naturdämmstoff",$G$6="Wärmepumpe",Projekt="Heizungstausch"),2,IF(OR(Stromeinsparung=0,Stromeinsparung=""),-2,1)),2) -> 2
B10: 7 | C10: Betriebsgewöhnliche Nutzungsdauer | G10: 0 | J10: =IF('PJ10'!Ausw_PJ_aktiv,IF(Projekt="Heizungstausch",2,IF(OR(Nutzungsdauer="",Nutzungsdauer=0),-2,1))) -> FALSE
B11: 8 | C11: CO2-Minderung über Lebensdauer | G11: =IF(Projekt="Heizungstausch",IF(HLOOKUP(J3,'Eingabe Heizungstausch'!C6:L39,34,FALSE)=0,"Bitte Tabellenblatt 'Eingabe Heizungstausch' vollständig ausfüllen!",HLOOKUP(J3,'Eingabe Heizungstausch'!C6:L39,34,FALSE)),VLOOKUP(J3,Berechnungen_1!C34:S44,16,FALSE)) ->  | J11: =IF(OR(AND('PJ10'!Ausw_PJ_aktiv,GHGZ<1),AND('PJ10'!Ausw_PJ_aktiv,GHGZ="Bitte Tabellenblatt 'Eingabe Heizungstausch' vollständig ausfüllen!"),J6<0),-2,IF('PJ10'!Ausw_PJ_aktiv=FALSE,2,1)) -> 2
B12: 9 | C12: Investition [Netto / ohne Förderung] | G12: 0 | J12: =IF('PJ10'!Ausw_PJ_aktiv,IF(OR(Investition=0,Investition=""),-2,1),2) -> 2
B13: 10 | C13: Regionale Wertschöpfung | G13: =IF(AND('PJ10'!Ausw_PJ_aktiv,G5="Bitte auswählen!"),0,VLOOKUP(J3,Berechnungen_2!$B$5:$AR$14,43,FALSE)) -> 
B14: 11 | C14: Anzahl an Wertschöpfungspunkte | G14: =IF(Kategorie="Bitte auswählen!",0,ROUNDDOWN(G13/300,0)) -> 0 | J14: =IF('PJ10'!Ausw_PJ_aktiv,IF(WZ>0,0,-1),2) -> 2
B15: 12 | C15: Maximal erreichbare Anzahl an Zertifikaten | G15: =ROUNDDOWN(AVERAGE(GHGZ,WZ),0) -> 0 | J15: =IF('PJ10'!Ausw_PJ_aktiv,IF(G15=0,-2,IF((Zertifikate+G55+D55)<G15,0,1)),2) -> 2
B16: 13 | C16: Beschreibung der Maßnahme | J16: =IF('PJ10'!Ausw_PJ_aktiv,IF(AND(G16=0,'PJ10'!Ausw_PJ_aktiv),-2,IF(AND('PJ10'!Ausw_PJ_aktiv,G16>0),1,1)),2) -> 2
C18: =IF(Ausw_PJ_aktiv,IFERROR("Für die maximal erreichbare Zertifikatausbeute brauchen Sie je nach Kategorie folgende Anzahl an Naturschutzpunkten:",""),"") -> 
C19: =IF(Ausw_PJ_aktiv,IFERROR("Bronze: " &Berechnungen_2!AN14& " Punkte",""),"") ->  | J19: =IF('PJ10'!Ausw_PJ_aktiv,IF(Berechnungen_2!AN5>0,0,1),1) -> 1
C20: =IF(Ausw_PJ_aktiv,IFERROR("Silber: " &Berechnungen_2!AO14& " Punkte (Mindestens fünf Punkte aus der Silberkategorie nötig)",""),"") ->  | J20: =IF('PJ10'!Ausw_PJ_aktiv,IF(Berechnungen_2!AO5>0,0,1),1) -> 1
C21: =IF(Ausw_PJ_aktiv,IFERROR("Gold: " &Berechnungen_2!AP14& " Punkte (Mindestens fünf Punkte aus der Goldkategorie nötig)",""),"") ->  | J21: =IF('PJ10'!Ausw_PJ_aktiv,IF(Berechnungen_2!AP5>0,0,1),1) -> 1
C23: Schutzmaßnahme Status Bronze | G23: Anzahl/Fläche | I23: Punkte
B24: =B16+1 -> 14 | C24: Installation von Nistkästen - Insekten | G24: 0 | I24: =IF(Kategorie="Bitte auswählen!",0,ROUNDDOWN(G24*VLOOKUP(C24,Dropdowns!$B$48:$C$76,2,FALSE),0)) -> 0
B25: =B24+1 -> 15 | C25: Installation von Insektenhotel | G25: 0 | I25: =IF(Kategorie="Bitte auswählen!",0,ROUNDDOWN(G25*VLOOKUP(C25,Dropdowns!$B$48:$C$76,2,FALSE),0)) -> 0
B26: =B25+1 -> 16 | C26: Installation von Nistkästen - Vögel | G26: 0 | I26: =IF(Kategorie="Bitte auswählen!",0,ROUNDDOWN(G26*VLOOKUP(C26,Dropdowns!$B$48:$C$76,2,FALSE),0)) -> 0
B27: 17 | C27: Installation von Nistkästen - Eulen & Greifvögel | G27: 0 | I27: =IF(Kategorie="Bitte auswählen!",0,ROUNDDOWN(G27*VLOOKUP(C27,Dropdowns!$B$48:$C$76,2,FALSE),0)) -> 0
B28: 18 | C28: Installation von Nistkästen - Fledermäuse | G28: 0 | I28: =IF(Kategorie="Bitte auswählen!",0,ROUNDDOWN(G28*VLOOKUP(C28,Dropdowns!$B$48:$C$76,2,FALSE),0)) -> 0
A29: =Feld0 -> 0 | B29: 19 | C29: =IF(ISNA(VLOOKUP(Projekt,Dropdowns!B31:F44,2,FALSE)),0,VLOOKUP(Projekt,Dropdowns!B31:F44,2,FALSE)) -> 0 | G29: 0 | I29: =IF(C29=0,0,IF(Kategorie="Bitte auswählen!",0,IF(Feld0=Dropdowns!E40,IF(OR(bronzefeld<0,bronzefeld>1),0,ROUNDDOWN(G29*VLOOKUP(C29,Dropdowns!B48:C76,2,FALSE),0)),ROUNDDOWN(G29*VLOOKUP(C29,Dropdowns!B48:C76,2,FALSE),0)))) -> 0
B30: 20 | C30: Summe (Bronze) | G30: =SUM(I24:I29) -> 0
C32: Schutzmaßnahme Status Silber | G32: Anzahl/Fläche | I32: Punkte
B33: =B30+1 -> 21 | C33: Agrar Hölzer im Kurzumtrieb (min. 30 m) | G33: 0 | I33: =IF(OR(Kategorie="Bitte auswählen!",G33<30),0,ROUNDDOWN(G33*VLOOKUP(C33,Dropdowns!$B$48:$C$76,2,FALSE),0)) -> 0 | J33: =IF('PJ10'!Ausw_PJ_aktiv,IF(AND(G33>=30,'PJ10'!Ausw_PJ_aktiv),1,IF(AND(G33=0,'PJ10'!Ausw_PJ_aktiv),2,IF(AND(G33>0,G33<30,'PJ10'!Ausw_PJ_aktiv),-2))),2) -> 2
B34: =B33+1 -> 22 | C34: Blühwiese (min. 50 m2) | G34: 0 | I34: =IF(OR(Kategorie="Bitte auswählen!",G34<50),0,ROUNDDOWN(G34*VLOOKUP(C34,Dropdowns!$B$48:$C$76,2,FALSE),0)) -> 0 | J34: =IF('PJ10'!Ausw_PJ_aktiv,IF(AND(G34>=50,'PJ10'!Ausw_PJ_aktiv),1,IF(AND(G34=0,'PJ10'!Ausw_PJ_aktiv),2,IF(AND(G34>0,G34<50,'PJ10'!Ausw_PJ_aktiv),-2))),2) -> 2
B35: =B34+1 -> 23 | C35: Begrenzungshecke/Sichtschutzhecke (min. 50 m²) | G35: 0 | I35: =IF(OR(Kategorie="Bitte auswählen!",G35<50),0,ROUNDDOWN(G35*VLOOKUP(C35,Dropdowns!$B$48:$C$76,2,FALSE),0)) -> 0 | J35: =IF('PJ10'!Ausw_PJ_aktiv,IF(AND(G35>=50,'PJ10'!Ausw_PJ_aktiv),1,IF(AND(G35=0,'PJ10'!Ausw_PJ_aktiv),2,IF(AND(G35>0,G35<50,'PJ10'!Ausw_PJ_aktiv),-2))),2) -> 2
B36: 24 | C36: Bäume pflanzen | G36: 0 | I36: =IF(Kategorie="Bitte auswählen!",0,ROUNDDOWN(G36*VLOOKUP(C36,Dropdowns!$B$48:$C$76,2,FALSE),0)) -> 0
B37: 25 | C37: Extensive Weidewirtschaft (min. 10.000 m2) | G37: 0 | I37: =IF(OR(Kategorie="Bitte auswählen!",G37<10000),0,ROUNDDOWN(G37*VLOOKUP(C37,Dropdowns!$B$48:$C$76,2,FALSE),0)) -> 0 | J37: =IF('PJ10'!Ausw_PJ_aktiv,IF(AND(G37>=10000,'PJ10'!Ausw_PJ_aktiv),1,IF(AND(G37=0,'PJ10'!Ausw_PJ_aktiv),2,IF(AND(G37>0,G37<10000,'PJ10'!Ausw_PJ_aktiv),-2))),2) -> 2
B38: 26 | C38: Dachbegrünung in städtischen Gebieten (min. 10 m2) | G38: 0 | I38: =IF(OR(Kategorie="Bitte auswählen!",G38<10),0,ROUNDDOWN(G38*VLOOKUP(C38,Dropdowns!$B$48:$C$76,2,FALSE),0)) -> 0 | J38: =IF('PJ10'!Ausw_PJ_aktiv,IF(AND(G38>=10,'PJ10'!Ausw_PJ_aktiv),1,IF(AND(G38=0,'PJ10'!Ausw_PJ_aktiv),2,IF(AND(G38>0,G38<10,'PJ10'!Ausw_PJ_aktiv),-2))),2) -> 2
A39: =feld1 -> 0 | B39: 27 | C39: =IF(ISNA(VLOOKUP(Projekt,Dropdowns!B31:F44,3,FALSE)),0,VLOOKUP(Projekt,Dropdowns!B31:F44,3,FALSE)) -> 0 | G39: 0 | I39: =IF(C39=0,0,IF(Kategorie="Bitte auswählen!",0,IF(feld1=Dropdowns!E40,IF(OR(silberfeld<0,),0,ROUNDDOWN(G39*VLOOKUP(C39,Dropdowns!B48:C76,2,FALSE),0)),ROUNDDOWN(G39*VLOOKUP(C39,Dropdowns!B48:C76,2,FALSE),0)))) -> 0
B40: 28 | C40: Summe (Silber) | G40: =SUM(I33:I39) -> 0
C42: Schutzmaßnahme Status Gold | G42: Anzahl/Fläche | I42: Punkte
B43: =B40+1 -> 29 | C43: Wiederherstellung / Schaffung von Weihern (min. 50 m2) | G43: 0 | I43: =IF(OR(Kategorie="Bitte auswählen!",G43<50),0,ROUNDDOWN(G43*VLOOKUP(C43,Dropdowns!$B$48:$C$76,2,FALSE),0)) -> 0 | J43: =IF('PJ10'!Ausw_PJ_aktiv,IF(AND(G43>=50,'PJ10'!Ausw_PJ_aktiv),1,IF(AND(G43=0,'PJ10'!Ausw_PJ_aktiv),2,IF(AND(G43>0,G43<50,'PJ10'!Ausw_PJ_aktiv),-2))),2) -> 2
B44: =B43+1 -> 30 | C44: Wiederherstellung / Schaffung von Feuchtgebieten (min. 50 m2) | G44: 0 | I44: =IF(OR(Kategorie="Bitte auswählen!",G44<50),0,ROUNDDOWN(G44*VLOOKUP(C44,Dropdowns!$B$48:$C$76,2,FALSE),0)) -> 0 | J44: =IF('PJ10'!Ausw_PJ_aktiv,IF(AND(G44>=50,'PJ10'!Ausw_PJ_aktiv),1,IF(AND(G44=0,'PJ10'!Ausw_PJ_aktiv),2,IF(AND(G44>0,G44<50,'PJ10'!Ausw_PJ_aktiv),-2))),2) -> 2
B45: =B44+1 -> 31 | C45: Streuobstwiese (min. 100 m2) | G45: 0 | I45: =IF(OR(Kategorie="Bitte auswählen!",G45<100),0,ROUNDDOWN(G45*VLOOKUP(C45,Dropdowns!$B$48:$C$76,2,FALSE),0)) -> 0 | J45: =IF('PJ10'!Ausw_PJ_aktiv,IF(AND(G45>=100,'PJ10'!Ausw_PJ_aktiv),1,IF(AND(G45=0,'PJ10'!Ausw_PJ_aktiv),2,IF(AND(G45>0,G45<100,'PJ10'!Ausw_PJ_aktiv),-2))),2) -> 2
B46: 32 | C46: Amphibienschutzzaun (min. 100 m) | G46: 0 | I46: =IF(OR(Kategorie="Bitte auswählen!",Bienen<100),0,ROUNDDOWN(G46*VLOOKUP(C46,Dropdowns!$B$48:$C$76,2,FALSE),0)) -> 0 | J46: =IF('PJ10'!Ausw_PJ_aktiv,IF(AND(G46>=100,'PJ10'!Ausw_PJ_aktiv),1,IF(AND(G46=0,'PJ10'!Ausw_PJ_aktiv),2,IF(AND(G46>0,G46<100,'PJ10'!Ausw_PJ_aktiv),-2))),2) -> 2
B47: 33 | C47: Trockenmauer (min. 10 m) | G47: 0 | I47: =IF(OR(Kategorie="Bitte auswählen!",Mauer<10),0,ROUNDDOWN(G47*VLOOKUP(C47,Dropdowns!$B$48:$C$76,2,FALSE),0)) -> 0 | J47: =IF('PJ10'!Ausw_PJ_aktiv,IF(AND(G47>=10,'PJ10'!Ausw_PJ_aktiv),1,IF(AND(G47=0,'PJ10'!Ausw_PJ_aktiv),2,IF(AND(G47>0,G47<10,'PJ10'!Ausw_PJ_aktiv),-2))),2) -> 2
B48: 34 | C48: Benjeshecken anlegen (min. 30 m) | G48: 0 | I48: =IF(OR(Kategorie="Bitte auswählen!",G48<30),0,ROUNDDOWN(G48*VLOOKUP(C48,Dropdowns!$B$48:$C$76,2,FALSE),0)) -> 0 | J48: =IF('PJ10'!Ausw_PJ_aktiv,IF(AND(G48>=30,'PJ10'!Ausw_PJ_aktiv),1,IF(AND(G48=0,'PJ10'!Ausw_PJ_aktiv),2,IF(AND(G48>0,G48<30,'PJ10'!Ausw_PJ_aktiv),-2))),2) -> 2
B49: 35 | C49: Bildungsmaßnahmen (z. B. Schulklassen, Menschen mit Behinderung etc.) | G49: 0 | I49: =IF(OR(Kategorie="Bitte auswählen!",Sozi<1),0,ROUNDDOWN(G49*VLOOKUP(C49,Dropdowns!B48:C76,2,FALSE),0)) -> 0 | J49: =IF('PJ10'!Ausw_PJ_aktiv,IF(AND(G49>=1,'PJ10'!Ausw_PJ_aktiv),1,IF(AND(G49=0,'PJ10'!Ausw_PJ_aktiv),2,IF(AND(G49>0,G49<1,'PJ10'!Ausw_PJ_aktiv),-2))),2) -> 2
A50: =feld2 -> 0 | B50: 36 | C50: =IF(ISNA(VLOOKUP(Projekt,Dropdowns!B31:F44,4,FALSE)),0,VLOOKUP(Projekt,Dropdowns!B31:F44,4,FALSE)) -> 0 | G50: 0 | I50: =IF(C50=0,0,IF(Kategorie="Bitte auswählen!",0,IF(feld2=Dropdowns!E41,IF(OR(goldfeld1<0,goldfeld1>1,AND(goldfeld1>0,goldfeld1<1)),0,ROUNDDOWN(G50*VLOOKUP(C50,Dropdowns!B48:C76,2,FALSE),0)),ROUNDDOWN(G50*VLOOKUP(C50,Dropdowns!B48:C76,2,FALSE),0)))) -> 0 | J50: =IF(A50=0,"",IF('PJ10'!Ausw_PJ_aktiv,IF(OR(AND('PJ10'!Ausw_PJ_aktiv,OR(feld2=Dropdowns!E39,feld2=Dropdowns!E37),OR(goldfeld1=0,goldfeld1=1)),feld2=0),0,IF(AND(feld2<>Dropdowns!E39,feld2<>Dropdowns!E37),2,-2)),2)) -> 
A51: =feld3 -> 0 | B51: 37 | C51: =IF(ISNA(VLOOKUP(Projekt,Dropdowns!B31:F44,5,FALSE)),0,VLOOKUP(Projekt,Dropdowns!B31:F44,5,FALSE)) -> 0 | G51: 0 | I51: =IF(C51=0,0,IF(Kategorie="Bitte auswählen!",0,IF(feld3=Dropdowns!E41,IF(OR(goldfeld2<0,goldfeld2>1,AND(goldfeld2>0,goldfeld2<1)),0,ROUNDDOWN(G51*VLOOKUP(C51,Dropdowns!B48:C76,2,FALSE),0)),ROUNDDOWN(G51*VLOOKUP(C51,Dropdowns!B48:C76,2,FALSE),0)))) -> 0
B52: 38 | C52: Summe (Gold) | G52: =SUM(I43:I51) -> 0
D54: Bronze | G54: Silber | I54: Gold
B55: =B52+1 -> 39 | C55: Anzahl der Zertifikate | D55: =IF(Berechnungen_2!S14=0,0,Berechnungen_2!S14) -> 0 | G55: =Berechnungen_2!P14 -> 0 | I55: =Berechnungen_2!K14 -> 0 | J55: =IF('PJ10'!Ausw_PJ_aktiv,IF(SUM(D55:I55)=G15,1,IF(AND(SUM(D55:I55)<G15,SUM(D55:I55)>0,'PJ10'!Ausw_PJ_aktiv),0,IF(AND(SUM(D55:I55)=0,'PJ10'!Ausw_PJ_aktiv),-2))),2) -> 2
B56: =B55+1 -> 40 | C56: Wert der Zertifikate | D56: =D55*25 -> 0 | G56: =G55*50 -> 0 | I56: =75*Zertifikate -> 0
B57: =B56+1 -> 41 | C57: Gesamtwert der Zertifikate | D57: =SUM(D56:I56) -> 0
C60: Sonstige Anmerkungen
B61: =B57+1 -> 42
C67: =Erläuterung!D55 -> Berechnungsformular ZENAPA-Zertifizierung - Version 2021/10
E140: Ausw_PJ_aktiv | G140: FALSE
E141: PlAbfr_PJ_RW | G141: =IF('PJ10'!Ausw_PJ_aktiv,(J13),1) -> 1
E142: PlAbfr_PJ_PB | G142: =IF('PJ10'!Ausw_PJ_aktiv,(J16),1) -> 1
E143: PlAbfr_PJ_FL | G143: =IF('PJ10'!Ausw_PJ_aktiv,MIN(J33:J35,J37:J38,J43:J48),1) -> 1
E144: PlAbfr_PJ_SP | G144: =IF('PJ10'!Ausw_PJ_aktiv,J49,1) -> 1
E145: PlAbfr_PJ_AP | G145: =IF('PJ10'!Ausw_PJ_aktiv,(J55),1) -> 1
E146: PIAbfr_PJ_EnEf | G146: =IF('PJ10'!Ausw_PJ_aktiv,J11,1) -> 1
E147: Anzahl_BPkt | G147: =IF('PJ10'!Ausw_PJ_aktiv,SUM(G30,G40,G52-Anzahl_SPkt),0) -> 0
E148: Anzahl_SPkt | G148: =IF('PJ10'!Ausw_PJ_aktiv,SUM($I$49:$I$49),0) -> 0
E149: PIAbfr_PJ_01 | G149: =IF(AND('PJ10'!Ausw_PJ_aktiv,GHGZ="Bitte Tabellenblatt 'Eingabe Heizungstausch' vollständig ausfüllen!"),-1,1) -> 1
E150: PIAbfr_PJ_Max | G150: =IF('PJ10'!Ausw_PJ_aktiv,MIN(J19:J21),1) -> 1
E151: PIAbfr_PJ_BD | G151: =IF('PJ10'!Ausw_PJ_aktiv,PIAbfr_BD,1) -> 1
E152: PIAbfr_PJ_NaturP | G152: =IF(AND(Ausw_PJ_aktiv,G15>=1,SUM(D55:I55)=0),-1,1) -> 1
E153: PIAbfr_PJ_allg | G153: =MIN(J5:J10,J12) -> 2

Sheet Eingabe Heizungstausch (hidden)
C3: Eingabe Heizungstausch
C5: =IF(ISERROR(INDIRECT(C6&"!Ausw_PJ_aktiv")),FALSE,INDIRECT(C6&"!Ausw_PJ_aktiv")) -> FALSE | D5: =IF(ISERROR(INDIRECT(D6&"!Ausw_PJ_aktiv")),FALSE,INDIRECT(D6&"!Ausw_PJ_aktiv")) -> FALSE | E5: FALSE | F5: FALSE | G5: FALSE | H5: FALSE | I5: FALSE | J5: FALSE | K5: FALSE | L5: FALSE
C6: PJ1 | D6: PJ2 | E6: PJ3 | F6: PJ4 | G6: PJ5 | H6: PJ6 | I6: PJ7 | J6: PJ8 | K6: PJ9 | L6: PJ10
B7: Gebäudetyp
B8: Gebäudetyp | C8: Bitte auswählen! | D8: Bitte auswählen! | E8: Bitte auswählen! | F8: Bitte auswählen! | G8: Bitte auswählen! | H8: Bitte auswählen! | I8: Bitte auswählen! | J8: Bitte auswählen! | K8: Bitte auswählen! | L8: Bitte auswählen!
B9: Heizbedarf Wie hoch ist die durchschnittliche Heizdauer? Hoch = Ganztags, 7 Tage/Woche (z. B. Krankenhaus), Mittel = halbtags, 7 Tage/Woche (z. B. Wohngebäude), Niedrig = halbtags, <7 Tage/Woche (z. B. Halbtagsschule) | C9: Bitte auswählen! | D9: Bitte auswählen! | E9: Bitte auswählen! | F9: Bitte auswählen! | G9: Bitte auswählen! | H9: Bitte auswählen! | I9: Bitte auswählen! | J9: Bitte auswählen! | K9: Bitte auswählen! | L9: Bitte auswählen!
B10: Alte Heizung
B11: Erste Energiequelle:
B12: Energieträger | C12: Bitte auswählen! | D12: Bitte auswählen! | E12: Bitte auswählen! | F12: Bitte auswählen! | G12: Bitte auswählen! | H12: Bitte auswählen! | I12: Bitte auswählen! | J12: Bitte auswählen! | K12: Bitte auswählen! | L12: Bitte auswählen!
B13: Energieverbrauch (in kWh) bekannt? | C13: Bitte auswählen! | D13: Bitte auswählen! | E13: Bitte auswählen! | F13: Bitte auswählen! | G13: Bitte auswählen! | H13: Bitte auswählen! | I13: Bitte auswählen! | J13: Bitte auswählen! | K13: Bitte auswählen! | L13: Bitte auswählen!
B14: Jährlicher Energieverbrauch (in kWh) | C14: 0 | D14: 0 | E14: 0 | F14: 0 | G14: 0 | H14: 0 | I14: 0 | J14: 0 | K14: 0 | L14: 0
B15: Leistung | C15: 0 | D15: 0 | E15: 0 | F15: 0 | G15: 0 | H15: 0 | I15: 0 | J15: 0 | K15: 0 | L15: 0
B16: Baujahr | C16: Bitte auswählen! | D16: Bitte auswählen! | E16: Bitte auswählen! | F16: Bitte auswählen! | G16: Bitte auswählen! | H16: Bitte auswählen! | I16: Bitte auswählen! | J16: Bitte auswählen! | K16: Bitte auswählen! | L16: Bitte auswählen!
B17: Zweite Energiequelle (falls vorhanden):
B18: Energieträger | C18: Bitte auswählen! | D18: Bitte auswählen! | E18: Bitte auswählen! | F18: Bitte auswählen! | G18: Bitte auswählen! | H18: Bitte auswählen! | I18: Bitte auswählen! | J18: Bitte auswählen! | K18: Bitte auswählen! | L18: Bitte auswählen!
B19: Energieverbrauch (in kWh) bekannt? | C19: Bitte auswählen! | D19: Bitte auswählen! | E19: Bitte auswählen! | F19: Bitte auswählen! | G19: Bitte auswählen! | H19: Bitte auswählen! | I19: Bitte auswählen! | J19: Bitte auswählen! | K19: Bitte auswählen! | L19: Bitte auswählen!
B20: Jährlicher Energieverbrauch | C20: 0 | D20: 0 | E20: 0 | F20: 0 | G20: 0 | H20: 0 | I20: 0 | J20: 0 | K20: 0 | L20: 0
B21: Leistung | C21: 0 | D21: 0 | E21: 0 | F21: 0 | G21: 0 | H21: 0 | I21: 0 | J21: 0 | K21: 0 | L21: 0
B22: Baujahr | C22: Bitte auswählen! | D22: Bitte auswählen! | E22: Bitte auswählen! | F22: Bitte auswählen! | G22: Bitte auswählen! | H22: Bitte auswählen! | I22: Bitte auswählen! | J22: Bitte auswählen! | K22: Bitte auswählen! | L22: Bitte auswählen!
B23: Weitere Abfragen:
B24: Geschätzte Gewichtung (Wie viel Prozent des Heizenergieverbrauchs fällt auf den ersten (!) Energieträger? Wenn es sich nicht um ein Hybrid-System handelt, bitte 100% eintragen!) | C24: 1 | D24: 1 | E24: 1 | F24: 1 | G24: 1 | H24: 1 | I24: 1 | J24: 1 | K24: 1 | L24: 1
B25: Energieträger Nahwärme | C25: Bitte auswählen! | D25: Bitte auswählen! | E25: Bitte auswählen! | F25: Bitte auswählen! | G25: Bitte auswählen! | H25: Bitte auswählen! | I25: Bitte auswählen! | J25: Bitte auswählen! | K25: Bitte auswählen! | L25: Bitte auswählen!
B26: (100%-) Ökostromtarif? (Beziehen Sie Ihren Strom zum Betrieb der Heizung aus einem 100%-Ökostromtarif?) | C26: Bitte auswählen! | D26: Bitte auswählen! | E26: Bitte auswählen! | F26: Bitte auswählen! | G26: Bitte auswählen! | H26: Bitte auswählen! | I26: Bitte auswählen! | J26: Bitte auswählen! | K26: Bitte auswählen! | L26: Bitte auswählen!
B27: Neue Heizung
B28: Erste Energiequelle:
B29: Energieträger | C29: Bitte auswählen! | D29: Bitte auswählen! | E29: Bitte auswählen! | F29: Bitte auswählen! | G29: Bitte auswählen! | H29: Bitte auswählen! | I29: Bitte auswählen! | J29: Bitte auswählen! | K29: Bitte auswählen! | L29: Bitte auswählen!
B30: Leistung | C30: 0 | D30: 0 | E30: 0 | F30: 0 | G30: 0 | H30: 0 | I30: 0 | J30: 0 | K30: 0 | L30: 0
B31: Zweite Energiequelle:
B32: Energieträger | C32: Bitte auswählen! | D32: Bitte auswählen! | E32: Bitte auswählen! | F32: Bitte auswählen! | G32: Bitte auswählen! | H32: Bitte auswählen! | I32: Bitte auswählen! | J32: Bitte auswählen! | K32: Bitte auswählen! | L32: Bitte auswählen!
B33: Leistung | C33: 0 | D33: 0 | E33: 0 | F33: 0 | G33: 0 | H33: 0 | I33: 0 | J33: 0 | K33: 0 | L33: 0
B34: Weitere Abfragen:
B35: Geschätzte Gewichtung (Wie viel Prozent des Heizenergieverbrauchs fällt auf den ersten (!) Energieträger?) | C35: 1 | D35: 1 | E35: 1 | F35: 1 | G35: 1 | H35: 1 | I35: 1 | J35: 1 | K35: 1 | L35: 1
B36: Energieträger Nahwärme | C36: Bitte auswählen! | D36: Bitte auswählen! | E36: Bitte auswählen! | F36: Bitte auswählen! | G36: Bitte auswählen! | H36: Bitte auswählen! | I36: Bitte auswählen! | J36: Bitte auswählen! | K36: Bitte auswählen! | L36: Bitte auswählen!
B37: (100%-) Ökostromtarif? (Beziehen Sie Ihren Strom zum Betrieb der Heizung aus einem 100%-Ökostromtarif?) | C37: ja | D37: Bitte auswählen! | E37: Bitte auswählen! | F37: Bitte auswählen! | G37: Bitte auswählen! | H37: Bitte auswählen! | I37: Bitte auswählen! | J37: Bitte auswählen! | K37: Bitte auswählen! | L37: Bitte auswählen!
B39: Resultierende CO2-Einsparung (innerhalb der Nutzungsdauer) | C39: =IF('Berechnungen Heizungstausch'!D73<=0,0,'Berechnungen Heizungstausch'!D73) -> 0 | D39: =IF('Berechnungen Heizungstausch'!E73<=0,0,'Berechnungen Heizungstausch'!E73) -> 0 | E39: =IF('Berechnungen Heizungstausch'!F73<=0,0,'Berechnungen Heizungstausch'!F73) -> 0 | F39: =IF('Berechnungen Heizungstausch'!G73<=0,0,'Berechnungen Heizungstausch'!G73) -> 0 | G39: =IF('Berechnungen Heizungstausch'!H73<=0,0,'Berechnungen Heizungstausch'!H73) -> 0 | H39: =IF('Berechnungen Heizungstausch'!I73<=0,0,'Berechnungen Heizungstausch'!I73) -> 0 | I39: =IF('Berechnungen Heizungstausch'!J73<=0,0,'Berechnungen Heizungstausch'!J73) -> 0 | J39: =IF('Berechnungen Heizungstausch'!K73<=0,0,'Berechnungen Heizungstausch'!K73) -> 0 | K39: =IF('Berechnungen Heizungstausch'!L73<=0,0,'Berechnungen Heizungstausch'!L73) -> 0 | L39: =IF('Berechnungen Heizungstausch'!M73<=0,0,'Berechnungen Heizungstausch'!M73) -> 0
C42: =IF(C39>0,"Überprüfen Sie die Vollständigkeit Ihrer Angaben und fahren Sie dann im Tabellenblatt "&C6&" fort.","") ->  | D42: =IF(D39>0,"Überprüfen Sie die Vollständigkeit Ihrer Angaben und fahren Sie dann im Tabellenblatt "&D6&" fort.","") -> 

Sheet Berechnungen Heizungstausch (hidden)
B3: Allgemeine Daten | F3: Werte veränderbar!
B4: Nutzungsdauer | D4: 20
B7: Jahresnutzungsgrad:
C8: Sverweis Hilfespalte | D8: Heizöl | E8: Erdgas | F8: Biogas | G8: Solarthermie | H8: Nahwärme | I8: Luft-Wärmepumpe | J8: Wasser-Wärmepumpe | K8: Sole-Wärmepumpe | L8: Pellet | M8: Holzhackschnitzel | N8: Scheitholzvergasung | O8: Strom (z. B. Nachtspeicher)
B9: Älter als 1990 | C9: 2 | D9: 0.65 | E9: 0.65 | F9: 0.65 | G9: 1 | H9: 1 | I9: 3 | J9: 4.5 | K9: 4 | L9: 0.82 | M9: 0.8 | N9: 0.6 | O9: 0.9
B10: 1990er | C10: 3 | D10: 0.75 | E10: 0.8 | F10: 0.65 | G10: 1 | H10: 1 | I10: 3 | J10: 4.5 | K10: 4 | L10: 0.82 | M10: 0.8 | N10: 0.6 | O10: 0.9
B11: 2000er | C11: 4 | D11: 0.85 | E11: 0.85 | F11: 0.85 | G11: 1 | H11: 1 | I11: 3 | J11: 4.5 | K11: 4 | L11: 0.92 | M11: 0.8 | N11: 0.8 | O11: 0.99
B12: Neuer als 2010 | C12: 5 | D12: 0.95 | E12: 0.99 | F12: 0.99 | G12: 1 | H12: 1 | I12: 3 | J12: 4.5 | K12: 4 | L12: 0.92 | M12: 0.8 | N12: 0.8 | O12: 0.99
D15: Energiequelle | E15: CO2-Emissionsfaktor (kg/kWh) | I15: Vollbenutzungsstunden
B16: Heizöl | D16: Heizöl | E16: =VLOOKUP(D16,'THG-Faktoren'!$F$11:$G$20,2,FALSE) -> 0.2664717868 | H16: Wohngebäude | I16: 1800
B17: Erdgas | D17: Erdgas | E17: =VLOOKUP(D17,'THG-Faktoren'!$F$11:$G$20,2,FALSE) -> 0.2005846395 | H17: Bürogebäude | I17: 1700
B18: Biogas | D18: Biogas | E18: =VLOOKUP(D18,'THG-Faktoren'!$F$11:$G$20,2,FALSE) -> 0.17409 | H18: Schule (halbtags) o.ä. | I18: 1100
B19: Solarthermie | D19: Solarthermie | E19: =VLOOKUP(D19,'THG-Faktoren'!$F$11:$G$20,2,FALSE) -> 0.022079 | H19: Schule (ganztags) o.ä. | I19: 1400
B20: Nahwärme | C20: alt | D20: =IF('Eingabe Heizungstausch'!C25="Bitte auswählen!","-",'Eingabe Heizungstausch'!C25) -> - | E20: =IFERROR(VLOOKUP(D20,'THG-Faktoren'!$F$11:$G$20,2,FALSE),0) -> 0 | H20: Medizinische Einrichtung | I20: 2400
B21: Nahwärme | C21: neu | D21: =IF('Eingabe Heizungstausch'!C36="Bitte auswählen!","-",'Eingabe Heizungstausch'!C36) -> - | E21: =IFERROR(VLOOKUP(D21,'THG-Faktoren'!$F$11:$G$20,2,FALSE),0) -> 0 | H21: niedrig | I21: 1200
B22: Luft-Wärmepumpe | D22: Strom | E22: =VLOOKUP(D22,'THG-Faktoren'!$F$11:$G$20,2,FALSE) -> 0.401 | H22: mittel | I22: 1800
B23: Wasser-Wärmepumpe | D23: Strom | E23: =VLOOKUP(D23,'THG-Faktoren'!$F$11:$G$20,2,FALSE) -> 0.401 | H23: hoch | I23: 2200
B24: Sole-Wärmepumpe | D24: Strom | E24: =VLOOKUP(D24,'THG-Faktoren'!$F$11:$G$20,2,FALSE) -> 0.401
B25: Pellet | D25: Pellet | E25: =VLOOKUP(D25,'THG-Faktoren'!$F$11:$G$20,2,FALSE) -> 0.022937
B26: Holzhackschnitzel | D26: Holzhackschnitzel | E26: =VLOOKUP(D26,'THG-Faktoren'!$F$11:$G$20,2,FALSE) -> 0.0269985
B27: Scheitholzvergasung | D27: Scheitholz | E27: =VLOOKUP(D27,'THG-Faktoren'!$F$11:$G$20,2,FALSE) -> 0.016826
B28: Strom (z. B. Nachtspeicher) | D28: Strom | E28: =VLOOKUP(D28,'THG-Faktoren'!$F$11:$G$20,2,FALSE) -> 0.401
B32: Berechnungen der CO2-Einsparungen
D33: PJ1 | E33: PJ2 | F33: PJ3 | G33: PJ4 | H33: PJ5 | I33: PJ6 | J33: PJ7 | K33: PJ8 | L33: PJ9 | M33: PJ10
B34: Gebäudetyp | D34: =IF('Eingabe Heizungstausch'!C8="Sonstige",'Eingabe Heizungstausch'!C9,'Eingabe Heizungstausch'!C8) -> Bitte auswählen! | E34: =IF('Eingabe Heizungstausch'!D8="Sonstige",'Eingabe Heizungstausch'!D9,'Eingabe Heizungstausch'!D8) -> Bitte auswählen! | F34: =IF('Eingabe Heizungstausch'!E8="Sonstige",'Eingabe Heizungstausch'!E9,'Eingabe Heizungstausch'!E8) -> Bitte auswählen! | G34: =IF('Eingabe Heizungstausch'!F8="Sonstige",'Eingabe Heizungstausch'!F9,'Eingabe Heizungstausch'!F8) -> Bitte auswählen! | H34: =IF('Eingabe Heizungstausch'!G8="Sonstige",'Eingabe Heizungstausch'!G9,'Eingabe Heizungstausch'!G8) -> Bitte auswählen! | I34: =IF('Eingabe Heizungstausch'!H8="Sonstige",'Eingabe Heizungstausch'!H9,'Eingabe Heizungstausch'!H8) -> Bitte auswählen! | J34: =IF('Eingabe Heizungstausch'!I8="Sonstige",'Eingabe Heizungstausch'!I9,'Eingabe Heizungstausch'!I8) -> Bitte auswählen! | K34: =IF('Eingabe Heizungstausch'!J8="Sonstige",'Eingabe Heizungstausch'!J9,'Eingabe Heizungstausch'!J8) -> Bitte auswählen! | L34: =IF('Eingabe Heizungstausch'!K8="Sonstige",'Eingabe Heizungstausch'!K9,'Eingabe Heizungstausch'!K8) -> Bitte auswählen! | M34: =IF('Eingabe Heizungstausch'!L8="Sonstige",'Eingabe Heizungstausch'!L9,'Eingabe Heizungstausch'!L8) -> Bitte auswählen!
B35: Vollbenutzungsstunden | D35: =IFERROR(VLOOKUP(D34,$H$16:$I$23,2,FALSE),0) -> 0 | E35: =IFERROR(VLOOKUP(E34,$H$16:$I$23,2,FALSE),0) -> 0 | F35: 0 | G35: 0 | H35: 0 | I35: 0 | J35: 0 | K35: 0 | L35: 0 | M35: 0
B36: Energieträger alt 1 | C36: alt | D36: ='Eingabe Heizungstausch'!C12 -> Bitte auswählen! | E36: ='Eingabe Heizungstausch'!D12 -> Bitte auswählen! | F36: ='Eingabe Heizungstausch'!E12 -> Bitte auswählen! | G36: ='Eingabe Heizungstausch'!F12 -> Bitte auswählen! | H36: ='Eingabe Heizungstausch'!G12 -> Bitte auswählen! | I36: ='Eingabe Heizungstausch'!H12 -> Bitte auswählen! | J36: ='Eingabe Heizungstausch'!I12 -> Bitte auswählen! | K36: ='Eingabe Heizungstausch'!J12 -> Bitte auswählen! | L36: ='Eingabe Heizungstausch'!K12 -> Bitte auswählen! | M36: ='Eingabe Heizungstausch'!L12 -> Bitte auswählen!
B37: Energieträger alt 2 | C37: alt | D37: =IF('Eingabe Heizungstausch'!C18="Bitte auswählen!","-",'Eingabe Heizungstausch'!C18) -> - | E37: =IF('Eingabe Heizungstausch'!D18="Bitte auswählen!","-",'Eingabe Heizungstausch'!D18) -> - | F37: =IF('Eingabe Heizungstausch'!E18="Bitte auswählen!","-",'Eingabe Heizungstausch'!E18) -> - | G37: =IF('Eingabe Heizungstausch'!F18="Bitte auswählen!","-",'Eingabe Heizungstausch'!F18) -> - | H37: =IF('Eingabe Heizungstausch'!G18="Bitte auswählen!","-",'Eingabe Heizungstausch'!G18) -> - | I37: =IF('Eingabe Heizungstausch'!H18="Bitte auswählen!","-",'Eingabe Heizungstausch'!H18) -> - | J37: =IF('Eingabe Heizungstausch'!I18="Bitte auswählen!","-",'Eingabe Heizungstausch'!I18) -> - | K37: =IF('Eingabe Heizungstausch'!J18="Bitte auswählen!","-",'Eingabe Heizungstausch'!J18) -> - | L37: =IF('Eingabe Heizungstausch'!K18="Bitte auswählen!","-",'Eingabe Heizungstausch'!K18) -> - | M37: =IF('Eingabe Heizungstausch'!L18="Bitte auswählen!","-",'Eingabe Heizungstausch'!L18) -> -
B38: Energieträger neu 1 | C38: neu | D38: ='Eingabe Heizungstausch'!C29 -> Bitte auswählen! | E38: ='Eingabe Heizungstausch'!D29 -> Bitte auswählen! | F38: ='Eingabe Heizungstausch'!E29 -> Bitte auswählen! | G38: ='Eingabe Heizungstausch'!F29 -> Bitte auswählen! | H38: ='Eingabe Heizungstausch'!G29 -> Bitte auswählen! | I38: ='Eingabe Heizungstausch'!H29 -> Bitte auswählen! | J38: ='Eingabe Heizungstausch'!I29 -> Bitte auswählen! | K38: ='Eingabe Heizungstausch'!J29 -> Bitte auswählen! | L38: ='Eingabe Heizungstausch'!K29 -> Bitte auswählen! | M38: ='Eingabe Heizungstausch'!L29 -> Bitte auswählen!
B39: Energieträger neu 2 | C39: neu | D39: =IF('Eingabe Heizungstausch'!C32="Bitte auswählen!","-",'Eingabe Heizungstausch'!C32) -> - | E39: =IF('Eingabe Heizungstausch'!D32="Bitte auswählen!","-",'Eingabe Heizungstausch'!D32) -> - | F39: =IF('Eingabe Heizungstausch'!E32="Bitte auswählen!","-",'Eingabe Heizungstausch'!E32) -> - | G39: =IF('Eingabe Heizungstausch'!F32="Bitte auswählen!","-",'Eingabe Heizungstausch'!F32) -> - | H39: =IF('Eingabe Heizungstausch'!G32="Bitte auswählen!","-",'Eingabe Heizungstausch'!G32) -> - | I39: =IF('Eingabe Heizungstausch'!H32="Bitte auswählen!","-",'Eingabe Heizungstausch'!H32) -> - | J39: =IF('Eingabe Heizungstausch'!I32="Bitte auswählen!","-",'Eingabe Heizungstausch'!I32) -> - | K39: =IF('Eingabe Heizungstausch'!J32="Bitte auswählen!","-",'Eingabe Heizungstausch'!J32) -> - | L39: =IF('Eingabe Heizungstausch'!K32="Bitte auswählen!","-",'Eingabe Heizungstausch'!K32) -> - | M39: =IF('Eingabe Heizungstausch'!L32="Bitte auswählen!","-",'Eingabe Heizungstausch'!L32) -> -
B40: Leistung alt 1 | D40: ='Eingabe Heizungstausch'!C15 -> 0 | E40: ='Eingabe Heizungstausch'!D15 -> 0 | F40: ='Eingabe Heizungstausch'!E15 -> 0 | G40: ='Eingabe Heizungstausch'!F15 -> 0 | H40: ='Eingabe Heizungstausch'!G15 -> 0 | I40: ='Eingabe Heizungstausch'!H15 -> 0 | J40: ='Eingabe Heizungstausch'!I15 -> 0 | K40: ='Eingabe Heizungstausch'!J15 -> 0 | L40: ='Eingabe Heizungstausch'!K15 -> 0 | M40: ='Eingabe Heizungstausch'!L15 -> 0
B41: Leistung alt 2 | D41: =IF('Eingabe Heizungstausch'!C21=0,0,'Eingabe Heizungstausch'!C21) -> 0 | E41: =IF('Eingabe Heizungstausch'!D21=0,0,'Eingabe Heizungstausch'!D21) -> 0 | F41: =IF('Eingabe Heizungstausch'!E21=0,0,'Eingabe Heizungstausch'!E21) -> 0 | G41: =IF('Eingabe Heizungstausch'!F21=0,0,'Eingabe Heizungstausch'!F21) -> 0 | H41: =IF('Eingabe Heizungstausch'!G21=0,0,'Eingabe Heizungstausch'!G21) -> 0 | I41: =IF('Eingabe Heizungstausch'!H21=0,0,'Eingabe Heizungstausch'!H21) -> 0 | J41: =IF('Eingabe Heizungstausch'!I21=0,0,'Eingabe Heizungstausch'!I21) -> 0 | K41: =IF('Eingabe Heizungstausch'!J21=0,0,'Eingabe Heizungstausch'!J21) -> 0 | L41: =IF('Eingabe Heizungstausch'!K21=0,0,'Eingabe Heizungstausch'!K21) -> 0 | M41: =IF('Eingabe Heizungstausch'!L21=0,0,'Eingabe Heizungstausch'!L21) -> 0
B42: Leistung neu 1 | D42: ='Eingabe Heizungstausch'!C30 -> 0 | E42: ='Eingabe Heizungstausch'!D30 -> 0 | F42: ='Eingabe Heizungstausch'!E30 -> 0 | G42: ='Eingabe Heizungstausch'!F30 -> 0 | H42: ='Eingabe Heizungstausch'!G30 -> 0 | I42: ='Eingabe Heizungstausch'!H30 -> 0 | J42: ='Eingabe Heizungstausch'!I30 -> 0 | K42: ='Eingabe Heizungstausch'!J30 -> 0 | L42: ='Eingabe Heizungstausch'!K30 -> 0 | M42: ='Eingabe Heizungstausch'!L30 -> 0
B43: Leistung neu 2 | D43: =IF('Eingabe Heizungstausch'!C33=0,0,'Eingabe Heizungstausch'!C33) -> 0 | E43: =IF('Eingabe Heizungstausch'!D33=0,0,'Eingabe Heizungstausch'!D33) -> 0 | F43: =IF('Eingabe Heizungstausch'!E33=0,0,'Eingabe Heizungstausch'!E33) -> 0 | G43: =IF('Eingabe Heizungstausch'!F33=0,0,'Eingabe Heizungstausch'!F33) -> 0 | H43: =IF('Eingabe Heizungstausch'!G33=0,0,'Eingabe Heizungstausch'!G33) -> 0 | I43: =IF('Eingabe Heizungstausch'!H33=0,0,'Eingabe Heizungstausch'!H33) -> 0 | J43: =IF('Eingabe Heizungstausch'!I33=0,0,'Eingabe Heizungstausch'!I33) -> 0 | K43: =IF('Eingabe Heizungstausch'!J33=0,0,'Eingabe Heizungstausch'!J33) -> 0 | L43: =IF('Eingabe Heizungstausch'!K33=0,0,'Eingabe Heizungstausch'!K33) -> 0 | M43: =IF('Eingabe Heizungstausch'!L33=0,0,'Eingabe Heizungstausch'!L33) -> 0
B44: Baujahr alt 1 | D44: ='Eingabe Heizungstausch'!C16 -> Bitte auswählen! | E44: ='Eingabe Heizungstausch'!D16 -> Bitte auswählen! | F44: ='Eingabe Heizungstausch'!E16 -> Bitte auswählen! | G44: ='Eingabe Heizungstausch'!F16 -> Bitte auswählen! | H44: ='Eingabe Heizungstausch'!G16 -> Bitte auswählen! | I44: ='Eingabe Heizungstausch'!H16 -> Bitte auswählen! | J44: ='Eingabe Heizungstausch'!I16 -> Bitte auswählen! | K44: ='Eingabe Heizungstausch'!J16 -> Bitte auswählen! | L44: ='Eingabe Heizungstausch'!K16 -> Bitte auswählen! | M44: ='Eingabe Heizungstausch'!L16 -> Bitte auswählen!
B45: Baujahr alt 2 | D45: =IF('Eingabe Heizungstausch'!C22="Bitte auswählen!","-",'Eingabe Heizungstausch'!C22) -> - | E45: =IF('Eingabe Heizungstausch'!D22="Bitte auswählen!","-",'Eingabe Heizungstausch'!D22) -> - | F45: =IF('Eingabe Heizungstausch'!E22="Bitte auswählen!","-",'Eingabe Heizungstausch'!E22) -> - | G45: =IF('Eingabe Heizungstausch'!F22="Bitte auswählen!","-",'Eingabe Heizungstausch'!F22) -> - | H45: =IF('Eingabe Heizungstausch'!G22="Bitte auswählen!","-",'Eingabe Heizungstausch'!G22) -> - | I45: =IF('Eingabe Heizungstausch'!H22="Bitte auswählen!","-",'Eingabe Heizungstausch'!H22) -> - | J45: =IF('Eingabe Heizungstausch'!I22="Bitte auswählen!","-",'Eingabe Heizungstausch'!I22) -> - | K45: =IF('Eingabe Heizungstausch'!J22="Bitte auswählen!","-",'Eingabe Heizungstausch'!J22) -> - | L45: =IF('Eingabe Heizungstausch'!K22="Bitte auswählen!","-",'Eingabe Heizungstausch'!K22) -> - | M45: =IF('Eingabe Heizungstausch'!L22="Bitte auswählen!","-",'Eingabe Heizungstausch'!L22) -> -
B46: Gewichtung alt (Anteil 1. Energieträger) | D46: ='Eingabe Heizungstausch'!C24 -> 1 | E46: ='Eingabe Heizungstausch'!D24 -> 1 | F46: ='Eingabe Heizungstausch'!E24 -> 1 | G46: ='Eingabe Heizungstausch'!F24 -> 1 | H46: ='Eingabe Heizungstausch'!G24 -> 1 | I46: ='Eingabe Heizungstausch'!H24 -> 1 | J46: ='Eingabe Heizungstausch'!I24 -> 1 | K46: ='Eingabe Heizungstausch'!J24 -> 1 | L46: ='Eingabe Heizungstausch'!K24 -> 1 | M46: ='Eingabe Heizungstausch'!L24 -> 1
B47: Gewichtung neu (Anteil 1. Energieträger) | D47: ='Eingabe Heizungstausch'!C35 -> 1 | E47: ='Eingabe Heizungstausch'!D35 -> 1 | F47: ='Eingabe Heizungstausch'!E35 -> 1 | G47: ='Eingabe Heizungstausch'!F35 -> 1 | H47: ='Eingabe Heizungstausch'!G35 -> 1 | I47: ='Eingabe Heizungstausch'!H35 -> 1 | J47: ='Eingabe Heizungstausch'!I35 -> 1 | K47: ='Eingabe Heizungstausch'!J35 -> 1 | L47: ='Eingabe Heizungstausch'!K35 -> 1 | M47: ='Eingabe Heizungstausch'!L35 -> 1
B49: Jahresnutzungsgrad alt 1 | D49: =IFERROR(HLOOKUP(D36,$B$8:$O$12,IF(D44=$B$9,$C$9,IF(D44=$B$10,$C$10,IF(D44=$B$11,$C$11,$C$12))),FALSE),0) -> 0 | E49: =IFERROR(HLOOKUP(E36,$B$8:$O$12,IF(E44=$B$9,$C$9,IF(E44=$B$10,$C$10,IF(E44=$B$11,$C$11,$C$12))),FALSE),0) -> 0 | F49: 0 | G49: 0 | H49: 0 | I49: 0 | J49: 0 | K49: 0 | L49: 0 | M49: 0
B50: Jahresnutzungsgrad neu 1 | D50: =IFERROR(HLOOKUP(D38,$C$8:$O$12,5,FALSE),0) -> 0 | E50: =IFERROR(HLOOKUP(E38,$C$8:$O$12,5,FALSE),0) -> 0 | F50: 0 | G50: 0 | H50: 0 | I50: 0 | J50: 0 | K50: 0 | L50: 0 | M50: 0
B51: Jahresnutzungsgrad alt 2 | D51: =IFERROR(HLOOKUP(D37,$B$8:$O$12,IF(D45=$B$9,$C$9,IF(D45=$B$10,$C$10,IF(D45=$B$11,$C$11,$C$12))),FALSE),0) -> 0 | E51: =IFERROR(HLOOKUP(E37,$B$8:$O$12,IF(E45=$B$9,$C$9,IF(E45=$B$10,$C$10,IF(E45=$B$11,$C$11,$C$12))),FALSE),0) -> 0 | F51: 0 | G51: 0 | H51: 0 | I51: 0 | J51: 0 | K51: 0 | L51: 0 | M51: 0
B52: Jahresnutzungsgrad neu 2 | D52: =IFERROR(HLOOKUP(D39,$C$8:$O$12,5,FALSE),0) -> 0 | E52: =IFERROR(HLOOKUP(E39,$C$8:$O$12,5,FALSE),0) -> 0 | F52: 0 | G52: 0 | H52: 0 | I52: 0 | J52: 0 | K52: 0 | L52: 0 | M52: 0
B53: Energieverbrauch alt 1 gegeben | D53: ='Eingabe Heizungstausch'!C14 -> 0 | E53: ='Eingabe Heizungstausch'!D14 -> 0 | F53: ='Eingabe Heizungstausch'!E14 -> 0 | G53: ='Eingabe Heizungstausch'!F14 -> 0 | H53: ='Eingabe Heizungstausch'!G14 -> 0 | I53: ='Eingabe Heizungstausch'!H14 -> 0 | J53: ='Eingabe Heizungstausch'!I14 -> 0 | K53: ='Eingabe Heizungstausch'!J14 -> 0 | L53: ='Eingabe Heizungstausch'!K14 -> 0 | M53: ='Eingabe Heizungstausch'!L14 -> 0
B54: Energieverbrauch alt 2 gegeben | D54: ='Eingabe Heizungstausch'!C20 -> 0 | E54: ='Eingabe Heizungstausch'!D20 -> 0 | F54: ='Eingabe Heizungstausch'!E20 -> 0 | G54: ='Eingabe Heizungstausch'!F20 -> 0 | H54: ='Eingabe Heizungstausch'!G20 -> 0 | I54: ='Eingabe Heizungstausch'!H20 -> 0 | J54: ='Eingabe Heizungstausch'!I20 -> 0 | K54: ='Eingabe Heizungstausch'!J20 -> 0 | L54: ='Eingabe Heizungstausch'!K20 -> 0 | M54: ='Eingabe Heizungstausch'!L20 -> 0
B55: Energieverbrauch alt 1 berechnet | D55: =IFERROR(D40*(D35*D46)/D49,0) -> 0 | E55: =IFERROR(E40*(E35*E46)/E49,0) -> 0 | F55: =IFERROR(F40*(F35*F46)/F49,0) -> 0 | G55: 0 | H55: 0 | I55: 0 | J55: 0 | K55: 0 | L55: 0 | M55: 0
B56: Energieverbrauch alt 2 berechnet | D56: =IFERROR(D41*(D35*(1-D46))/D51,0) -> 0 | E56: =IFERROR(E41*(E35*(1-E46))/E51,0) -> 0 | F56: 0 | G56: 0 | H56: 0 | I56: 0 | J56: 0 | K56: 0 | L56: 0 | M56: 0
B57: Energieverbrauch alt 1 | D57: =IF('Eingabe Heizungstausch'!C13="ja",D53,D55) -> 0 | E57: =IF('Eingabe Heizungstausch'!D13="ja",E53,E55) -> 0 | F57: =IF('Eingabe Heizungstausch'!E13="ja",F53,F55) -> 0 | G57: =IF('Eingabe Heizungstausch'!F13="ja",G53,G55) -> 0 | H57: =IF('Eingabe Heizungstausch'!G13="ja",H53,H55) -> 0 | I57: =IF('Eingabe Heizungstausch'!H13="ja",I53,I55) -> 0 | J57: =IF('Eingabe Heizungstausch'!I13="ja",J53,J55) -> 0 | K57: =IF('Eingabe Heizungstausch'!J13="ja",K53,K55) -> 0 | L57: =IF('Eingabe Heizungstausch'!K13="ja",L53,L55) -> 0 | M57: =IF('Eingabe Heizungstausch'!L13="ja",M53,M55) -> 0
B58: Energieverbrauch alt 2 | D58: =IF('Eingabe Heizungstausch'!C19="ja",D54,D56) -> 0 | E58: =IF('Eingabe Heizungstausch'!D19="ja",E54,E56) -> 0 | F58: =IF('Eingabe Heizungstausch'!E19="ja",F54,F56) -> 0 | G58: =IF('Eingabe Heizungstausch'!F19="ja",G54,G56) -> 0 | H58: =IF('Eingabe Heizungstausch'!G19="ja",H54,H56) -> 0 | I58: =IF('Eingabe Heizungstausch'!H19="ja",I54,I56) -> 0 | J58: =IF('Eingabe Heizungstausch'!I19="ja",J54,J56) -> 0 | K58: =IF('Eingabe Heizungstausch'!J19="ja",K54,K56) -> 0 | L58: =IF('Eingabe Heizungstausch'!K19="ja",L54,L56) -> 0 | M58: =IF('Eingabe Heizungstausch'!L19="ja",M54,M56) -> 0
B59: Energieverbrauch alt gesamt | D59: =D57+D58 -> 0 | E59: =E57+E58 -> 0 | F59: 0 | G59: 0 | H59: 0 | I59: 0 | J59: 0 | K59: 0 | L59: 0 | M59: 0
B60: Energieverbrauch neu 1 | D60: =IFERROR(D42*(D35*D47)/D50,0) -> 0 | E60: 0 | F60: 0 | G60: =IFERROR(G42*(G35*G47)/G50,0) -> 0 | H60: 0 | I60: 0 | J60: 0 | K60: 0 | L60: 0 | M60: 0
B61: Energieverbrauch neu 2 | D61: =IFERROR(D43*(D35*(1-D47))/D52,0) -> 0 | E61: 0 | F61: 0 | G61: 0 | H61: 0 | I61: 0 | J61: 0 | K61: 0 | L61: 0 | M61: 0
B62: Energieverbrauch neu gesamt | D62: =D61+D60 -> 0 | E62: =E61+E60 -> 0 | F62: 0 | G62: 0 | H62: 0 | I62: 0 | J62: 0 | K62: 0 | L62: 0 | M62: 0
B63: Energieeinsparung | D63: =IFERROR(IF(D59-D62<0,0,D59-D62),0) -> 0 | E63: =IFERROR(IF(E59-E62<0,0,E59-E62),0) -> 0 | F63: 0 | G63: 0 | H63: 0 | I63: 0 | J63: 0 | K63: 0 | L63: 0 | M63: 0
B64: Ökostrom alt | D64: ='Eingabe Heizungstausch'!C26 -> Bitte auswählen! | E64: ='Eingabe Heizungstausch'!D26 -> Bitte auswählen! | F64: ='Eingabe Heizungstausch'!E26 -> Bitte auswählen! | G64: ='Eingabe Heizungstausch'!F26 -> Bitte auswählen! | H64: ='Eingabe Heizungstausch'!G26 -> Bitte auswählen! | I64: ='Eingabe Heizungstausch'!H26 -> Bitte auswählen! | J64: ='Eingabe Heizungstausch'!I26 -> Bitte auswählen! | K64: ='Eingabe Heizungstausch'!J26 -> Bitte auswählen! | L64: ='Eingabe Heizungstausch'!K26 -> Bitte auswählen! | M64: ='Eingabe Heizungstausch'!L26 -> Bitte auswählen!
B65: Ökostrom neu | D65: ='Eingabe Heizungstausch'!C37 -> ja | E65: ='Eingabe Heizungstausch'!D37 -> Bitte auswählen! | F65: ='Eingabe Heizungstausch'!E37 -> Bitte auswählen! | G65: ='Eingabe Heizungstausch'!F37 -> Bitte auswählen! | H65: ='Eingabe Heizungstausch'!G37 -> Bitte auswählen! | I65: ='Eingabe Heizungstausch'!H37 -> Bitte auswählen! | J65: ='Eingabe Heizungstausch'!I37 -> Bitte auswählen! | K65: ='Eingabe Heizungstausch'!J37 -> Bitte auswählen! | L65: ='Eingabe Heizungstausch'!K37 -> Bitte auswählen! | M65: ='Eingabe Heizungstausch'!L37 -> Bitte auswählen!
B66: CO2-Emissionen alt 1 | D66: =IFERROR(IF(D36="Nahwärme",$E$20,IF(VLOOKUP(D36,$B$16:$E$28,3,FALSE)="Strom",IF(D64="ja",'THG-Faktoren'!$G$19,$E$22),VLOOKUP(D36,$B$16:$E$28,4,FALSE))),0)*D57 -> 0 | E66: =IFERROR(IF(E36="Nahwärme",$E$20,IF(VLOOKUP(E36,$B$16:$E$28,3,FALSE)="Strom",IF(E64="ja",'THG-Faktoren'!$G$19,$E$22),VLOOKUP(E36,$B$16:$E$28,4,FALSE))),0)*E57 -> 0 | F66: =IFERROR(IF(F36="Nahwärme",$E$20,IF(VLOOKUP(F36,$B$16:$E$28,3,FALSE)="Strom",IF(F64="ja",'THG-Faktoren'!$G$19,$E$22),VLOOKUP(F36,$B$16:$E$28,4,FALSE))),0)*F57 -> 0 | G66: =IFERROR(IF(G36="Nahwärme",$E$20,IF(VLOOKUP(G36,$B$16:$E$28,3,FALSE)="Strom",IF(G64="ja",'THG-Faktoren'!$G$19,$E$22),VLOOKUP(G36,$B$16:$E$28,4,FALSE))),0)*G57 -> 0 | H66: =IFERROR(IF(H36="Nahwärme",$E$20,IF(VLOOKUP(H36,$B$16:$E$28,3,FALSE)="Strom",IF(H64="ja",'THG-Faktoren'!$G$19,$E$22),VLOOKUP(H36,$B$16:$E$28,4,FALSE))),0)*H57 -> 0 | I66: =IFERROR(IF(I36="Nahwärme",$E$20,IF(VLOOKUP(I36,$B$16:$E$28,3,FALSE)="Strom",IF(I64="ja",'THG-Faktoren'!$G$19,$E$22),VLOOKUP(I36,$B$16:$E$28,4,FALSE))),0)*I57 -> 0 | J66: =IFERROR(IF(J36="Nahwärme",$E$20,IF(VLOOKUP(J36,$B$16:$E$28,3,FALSE)="Strom",IF(J64="ja",'THG-Faktoren'!$G$19,$E$22),VLOOKUP(J36,$B$16:$E$28,4,FALSE))),0)*J57 -> 0 | K66: =IFERROR(IF(K36="Nahwärme",$E$20,IF(VLOOKUP(K36,$B$16:$E$28,3,FALSE)="Strom",IF(K64="ja",'THG-Faktoren'!$G$19,$E$22),VLOOKUP(K36,$B$16:$E$28,4,FALSE))),0)*K57 -> 0 | L66: =IFERROR(IF(L36="Nahwärme",$E$20,IF(VLOOKUP(L36,$B$16:$E$28,3,FALSE)="Strom",IF(L64="ja",'THG-Faktoren'!$G$19,$E$22),VLOOKUP(L36,$B$16:$E$28,4,FALSE))),0)*L57 -> 0 | M66: =IFERROR(IF(M36="Nahwärme",$E$20,IF(VLOOKUP(M36,$B$16:$E$28,3,FALSE)="Strom",IF(M64="ja",'THG-Faktoren'!$G$19,$E$22),VLOOKUP(M36,$B$16:$E$28,4,FALSE))),0)*M57 -> 0
B67: CO2-Emissionen alt 2 | D67: =IFERROR(IF(VLOOKUP(D37,$B$16:$E$28,3,FALSE)="Strom",IF(D64="ja",'THG-Faktoren'!$G$19,$E$22),VLOOKUP(D37,$B$16:$E$28,4,FALSE)),0)*D58 -> 0 | E67: =IFERROR(IF(VLOOKUP(E37,$B$16:$E$28,3,FALSE)="Strom",IF(E64="ja",'THG-Faktoren'!$G$19,$E$22),VLOOKUP(E37,$B$16:$E$28,4,FALSE)),0)*E58 -> 0 | F67: =IFERROR(IF(VLOOKUP(F37,$B$16:$E$28,3,FALSE)="Strom",IF(F64="ja",'THG-Faktoren'!$G$19,$E$22),VLOOKUP(F37,$B$16:$E$28,4,FALSE)),0)*F58 -> 0 | G67: =IFERROR(IF(VLOOKUP(G37,$B$16:$E$28,3,FALSE)="Strom",IF(G64="ja",'THG-Faktoren'!$G$19,$E$22),VLOOKUP(G37,$B$16:$E$28,4,FALSE)),0)*G58 -> 0 | H67: =IFERROR(IF(VLOOKUP(H37,$B$16:$E$28,3,FALSE)="Strom",IF(H64="ja",'THG-Faktoren'!$G$19,$E$22),VLOOKUP(H37,$B$16:$E$28,4,FALSE)),0)*H58 -> 0 | I67: =IFERROR(IF(VLOOKUP(I37,$B$16:$E$28,3,FALSE)="Strom",IF(I64="ja",'THG-Faktoren'!$G$19,$E$22),VLOOKUP(I37,$B$16:$E$28,4,FALSE)),0)*I58 -> 0 | J67: =IFERROR(IF(VLOOKUP(J37,$B$16:$E$28,3,FALSE)="Strom",IF(J64="ja",'THG-Faktoren'!$G$19,$E$22),VLOOKUP(J37,$B$16:$E$28,4,FALSE)),0)*J58 -> 0 | K67: =IFERROR(IF(VLOOKUP(K37,$B$16:$E$28,3,FALSE)="Strom",IF(K64="ja",'THG-Faktoren'!$G$19,$E$22),VLOOKUP(K37,$B$16:$E$28,4,FALSE)),0)*K58 -> 0 | L67: =IFERROR(IF(VLOOKUP(L37,$B$16:$E$28,3,FALSE)="Strom",IF(L64="ja",'THG-Faktoren'!$G$19,$E$22),VLOOKUP(L37,$B$16:$E$28,4,FALSE)),0)*L58 -> 0 | M67: =IFERROR(IF(VLOOKUP(M37,$B$16:$E$28,3,FALSE)="Strom",IF(M64="ja",'THG-Faktoren'!$G$19,$E$22),VLOOKUP(M37,$B$16:$E$28,4,FALSE)),0)*M58 -> 0
B68: CO2-Emissionen alt gesamt | D68: =D67+D66 -> 0 | E68: =E67+E66 -> 0 | F68: 0 | G68: 0 | H68: 0 | I68: 0 | J68: 0 | K68: 0 | L68: 0 | M68: 0
B69: CO2-Emissionen neu 1 | D69: =IFERROR(IF(D38="Nahwärme",$E$21,IF(VLOOKUP(D38,$B$16:$E$28,3,FALSE)="Strom",IF(D65="ja",'THG-Faktoren'!$G$19,$E$22),VLOOKUP(D38,$B$16:$E$28,4,FALSE))),0)*D60 -> 0 | E69: =IFERROR(IF(E38="Nahwärme",$E$21,IF(VLOOKUP(E38,$B$16:$E$28,3,FALSE)="Strom",IF(E65="ja",'THG-Faktoren'!$G$19,$E$22),VLOOKUP(E38,$B$16:$E$28,4,FALSE))),0)*E60 -> 0 | F69: =IFERROR(IF(F38="Nahwärme",$E$21,IF(VLOOKUP(F38,$B$16:$E$28,3,FALSE)="Strom",IF(F65="ja",'THG-Faktoren'!$G$19,$E$22),VLOOKUP(F38,$B$16:$E$28,4,FALSE))),0)*F60 -> 0 | G69: =IFERROR(IF(G38="Nahwärme",$E$21,IF(VLOOKUP(G38,$B$16:$E$28,3,FALSE)="Strom",IF(G65="ja",'THG-Faktoren'!$G$19,$E$22),VLOOKUP(G38,$B$16:$E$28,4,FALSE))),0)*G60 -> 0 | H69: =IFERROR(IF(H38="Nahwärme",$E$21,IF(VLOOKUP(H38,$B$16:$E$28,3,FALSE)="Strom",IF(H65="ja",'THG-Faktoren'!$G$19,$E$22),VLOOKUP(H38,$B$16:$E$28,4,FALSE))),0)*H60 -> 0 | I69: =IFERROR(IF(I38="Nahwärme",$E$21,IF(VLOOKUP(I38,$B$16:$E$28,3,FALSE)="Strom",IF(I65="ja",'THG-Faktoren'!$G$19,$E$22),VLOOKUP(I38,$B$16:$E$28,4,FALSE))),0)*I60 -> 0 | J69: =IFERROR(IF(J38="Nahwärme",$E$21,IF(VLOOKUP(J38,$B$16:$E$28,3,FALSE)="Strom",IF(J65="ja",'THG-Faktoren'!$G$19,$E$22),VLOOKUP(J38,$B$16:$E$28,4,FALSE))),0)*J60 -> 0 | K69: =IFERROR(IF(K38="Nahwärme",$E$21,IF(VLOOKUP(K38,$B$16:$E$28,3,FALSE)="Strom",IF(K65="ja",'THG-Faktoren'!$G$19,$E$22),VLOOKUP(K38,$B$16:$E$28,4,FALSE))),0)*K60 -> 0 | L69: =IFERROR(IF(L38="Nahwärme",$E$21,IF(VLOOKUP(L38,$B$16:$E$28,3,FALSE)="Strom",IF(L65="ja",'THG-Faktoren'!$G$19,$E$22),VLOOKUP(L38,$B$16:$E$28,4,FALSE))),0)*L60 -> 0 | M69: =IFERROR(IF(M38="Nahwärme",$E$21,IF(VLOOKUP(M38,$B$16:$E$28,3,FALSE)="Strom",IF(M65="ja",'THG-Faktoren'!$G$19,$E$22),VLOOKUP(M38,$B$16:$E$28,4,FALSE))),0)*M60 -> 0
B70: CO2-Emissionen neu 2 | D70: =IFERROR(IF(VLOOKUP(D39,$B$16:$E$28,3,FALSE)="Strom",IF(D65="ja",'THG-Faktoren'!$G$19,$E$22),VLOOKUP(D39,$B$16:$E$28,4,FALSE)),0)*D61 -> 0 | E70: =IFERROR(IF(VLOOKUP(E39,$B$16:$E$28,3,FALSE)="Strom",IF(E65="ja",'THG-Faktoren'!$G$19,$E$22),VLOOKUP(E39,$B$16:$E$28,4,FALSE)),0)*E61 -> 0 | F70: =IFERROR(IF(VLOOKUP(F39,$B$16:$E$28,3,FALSE)="Strom",IF(F65="ja",'THG-Faktoren'!$G$19,$E$22),VLOOKUP(F39,$B$16:$E$28,4,FALSE)),0)*F61 -> 0 | G70: =IFERROR(IF(VLOOKUP(G39,$B$16:$E$28,3,FALSE)="Strom",IF(G65="ja",'THG-Faktoren'!$G$19,$E$22),VLOOKUP(G39,$B$16:$E$28,4,FALSE)),0)*G61 -> 0 | H70: =IFERROR(IF(VLOOKUP(H39,$B$16:$E$28,3,FALSE)="Strom",IF(H65="ja",'THG-Faktoren'!$G$19,$E$22),VLOOKUP(H39,$B$16:$E$28,4,FALSE)),0)*H61 -> 0 | I70: =IFERROR(IF(VLOOKUP(I39,$B$16:$E$28,3,FALSE)="Strom",IF(I65="ja",'THG-Faktoren'!$G$19,$E$22),VLOOKUP(I39,$B$16:$E$28,4,FALSE)),0)*I61 -> 0 | J70: =IFERROR(IF(VLOOKUP(J39,$B$16:$E$28,3,FALSE)="Strom",IF(J65="ja",'THG-Faktoren'!$G$19,$E$22),VLOOKUP(J39,$B$16:$E$28,4,FALSE)),0)*J61 -> 0 | K70: =IFERROR(IF(VLOOKUP(K39,$B$16:$E$28,3,FALSE)="Strom",IF(K65="ja",'THG-Faktoren'!$G$19,$E$22),VLOOKUP(K39,$B$16:$E$28,4,FALSE)),0)*K61 -> 0 | L70: =IFERROR(IF(VLOOKUP(L39,$B$16:$E$28,3,FALSE)="Strom",IF(L65="ja",'THG-Faktoren'!$G$19,$E$22),VLOOKUP(L39,$B$16:$E$28,4,FALSE)),0)*L61 -> 0 | M70: =IFERROR(IF(VLOOKUP(M39,$B$16:$E$28,3,FALSE)="Strom",IF(M65="ja",'THG-Faktoren'!$G$19,$E$22),VLOOKUP(M39,$B$16:$E$28,4,FALSE)),0)*M61 -> 0
B71: CO2-Emissionen neu gesamt | D71: =D69+D70 -> 0 | E71: =E69+E70 -> 0 | F71: 0 | G71: 0 | H71: 0 | I71: 0 | J71: 0 | K71: 0 | L71: 0 | M71: 0
B72: CO2-Einsparung jährlich | D72: =(D68-D71)/1000 -> 0 | E72: =(E68-E71)/1000 -> 0 | F72: =(F68-F71)/1000 -> 0 | G72: 0 | H72: 0 | I72: 0 | J72: 0 | K72: 0 | L72: 0 | M72: 0
B73: CO2-Einsparung in Nutzungsdauer | D73: =D72*$D$4 -> 0 | E73: =E72*$D$4 -> 0 | F73: 0 | G73: 0 | H73: 0 | I73: 0 | J73: 0 | K73: 0 | L73: 0 | M73: 0
B75: Energieträger alt 1 | D75: =IFERROR(IF(D36="Nahwärme",$D$20,VLOOKUP(D36,$B$16:$D$28,3,FALSE)),"-") -> - | E75: - | F75: - | G75: - | H75: - | I75: - | J75: - | K75: - | L75: - | M75: -
B76: Energieträger alt 2 | D76: =IFERROR(IF(D37="Nahwärme",$D$20,VLOOKUP(D37,$B$16:$D$28,3,FALSE)),"-") -> - | E76: - | F76: - | G76: - | H76: - | I76: - | J76: - | K76: - | L76: - | M76: -
B77: Energieträger neu 1 | D77: =IFERROR(IF(D38="Nahwärme",$D$21,VLOOKUP(D38,$B$16:$D$28,3,FALSE)),"-") -> - | E77: - | F77: - | G77: - | H77: - | I77: - | J77: - | K77: - | L77: - | M77: -
B78: Energieträger neu 2 | D78: =IFERROR(IF(D39="Nahwärme",$D$21,VLOOKUP(D39,$B$16:$D$28,3,FALSE)),"-") -> - | E78: - | F78: - | G78: - | H78: - | I78: - | J78: - | K78: - | L78: - | M78: -
B79: Energiekosten alt 1 | D79: =IFERROR(D57*VLOOKUP(D75,'RWS Cockpit'!$E$17:$F$23,2,FALSE),0) -> 0 | E79: =IFERROR(E57*VLOOKUP(E75,'RWS Cockpit'!$E$17:$F$23,2,FALSE),0) -> 0 | F79: =IFERROR(F57*VLOOKUP(F75,'RWS Cockpit'!$E$17:$F$23,2,FALSE),0) -> 0 | G79: =IFERROR(G57*VLOOKUP(G75,'RWS Cockpit'!$E$17:$F$23,2,FALSE),0) -> 0 | H79: =IFERROR(H57*VLOOKUP(H75,'RWS Cockpit'!$E$17:$F$23,2,FALSE),0) -> 0 | I79: =IFERROR(I57*VLOOKUP(I75,'RWS Cockpit'!$E$17:$F$23,2,FALSE),0) -> 0 | J79: =IFERROR(J57*VLOOKUP(J75,'RWS Cockpit'!$E$17:$F$23,2,FALSE),0) -> 0 | K79: =IFERROR(K57*VLOOKUP(K75,'RWS Cockpit'!$E$17:$F$23,2,FALSE),0) -> 0 | L79: =IFERROR(L57*VLOOKUP(L75,'RWS Cockpit'!$E$17:$F$23,2,FALSE),0) -> 0 | M79: =IFERROR(M57*VLOOKUP(M75,'RWS Cockpit'!$E$17:$F$23,2,FALSE),0) -> 0
B80: Energiekosten alt 2 | D80: =IFERROR(D58*VLOOKUP(D76,'RWS Cockpit'!$E$17:$F$23,2,FALSE),0) -> 0 | E80: =IFERROR(E58*VLOOKUP(E76,'RWS Cockpit'!$E$17:$F$23,2,FALSE),0) -> 0 | F80: =IFERROR(F58*VLOOKUP(F76,'RWS Cockpit'!$E$17:$F$23,2,FALSE),0) -> 0 | G80: =IFERROR(G58*VLOOKUP(G76,'RWS Cockpit'!$E$17:$F$23,2,FALSE),0) -> 0 | H80: =IFERROR(H58*VLOOKUP(H76,'RWS Cockpit'!$E$17:$F$23,2,FALSE),0) -> 0 | I80: =IFERROR(I58*VLOOKUP(I76,'RWS Cockpit'!$E$17:$F$23,2,FALSE),0) -> 0 | J80: =IFERROR(J58*VLOOKUP(J76,'RWS Cockpit'!$E$17:$F$23,2,FALSE),0) -> 0 | K80: =IFERROR(K58*VLOOKUP(K76,'RWS Cockpit'!$E$17:$F$23,2,FALSE),0) -> 0 | L80: =IFERROR(L58*VLOOKUP(L76,'RWS Cockpit'!$E$17:$F$23,2,FALSE),0) -> 0 | M80: =IFERROR(M58*VLOOKUP(M76,'RWS Cockpit'!$E$17:$F$23,2,FALSE),0) -> 0
B81: Energiekosten neu 1 | D81: =IFERROR(D60*VLOOKUP(D77,'RWS Cockpit'!$E$17:$F$23,2,FALSE),0) -> 0 | E81: =IFERROR(E60*VLOOKUP(E77,'RWS Cockpit'!$E$17:$F$23,2,FALSE),0) -> 0 | F81: =IFERROR(F60*VLOOKUP(F77,'RWS Cockpit'!$E$17:$F$23,2,FALSE),0) -> 0 | G81: =IFERROR(G60*VLOOKUP(G77,'RWS Cockpit'!$E$17:$F$23,2,FALSE),0) -> 0 | H81: =IFERROR(H60*VLOOKUP(H77,'RWS Cockpit'!$E$17:$F$23,2,FALSE),0) -> 0 | I81: =IFERROR(I60*VLOOKUP(I77,'RWS Cockpit'!$E$17:$F$23,2,FALSE),0) -> 0 | J81: =IFERROR(J60*VLOOKUP(J77,'RWS Cockpit'!$E$17:$F$23,2,FALSE),0) -> 0 | K81: =IFERROR(K60*VLOOKUP(K77,'RWS Cockpit'!$E$17:$F$23,2,FALSE),0) -> 0 | L81: =IFERROR(L60*VLOOKUP(L77,'RWS Cockpit'!$E$17:$F$23,2,FALSE),0) -> 0 | M81: =IFERROR(M60*VLOOKUP(M77,'RWS Cockpit'!$E$17:$F$23,2,FALSE),0) -> 0
B82: Energiekosten neu 2 | D82: =IFERROR(D61*VLOOKUP(D78,'RWS Cockpit'!$E$17:$F$23,2,FALSE),0) -> 0 | E82: =IFERROR(E61*VLOOKUP(E78,'RWS Cockpit'!$E$17:$F$23,2,FALSE),0) -> 0 | F82: =IFERROR(F61*VLOOKUP(F78,'RWS Cockpit'!$E$17:$F$23,2,FALSE),0) -> 0 | G82: =IFERROR(G61*VLOOKUP(G78,'RWS Cockpit'!$E$17:$F$23,2,FALSE),0) -> 0 | H82: =IFERROR(H61*VLOOKUP(H78,'RWS Cockpit'!$E$17:$F$23,2,FALSE),0) -> 0 | I82: =IFERROR(I61*VLOOKUP(I78,'RWS Cockpit'!$E$17:$F$23,2,FALSE),0) -> 0 | J82: =IFERROR(J61*VLOOKUP(J78,'RWS Cockpit'!$E$17:$F$23,2,FALSE),0) -> 0 | K82: =IFERROR(K61*VLOOKUP(K78,'RWS Cockpit'!$E$17:$F$23,2,FALSE),0) -> 0 | L82: =IFERROR(L61*VLOOKUP(L78,'RWS Cockpit'!$E$17:$F$23,2,FALSE),0) -> 0 | M82: =IFERROR(M61*VLOOKUP(M78,'RWS Cockpit'!$E$17:$F$23,2,FALSE),0) -> 0
B83: Energiekosteneinsparungen | D83: =D79+D80-D81-D82 -> 0 | E83: =E79+E80-E81-E82 -> 0 | F83: 0 | G83: 0 | H83: 0 | I83: 0 | J83: 0 | K83: 0 | L83: 0 | M83: 0
B85: Ökostrom Hilfszeile 1 | D85: =IF(D36="Bitte auswählen!","kein Strom",IF(VLOOKUP(D36,$B$16:$D$28,3,FALSE)="Strom","Strom","kein Strom")) -> kein Strom | E85: kein Strom | F85: kein Strom | G85: kein Strom | H85: kein Strom | I85: kein Strom | J85: kein Strom | K85: kein Strom | L85: kein Strom | M85: kein Strom
B86: Ökostrom Hilfszeile 2 | D86: =IF(D37="-","kein Strom",IF(VLOOKUP(D37,$B$16:$D$28,3,FALSE)="Strom","Strom","kein Strom")) -> kein Strom | E86: kein Strom | F86: kein Strom | G86: kein Strom | H86: kein Strom | I86: kein Strom | J86: kein Strom | K86: kein Strom | L86: kein Strom | M86: kein Strom
B87: Ökostrom Hilfszeile alt | D87: =IF(OR(D85="Strom",D86="Strom"),"Strom","kein Strom") -> kein Strom | E87: =IF(OR(E85="Strom",E86="Strom"),"Strom","kein Strom") -> kein Strom | F87: kein Strom | G87: kein Strom | H87: kein Strom | I87: kein Strom | J87: kein Strom | K87: =IF(OR(K85="Strom",K86="Strom"),"Strom","kein Strom") -> kein Strom | L87: kein Strom | M87: kein Strom
B88: Ökostrom Hilfszeile 4 | D88: =IF(D38="Bitte auswählen!","kein Strom",IF(VLOOKUP(D38,$B$16:$D$28,3,FALSE)="Strom","Strom","kein Strom")) -> kein Strom | E88: kein Strom | F88: kein Strom | G88: kein Strom | H88: kein Strom | I88: kein Strom | J88: kein Strom | K88: kein Strom | L88: kein Strom | M88: kein Strom
B89: Ökostrom Hilfszeile 5 | D89: =IF(D39="-","kein Strom",IF(VLOOKUP(D39,$B$16:$D$28,3,FALSE)="Strom","Strom","kein Strom")) -> kein Strom | E89: kein Strom | F89: kein Strom | G89: kein Strom | H89: kein Strom | I89: kein Strom | J89: kein Strom | K89: kein Strom | L89: kein Strom | M89: kein Strom
B90: Ökostrom Hilfszeile neu | D90: =IF(OR(D88="Strom",D89="Strom"),"Strom","kein Strom") -> kein Strom | E90: =IF(OR(E88="Strom",E89="Strom"),"Strom","kein Strom") -> kein Strom | F90: kein Strom | G90: kein Strom | H90: kein Strom | I90: kein Strom | J90: kein Strom | K90: kein Strom | L90: kein Strom | M90: kein Strom

Sheet Dropdowns (hidden)
D3: Anmerkung: Nicht den Unterstrich entfernen!
B4: Bitte auswählen! | C4: Energieeffizienz | D4: Erneuerbare_Energien | E4: Dämmung
C5: Bitte auswählen! | D5: Bitte auswählen! | E5: Bitte auswählen!
C6: Heizungstausch | D6: Wind | E6: Naturdämmstoff
C7: LED | D7: Photovoltaik | E7: Künstlicher_Dämmstoff
C8: Brauchwasserpumpe | D8: Wasserkraft
C9: Heizungspumpe | D9: Biogas BHKW
C10: Lüftungsanlage_oder_Klimaanlage | D10: Biomasse Festbrennst. BHKW
C11: GreenIT | D11: Solarthermie (nur Warmwasser)
B15: LED | C15: Strom eing | D15: 0
B16: Brauchwasserpumpe | C16: Strom eing | D16: 0
B17: Heizungspumpe | C17: Strom eing | D17: 0
B18: GreenIT | C18: Strom eing | D18: 0
B19: Lüftungsanlage_oder_Klimaanlage | C19: Strom eing | D19: 0
B20: Wind | C20: Strom erz | D20: 0
B21: Photovoltaik | C21: Strom erz | D21: 0
B22: Wasserkraft | C22: Strom erz | D22: 0
B23: Biogas BHKW | C23: erz | D23: 1
B24: Biomasse Festbrennst. BHKW | C24: erz | D24: 1
B25: Solarthermie (nur Warmwasser) | C25: Wärme erz | D25: 1
B26: Naturdämmstoff | C26: Wärme eing | D26: 1
B27: Künstlicher_Dämmstoff | C27: Wärme eing | D27: 1
B30: Spezifische Biodivpunkte
C31: Bronze | D31: Silber | E31: Gold | F31: Gold
B32: LED | C32: 0 | D32: 0 | E32: LEDs mit < 2.000 K [Anzahl der Leuchten] | F32: LEDs voll abgeschirmt [Anzahl der Leuchten]
B33: Brauchwasserpumpe | C33: 0 | D33: 0 | E33: 0 | F33: 0
B34: Heizungspumpe | C34: 0 | D34: 0 | E34: 0 | F34: 0
B35: GreenIT | C35: 0 | D35: 0 | E35: 0 | F35: 0
B36: Lüftungsanlage_oder_Klimaanlage | C36: 0 | D36: 0 | E36: 0 | F36: 0
B37: Wind | C37: 0 | D37: 0 | E37: 0 | F37: 0
B38: Photovoltaik | C38: 0 | D38: 0 | E38: Bei Freifläche: Weidetierhaltung [Anzahl der Tiere] | F38: 0
B39: Wasserkraft | C39: 0 | D39: 0 | E39: 0 | F39: 0
B40: Biogas BHKW | C40: 0 | D40: 0 | E40: Einsatz von alternativen Biogassubstraten [ha] | F40: Kavitation als Zusatztechnologie? [1=ja, 0=nein]
B41: Biomasse Festbrennst. BHKW | C41: 0 | D41: 0 | E41: Kavitation als Zusatztechnologie? [1=ja, 0=nein] | F41: 0
B42: Solarthermie (nur Warmwasser) | C42: 0 | D42: 0 | E42: 0 | F42: 0
B43: Naturdämmstoff | C43: Nistmöglichkeiten in Dämmung [Anzahl] | D43: Dämmstoff: Holzartige / Zellulose [m²] | E43: Dämmstoff: Hanf / Flachs / Schafwolle [m²] | F43: 0
B44: Künstlicher_Dämmstoff | C44: Nistmöglichkeiten in Dämmung [Anzahl] | D44: 0 | E44: 0 | F44: 0
C47: Punkte | D47: Kosten
B48: Blühwiese (min. 50 m2) | C48: =D48/2 -> 2.5 | D48: 5
B49: Begrenzungshecke/Sichtschutzhecke (min. 50 m²) | C49: =D49/2 -> 100 | D49: 200
B50: Bäume pflanzen | C50: 25 | D50: 50
B51: Extensive Weidewirtschaft (min. 10.000 m2) | C51: 2.5 | D51: 5
B52: Wiederherstellung / Schaffung von Weihern (min. 50 m2) | C52: 25 | D52: 50
B53: Wiederherstellung / Schaffung von Feuchtgebieten (min. 50 m2) | C53: 25 | D53: 50
B54: Dachbegrünung in städtischen Gebieten (min. 10 m2) | C54: 25 | D54: 50
B55: Installation von Nistkästen - Insekten | C55: 12.5 | D55: 25
B56: Installation von Insektenhotel | C56: 25 | D56: 50
B57: Installation von Nistkästen - Vögel | C57: 12.5 | D57: 25
B58: Installation von Nistkästen - Eulen & Greifvögel | C58: 50 | D58: 100
B59: Installation von Nistkästen - Fledermäuse | C59: 25 | D59: 50
B60: Streuobstwiese (min. 100 m2) | C60: 25 | D60: 50
B61: Trockenmauer (min. 10 m) | C61: 25 | D61: 50
B62: Amphibienschutzzaun (min. 100 m) | C62: 200 | D62: 400
B63: LEDs mit < 2.000 K [Anzahl der Leuchten] | C63: 25 | D63: 50
B64: LEDs voll abgeschirmt [Anzahl der Leuchten] | C64: 25 | D64: 50
B66: Bildungsmaßnahmen (z. B. Schulklassen, Menschen mit Behinderung etc.) | C66: 50 | D66: 100
B68: Dämmstoff: Hanf / Flachs / Schafwolle [m²] | C68: =D68/2 -> 60 | D68: 120
B69: Dämmstoff: Holzartige / Zellulose [m²] | C69: 40 | D69: 80
B70: Bei Freifläche: Blühwiese [m²] | C70: 25 | D70: 50
B71: Bei Freifläche: Weidetierhaltung [Anzahl der Tiere] | C71: 120 | D71: 120 | E71: vorher 60 pkt
B72: Kavitation als Zusatztechnologie? [1=ja, 0=nein] | C72: 4000 | D72: 0 | E72: 0
B73: Einsatz von alternativen Biogassubstraten [ha] | C73: 375 | D73: 750 | E73: vorher 20 kosten, dann 200
B74: Nistmöglichkeiten in Dämmung [Anzahl] | C74: 50 | D74: 100
B75: Agrar Hölzer im Kurzumtrieb (min. 30 m) | C75: 50 | D75: 100
B76: Benjeshecken anlegen (min. 30 m) | C76: 50 | D76: 300 | E76: vorher 150 pkt
B79: Bitte auswählen!
B80: Liegenschaften
B81: Industrie & GHD
B82: Private Haushalte
B83: Vereine
B86: Dropdowns Heizungstausch
B87: Heizungstausch | C87: Energieträger | D87: Baujahr | E87: Energieträger | F87: Gebäudetyp | G87: Gebäudetyp Sonstige
B88: Bitte auswählen! | C88: Bitte auswählen! | D88: Bitte auswählen! | E88: Bitte auswählen! | F88: Bitte auswählen! | G88: Bitte auswählen!
B89: Heizöl | C89: Heizöl | D89: Älter als 1990 | E89: Heizöl | F89: Wohngebäude | G89: niedrig
B90: Erdgas | C90: Erdgas | D90: 1990er | E90: Erdgas | F90: Bürogebäude | G90: mittel
B91: Biogas | C91: Biogas | D91: 2000er | E91: Biogas | F91: Schule (halbtags) o.ä. | G91: hoch
B92: Solarthermie | C92: Solarthermie | D92: Neuer als 2010 | E92: Pellet | F92: Schule (ganztags) o.ä.
B93: Nahwärme | C93: Nahwärme | E93: Holzhackschnitzel | F93: Medizinische Einrichtung
B94: Luft-Wärmepumpe | C94: Luft-Wärmepumpe | E94: Scheitholz | F94: Sonstige
B95: Wasser-Wärmepumpe | C95: Wasser-Wärmepumpe | E95: Strom
B96: Sole-Wärmepumpe | C96: Sole-Wärmepumpe
B97: Pellet | C97: Pellet
B98: Holzhackschnitzel | C98: Holzhackschnitzel
B99: Scheitholzvergasung | C99: Scheitholzvergasung
B100: Strom (z. B. Nachtspeicher) | C100: Strom (z. B. Nachtspeicher)

Sheet THG-Faktoren (hidden)
B2: Vorkette | F2: CO2e-Faktoren Strom | I2: Werte regelmäßig updaten!
C3: STROM | D3: WÄRME | F3: 2019 | G3: 401
B4: LED | C4: 0 | I4: Infobox zur Methodik: "In Anlehnung an die methodischen Grundsätze der Lebenszyklusanalyse (Klöpffer & Grahl, 2009), werden dabei sowohl die direkten Emissionen berücksichtigt, die im Zuge der Umwandlung von Primärenergieträgern z. B. bei der Verbrennung fossiler oder biogener Brennstoffe verursacht werden, als auch die indirekten Emissionen, die außerhalb der Umwandlungsprozesse in den sog. Vorketten z. B. bei der Herstellung von Anlagen zur Energieumwandlung oder der Gewinnung und Bereitstellung von Primär- und Sekundärenergieträgern entstehen. Dazu zählen auch Emissionen aus fremdbezogener Hilfsenergie, die unmittelbar mit dem Erzeugungspfad in Verbindung stehen." (Aus: "Emissionsbilanz erneuerbarer Energieträger - Bestimmung der vermiedenen Emissionen im Jahr 2017", Umweltbundesamt, 2018, Kapitel 2.1 "Methodik")
B5: Brauchwasserpumpe | C5: 0 | F5: CO2e-Faktoren Wärme
B6: Heizungspumpe | C6: 0 | F6: Private Haushalte | G6: 300.6785
B7: GreenIT | C7: 0 | F7: Industrie & GHD | G7: 253.4525
B8: Lüftungsanlage_oder_Klimaanlage | C8: 0 | F8: Liegenschaften | G8: 249.98
B9: Wind | C9: 10.68 | F9: Vereine | G9: 249.98
B10: Photovoltaik | C10: 48.57
B11: Wasserkraft | C11: 6.46 | F11: Energieträger | G11: CO2e-Emissionsfaktoren Heizung (inkl. Vorkette)
B12: Biogas BHKW | C12: 194.37 | D12: 90.19 | F12: Heizöl | G12: =74020/277778 -> 0.2664717868
B13: Biomasse Festbrennst. BHKW | C13: 194.37 | D13: 23.05333333 | F13: Erdgas | G13: =55718/277778 -> 0.2005846395
B14: Solarthermie (nur Warmwasser) | C14: 0 | D14: 24.84 | F14: Biogas | G14: =AVERAGE(147.949,243.521,112.761,192.129)/1000 -> 0.17409
B15: Naturdämmstoff | C15: 0 | D15: 0 | F15: Pellet | G15: =22.937/1000 -> 0.022937
B16: Künstlicher_Dämmstoff | C16: 0 | D16: 0 | F16: Holzhackschnitzel | G16: =AVERAGE(27.722,26.275)/1000 -> 0.0269985
F17: Solarthermie | G17: =AVERAGE(22.242,26.877,17.118)/1000 -> 0.022079
F18: Scheitholz | G18: =16.826/1000 -> 0.016826
F19: Ökostrom | G19: =SUMPRODUCT(H24:H30,G24:G30)/1000 -> 0.03593367209
F20: Strom | G20: =G3/1000 -> 0.401
F22: Ermittlung des CO2e-Emissionsfaktors für Ökostrom
F23: Energieträger | G23: Anteil an THG-Gesamtemissionen | H23: Emissionsfaktor | I23: Quelle in UBA, "Emissionsbilanz erneuerbarer Energieträger", 2018
F24: Photovoltaik | G24: =24/135.2 -> 0.1775147929 | H24: 67.321 | I24: 4.1.3 Tab 10
F25: Windenergie | G25: =71/135.2 -> 0.525147929 | H25: =AVERAGE(10.584,6.085) -> 8.3345 | I25: 4.2.3 Tab 15, 4.3.3 Tab. 19
F26: Wasserkraft | G26: =15/135.2 -> 0.1109467456 | H26: =AVERAGE(2.702,25.651) -> 14.1765 | I26: 4.4.3 Tab. 23
F27: Feste Biomasse | G27: =7/135.2 -> 0.05177514793 | H27: =AVERAGE(19.478,20.974,35.882,19.967,8.638,50.532,7.876,38.077,24.439,56.261) -> 28.2124 | I27: 4.6.3 Tab. 33
F28: Biogas | G28: =12/135.2 -> 0.08875739645 | H28: =AVERAGE(165.26,278.38,130.07,209.44,111.99,178.4,139.27,146.58) -> 169.92375 | I28: 4.7.3 Tab. 38
F29: Biogener Abfall | G29: =5/135.2 -> 0.03698224852 | H29: 1.449 | I29: 4.11.3 Tab. 58
F30: Sonstige | G30: =2/135.2 -> 0.01479289941 | H30: =AVERAGE(H31:H34) -> 97.15733333
F31: Sonstige Anteil | H31: 192.03 | I31: Tiefengeothermie (4.5.3 Tab. 28)
F32: Sonstige Anteil | H32: =AVERAGE(6.431,154.7,116.01) -> 92.38033333 | I32: Flüssige Biomasse (4.8.3 Tab. 44)
F33: Sonstige Anteil | H33: 54.209 | I33: Klärgas (4.9.3 Tab. 48)
F34: Sonstige Anteil | H34: 50.01 | I34: Deponiegas (4.10.3 Tab. 53)

Sheet Hinweistexte (hidden)
B3: Hinweis_fehl_RW | K3: Texte veränderbar!
B4: Eines Ihrer Projekte erzielt keine regionale Wertschöpfung. Bitte prüfen Sie, ob Sie in jedem, der von Ihnen aktivierten Tabellenblätter, eine Investition eingetragen haben. Sollten Sie dennoch keine regionale Wertschöpfung erzielen, erhalten Sie dennoch die Möglichkeit des Erhalts eines Zertifikats aufgrund der erzielten Einsparung von Treibhausgasemissionen.
B11: Hinweis_Amz
B12: Bitte ergänzen Sie eine kurze Beschreibung zu Ihrem durchgeführten Projekt. Zur Hilfestellung dienen folgende Fragen: Was genau wurde durchgeführt und warum? Wer profitiert von dem Projekt? Welche Technologie wurde verwendet?
B18: Hinweis_Flaeche
B19: Sie haben die Mindestflächenanforderung für diese Naturschutzkategorie nicht erfüllt. Achten Sie auf den angegebenen Mindestwert.
B24: Hinweis_BDB
B25: Mindestens eines Ihrer Projekte ist entweder nicht zertifizierbar oder weist Fehler auf. Bitte überprüfen Sie Ihre Angaben und beachten Sie das Tabellenblatt 'Anmerkungen'!
B29: Hinweis_Best_Ausgaben
B30: Bitte bestätigen Sie die Richtigkeit der Angaben im Formular und erklären Sie sich dazu bereit im Falle einer Überprüfung alle notwendigen Daten bereitzustellen.
B33: Hinweis_EnEf
B34: Die berechnete CO2-Minderung über die Lebensdauer ist zu gering, um ein Zertifikat erhalten zu können.
B37: Hinweis_Antragsteller
B38: Bitte geben Sie im Tabellenblatt 'Übersicht' in Zeile 1 Ihren oder den Namen Ihrer Institution/Firma ein.
B41: Hinweis_01
B42: Sie haben in mindestens einem "PJ"-Tabellenblatt einen Heizungstausch ausgewählt. Bitte füllen Sie nun das Tabellenblatt "Eingabe Heizungstausch" vollständig und korrekt aus. Vergewissern Sie sich, dass Sie alle notwendigen Angaben getätigt haben.
B46: Hinweis_MaxAusbeute
B47: Sie können noch weitere Zertifikate erhalten, indem Sie Ihre Naturschutz- und Sozialmaßnahmen erhöhen (siehe gelber Kasten im PJ-Tabellenblatt). Überlegen Sie sich, ob Sie weitere Maßnahmen durchführen möchten, um Ihre Zertifikatausbeute so zu maximieren.
B52: Hinweis_BioDiv
B53: Ihnen fehlen Naturschutz- oder Sozialpunkte. Ohne diese Punkte ist Ihr Projekt nicht zertifizierbar.
B56: Hinweis_Soz
B57: Für einen Sozialpunkt benötigt man mindestens eine volle Stunde.
B60: Hinweis_allg
B61: Korrigieren Sie bitte fehlerhafte Eingaben in den Zeilen 2-9 in einem der PJ-Tabellenblätter.

Sheet Berechnungen_1 (hidden)
C3: Berechnung BioDiv-Punkte | D3: PJ1 | E3: PJ1 | F3: PJ2 | G3: PJ2 | H3: PJ3 | I3: PJ3 | J3: PJ4 | K3: PJ4 | L3: PJ5 | M3: PJ5 | N3: PJ6 | O3: PJ6 | P3: PJ7 | Q3: PJ7 | R3: PJ8 | S3: PJ8 | T3: PJ9 | U3: PJ9 | V3: PJ10 | W3: PJ10 | X3: Summe
B4: Sverweis in Überblick | D4: =Berechnungen_2!C5 -> FALSE | E4: =Berechnungen_2!C5 -> FALSE | F4: =Berechnungen_2!C6 -> FALSE | G4: =Berechnungen_2!C6 -> FALSE | H4: =Berechnungen_2!C7 -> FALSE | I4: =Berechnungen_2!C7 -> FALSE | J4: =Berechnungen_2!C8 -> FALSE | K4: =Berechnungen_2!C8 -> FALSE | L4: =Berechnungen_2!C9 -> FALSE | M4: =Berechnungen_2!C9 -> FALSE | N4: =Berechnungen_2!C10 -> FALSE | O4: =Berechnungen_2!C10 -> FALSE | P4: =Berechnungen_2!C11 -> FALSE | Q4: =Berechnungen_2!C11 -> FALSE | R4: =Berechnungen_2!C12 -> FALSE | S4: =Berechnungen_2!C12 -> FALSE | T4: =Berechnungen_2!C13 -> FALSE | U4: =Berechnungen_2!C13 -> FALSE | V4: =Berechnungen_2!C14 -> FALSE | W4: =Berechnungen_2!C14 -> FALSE
D5: Anzahl/Fläche | E5: Punkte | F5: Anzahl/Fläche | G5: Punkte | H5: Anzahl/Fläche | I5: Punkte | J5: Anzahl/Fläche | K5: Punkte | L5: Anzahl/Fläche | M5: Punkte | N5: Anzahl/Fläche | O5: Punkte | P5: Anzahl/Fläche | Q5: Punkte | R5: Anzahl/Fläche | S5: Punkte | T5: Anzahl/Fläche | U5: Punkte | V5: Anzahl/Fläche | W5: Punkte | X5: Anzahl/Fläche | Y5: Punkte
B6: Blühwiese | C6: Blühwiese | D6: =IF($D$4,IF(ISERROR(INDIRECT($D$3&"!Wiese")),0,INDIRECT($D$3&"!Wiese")),0) -> 0 | E6: =IF($D$4,IF(ISERROR(INDIRECT($E$3&"!WiesePkt")),0,INDIRECT($E$3&"!WiesePkt")),0) -> 0 | F6: =IF($F$4,IF(ISERROR(INDIRECT($F$3&"!Wiese")),0,INDIRECT($F$3&"!Wiese")),0) -> 0 | G6: =IF($F$4,IF(ISERROR(INDIRECT($G$3&"!WiesePkt")),0,INDIRECT($G$3&"!WiesePkt")),0) -> 0 | H6: =IF($H$4,IF(ISERROR(INDIRECT($H$3&"!Wiese")),0,INDIRECT($H$3&"!Wiese")),0) -> 0 | I6: =IF($H$4,IF(ISERROR(INDIRECT($I$3&"!WiesePkt")),0,INDIRECT($I$3&"!WiesePkt")),0) -> 0 | J6: =IF($J$4,IF(ISERROR(INDIRECT($J$3&"!Wiese")),0,INDIRECT($J$3&"!Wiese")),0) -> 0 | K6: =IF($J$4,IF(ISERROR(INDIRECT($K$3&"!WiesePkt")),0,INDIRECT($K$3&"!WiesePkt")),0) -> 0 | L6: =IF($L$4,IF(ISERROR(INDIRECT($L$3&"!Wiese")),0,INDIRECT($L$3&"!Wiese")),0) -> 0 | M6: =IF($L$4,IF(ISERROR(INDIRECT($M$3&"!WiesePkt")),0,INDIRECT($M$3&"!WiesePkt")),0) -> 0 | N6: =IF($N$4,IF(ISERROR(INDIRECT($N$3&"!Wiese")),0,INDIRECT($N$3&"!Wiese")),0) -> 0 | O6: =IF($N$4,IF(ISERROR(INDIRECT($O$3&"!WiesePkt")),0,INDIRECT($O$3&"!WiesePkt")),0) -> 0 | P6: =IF($P$4,IF(ISERROR(INDIRECT($P$3&"!Wiese")),0,INDIRECT($P$3&"!Wiese")),0) -> 0 | Q6: =IF($P$4,IF(ISERROR(INDIRECT($Q$3&"!WiesePkt")),0,INDIRECT($Q$3&"!WiesePkt")),0) -> 0 | R6: =IF($R$4,IF(ISERROR(INDIRECT($R$3&"!Wiese")),0,INDIRECT($R$3&"!Wiese")),0) -> 0 | S6: =IF($R$4,IF(ISERROR(INDIRECT($S$3&"!WiesePkt")),0,INDIRECT($S$3&"!WiesePkt")),0) -> 0 | T6: =IF($T$4,IF(ISERROR(INDIRECT($T$3&"!Wiese")),0,INDIRECT($T$3&"!Wiese")),0) -> 0 | U6: =IF($T$4,IF(ISERROR(INDIRECT($U$3&"!WiesePkt")),0,INDIRECT($U$3&"!WiesePkt")),0) -> 0 | V6: =IF($V$4,IF(ISERROR(INDIRECT($V$3&"!Wiese")),0,INDIRECT($V$3&"!Wiese")),0) -> 0 | W6: =IF($V$4,IF(ISERROR(INDIRECT($W$3&"!WiesePkt")),0,INDIRECT($W$3&"!WiesePkt")),0) -> 0 | X6: =D6+F6+H6+J6+L6+N6+P6+R6+T6+V6 -> 0 | Y6: =E6+G6+I6+K6+M6+O6+Q6+S6+U6+W6 -> 0
B7: Begrenzungshecke/Sichtschutzhecke | C7: Begrenzungshecke/Sichtschutzhecke (min. 50 m²) | D7: =IF(D4,IF(ISERROR(INDIRECT(D3&"!Hecken")),0,INDIRECT(D3&"!Hecken")),0) -> 0 | E7: =IF(D4,IF(ISERROR(INDIRECT(E3&"!HeckenPkt")),0,INDIRECT(E3&"!HeckenPkt")),0) -> 0 | F7: =IF(F4,IF(ISERROR(INDIRECT(F3&"!Hecken")),0,INDIRECT(F3&"!Hecken")),0) -> 0 | G7: =IF(F4,IF(ISERROR(INDIRECT(G3&"!HeckenPkt")),0,INDIRECT(G3&"!HeckenPkt")),0) -> 0 | H7: =IF(H4,IF(ISERROR(INDIRECT(H3&"!Hecken")),0,INDIRECT(H3&"!Hecken")),0) -> 0 | I7: =IF(H4,IF(ISERROR(INDIRECT(I3&"!HeckenPkt")),0,INDIRECT(I3&"!HeckenPkt")),0) -> 0 | J7: =IF(J4,IF(ISERROR(INDIRECT(J3&"!Hecken")),0,INDIRECT(J3&"!Hecken")),0) -> 0 | K7: =IF(J4,IF(ISERROR(INDIRECT(K3&"!HeckenPkt")),0,INDIRECT(K3&"!HeckenPkt")),0) -> 0 | L7: =IF(L4,IF(ISERROR(INDIRECT(L3&"!Hecken")),0,INDIRECT(L3&"!Hecken")),0) -> 0 | M7: =IF(L4,IF(ISERROR(INDIRECT(M3&"!HeckenPkt")),0,INDIRECT(M3&"!HeckenPkt")),0) -> 0 | N7: =IF(N4,IF(ISERROR(INDIRECT(N3&"!Hecken")),0,INDIRECT(N3&"!Hecken")),0) -> 0 | O7: =IF(N4,IF(ISERROR(INDIRECT(O3&"!HeckenPkt")),0,INDIRECT(O3&"!HeckenPkt")),0) -> 0 | P7: =IF(P4,IF(ISERROR(INDIRECT(P3&"!Hecken")),0,INDIRECT(P3&"!Hecken")),0) -> 0 | Q7: =IF(P4,IF(ISERROR(INDIRECT(Q3&"!HeckenPkt")),0,INDIRECT(Q3&"!HeckenPkt")),0) -> 0 | R7: =IF(R4,IF(ISERROR(INDIRECT(R3&"!Hecken")),0,INDIRECT(R3&"!Hecken")),0) -> 0 | S7: =IF(R4,IF(ISERROR(INDIRECT(S3&"!HeckenPkt")),0,INDIRECT(S3&"!HeckenPkt")),0) -> 0 | T7: =IF(T4,IF(ISERROR(INDIRECT(T3&"!Hecken")),0,INDIRECT(T3&"!Hecken")),0) -> 0 | U7: =IF(T4,IF(ISERROR(INDIRECT(U3&"!HeckenPkt")),0,INDIRECT(U3&"!HeckenPkt")),0) -> 0 | V7: =IF(V4,IF(ISERROR(INDIRECT(V3&"!Hecken")),0,INDIRECT(V3&"!Hecken")),0) -> 0 | W7: =IF(V4,IF(ISERROR(INDIRECT(W3&"!HeckenPkt")),0,INDIRECT(W3&"!HeckenPkt")),0) -> 0 | X7: 0 | Y7: 0
B8: Bäume pflanzen | C8: Bäume pflanzen | D8: =IF(D4,IF(ISERROR(INDIRECT(D3&"!Baeume")),0,INDIRECT(D3&"!Baeume")),0) -> 0 | E8: =IF(D4,IF(ISERROR(INDIRECT(E3&"!BaeumePkt")),0,INDIRECT(E3&"!BaeumePkt")),0) -> 0 | F8: =IF(F4,IF(ISERROR(INDIRECT(F3&"!Baeume")),0,INDIRECT(F3&"!Baeume")),0) -> 0 | G8: =IF(F4,IF(ISERROR(INDIRECT(G3&"!BaeumePkt")),0,INDIRECT(G3&"!BaeumePkt")),0) -> 0 | H8: =IF(H4,IF(ISERROR(INDIRECT(H3&"!Baeume")),0,INDIRECT(H3&"!Baeume")),0) -> 0 | I8: =IF(H4,IF(ISERROR(INDIRECT(I3&"!BaeumePkt")),0,INDIRECT(I3&"!BaeumePkt")),0) -> 0 | J8: =IF(J4,IF(ISERROR(INDIRECT(J3&"!Baeume")),0,INDIRECT(J3&"!Baeume")),0) -> 0 | K8: =IF(J4,IF(ISERROR(INDIRECT(K3&"!BaeumePkt")),0,INDIRECT(K3&"!BaeumePkt")),0) -> 0 | L8: =IF(L4,IF(ISERROR(INDIRECT(L3&"!Baeume")),0,INDIRECT(L3&"!Baeume")),0) -> 0 | M8: =IF(L4,IF(ISERROR(INDIRECT(M3&"!BaeumePkt")),0,INDIRECT(M3&"!BaeumePkt")),0) -> 0 | N8: =IF(N4,IF(ISERROR(INDIRECT(N3&"!Baeume")),0,INDIRECT(N3&"!Baeume")),0) -> 0 | O8: =IF(N4,IF(ISERROR(INDIRECT(O3&"!BaeumePkt")),0,INDIRECT(O3&"!BaeumePkt")),0) -> 0 | P8: =IF(P4,IF(ISERROR(INDIRECT(P3&"!Baeume")),0,INDIRECT(P3&"!Baeume")),0) -> 0 | Q8: =IF(P4,IF(ISERROR(INDIRECT(Q3&"!BaeumePkt")),0,INDIRECT(Q3&"!BaeumePkt")),0) -> 0 | R8: =IF(R4,IF(ISERROR(INDIRECT(R3&"!Baeume")),0,INDIRECT(R3&"!Baeume")),0) -> 0 | S8: =IF(R4,IF(ISERROR(INDIRECT(S3&"!BaeumePkt")),0,INDIRECT(S3&"!BaeumePkt")),0) -> 0 | T8: =IF(T4,IF(ISERROR(INDIRECT(T3&"!Baeume")),0,INDIRECT(T3&"!Baeume")),0) -> 0 | U8: =IF(T4,IF(ISERROR(INDIRECT(U3&"!BaeumePkt")),0,INDIRECT(U3&"!BaeumePkt")),0) -> 0 | V8: =IF(V4,IF(ISERROR(INDIRECT(V3&"!Baeume")),0,INDIRECT(V3&"!Baeume")),0) -> 0 | W8: =IF(V4,IF(ISERROR(INDIRECT(W3&"!BaeumePkt")),0,INDIRECT(W3&"!BaeumePkt")),0) -> 0 | X8: 0 | Y8: 0
B9: Extensive Weidewirtschaft | C9: Extensive Weidewirtschaft (min. 10.000 m2) | D9: =IF(D4,IF(ISERROR(INDIRECT(D3&"!Baeume")),0,INDIRECT(D3&"!Weiden")),0) -> 0 | E9: =IF(D4,IF(ISERROR(INDIRECT(E3&"!HeckenPkt")),0,INDIRECT(E3&"!WeidenPkt")),0) -> 0 | F9: =IF(F4,IF(ISERROR(INDIRECT(F3&"!Baeume")),0,INDIRECT(F3&"!Weiden")),0) -> 0 | G9: =IF(F4,IF(ISERROR(INDIRECT(G3&"!HeckenPkt")),0,INDIRECT(G3&"!WeidenPkt")),0) -> 0 | H9: =IF(H4,IF(ISERROR(INDIRECT(H3&"!Baeume")),0,INDIRECT(H3&"!Weiden")),0) -> 0 | I9: =IF(H4,IF(ISERROR(INDIRECT(I3&"!HeckenPkt")),0,INDIRECT(I3&"!WeidenPkt")),0) -> 0 | J9: =IF(J4,IF(ISERROR(INDIRECT(J3&"!Baeume")),0,INDIRECT(J3&"!Weiden")),0) -> 0 | K9: =IF(J4,IF(ISERROR(INDIRECT(K3&"!HeckenPkt")),0,INDIRECT(K3&"!WeidenPkt")),0) -> 0 | L9: =IF(L4,IF(ISERROR(INDIRECT(L3&"!Baeume")),0,INDIRECT(L3&"!Weiden")),0) -> 0 | M9: =IF(L4,IF(ISERROR(INDIRECT(M3&"!HeckenPkt")),0,INDIRECT(M3&"!WeidenPkt")),0) -> 0 | N9: =IF(N4,IF(ISERROR(INDIRECT(N3&"!Baeume")),0,INDIRECT(N3&"!Weiden")),0) -> 0 | O9: =IF(N4,IF(ISERROR(INDIRECT(O3&"!HeckenPkt")),0,INDIRECT(O3&"!WeidenPkt")),0) -> 0 | P9: =IF(P4,IF(ISERROR(INDIRECT(P3&"!Baeume")),0,INDIRECT(P3&"!Weiden")),0) -> 0 | Q9: =IF(P4,IF(ISERROR(INDIRECT(Q3&"!HeckenPkt")),0,INDIRECT(Q3&"!WeidenPkt")),0) -> 0 | R9: =IF(R4,IF(ISERROR(INDIRECT(R3&"!Baeume")),0,INDIRECT(R3&"!Weiden")),0) -> 0 | S9: =IF(R4,IF(ISERROR(INDIRECT(S3&"!HeckenPkt")),0,INDIRECT(S3&"!WeidenPkt")),0) -> 0 | T9: =IF(T4,IF(ISERROR(INDIRECT(T3&"!Baeume")),0,INDIRECT(T3&"!Weiden")),0) -> 0 | U9: =IF(T4,IF(ISERROR(INDIRECT(U3&"!HeckenPkt")),0,INDIRECT(U3&"!WeidenPkt")),0) -> 0 | V9: =IF(V4,IF(ISERROR(INDIRECT(V3&"!Baeume")),0,INDIRECT(V3&"!Weiden")),0) -> 0 | W9: =IF(V4,IF(ISERROR(INDIRECT(W3&"!HeckenPkt")),0,INDIRECT(W3&"!WeidenPkt")),0) -> 0 | X9: 0 | Y9: 0
B10: Wiederherstellung / Schaffung von Weihern | C10: Wiederherstellung / Schaffung von Weihern | D10: =IF(D4,IF(ISERROR(INDIRECT(D3&"!Baeume")),0,INDIRECT(D3&"!Weiher")),0) -> 0 | E10: =IF(D4,IF(ISERROR(INDIRECT(E3&"!HeckenPkt")),0,INDIRECT(E3&"!WeiherPkt")),0) -> 0 | F10: =IF(F4,IF(ISERROR(INDIRECT(F3&"!Baeume")),0,INDIRECT(F3&"!Weiher")),0) -> 0 | G10: =IF(F4,IF(ISERROR(INDIRECT(G3&"!HeckenPkt")),0,INDIRECT(G3&"!WeiherPkt")),0) -> 0 | H10: =IF(H4,IF(ISERROR(INDIRECT(H3&"!Baeume")),0,INDIRECT(H3&"!Weiher")),0) -> 0 | I10: =IF(H4,IF(ISERROR(INDIRECT(I3&"!HeckenPkt")),0,INDIRECT(I3&"!WeiherPkt")),0) -> 0 | J10: =IF(J4,IF(ISERROR(INDIRECT(J3&"!Baeume")),0,INDIRECT(J3&"!Weiher")),0) -> 0 | K10: =IF(J4,IF(ISERROR(INDIRECT(K3&"!HeckenPkt")),0,INDIRECT(K3&"!WeiherPkt")),0) -> 0 | L10: =IF(L4,IF(ISERROR(INDIRECT(L3&"!Baeume")),0,INDIRECT(L3&"!Weiher")),0) -> 0 | M10: =IF(L4,IF(ISERROR(INDIRECT(M3&"!HeckenPkt")),0,INDIRECT(M3&"!WeiherPkt")),0) -> 0 | N10: =IF(N4,IF(ISERROR(INDIRECT(N3&"!Baeume")),0,INDIRECT(N3&"!Weiher")),0) -> 0 | O10: =IF(N4,IF(ISERROR(INDIRECT(O3&"!HeckenPkt")),0,INDIRECT(O3&"!WeiherPkt")),0) -> 0 | P10: =IF(P4,IF(ISERROR(INDIRECT(P3&"!Baeume")),0,INDIRECT(P3&"!Weiher")),0) -> 0 | Q10: =IF(P4,IF(ISERROR(INDIRECT(Q3&"!HeckenPkt")),0,INDIRECT(Q3&"!WeiherPkt")),0) -> 0 | R10: =IF(R4,IF(ISERROR(INDIRECT(R3&"!Baeume")),0,INDIRECT(R3&"!Weiher")),0) -> 0 | S10: =IF(R4,IF(ISERROR(INDIRECT(S3&"!HeckenPkt")),0,INDIRECT(S3&"!WeiherPkt")),0) -> 0 | T10: =IF(T4,IF(ISERROR(INDIRECT(T3&"!Baeume")),0,INDIRECT(T3&"!Weiher")),0) -> 0 | U10: =IF(T4,IF(ISERROR(INDIRECT(U3&"!HeckenPkt")),0,INDIRECT(U3&"!WeiherPkt")),0) -> 0 | V10: =IF(V4,IF(ISERROR(INDIRECT(V3&"!Baeume")),0,INDIRECT(V3&"!Weiher")),0) -> 0 | W10: =IF(V4,IF(ISERROR(INDIRECT(W3&"!HeckenPkt")),0,INDIRECT(W3&"!WeiherPkt")),0) -> 0 | X10: 0 | Y10: 0
B11: Wiederherstellung / Schaffung von Feuchtgebieten | C11: Wiederherstellung / Schaffung von Feuchtgebieten | D11: =IF(D4,IF(ISERROR(INDIRECT(D3&"!Feuchtgebiete")),0,INDIRECT(D3&"!Feuchtgebiete")),0) -> 0 | E11: =IF(D4,IF(ISERROR(INDIRECT(E3&"!FeuchtgebietePkt")),0,INDIRECT(E3&"!FeuchtgebietePkt")),0) -> 0 | F11: =IF(F4,IF(ISERROR(INDIRECT(F3&"!Feuchtgebiete")),0,INDIRECT(F3&"!Feuchtgebiete")),0) -> 0 | G11: =IF(F4,IF(ISERROR(INDIRECT(G3&"!FeuchtgebietePkt")),0,INDIRECT(G3&"!FeuchtgebietePkt")),0) -> 0 | H11: =IF(H4,IF(ISERROR(INDIRECT(H3&"!Feuchtgebiete")),0,INDIRECT(H3&"!Feuchtgebiete")),0) -> 0 | I11: =IF(H4,IF(ISERROR(INDIRECT(I3&"!FeuchtgebietePkt")),0,INDIRECT(I3&"!FeuchtgebietePkt")),0) -> 0 | J11: =IF(J4,IF(ISERROR(INDIRECT(J3&"!Feuchtgebiete")),0,INDIRECT(J3&"!Feuchtgebiete")),0) -> 0 | K11: =IF(J4,IF(ISERROR(INDIRECT(K3&"!FeuchtgebietePkt")),0,INDIRECT(K3&"!FeuchtgebietePkt")),0) -> 0 | L11: =IF(L4,IF(ISERROR(INDIRECT(L3&"!Feuchtgebiete")),0,INDIRECT(L3&"!Feuchtgebiete")),0) -> 0 | M11: =IF(L4,IF(ISERROR(INDIRECT(M3&"!FeuchtgebietePkt")),0,INDIRECT(M3&"!FeuchtgebietePkt")),0) -> 0 | N11: =IF(N4,IF(ISERROR(INDIRECT(N3&"!Feuchtgebiete")),0,INDIRECT(N3&"!Feuchtgebiete")),0) -> 0 | O11: =IF(N4,IF(ISERROR(INDIRECT(O3&"!FeuchtgebietePkt")),0,INDIRECT(O3&"!FeuchtgebietePkt")),0) -> 0 | P11: =IF(P4,IF(ISERROR(INDIRECT(P3&"!Feuchtgebiete")),0,INDIRECT(P3&"!Feuchtgebiete")),0) -> 0 | Q11: =IF(P4,IF(ISERROR(INDIRECT(Q3&"!FeuchtgebietePkt")),0,INDIRECT(Q3&"!FeuchtgebietePkt")),0) -> 0 | R11: =IF(R4,IF(ISERROR(INDIRECT(R3&"!Feuchtgebiete")),0,INDIRECT(R3&"!Feuchtgebiete")),0) -> 0 | S11: =IF(R4,IF(ISERROR(INDIRECT(S3&"!FeuchtgebietePkt")),0,INDIRECT(S3&"!FeuchtgebietePkt")),0) -> 0 | T11: =IF(T4,IF(ISERROR(INDIRECT(T3&"!Feuchtgebiete")),0,INDIRECT(T3&"!Feuchtgebiete")),0) -> 0 | U11: =IF(T4,IF(ISERROR(INDIRECT(U3&"!FeuchtgebietePkt")),0,INDIRECT(U3&"!FeuchtgebietePkt")),0) -> 0 | V11: =IF(V4,IF(ISERROR(INDIRECT(V3&"!Feuchtgebiete")),0,INDIRECT(V3&"!Feuchtgebiete")),0) -> 0 | W11: =IF(V4,IF(ISERROR(INDIRECT(W3&"!FeuchtgebietePkt")),0,INDIRECT(W3&"!FeuchtgebietePkt")),0) -> 0 | X11: 0 | Y11: 0
B12: Dachbegrünung in städtischen Gebieten | C12: Dachbegrünung in städtischen Gebieten | D12: =IF(D4,IF(ISERROR(INDIRECT(D3&"!Daecher")),0,INDIRECT(D3&"!Daecher")),0) -> 0 | E12: =IF(D4,IF(ISERROR(INDIRECT(E3&"!DaecherPkt")),0,INDIRECT(E3&"!DaecherPkt")),0) -> 0 | F12: =IF(F4,IF(ISERROR(INDIRECT(F3&"!Daecher")),0,INDIRECT(F3&"!Daecher")),0) -> 0 | G12: =IF(F4,IF(ISERROR(INDIRECT(G3&"!DaecherPkt")),0,INDIRECT(G3&"!DaecherPkt")),0) -> 0 | H12: =IF(H4,IF(ISERROR(INDIRECT(H3&"!Daecher")),0,INDIRECT(H3&"!Daecher")),0) -> 0 | I12: =IF(H4,IF(ISERROR(INDIRECT(I3&"!DaecherPkt")),0,INDIRECT(I3&"!DaecherPkt")),0) -> 0 | J12: =IF(J4,IF(ISERROR(INDIRECT(J3&"!Daecher")),0,INDIRECT(J3&"!Daecher")),0) -> 0 | K12: =IF(J4,IF(ISERROR(INDIRECT(K3&"!DaecherPkt")),0,INDIRECT(K3&"!DaecherPkt")),0) -> 0 | L12: =IF(L4,IF(ISERROR(INDIRECT(L3&"!Daecher")),0,INDIRECT(L3&"!Daecher")),0) -> 0 | M12: =IF(L4,IF(ISERROR(INDIRECT(M3&"!DaecherPkt")),0,INDIRECT(M3&"!DaecherPkt")),0) -> 0 | N12: =IF(N4,IF(ISERROR(INDIRECT(N3&"!Daecher")),0,INDIRECT(N3&"!Daecher")),0) -> 0 | O12: =IF(N4,IF(ISERROR(INDIRECT(O3&"!DaecherPkt")),0,INDIRECT(O3&"!DaecherPkt")),0) -> 0 | P12: =IF(P4,IF(ISERROR(INDIRECT(P3&"!Daecher")),0,INDIRECT(P3&"!Daecher")),0) -> 0 | Q12: =IF(P4,IF(ISERROR(INDIRECT(Q3&"!DaecherPkt")),0,INDIRECT(Q3&"!DaecherPkt")),0) -> 0 | R12: =IF(R4,IF(ISERROR(INDIRECT(R3&"!Daecher")),0,INDIRECT(R3&"!Daecher")),0) -> 0 | S12: =IF(R4,IF(ISERROR(INDIRECT(S3&"!DaecherPkt")),0,INDIRECT(S3&"!DaecherPkt")),0) -> 0 | T12: =IF(T4,IF(ISERROR(INDIRECT(T3&"!Daecher")),0,INDIRECT(T3&"!Daecher")),0) -> 0 | U12: =IF(T4,IF(ISERROR(INDIRECT(U3&"!DaecherPkt")),0,INDIRECT(U3&"!DaecherPkt")),0) -> 0 | V12: =IF(V4,IF(ISERROR(INDIRECT(V3&"!Daecher")),0,INDIRECT(V3&"!Daecher")),0) -> 0 | W12: =IF(V4,IF(ISERROR(INDIRECT(W3&"!DaecherPkt")),0,INDIRECT(W3&"!DaecherPkt")),0) -> 0 | X12: 0 | Y12: 0
B13: Installation von Nistkästen - Insekten | C13: Installation von Nistkästen - Insekten | D13: =IF(D4,IF(ISERROR(INDIRECT(D3&"!Insekten")),0,INDIRECT(D3&"!Insekten")),0) -> 0 | E13: =IF(D4,IF(ISERROR(INDIRECT(E3&"!InsektenPkt")),0,INDIRECT(E3&"!InsektenPkt")),0) -> 0 | F13: =IF(F4,IF(ISERROR(INDIRECT(F3&"!Insekten")),0,INDIRECT(F3&"!Insekten")),0) -> 0 | G13: =IF(F4,IF(ISERROR(INDIRECT(G3&"!InsektenPkt")),0,INDIRECT(G3&"!InsektenPkt")),0) -> 0 | H13: =IF(H4,IF(ISERROR(INDIRECT(H3&"!Insekten")),0,INDIRECT(H3&"!Insekten")),0) -> 0 | I13: =IF(H4,IF(ISERROR(INDIRECT(I3&"!InsektenPkt")),0,INDIRECT(I3&"!InsektenPkt")),0) -> 0 | J13: =IF(J4,IF(ISERROR(INDIRECT(J3&"!Insekten")),0,INDIRECT(J3&"!Insekten")),0) -> 0 | K13: =IF(J4,IF(ISERROR(INDIRECT(K3&"!InsektenPkt")),0,INDIRECT(K3&"!InsektenPkt")),0) -> 0 | L13: =IF(L4,IF(ISERROR(INDIRECT(L3&"!Insekten")),0,INDIRECT(L3&"!Insekten")),0) -> 0 | M13: =IF(L4,IF(ISERROR(INDIRECT(M3&"!InsektenPkt")),0,INDIRECT(M3&"!InsektenPkt")),0) -> 0 | N13: =IF(N4,IF(ISERROR(INDIRECT(N3&"!Insekten")),0,INDIRECT(N3&"!Insekten")),0) -> 0 | O13: =IF(N4,IF(ISERROR(INDIRECT(O3&"!InsektenPkt")),0,INDIRECT(O3&"!InsektenPkt")),0) -> 0 | P13: =IF(P4,IF(ISERROR(INDIRECT(P3&"!Insekten")),0,INDIRECT(P3&"!Insekten")),0) -> 0 | Q13: =IF(P4,IF(ISERROR(INDIRECT(Q3&"!InsektenPkt")),0,INDIRECT(Q3&"!InsektenPkt")),0) -> 0 | R13: =IF(R4,IF(ISERROR(INDIRECT(R3&"!Insekten")),0,INDIRECT(R3&"!Insekten")),0) -> 0 | S13: =IF(R4,IF(ISERROR(INDIRECT(S3&"!InsektenPkt")),0,INDIRECT(S3&"!InsektenPkt")),0) -> 0 | T13: =IF(T4,IF(ISERROR(INDIRECT(T3&"!Insekten")),0,INDIRECT(T3&"!Insekten")),0) -> 0 | U13: =IF(T4,IF(ISERROR(INDIRECT(U3&"!InsektenPkt")),0,INDIRECT(U3&"!InsektenPkt")),0) -> 0 | V13: =IF(V4,IF(ISERROR(INDIRECT(V3&"!Insekten")),0,INDIRECT(V3&"!Insekten")),0) -> 0 | W13: =IF(V4,IF(ISERROR(INDIRECT(W3&"!InsektenPkt")),0,INDIRECT(W3&"!InsektenPkt")),0) -> 0 | X13: 0 | Y13: 0
B14: Installation von Insektenhotel | C14: Installation von Insektenhotel | D14: =IF(D4,IF(ISERROR(INDIRECT(D3&"!InsektenH")),0,INDIRECT(D3&"!InsektenH")),0) -> 0 | E14: =IF(D4,IF(ISERROR(INDIRECT(E3&"!InsektenHPkt")),0,INDIRECT(E3&"!InsektenHPkt")),0) -> 0 | F14: =IF(F4,IF(ISERROR(INDIRECT(F3&"!InsektenH")),0,INDIRECT(F3&"!InsektenH")),0) -> 0 | G14: =IF(F4,IF(ISERROR(INDIRECT(G3&"!InsektenHPkt")),0,INDIRECT(G3&"!InsektenHPkt")),0) -> 0 | H14: =IF(H4,IF(ISERROR(INDIRECT(H3&"!InsektenH")),0,INDIRECT(H3&"!InsektenH")),0) -> 0 | I14: =IF(H4,IF(ISERROR(INDIRECT(I3&"!InsektenHPkt")),0,INDIRECT(I3&"!InsektenHPkt")),0) -> 0 | J14: =IF(J4,IF(ISERROR(INDIRECT(J3&"!InsektenH")),0,INDIRECT(J3&"!InsektenH")),0) -> 0 | K14: =IF(J4,IF(ISERROR(INDIRECT(K3&"!InsektenHPkt")),0,INDIRECT(K3&"!InsektenHPkt")),0) -> 0 | L14: =IF(L4,IF(ISERROR(INDIRECT(L3&"!InsektenH")),0,INDIRECT(L3&"!InsektenH")),0) -> 0 | M14: =IF(L4,IF(ISERROR(INDIRECT(M3&"!InsektenHPkt")),0,INDIRECT(M3&"!InsektenHPkt")),0) -> 0 | N14: =IF(N4,IF(ISERROR(INDIRECT(N3&"!InsektenH")),0,INDIRECT(N3&"!InsektenH")),0) -> 0 | O14: =IF(N4,IF(ISERROR(INDIRECT(O3&"!InsektenHPkt")),0,INDIRECT(O3&"!InsektenHPkt")),0) -> 0 | P14: =IF(P4,IF(ISERROR(INDIRECT(P3&"!InsektenH")),0,INDIRECT(P3&"!InsektenH")),0) -> 0 | Q14: =IF(P4,IF(ISERROR(INDIRECT(Q3&"!InsektenHPkt")),0,INDIRECT(Q3&"!InsektenHPkt")),0) -> 0 | R14: =IF(R4,IF(ISERROR(INDIRECT(R3&"!InsektenH")),0,INDIRECT(R3&"!InsektenH")),0) -> 0 | S14: =IF(R4,IF(ISERROR(INDIRECT(S3&"!InsektenHPkt")),0,INDIRECT(S3&"!InsektenHPkt")),0) -> 0 | T14: =IF(T4,IF(ISERROR(INDIRECT(T3&"!InsektenH")),0,INDIRECT(T3&"!InsektenH")),0) -> 0 | U14: =IF(T4,IF(ISERROR(INDIRECT(U3&"!InsektenHPkt")),0,INDIRECT(U3&"!InsektenHPkt")),0) -> 0 | V14: =IF(V4,IF(ISERROR(INDIRECT(V3&"!InsektenH")),0,INDIRECT(V3&"!InsektenH")),0) -> 0 | W14: =IF(V4,IF(ISERROR(INDIRECT(W3&"!InsektenHPkt")),0,INDIRECT(W3&"!InsektenHPkt")),0) -> 0 | X14: 0 | Y14: 0
B15: Installation von Nistkästen - Vögel | C15: Installation von Nistkästen - Vögel | D15: =IF(D4,IF(ISERROR(INDIRECT(D3&"!Vögel")),0,INDIRECT(D3&"!Vögel")),0) -> 0 | E15: =IF(D4,IF(ISERROR(INDIRECT(E3&"!VögelPkt")),0,INDIRECT(E3&"!VögelPkt")),0) -> 0 | F15: =IF(F4,IF(ISERROR(INDIRECT(F3&"!Vögel")),0,INDIRECT(F3&"!Vögel")),0) -> 0 | G15: =IF(F4,IF(ISERROR(INDIRECT(G3&"!VögelPkt")),0,INDIRECT(G3&"!VögelPkt")),0) -> 0 | H15: =IF(H4,IF(ISERROR(INDIRECT(H3&"!Vögel")),0,INDIRECT(H3&"!Vögel")),0) -> 0 | I15: =IF(H4,IF(ISERROR(INDIRECT(I3&"!VögelPkt")),0,INDIRECT(I3&"!VögelPkt")),0) -> 0 | J15: =IF(J4,IF(ISERROR(INDIRECT(J3&"!Vögel")),0,INDIRECT(J3&"!Vögel")),0) -> 0 | K15: =IF(J4,IF(ISERROR(INDIRECT(K3&"!VögelPkt")),0,INDIRECT(K3&"!VögelPkt")),0) -> 0 | L15: =IF(L4,IF(ISERROR(INDIRECT(L3&"!Vögel")),0,INDIRECT(L3&"!Vögel")),0) -> 0 | M15: =IF(L4,IF(ISERROR(INDIRECT(M3&"!VögelPkt")),0,INDIRECT(M3&"!VögelPkt")),0) -> 0 | N15: =IF(N4,IF(ISERROR(INDIRECT(N3&"!Vögel")),0,INDIRECT(N3&"!Vögel")),0) -> 0 | O15: =IF(N4,IF(ISERROR(INDIRECT(O3&"!VögelPkt")),0,INDIRECT(O3&"!VögelPkt")),0) -> 0 | P15: =IF(P4,IF(ISERROR(INDIRECT(P3&"!Vögel")),0,INDIRECT(P3&"!Vögel")),0) -> 0 | Q15: =IF(P4,IF(ISERROR(INDIRECT(Q3&"!VögelPkt")),0,INDIRECT(Q3&"!VögelPkt")),0) -> 0 | R15: =IF(R4,IF(ISERROR(INDIRECT(R3&"!Vögel")),0,INDIRECT(R3&"!Vögel")),0) -> 0 | S15: =IF(R4,IF(ISERROR(INDIRECT(S3&"!VögelPkt")),0,INDIRECT(S3&"!VögelPkt")),0) -> 0 | T15: =IF(T4,IF(ISERROR(INDIRECT(T3&"!Vögel")),0,INDIRECT(T3&"!Vögel")),0) -> 0 | U15: =IF(T4,IF(ISERROR(INDIRECT(U3&"!VögelPkt")),0,INDIRECT(U3&"!VögelPkt")),0) -> 0 | V15: =IF(V4,IF(ISERROR(INDIRECT(V3&"!Vögel")),0,INDIRECT(V3&"!Vögel")),0) -> 0 | W15: =IF(V4,IF(ISERROR(INDIRECT(W3&"!VögelPkt")),0,INDIRECT(W3&"!VögelPkt")),0) -> 0 | X15: 0 | Y15: 0
B16: Installation von Nistkästen - Eulen & Greifvögel | C16: Installation von Nistkästen - Eulen & Greifvögel | D16: =IF($D$4,IF(ISERROR(INDIRECT($D$3&"!Wiese")),0,INDIRECT($D$3&"!Wiese")),0) -> 0 | E16: =IF($D$4,IF(ISERROR(INDIRECT($E$3&"!WiesePkt")),0,INDIRECT($E$3&"!WiesePkt")),0) -> 0 | F16: =IF($F$4,IF(ISERROR(INDIRECT($F$3&"!Wiese")),0,INDIRECT($F$3&"!Wiese")),0) -> 0 | G16: =IF($F$4,IF(ISERROR(INDIRECT($G$3&"!WiesePkt")),0,INDIRECT($G$3&"!WiesePkt")),0) -> 0 | H16: =IF($H$4,IF(ISERROR(INDIRECT($H$3&"!Wiese")),0,INDIRECT($H$3&"!Wiese")),0) -> 0 | I16: =IF($H$4,IF(ISERROR(INDIRECT($I$3&"!WiesePkt")),0,INDIRECT($I$3&"!WiesePkt")),0) -> 0 | J16: =IF($J$4,IF(ISERROR(INDIRECT($J$3&"!Wiese")),0,INDIRECT($J$3&"!Wiese")),0) -> 0 | K16: =IF($J$4,IF(ISERROR(INDIRECT($K$3&"!WiesePkt")),0,INDIRECT($K$3&"!WiesePkt")),0) -> 0 | L16: =IF($L$4,IF(ISERROR(INDIRECT($L$3&"!Wiese")),0,INDIRECT($L$3&"!Wiese")),0) -> 0 | M16: =IF($L$4,IF(ISERROR(INDIRECT($M$3&"!WiesePkt")),0,INDIRECT($M$3&"!WiesePkt")),0) -> 0 | N16: =IF($N$4,IF(ISERROR(INDIRECT($N$3&"!Wiese")),0,INDIRECT($N$3&"!Wiese")),0) -> 0 | O16: =IF($N$4,IF(ISERROR(INDIRECT($O$3&"!WiesePkt")),0,INDIRECT($O$3&"!WiesePkt")),0) -> 0 | P16: =IF($P$4,IF(ISERROR(INDIRECT($P$3&"!Wiese")),0,INDIRECT($P$3&"!Wiese")),0) -> 0 | Q16: =IF($P$4,IF(ISERROR(INDIRECT($Q$3&"!WiesePkt")),0,INDIRECT($Q$3&"!WiesePkt")),0) -> 0 | R16: =IF($R$4,IF(ISERROR(INDIRECT($R$3&"!Wiese")),0,INDIRECT($R$3&"!Wiese")),0) -> 0 | S16: =IF($R$4,IF(ISERROR(INDIRECT($S$3&"!WiesePkt")),0,INDIRECT($S$3&"!WiesePkt")),0) -> 0 | T16: =IF($T$4,IF(ISERROR(INDIRECT($T$3&"!Wiese")),0,INDIRECT($T$3&"!Wiese")),0) -> 0 | U16: =IF($T$4,IF(ISERROR(INDIRECT($U$3&"!WiesePkt")),0,INDIRECT($U$3&"!WiesePkt")),0) -> 0 | V16: =IF($V$4,IF(ISERROR(INDIRECT($V$3&"!Wiese")),0,INDIRECT($V$3&"!Wiese")),0) -> 0 | W16: =IF($V$4,IF(ISERROR(INDIRECT($W$3&"!WiesePkt")),0,INDIRECT($W$3&"!WiesePkt")),0) -> 0 | X16: =D16+F16+H16+J16+L16+N16+P16+R16+T16+V16 -> 0 | Y16: =E16+G16+I16+K16+M16+O16+Q16+S16+U16+W16 -> 0
B17: Installation von Nistkästen - Fledermäuse | C17: Installation von Nistkästen - Fledermäuse | D17: =IF(D4,IF(ISERROR(INDIRECT(D3&"!Fledermaeuse")),0,INDIRECT(D3&"!Fledermaeuse")),0) -> 0 | E17: =IF(D4,IF(ISERROR(INDIRECT(E3&"!FledermaeusePkt")),0,INDIRECT(E3&"!FledermaeusePkt")),0) -> 0 | F17: =IF(F4,IF(ISERROR(INDIRECT(F3&"!Fledermaeuse")),0,INDIRECT(F3&"!Fledermaeuse")),0) -> 0 | G17: =IF(F4,IF(ISERROR(INDIRECT(G3&"!FledermaeusePkt")),0,INDIRECT(G3&"!FledermaeusePkt")),0) -> 0 | H17: =IF(H4,IF(ISERROR(INDIRECT(H3&"!Fledermaeuse")),0,INDIRECT(H3&"!Fledermaeuse")),0) -> 0 | I17: =IF(H4,IF(ISERROR(INDIRECT(I3&"!FledermaeusePkt")),0,INDIRECT(I3&"!FledermaeusePkt")),0) -> 0 | J17: =IF(J4,IF(ISERROR(INDIRECT(J3&"!Fledermaeuse")),0,INDIRECT(J3&"!Fledermaeuse")),0) -> 0 | K17: =IF(J4,IF(ISERROR(INDIRECT(K3&"!FledermaeusePkt")),0,INDIRECT(K3&"!FledermaeusePkt")),0) -> 0 | L17: =IF(L4,IF(ISERROR(INDIRECT(L3&"!Fledermaeuse")),0,INDIRECT(L3&"!Fledermaeuse")),0) -> 0 | M17: =IF(L4,IF(ISERROR(INDIRECT(M3&"!FledermaeusePkt")),0,INDIRECT(M3&"!FledermaeusePkt")),0) -> 0 | N17: =IF(N4,IF(ISERROR(INDIRECT(N3&"!Fledermaeuse")),0,INDIRECT(N3&"!Fledermaeuse")),0) -> 0 | O17: =IF(N4,IF(ISERROR(INDIRECT(O3&"!FledermaeusePkt")),0,INDIRECT(O3&"!FledermaeusePkt")),0) -> 0 | P17: =IF(P4,IF(ISERROR(INDIRECT(P3&"!Fledermaeuse")),0,INDIRECT(P3&"!Fledermaeuse")),0) -> 0 | Q17: =IF(P4,IF(ISERROR(INDIRECT(Q3&"!FledermaeusePkt")),0,INDIRECT(Q3&"!FledermaeusePkt")),0) -> 0 | R17: =IF(R4,IF(ISERROR(INDIRECT(R3&"!Fledermaeuse")),0,INDIRECT(R3&"!Fledermaeuse")),0) -> 0 | S17: =IF(R4,IF(ISERROR(INDIRECT(S3&"!FledermaeusePkt")),0,INDIRECT(S3&"!FledermaeusePkt")),0) -> 0 | T17: =IF(T4,IF(ISERROR(INDIRECT(T3&"!Fledermaeuse")),0,INDIRECT(T3&"!Fledermaeuse")),0) -> 0 | U17: =IF(T4,IF(ISERROR(INDIRECT(U3&"!FledermaeusePkt")),0,INDIRECT(U3&"!FledermaeusePkt")),0) -> 0 | V17: =IF(V4,IF(ISERROR(INDIRECT(V3&"!Fledermaeuse")),0,INDIRECT(V3&"!Fledermaeuse")),0) -> 0 | W17: =IF(V4,IF(ISERROR(INDIRECT(W3&"!FledermaeusePkt")),0,INDIRECT(W3&"!FledermaeusePkt")),0) -> 0 | X17: 0 | Y17: 0
B18: Streuobstwiese | C18: Streuobstwiese | D18: =IF(D4,IF(ISERROR(INDIRECT(D3&"!Obst")),0,INDIRECT(D3&"!Obst")),0) -> 0 | E18: =IF(E4,IF(ISERROR(INDIRECT(E3&"!ObstPkt")),0,INDIRECT(E3&"!ObstPkt")),0) -> 0 | F18: =IF(F4,IF(ISERROR(INDIRECT(F3&"!Obst")),0,INDIRECT(F3&"!Obst")),0) -> 0 | G18: =IF(F4,IF(ISERROR(INDIRECT(G3&"!ObstPkt")),0,INDIRECT(G3&"!ObstPkt")),0) -> 0 | H18: =IF(H4,IF(ISERROR(INDIRECT(H3&"!Obst")),0,INDIRECT(H3&"!Obst")),0) -> 0 | I18: =IF(H4,IF(ISERROR(INDIRECT(I3&"!ObstPkt")),0,INDIRECT(I3&"!ObstPkt")),0) -> 0 | J18: =IF(J4,IF(ISERROR(INDIRECT(J3&"!Obst")),0,INDIRECT(J3&"!Obst")),0) -> 0 | K18: =IF(J4,IF(ISERROR(INDIRECT(K3&"!ObstPkt")),0,INDIRECT(K3&"!ObstPkt")),0) -> 0 | L18: =IF(L4,IF(ISERROR(INDIRECT(L3&"!Obst")),0,INDIRECT(L3&"!Obst")),0) -> 0 | M18: =IF(L4,IF(ISERROR(INDIRECT(M3&"!ObstPkt")),0,INDIRECT(M3&"!ObstPkt")),0) -> 0 | N18: =IF(N4,IF(ISERROR(INDIRECT(N3&"!Obst")),0,INDIRECT(N3&"!Obst")),0) -> 0 | O18: =IF(N4,IF(ISERROR(INDIRECT(O3&"!ObstPkt")),0,INDIRECT(O3&"!ObstPkt")),0) -> 0 | P18: =IF(P4,IF(ISERROR(INDIRECT(P3&"!Obst")),0,INDIRECT(P3&"!Obst")),0) -> 0 | Q18: =IF(P4,IF(ISERROR(INDIRECT(Q3&"!ObstPkt")),0,INDIRECT(Q3&"!ObstPkt")),0) -> 0 | R18: =IF(R4,IF(ISERROR(INDIRECT(R3&"!Obst")),0,INDIRECT(R3&"!Obst")),0) -> 0 | S18: =IF(R4,IF(ISERROR(INDIRECT(S3&"!ObstPkt")),0,INDIRECT(S3&"!ObstPkt")),0) -> 0 | T18: =IF(T4,IF(ISERROR(INDIRECT(T3&"!Obst")),0,INDIRECT(T3&"!Obst")),0) -> 0 | U18: =IF(T4,IF(ISERROR(INDIRECT(U3&"!ObstPkt")),0,INDIRECT(U3&"!ObstPkt")),0) -> 0 | V18: =IF(V4,IF(ISERROR(INDIRECT(V3&"!Obst")),0,INDIRECT(V3&"!Obst")),0) -> 0 | W18: =IF(V4,IF(ISERROR(INDIRECT(W3&"!ObstPkt")),0,INDIRECT(W3&"!ObstPkt")),0) -> 0 | X18: 0 | Y18: 0
B19: Amphibienschutzzaun | C19: Amphibien | D19: =IF(D4,IF(ISERROR(INDIRECT(D3&"!Bienen")),0,INDIRECT(D3&"!Bienen")),0) -> 0 | E19: =IF(E4,IF(ISERROR(INDIRECT(E3&"!BienenPkt")),0,INDIRECT(E3&"!BienenPkt")),0) -> 0 | F19: =IF(F4,IF(ISERROR(INDIRECT(F3&"!Bienen")),0,INDIRECT(F3&"!Bienen")),0) -> 0 | G19: =IF(F4,IF(ISERROR(INDIRECT(G3&"!BienenPkt")),0,INDIRECT(G3&"!BienenPkt")),0) -> 0 | H19: =IF(H4,IF(ISERROR(INDIRECT(H3&"!Bienen")),0,INDIRECT(H3&"!Bienen")),0) -> 0 | I19: =IF(H4,IF(ISERROR(INDIRECT(I3&"!BienenPkt")),0,INDIRECT(I3&"!BienenPkt")),0) -> 0 | J19: =IF(J4,IF(ISERROR(INDIRECT(J3&"!Bienen")),0,INDIRECT(J3&"!Bienen")),0) -> 0 | K19: =IF(J4,IF(ISERROR(INDIRECT(K3&"!BienenPkt")),0,INDIRECT(K3&"!BienenPkt")),0) -> 0 | L19: =IF(L4,IF(ISERROR(INDIRECT(L3&"!Bienen")),0,INDIRECT(L3&"!Bienen")),0) -> 0 | M19: =IF(L4,IF(ISERROR(INDIRECT(M3&"!BienenPkt")),0,INDIRECT(M3&"!BienenPkt")),0) -> 0 | N19: =IF(N4,IF(ISERROR(INDIRECT(N3&"!Bienen")),0,INDIRECT(N3&"!Bienen")),0) -> 0 | O19: =IF(N4,IF(ISERROR(INDIRECT(O3&"!BienenPkt")),0,INDIRECT(O3&"!BienenPkt")),0) -> 0 | P19: =IF(P4,IF(ISERROR(INDIRECT(P3&"!Bienen")),0,INDIRECT(P3&"!Bienen")),0) -> 0 | Q19: =IF(P4,IF(ISERROR(INDIRECT(Q3&"!BienenPkt")),0,INDIRECT(Q3&"!BienenPkt")),0) -> 0 | R19: =IF(R4,IF(ISERROR(INDIRECT(R3&"!Bienen")),0,INDIRECT(R3&"!Bienen")),0) -> 0 | S19: =IF(R4,IF(ISERROR(INDIRECT(S3&"!BienenPkt")),0,INDIRECT(S3&"!BienenPkt")),0) -> 0 | T19: =IF(T4,IF(ISERROR(INDIRECT(T3&"!Bienen")),0,INDIRECT(T3&"!Bienen")),0) -> 0 | U19: =IF(T4,IF(ISERROR(INDIRECT(U3&"!BienenPkt")),0,INDIRECT(U3&"!BienenPkt")),0) -> 0 | V19: =IF(V4,IF(ISERROR(INDIRECT(V3&"!Bienen")),0,INDIRECT(V3&"!Bienen")),0) -> 0 | W19: =IF(V4,IF(ISERROR(INDIRECT(W3&"!BienenPkt")),0,INDIRECT(W3&"!BienenPkt")),0) -> 0 | X19: 0 | Y19: 0
B20: Trockenmauer | C20: Trockenmauer (min. 10 m) | D20: =IF(D4,IF(ISERROR(INDIRECT(D3&"!Mauer")),0,INDIRECT(D3&"!Mauer")),0) -> 0 | E20: =IF(E4,IF(ISERROR(INDIRECT(E3&"!MauerPkt")),0,INDIRECT(E3&"!MauerPkt")),0) -> 0 | F20: =IF(F4,IF(ISERROR(INDIRECT(F3&"!Mauer")),0,INDIRECT(F3&"!Mauer")),0) -> 0 | G20: =IF(G4,IF(ISERROR(INDIRECT(G3&"!MauerPkt")),0,INDIRECT(G3&"!MauerPkt")),0) -> 0 | H20: =IF(H4,IF(ISERROR(INDIRECT(H3&"!Mauer")),0,INDIRECT(H3&"!Mauer")),0) -> 0 | I20: =IF(I4,IF(ISERROR(INDIRECT(I3&"!MauerPkt")),0,INDIRECT(I3&"!MauerPkt")),0) -> 0 | J20: =IF(J4,IF(ISERROR(INDIRECT(J3&"!Mauer")),0,INDIRECT(J3&"!Mauer")),0) -> 0 | K20: =IF(K4,IF(ISERROR(INDIRECT(K3&"!MauerPkt")),0,INDIRECT(K3&"!MauerPkt")),0) -> 0 | L20: =IF(L4,IF(ISERROR(INDIRECT(L3&"!Mauer")),0,INDIRECT(L3&"!Mauer")),0) -> 0 | M20: =IF(M4,IF(ISERROR(INDIRECT(M3&"!MauerPkt")),0,INDIRECT(M3&"!MauerPkt")),0) -> 0 | N20: =IF(N4,IF(ISERROR(INDIRECT(N3&"!Mauer")),0,INDIRECT(N3&"!Mauer")),0) -> 0 | O20: =IF(O4,IF(ISERROR(INDIRECT(O3&"!MauerPkt")),0,INDIRECT(O3&"!MauerPkt")),0) -> 0 | P20: =IF(P4,IF(ISERROR(INDIRECT(P3&"!Mauer")),0,INDIRECT(P3&"!Mauer")),0) -> 0 | Q20: =IF(Q4,IF(ISERROR(INDIRECT(Q3&"!MauerPkt")),0,INDIRECT(Q3&"!MauerPkt")),0) -> 0 | R20: =IF(R4,IF(ISERROR(INDIRECT(R3&"!Mauer")),0,INDIRECT(R3&"!Mauer")),0) -> 0 | S20: =IF(S4,IF(ISERROR(INDIRECT(S3&"!MauerPkt")),0,INDIRECT(S3&"!MauerPkt")),0) -> 0 | T20: =IF(T4,IF(ISERROR(INDIRECT(T3&"!Mauer")),0,INDIRECT(T3&"!Mauer")),0) -> 0 | U20: =IF(U4,IF(ISERROR(INDIRECT(U3&"!MauerPkt")),0,INDIRECT(U3&"!MauerPkt")),0) -> 0 | V20: =IF(V4,IF(ISERROR(INDIRECT(V3&"!Mauer")),0,INDIRECT(V3&"!Mauer")),0) -> 0 | W20: =IF(W4,IF(ISERROR(INDIRECT(W3&"!MauerPkt")),0,INDIRECT(W3&"!MauerPkt")),0) -> 0 | X20: =D20+F20+H20+J20+L20+N20+P20+R20+T20+V20 -> 0 | Y20: =E20+G20+I20+K20+M20+O20+Q20+S20+U20+W20 -> 0
B21: LEDs mit < 2.000 K | C21: LEDs mit < 2.000 K [Anzahl der Leuchten] | D21: =IF(D$4,IF($C21=(INDIRECT(D$3&"!feld2")),INDIRECT(D3&"!goldfeld1"),0),0) -> 0 | E21: =IF(D$4,IF($C21=(INDIRECT(D$3&"!feld2")),INDIRECT(E3&"!goldfeld1Pkt"),0),0) -> 0 | F21: =IF(F$4,IF($C21=(INDIRECT(F$3&"!feld2")),INDIRECT(F3&"!goldfeld1"),0),0) -> 0 | G21: =IF(F$4,IF($C21=(INDIRECT(F$3&"!feld2")),INDIRECT(G3&"!goldfeld1Pkt"),0),0) -> 0 | H21: =IF(H$4,IF($C21=(INDIRECT(H$3&"!feld2")),INDIRECT(H3&"!goldfeld1"),0),0) -> 0 | I21: =IF(H$4,IF($C21=(INDIRECT(H$3&"!feld2")),INDIRECT(I3&"!goldfeld1Pkt"),0),0) -> 0 | J21: =IF(J$4,IF($C21=(INDIRECT(J$3&"!feld2")),INDIRECT(J3&"!goldfeld1"),0),0) -> 0 | K21: =IF(J$4,IF($C21=(INDIRECT(J$3&"!feld2")),INDIRECT(K3&"!goldfeld1Pkt"),0),0) -> 0 | L21: =IF(L$4,IF($C21=(INDIRECT(L$3&"!feld2")),INDIRECT(L3&"!goldfeld1"),0),0) -> 0 | M21: =IF(L$4,IF($C21=(INDIRECT(L$3&"!feld2")),INDIRECT(M3&"!goldfeld1Pkt"),0),0) -> 0 | N21: =IF(N$4,IF($C21=(INDIRECT(N$3&"!feld2")),INDIRECT(N3&"!goldfeld1"),0),0) -> 0 | O21: =IF(N$4,IF($C21=(INDIRECT(N$3&"!feld2")),INDIRECT(O3&"!goldfeld1Pkt"),0),0) -> 0 | P21: =IF(P$4,IF($C21=(INDIRECT(P$3&"!feld2")),INDIRECT(P3&"!goldfeld1"),0),0) -> 0 | Q21: =IF(P$4,IF($C21=(INDIRECT(P$3&"!feld2")),INDIRECT(Q3&"!goldfeld1Pkt"),0),0) -> 0 | R21: =IF(R$4,IF($C21=(INDIRECT(R$3&"!feld2")),INDIRECT(R3&"!goldfeld1"),0),0) -> 0 | S21: =IF(R$4,IF($C21=(INDIRECT(R$3&"!feld2")),INDIRECT(S3&"!goldfeld1Pkt"),0),0) -> 0 | T21: =IF(T$4,IF($C21=(INDIRECT(T$3&"!feld2")),INDIRECT(T3&"!goldfeld1"),0),0) -> 0 | U21: =IF(T$4,IF($C21=(INDIRECT(T$3&"!feld2")),INDIRECT(U3&"!goldfeld1Pkt"),0),0) -> 0 | V21: =IF(V$4,IF($C21=(INDIRECT(V$3&"!feld2")),INDIRECT(V3&"!goldfeld1"),0),0) -> 0 | W21: =IF(V$4,IF($C21=(INDIRECT(V$3&"!feld2")),INDIRECT(W3&"!goldfeld1Pkt"),0),0) -> 0 | X21: 0 | Y21: 0
B22: LEDs voll abgeschirmt | C22: LEDs voll abgeschirmt [Anzahl der Leuchten] | D22: =IF(D$4,IF($C22=(INDIRECT(D$3&"!feld3")),INDIRECT(D3&"!goldfeld2"),0),0) -> 0 | E22: =IF(D$4,IF($C22=(INDIRECT(D$3&"!feld3")),INDIRECT(D3&"!goldfeld2Pkt"),0),0) -> 0 | F22: =IF(F$4,IF($C22=(INDIRECT(F$3&"!feld3")),INDIRECT(F3&"!goldfeld2"),0),0) -> 0 | G22: =IF(F$4,IF($C22=(INDIRECT(F$3&"!feld3")),INDIRECT(F3&"!goldfeld2Pkt"),0),0) -> 0 | H22: =IF(H$4,IF($C22=(INDIRECT(H$3&"!feld3")),INDIRECT(H3&"!goldfeld2"),0),0) -> 0 | I22: =IF(H$4,IF($C22=(INDIRECT(H$3&"!feld3")),INDIRECT(H3&"!goldfeld2Pkt"),0),0) -> 0 | J22: =IF(J$4,IF($C22=(INDIRECT(J$3&"!feld3")),INDIRECT(J3&"!goldfeld2"),0),0) -> 0 | K22: =IF(J$4,IF($C22=(INDIRECT(J$3&"!feld3")),INDIRECT(J3&"!goldfeld2Pkt"),0),0) -> 0 | L22: =IF(L$4,IF($C22=(INDIRECT(L$3&"!feld3")),INDIRECT(L3&"!goldfeld2"),0),0) -> 0 | M22: =IF(L$4,IF($C22=(INDIRECT(L$3&"!feld3")),INDIRECT(L3&"!goldfeld2Pkt"),0),0) -> 0 | N22: =IF(N$4,IF($C22=(INDIRECT(N$3&"!feld3")),INDIRECT(N3&"!goldfeld2"),0),0) -> 0 | O22: =IF(N$4,IF($C22=(INDIRECT(N$3&"!feld3")),INDIRECT(N3&"!goldfeld2Pkt"),0),0) -> 0 | P22: =IF(P$4,IF($C22=(INDIRECT(P$3&"!feld3")),INDIRECT(P3&"!goldfeld2"),0),0) -> 0 | Q22: =IF(P$4,IF($C22=(INDIRECT(P$3&"!feld3")),INDIRECT(P3&"!goldfeld2Pkt"),0),0) -> 0 | R22: =IF(R$4,IF($C22=(INDIRECT(R$3&"!feld3")),INDIRECT(R3&"!goldfeld2"),0),0) -> 0 | S22: =IF(R$4,IF($C22=(INDIRECT(R$3&"!feld3")),INDIRECT(R3&"!goldfeld2Pkt"),0),0) -> 0 | T22: =IF(T$4,IF($C22=(INDIRECT(T$3&"!feld3")),INDIRECT(T3&"!goldfeld2"),0),0) -> 0 | U22: =IF(T$4,IF($C22=(INDIRECT(T$3&"!feld3")),INDIRECT(T3&"!goldfeld2Pkt"),0),0) -> 0 | V22: =IF(V$4,IF($C22=(INDIRECT(V$3&"!feld3")),INDIRECT(V3&"!goldfeld2"),0),0) -> 0 | W22: =IF(V$4,IF($C22=(INDIRECT(V$3&"!feld3")),INDIRECT(V3&"!goldfeld2Pkt"),0),0) -> 0 | X22: 0 | Y22: 0
B23: Bildungsmaßnahmen (z. B. Schulklassen, Menschen mit Behinderung etc.) | C23: Bildungsmaßnahmen (z. B. Schulklassen, Menschen mit Behinderung etc.) | D23: =IF(D4,IF(ISERROR(INDIRECT(D3&"!Sozi")),0,INDIRECT(D3&"!Sozi")),0) -> 0 | E23: =IF(D4,IF(ISERROR(INDIRECT(E3&"!SoziPkt")),0,INDIRECT(E3&"!SoziPkt")),0) -> 0 | F23: =IF(F4,IF(ISERROR(INDIRECT(F3&"!Sozi")),0,INDIRECT(F3&"!Sozi")),0) -> 0 | G23: =IF(F4,IF(ISERROR(INDIRECT(G3&"!SoziPkt")),0,INDIRECT(G3&"!SoziPkt")),0) -> 0 | H23: =IF(H4,IF(ISERROR(INDIRECT(H3&"!Sozi")),0,INDIRECT(H3&"!Sozi")),0) -> 0 | I23: =IF(H4,IF(ISERROR(INDIRECT(I3&"!SoziPkt")),0,INDIRECT(I3&"!SoziPkt")),0) -> 0 | J23: =IF(J4,IF(ISERROR(INDIRECT(J3&"!Sozi")),0,INDIRECT(J3&"!Sozi")),0) -> 0 | K23: =IF(J4,IF(ISERROR(INDIRECT(K3&"!SoziPkt")),0,INDIRECT(K3&"!SoziPkt")),0) -> 0 | L23: =IF(L4,IF(ISERROR(INDIRECT(L3&"!Sozi")),0,INDIRECT(L3&"!Sozi")),0) -> 0 | M23: =IF(L4,IF(ISERROR(INDIRECT(M3&"!SoziPkt")),0,INDIRECT(M3&"!SoziPkt")),0) -> 0 | N23: =IF(N4,IF(ISERROR(INDIRECT(N3&"!Sozi")),0,INDIRECT(N3&"!Sozi")),0) -> 0 | O23: =IF(N4,IF(ISERROR(INDIRECT(O3&"!SoziPkt")),0,INDIRECT(O3&"!SoziPkt")),0) -> 0 | P23: =IF(P4,IF(ISERROR(INDIRECT(P3&"!Sozi")),0,INDIRECT(P3&"!Sozi")),0) -> 0 | Q23: =IF(P4,IF(ISERROR(INDIRECT(Q3&"!SoziPkt")),0,INDIRECT(Q3&"!SoziPkt")),0) -> 0 | R23: =IF(R4,IF(ISERROR(INDIRECT(R3&"!Sozi")),0,INDIRECT(R3&"!Sozi")),0) -> 0 | S23: =IF(R4,IF(ISERROR(INDIRECT(S3&"!SoziPkt")),0,INDIRECT(S3&"!SoziPkt")),0) -> 0 | T23: =IF(T4,IF(ISERROR(INDIRECT(T3&"!Sozi")),0,INDIRECT(T3&"!Sozi")),0) -> 0 | U23: =IF(T4,IF(ISERROR(INDIRECT(U3&"!SoziPkt")),0,INDIRECT(U3&"!SoziPkt")),0) -> 0 | V23: =IF(V4,IF(ISERROR(INDIRECT(V3&"!Sozi")),0,INDIRECT(V3&"!Sozi")),0) -> 0 | W23: =IF(V4,IF(ISERROR(INDIRECT(W3&"!SoziPkt")),0,INDIRECT(W3&"!SoziPkt")),0) -> 0 | X23: =D23+F23+H23+J23+L23+N23+P23+R23+T23+V23 -> 0 | Y23: =E23+G23+I23+K23+M23+O23+Q23+S23+U23+W23 -> 0
B24: Dämmstoff: Holzartige / Zellulose | C24: Dämmstoff: Holzartige / Zellulose [m²] | D24: =IF(D$4,IF($C24=(INDIRECT(D$3&"!feld1")),(INDIRECT(D$3&"!silberfeld")),0),0) -> 0 | E24: =IF(E$4,IF($C24=(INDIRECT(E$3&"!feld1")),(INDIRECT(E$3&"!silberfeldPkt")),0),0) -> 0 | F24: =IF(F$4,IF($C24=(INDIRECT(F$3&"!feld1")),(INDIRECT(F$3&"!silberfeld")),0),0) -> 0 | G24: =IF(G$4,IF($C24=(INDIRECT(G$3&"!feld1")),(INDIRECT(G$3&"!silberfeldPkt")),0),0) -> 0 | H24: =IF(H$4,IF($C24=(INDIRECT(H$3&"!feld1")),(INDIRECT(H$3&"!silberfeld")),0),0) -> 0 | I24: =IF(I$4,IF($C24=(INDIRECT(I$3&"!feld1")),(INDIRECT(I$3&"!silberfeldPkt")),0),0) -> 0 | J24: =IF(J$4,IF($C24=(INDIRECT(J$3&"!feld1")),(INDIRECT(J$3&"!silberfeld")),0),0) -> 0 | K24: =IF(K$4,IF($C24=(INDIRECT(K$3&"!feld1")),(INDIRECT(K$3&"!silberfeldPkt")),0),0) -> 0 | L24: =IF(L$4,IF($C24=(INDIRECT(L$3&"!feld1")),(INDIRECT(L$3&"!silberfeld")),0),0) -> 0 | M24: =IF(M$4,IF($C24=(INDIRECT(M$3&"!feld1")),(INDIRECT(M$3&"!silberfeldPkt")),0),0) -> 0 | N24: =IF(N$4,IF($C24=(INDIRECT(N$3&"!feld1")),(INDIRECT(N$3&"!silberfeld")),0),0) -> 0 | O24: =IF(O$4,IF($C24=(INDIRECT(O$3&"!feld1")),(INDIRECT(O$3&"!silberfeldPkt")),0),0) -> 0 | P24: =IF(P$4,IF($C24=(INDIRECT(P$3&"!feld1")),(INDIRECT(P$3&"!silberfeld")),0),0) -> 0 | Q24: =IF(Q$4,IF($C24=(INDIRECT(Q$3&"!feld1")),(INDIRECT(Q$3&"!silberfeldPkt")),0),0) -> 0 | R24: =IF(R$4,IF($C24=(INDIRECT(R$3&"!feld1")),(INDIRECT(R$3&"!silberfeld")),0),0) -> 0 | S24: =IF(S$4,IF($C24=(INDIRECT(S$3&"!feld1")),(INDIRECT(S$3&"!silberfeldPkt")),0),0) -> 0 | T24: =IF(T$4,IF($C24=(INDIRECT(T$3&"!feld1")),(INDIRECT(T$3&"!silberfeld")),0),0) -> 0 | U24: =IF(U$4,IF($C24=(INDIRECT(U$3&"!feld1")),(INDIRECT(U$3&"!silberfeldPkt")),0),0) -> 0 | V24: =IF(V$4,IF($C24=(INDIRECT(V$3&"!feld1")),(INDIRECT(V$3&"!silberfeld")),0),0) -> 0 | W24: =IF(W$4,IF($C24=(INDIRECT(W$3&"!feld1")),(INDIRECT(W$3&"!silberfeldPkt")),0),0) -> 0 | X24: =D24+F24+H24+J24+L24+N24+P24+R24+T24+V24 -> 0 | Y24: =E24+G24+I24+K24+M24+O24+Q24+S24+U24+W24 -> 0
B25: Dämmstoff: Hanf / Flachs / Schafwolle | C25: Dämmstoff: Hanf / Flachs / Schafwolle [m²] | D25: =IF(D$4,IF($C25=(INDIRECT(D$3&"!feld2")),(INDIRECT(D$3&"!goldfeld1")),0),0) -> 0 | E25: =IF(E$4,IF($C25=(INDIRECT(E$3&"!feld2")),(INDIRECT(E$3&"!goldfeld1Pkt")),0),0) -> 0 | F25: =IF(F$4,IF($C25=(INDIRECT(F$3&"!feld2")),(INDIRECT(F$3&"!goldfeld1")),0),0) -> 0 | G25: =IF(G$4,IF($C25=(INDIRECT(G$3&"!feld2")),(INDIRECT(G$3&"!goldfeld1Pkt")),0),0) -> 0 | H25: =IF(H$4,IF($C25=(INDIRECT(H$3&"!feld2")),(INDIRECT(H$3&"!goldfeld1")),0),0) -> 0 | I25: =IF(I$4,IF($C25=(INDIRECT(I$3&"!feld2")),(INDIRECT(I$3&"!goldfeld1Pkt")),0),0) -> 0 | J25: =IF(J$4,IF($C25=(INDIRECT(J$3&"!feld2")),(INDIRECT(J$3&"!goldfeld1")),0),0) -> 0 | K25: =IF(K$4,IF($C25=(INDIRECT(K$3&"!feld2")),(INDIRECT(K$3&"!goldfeld1Pkt")),0),0) -> 0 | L25: =IF(L$4,IF($C25=(INDIRECT(L$3&"!feld2")),(INDIRECT(L$3&"!goldfeld1")),0),0) -> 0 | M25: =IF(M$4,IF($C25=(INDIRECT(M$3&"!feld2")),(INDIRECT(M$3&"!goldfeld1Pkt")),0),0) -> 0 | N25: =IF(N$4,IF($C25=(INDIRECT(N$3&"!feld2")),(INDIRECT(N$3&"!goldfeld1")),0),0) -> 0 | O25: =IF(O$4,IF($C25=(INDIRECT(O$3&"!feld2")),(INDIRECT(O$3&"!goldfeld1Pkt")),0),0) -> 0 | P25: =IF(P$4,IF($C25=(INDIRECT(P$3&"!feld2")),(INDIRECT(P$3&"!goldfeld1")),0),0) -> 0 | Q25: =IF(Q$4,IF($C25=(INDIRECT(Q$3&"!feld2")),(INDIRECT(Q$3&"!goldfeld1Pkt")),0),0) -> 0 | R25: =IF(R$4,IF($C25=(INDIRECT(R$3&"!feld2")),(INDIRECT(R$3&"!goldfeld1")),0),0) -> 0 | S25: =IF(S$4,IF($C25=(INDIRECT(S$3&"!feld2")),(INDIRECT(S$3&"!goldfeld1Pkt")),0),0) -> 0 | T25: =IF(T$4,IF($C25=(INDIRECT(T$3&"!feld2")),(INDIRECT(T$3&"!goldfeld1")),0),0) -> 0 | U25: =IF(U$4,IF($C25=(INDIRECT(U$3&"!feld2")),(INDIRECT(U$3&"!goldfeld1Pkt")),0),0) -> 0 | V25: =IF(V$4,IF($C25=(INDIRECT(V$3&"!feld2")),(INDIRECT(V$3&"!goldfeld1")),0),0) -> 0 | W25: =IF(W$4,IF($C25=(INDIRECT(W$3&"!feld2")),(INDIRECT(W$3&"!goldfeld1Pkt")),0),0) -> 0 | X25: =D25+F25+H25+J25+L25+N25+P25+R25+T25+V25 -> 0 | Y25: =E25+G25+I25+K25+M25+O25+Q25+S25+U25+W25 -> 0
B26: Rotmilan-Management | C26: Rotmilan-Management [ja=1, nein=0] | D26: =IF(D$4,IF($C26=(INDIRECT(D$3&"!feld2")),(INDIRECT(D$3&"!goldfeld1")),0),0) -> 0 | E26: =IF(E$4,IF($C26=(INDIRECT(E$3&"!feld2")),(INDIRECT(E$3&"!goldfeld1Pkt")),0),0) -> 0 | F26: =IF(F$4,IF($C26=(INDIRECT(F$3&"!feld2")),(INDIRECT(F$3&"!goldfeld1")),0),0) -> 0 | G26: =IF(G$4,IF($C26=(INDIRECT(G$3&"!feld2")),(INDIRECT(G$3&"!goldfeld1Pkt")),0),0) -> 0 | H26: =IF(H$4,IF($C26=(INDIRECT(H$3&"!feld2")),(INDIRECT(H$3&"!goldfeld1")),0),0) -> 0 | I26: =IF(I$4,IF($C26=(INDIRECT(I$3&"!feld2")),(INDIRECT(I$3&"!goldfeld1Pkt")),0),0) -> 0 | J26: =IF(J$4,IF($C26=(INDIRECT(J$3&"!feld2")),(INDIRECT(J$3&"!goldfeld1")),0),0) -> 0 | K26: =IF(K$4,IF($C26=(INDIRECT(K$3&"!feld2")),(INDIRECT(K$3&"!goldfeld1Pkt")),0),0) -> 0 | L26: =IF(L$4,IF($C26=(INDIRECT(L$3&"!feld2")),(INDIRECT(L$3&"!goldfeld1")),0),0) -> 0 | M26: =IF(M$4,IF($C26=(INDIRECT(M$3&"!feld2")),(INDIRECT(M$3&"!goldfeld1Pkt")),0),0) -> 0 | N26: =IF(N$4,IF($C26=(INDIRECT(N$3&"!feld2")),(INDIRECT(N$3&"!goldfeld1")),0),0) -> 0 | O26: =IF(O$4,IF($C26=(INDIRECT(O$3&"!feld2")),(INDIRECT(O$3&"!goldfeld1Pkt")),0),0) -> 0 | P26: =IF(P$4,IF($C26=(INDIRECT(P$3&"!feld2")),(INDIRECT(P$3&"!goldfeld1")),0),0) -> 0 | Q26: =IF(Q$4,IF($C26=(INDIRECT(Q$3&"!feld2")),(INDIRECT(Q$3&"!goldfeld1Pkt")),0),0) -> 0 | R26: =IF(R$4,IF($C26=(INDIRECT(R$3&"!feld2")),(INDIRECT(R$3&"!goldfeld1")),0),0) -> 0 | S26: =IF(S$4,IF($C26=(INDIRECT(S$3&"!feld2")),(INDIRECT(S$3&"!goldfeld1Pkt")),0),0) -> 0 | T26: =IF(T$4,IF($C26=(INDIRECT(T$3&"!feld2")),(INDIRECT(T$3&"!goldfeld1")),0),0) -> 0 | U26: =IF(U$4,IF($C26=(INDIRECT(U$3&"!feld2")),(INDIRECT(U$3&"!goldfeld1Pkt")),0),0) -> 0 | V26: =IF(V$4,IF($C26=(INDIRECT(V$3&"!feld2")),(INDIRECT(V$3&"!goldfeld1")),0),0) -> 0 | W26: =IF(W$4,IF($C26=(INDIRECT(W$3&"!feld2")),(INDIRECT(W$3&"!goldfeld1Pkt")),0),0) -> 0 | X26: =D26+F26+H26+J26+L26+N26+P26+R26+T26+V26 -> 0 | Y26: =E26+G26+I26+K26+M26+O26+Q26+S26+U26+W26 -> 0
B27: Bei Freifläche: Weidetierhaltung | C27: Bei Freifläche: Weidetierhaltung [Anzahl der Tiere] | D27: =IF(D$4,IF($C27=(INDIRECT(D$3&"!feld2")),(INDIRECT(D$3&"!goldfeld1")),0),0) -> 0 | E27: =IF(E$4,IF($C27=(INDIRECT(E$3&"!feld2")),(INDIRECT(E$3&"!goldfeld1Pkt")),0),0) -> 0 | F27: =IF(F$4,IF($C27=(INDIRECT(F$3&"!feld2")),(INDIRECT(F$3&"!goldfeld1")),0),0) -> 0 | G27: =IF(G$4,IF($C27=(INDIRECT(G$3&"!feld2")),(INDIRECT(G$3&"!goldfeld1Pkt")),0),0) -> 0 | H27: =IF(H$4,IF($C27=(INDIRECT(H$3&"!feld2")),(INDIRECT(H$3&"!goldfeld1")),0),0) -> 0 | I27: =IF(I$4,IF($C27=(INDIRECT(I$3&"!feld2")),(INDIRECT(I$3&"!goldfeld1Pkt")),0),0) -> 0 | J27: =IF(J$4,IF($C27=(INDIRECT(J$3&"!feld2")),(INDIRECT(J$3&"!goldfeld1")),0),0) -> 0 | K27: =IF(K$4,IF($C27=(INDIRECT(K$3&"!feld2")),(INDIRECT(K$3&"!goldfeld1Pkt")),0),0) -> 0 | L27: =IF(L$4,IF($C27=(INDIRECT(L$3&"!feld2")),(INDIRECT(L$3&"!goldfeld1")),0),0) -> 0 | M27: =IF(M$4,IF($C27=(INDIRECT(M$3&"!feld2")),(INDIRECT(M$3&"!goldfeld1Pkt")),0),0) -> 0 | N27: =IF(N$4,IF($C27=(INDIRECT(N$3&"!feld2")),(INDIRECT(N$3&"!goldfeld1")),0),0) -> 0 | O27: =IF(O$4,IF($C27=(INDIRECT(O$3&"!feld2")),(INDIRECT(O$3&"!goldfeld1Pkt")),0),0) -> 0 | P27: =IF(P$4,IF($C27=(INDIRECT(P$3&"!feld2")),(INDIRECT(P$3&"!goldfeld1")),0),0) -> 0 | Q27: =IF(Q$4,IF($C27=(INDIRECT(Q$3&"!feld2")),(INDIRECT(Q$3&"!goldfeld1Pkt")),0),0) -> 0 | R27: =IF(R$4,IF($C27=(INDIRECT(R$3&"!feld2")),(INDIRECT(R$3&"!goldfeld1")),0),0) -> 0 | S27: =IF(S$4,IF($C27=(INDIRECT(S$3&"!feld2")),(INDIRECT(S$3&"!goldfeld1Pkt")),0),0) -> 0 | T27: =IF(T$4,IF($C27=(INDIRECT(T$3&"!feld2")),(INDIRECT(T$3&"!goldfeld1")),0),0) -> 0 | U27: =IF(U$4,IF($C27=(INDIRECT(U$3&"!feld2")),(INDIRECT(U$3&"!goldfeld1Pkt")),0),0) -> 0 | V27: =IF(V$4,IF($C27=(INDIRECT(V$3&"!feld2")),(INDIRECT(V$3&"!goldfeld1")),0),0) -> 0 | W27: =IF(W$4,IF($C27=(INDIRECT(W$3&"!feld2")),(INDIRECT(W$3&"!goldfeld1Pkt")),0),0) -> 0 | X27: 0 | Y27: 0
B28: Kavitation in Kombination mit dem Einsatz von alternativen Biogassubstraten | C28: Kavitation in Kombination mit dem Einsatz von alternativen Biogassubstraten [ha] | D28: =IF(D$4,IF($C28=(INDIRECT(D$3&"!feld2")),(INDIRECT(D$3&"!goldfeld1")),0),0) -> 0 | E28: =IF(E$4,IF($C28=(INDIRECT(E$3&"!feld2")),(INDIRECT(E$3&"!goldfeld1Pkt")),0),0) -> 0 | F28: =IF(F$4,IF($C28=(INDIRECT(F$3&"!feld2")),(INDIRECT(F$3&"!goldfeld1")),0),0) -> 0 | G28: =IF(G$4,IF($C28=(INDIRECT(G$3&"!feld2")),(INDIRECT(G$3&"!goldfeld1Pkt")),0),0) -> 0 | H28: =IF(H$4,IF($C28=(INDIRECT(H$3&"!feld2")),(INDIRECT(H$3&"!goldfeld1")),0),0) -> 0 | I28: =IF(I$4,IF($C28=(INDIRECT(I$3&"!feld2")),(INDIRECT(I$3&"!goldfeld1Pkt")),0),0) -> 0 | J28: =IF(J$4,IF($C28=(INDIRECT(J$3&"!feld2")),(INDIRECT(J$3&"!goldfeld1")),0),0) -> 0 | K28: =IF(K$4,IF($C28=(INDIRECT(K$3&"!feld2")),(INDIRECT(K$3&"!goldfeld1Pkt")),0),0) -> 0 | L28: =IF(L$4,IF($C28=(INDIRECT(L$3&"!feld2")),(INDIRECT(L$3&"!goldfeld1")),0),0) -> 0 | M28: =IF(M$4,IF($C28=(INDIRECT(M$3&"!feld2")),(INDIRECT(M$3&"!goldfeld1Pkt")),0),0) -> 0 | N28: =IF(N$4,IF($C28=(INDIRECT(N$3&"!feld2")),(INDIRECT(N$3&"!goldfeld1")),0),0) -> 0 | O28: =IF(O$4,IF($C28=(INDIRECT(O$3&"!feld2")),(INDIRECT(O$3&"!goldfeld1Pkt")),0),0) -> 0 | P28: =IF(P$4,IF($C28=(INDIRECT(P$3&"!feld2")),(INDIRECT(P$3&"!goldfeld1")),0),0) -> 0 | Q28: =IF(Q$4,IF($C28=(INDIRECT(Q$3&"!feld2")),(INDIRECT(Q$3&"!goldfeld1Pkt")),0),0) -> 0 | R28: =IF(R$4,IF($C28=(INDIRECT(R$3&"!feld2")),(INDIRECT(R$3&"!goldfeld1")),0),0) -> 0 | S28: =IF(S$4,IF($C28=(INDIRECT(S$3&"!feld2")),(INDIRECT(S$3&"!goldfeld1Pkt")),0),0) -> 0 | T28: =IF(T$4,IF($C28=(INDIRECT(T$3&"!feld2")),(INDIRECT(T$3&"!goldfeld1")),0),0) -> 0 | U28: =IF(U$4,IF($C28=(INDIRECT(U$3&"!feld2")),(INDIRECT(U$3&"!goldfeld1Pkt")),0),0) -> 0 | V28: =IF(V$4,IF($C28=(INDIRECT(V$3&"!feld2")),(INDIRECT(V$3&"!goldfeld1")),0),0) -> 0 | W28: =IF(W$4,IF($C28=(INDIRECT(W$3&"!feld2")),(INDIRECT(W$3&"!goldfeld1Pkt")),0),0) -> 0 | X28: 0 | Y28: 0
B29: Einsatz von alternativen Biogassubstraten | C29: Einsatz von alternativen Biogassubstraten [ha] | D29: =IF(D$4,IF($C29=(INDIRECT(D$3&"!feld1")),(INDIRECT(D$3&"!silberfeld")),0),0) -> 0 | E29: =IF(E$4,IF($C29=(INDIRECT(E$3&"!feld1")),(INDIRECT(E$3&"!silberfeldPkt")),0),0) -> 0 | F29: =IF(F$4,IF($C29=(INDIRECT(F$3&"!feld1")),(INDIRECT(F$3&"!silberfeld")),0),0) -> 0 | G29: =IF(G$4,IF($C29=(INDIRECT(G$3&"!feld1")),(INDIRECT(G$3&"!silberfeldPkt")),0),0) -> 0 | H29: 0 | I29: 0 | J29: 0 | K29: 0 | L29: 0 | M29: 0 | N29: 0 | O29: 0 | P29: 0 | Q29: 0 | R29: 0 | S29: 0 | T29: 0 | U29: 0 | V29: 0 | W29: 0 | X29: 0 | Y29: 0
B30: Nistmöglichkeiten in Dämmung | C30: Nistmöglichkeiten in Dämmung [Anzahl] | D30: =IF(D$4,IF($C30=(INDIRECT(D$3&"!feld0")),(INDIRECT(D$3&"!bronzefeld")),0),0) -> 0 | E30: =IF(E$4,IF($C30=(INDIRECT(E$3&"!feld0")),(INDIRECT(E$3&"!bronzefeldPkt")),0),0) -> 0 | F30: =IF(F$4,IF($C30=(INDIRECT(F$3&"!feld0")),(INDIRECT(F$3&"!bronzefeld")),0),0) -> 0 | G30: =IF(G$4,IF($C30=(INDIRECT(G$3&"!feld0")),(INDIRECT(G$3&"!bronzefeldPkt")),0),0) -> 0 | H30: =IF(H$4,IF($C30=(INDIRECT(H$3&"!feld0")),(INDIRECT(H$3&"!bronzefeld")),0),0) -> 0 | I30: =IF(I$4,IF($C30=(INDIRECT(I$3&"!feld0")),(INDIRECT(I$3&"!bronzefeldPkt")),0),0) -> 0 | J30: =IF(J$4,IF($C30=(INDIRECT(J$3&"!feld0")),(INDIRECT(J$3&"!bronzefeld")),0),0) -> 0 | K30: =IF(K$4,IF($C30=(INDIRECT(K$3&"!feld0")),(INDIRECT(K$3&"!bronzefeldPkt")),0),0) -> 0 | L30: =IF(L$4,IF($C30=(INDIRECT(L$3&"!feld0")),(INDIRECT(L$3&"!bronzefeld")),0),0) -> 0 | M30: =IF(M$4,IF($C30=(INDIRECT(M$3&"!feld0")),(INDIRECT(M$3&"!bronzefeldPkt")),0),0) -> 0 | N30: =IF(N$4,IF($C30=(INDIRECT(N$3&"!feld0")),(INDIRECT(N$3&"!bronzefeld")),0),0) -> 0 | O30: =IF(O$4,IF($C30=(INDIRECT(O$3&"!feld0")),(INDIRECT(O$3&"!bronzefeldPkt")),0),0) -> 0 | P30: =IF(P$4,IF($C30=(INDIRECT(P$3&"!feld0")),(INDIRECT(P$3&"!bronzefeld")),0),0) -> 0 | Q30: =IF(Q$4,IF($C30=(INDIRECT(Q$3&"!feld0")),(INDIRECT(Q$3&"!bronzefeldPkt")),0),0) -> 0 | R30: =IF(R$4,IF($C30=(INDIRECT(R$3&"!feld0")),(INDIRECT(R$3&"!bronzefeld")),0),0) -> 0 | S30: =IF(S$4,IF($C30=(INDIRECT(S$3&"!feld0")),(INDIRECT(S$3&"!bronzefeldPkt")),0),0) -> 0 | T30: =IF(T$4,IF($C30=(INDIRECT(T$3&"!feld0")),(INDIRECT(T$3&"!bronzefeld")),0),0) -> 0 | U30: =IF(U$4,IF($C30=(INDIRECT(U$3&"!feld0")),(INDIRECT(U$3&"!bronzefeldPkt")),0),0) -> 0 | V30: =IF(V$4,IF($C30=(INDIRECT(V$3&"!feld0")),(INDIRECT(V$3&"!bronzefeld")),0),0) -> 0 | W30: =IF(W$4,IF($C30=(INDIRECT(W$3&"!feld0")),(INDIRECT(W$3&"!bronzefeldPkt")),0),0) -> 0 | X30: 0 | Y30: 0
B31: Agrar Hölzer im Kurzumtrieb | C31: Agrar Hölzer im Kurzumtrieb (min. 30 m) | D31: =IF(D$4,IF(ISERROR(INDIRECT(D$3&"!ehecken")),0,INDIRECT(D$3&"!ehecken")),0) -> 0 | E31: =IF(E$4,IF(ISERROR(INDIRECT(E$3&"!eheckenpkt")),0,INDIRECT(E$3&"!eheckenpkt")),0) -> 0 | F31: =IF(F$4,IF(ISERROR(INDIRECT(F$3&"!ehecken")),0,INDIRECT(F$3&"!ehecken")),0) -> 0 | G31: =IF(G$4,IF(ISERROR(INDIRECT(G$3&"!eheckenpkt")),0,INDIRECT(G$3&"!eheckenpkt")),0) -> 0 | H31: =IF(H$4,IF(ISERROR(INDIRECT(H$3&"!ehecken")),0,INDIRECT(H$3&"!ehecken")),0) -> 0 | I31: =IF(I$4,IF(ISERROR(INDIRECT(I$3&"!eheckenpkt")),0,INDIRECT(I$3&"!eheckenpkt")),0) -> 0 | J31: =IF(J$4,IF(ISERROR(INDIRECT(J$3&"!ehecken")),0,INDIRECT(J$3&"!ehecken")),0) -> 0 | K31: =IF(K$4,IF(ISERROR(INDIRECT(K$3&"!eheckenpkt")),0,INDIRECT(K$3&"!eheckenpkt")),0) -> 0 | L31: =IF(L$4,IF(ISERROR(INDIRECT(L$3&"!ehecken")),0,INDIRECT(L$3&"!ehecken")),0) -> 0 | M31: =IF(M$4,IF(ISERROR(INDIRECT(M$3&"!eheckenpkt")),0,INDIRECT(M$3&"!eheckenpkt")),0) -> 0 | N31: =IF(N$4,IF(ISERROR(INDIRECT(N$3&"!ehecken")),0,INDIRECT(N$3&"!ehecken")),0) -> 0 | O31: =IF(O$4,IF(ISERROR(INDIRECT(O$3&"!eheckenpkt")),0,INDIRECT(O$3&"!eheckenpkt")),0) -> 0 | P31: =IF(P$4,IF(ISERROR(INDIRECT(P$3&"!ehecken")),0,INDIRECT(P$3&"!ehecken")),0) -> 0 | Q31: =IF(Q$4,IF(ISERROR(INDIRECT(Q$3&"!eheckenpkt")),0,INDIRECT(Q$3&"!eheckenpkt")),0) -> 0 | R31: =IF(R$4,IF(ISERROR(INDIRECT(R$3&"!ehecken")),0,INDIRECT(R$3&"!ehecken")),0) -> 0 | S31: =IF(S$4,IF(ISERROR(INDIRECT(S$3&"!eheckenpkt")),0,INDIRECT(S$3&"!eheckenpkt")),0) -> 0 | T31: =IF(T$4,IF(ISERROR(INDIRECT(T$3&"!ehecken")),0,INDIRECT(T$3&"!ehecken")),0) -> 0 | U31: =IF(U$4,IF(ISERROR(INDIRECT(U$3&"!eheckenpkt")),0,INDIRECT(U$3&"!eheckenpkt")),0) -> 0 | V31: =IF(V$4,IF(ISERROR(INDIRECT(V$3&"!ehecken")),0,INDIRECT(V$3&"!ehecken")),0) -> 0 | W31: =IF(W$4,IF(ISERROR(INDIRECT(W$3&"!eheckenpkt")),0,INDIRECT(W$3&"!eheckenpkt")),0) -> 0 | X31: 0 | Y31: 0
B32: Benjeshecken anlegen | C32: Benjeshecken anlegen (min. 30 m) | D32: =IF(D$4,IF(ISERROR(INDIRECT(D$3&"!bhecken")),0,INDIRECT(D$3&"!bhecken")),0) -> 0 | E32: =IF(E$4,IF(ISERROR(INDIRECT(E$3&"!bheckenpkt")),0,INDIRECT(E$3&"!bheckenpkt")),0) -> 0 | F32: =IF(F$4,IF(ISERROR(INDIRECT(F$3&"!bhecken")),0,INDIRECT(F$3&"!bhecken")),0) -> 0 | G32: =IF(G$4,IF(ISERROR(INDIRECT(G$3&"!bheckenpkt")),0,INDIRECT(G$3&"!bheckenpkt")),0) -> 0 | H32: =IF(H$4,IF(ISERROR(INDIRECT(H$3&"!bhecken")),0,INDIRECT(H$3&"!bhecken")),0) -> 0 | I32: =IF(I$4,IF(ISERROR(INDIRECT(I$3&"!bheckenpkt")),0,INDIRECT(I$3&"!bheckenpkt")),0) -> 0 | J32: =IF(J$4,IF(ISERROR(INDIRECT(J$3&"!bhecken")),0,INDIRECT(J$3&"!bhecken")),0) -> 0 | K32: =IF(K$4,IF(ISERROR(INDIRECT(K$3&"!bheckenpkt")),0,INDIRECT(K$3&"!bheckenpkt")),0) -> 0 | L32: =IF(L$4,IF(ISERROR(INDIRECT(L$3&"!bhecken")),0,INDIRECT(L$3&"!bhecken")),0) -> 0 | M32: =IF(M$4,IF(ISERROR(INDIRECT(M$3&"!bheckenpkt")),0,INDIRECT(M$3&"!bheckenpkt")),0) -> 0 | N32: =IF(N$4,IF(ISERROR(INDIRECT(N$3&"!bhecken")),0,INDIRECT(N$3&"!bhecken")),0) -> 0 | O32: =IF(O$4,IF(ISERROR(INDIRECT(O$3&"!bheckenpkt")),0,INDIRECT(O$3&"!bheckenpkt")),0) -> 0 | P32: =IF(P$4,IF(ISERROR(INDIRECT(P$3&"!bhecken")),0,INDIRECT(P$3&"!bhecken")),0) -> 0 | Q32: =IF(Q$4,IF(ISERROR(INDIRECT(Q$3&"!bheckenpkt")),0,INDIRECT(Q$3&"!bheckenpkt")),0) -> 0 | R32: =IF(R$4,IF(ISERROR(INDIRECT(R$3&"!bhecken")),0,INDIRECT(R$3&"!bhecken")),0) -> 0 | S32: =IF(S$4,IF(ISERROR(INDIRECT(S$3&"!bheckenpkt")),0,INDIRECT(S$3&"!bheckenpkt")),0) -> 0 | T32: =IF(T$4,IF(ISERROR(INDIRECT(T$3&"!bhecken")),0,INDIRECT(T$3&"!bhecken")),0) -> 0 | U32: =IF(U$4,IF(ISERROR(INDIRECT(U$3&"!bheckenpkt")),0,INDIRECT(U$3&"!bheckenpkt")),0) -> 0 | V32: =IF(V$4,IF(ISERROR(INDIRECT(V$3&"!bhecken")),0,INDIRECT(V$3&"!bhecken")),0) -> 0 | W32: =IF(W$4,IF(ISERROR(INDIRECT(W$3&"!bheckenpkt")),0,INDIRECT(W$3&"!bheckenpkt")),0) -> 0 | X32: 0 | Y32: =E32+G32+I32+K32+M32+O32+Q32+S32+U32+W32 -> 0
D34: Ausw_LS_aktiv | E34: Technologie | F34: Nutzungsdauer | G34: Einstufung | H34: Strom? | I34: Erzeugte/eingsp. kWh Strom | J34: Vorkette Strom | K34: THG Faktor Strom | L34: Wärme? | M34: Erzeugte/eingsp. kWh Wärme | N34: Vorkette Wärme | O34: THG Faktor Wärme | P34: Verursachte Emissionen | Q34: Eingesparte Emissionen | R34: t berechnet | S34: Max. Zertifikate | T34: t Heizung | U34: t gesamt
C35: PJ1 | D35: =IF(ISERROR(INDIRECT($C35&"!Ausw_PJ_aktiv")),FALSE,INDIRECT($C35&"!Ausw_PJ_aktiv")) -> FALSE | E35: =IF(Berechnungen_2!C5,IF(ISERROR(INDIRECT(Berechnungen_2!$B5&"!Technologie")),"",INDIRECT(Berechnungen_2!$B5&"!Technologie")),"") ->  | F35: =IF(Berechnungen_2!C5,IF(ISERROR(INDIRECT(Berechnungen_2!$B5&"!Nutzungsdauer")),"",INDIRECT(Berechnungen_2!$B5&"!Nutzungsdauer")),"") ->  | G35: =IF(Berechnungen_2!C5,IF(ISERROR(INDIRECT(Berechnungen_2!$B5&"!Einstufung")),"",INDIRECT(Berechnungen_2!$B5&"!Einstufung")),"") ->  | H35: =IF(OR(E35="Solarthermie",E35="Biomasse Festbrennst.",E35="Künstlicher_Dämmstoff",E35="Naturdämmstoff",E35="Biomasse Festbrennst",E35="Wärmepumpe"),"nein","ja") -> ja | I35: =IF(H35="nein",0,IF(Berechnungen_2!C5,IF(ISERROR(INDIRECT(Berechnungen_2!$B5&"!Stromeinsparung")),"",INDIRECT(Berechnungen_2!$B5&"!Stromeinsparung")),"")) ->  | J35: =VLOOKUP(E35,'THG-Faktoren'!$B$4:$D$16,2,FALSE) ->  | K35: ='THG-Faktoren'!$G$3 -> 401 | L35: =IF(OR(E35="Biogas BHKW",E35="Biomasse Festbrennst. BHKW",E35="Solarthermie",E35="Biogasanlage mit Kavitation",E35="Künstlicher_Dämmstoff",E35="Naturdämmstoff",E35="Wärmepumpe"),"ja","nein") -> nein | M35: =IF(L35="nein",0,IF(Berechnungen_2!C5,IF(ISERROR(INDIRECT(Berechnungen_2!$B5&"!Wärmeeinsparung")),"",INDIRECT(Berechnungen_2!$B5&"!Wärmeeinsparung")),"")) -> 0 | N35: =VLOOKUP(E35,'THG-Faktoren'!$B$4:$D$16,3,FALSE) ->  | O35: =IFERROR(VLOOKUP(G35,'THG-Faktoren'!$F$6:$G$9,2,FALSE),0) -> 0 | P35: =(J35*I35+N35*M35)/1000000 ->  | Q35: =(K35*I35+O35*M35)/1000000 ->  | R35: =IFERROR(ROUND((Q35-P35)*F35,0),"") ->  | S35: =ROUNDDOWN(R35,0) ->  | T35: =INDIRECT(C35&"!GHGZ") ->  | U35: =MAX(PJ2_CO2,T35) -> 0
C36: PJ2 | D36: FALSE | E36: =IF(Berechnungen_2!C6,IF(ISERROR(INDIRECT(Berechnungen_2!$B6&"!Technologie")),"",INDIRECT(Berechnungen_2!$B6&"!Technologie")),"") ->  | F36: =IF(Berechnungen_2!C6,IF(ISERROR(INDIRECT(Berechnungen_2!$B6&"!Nutzungsdauer")),"",INDIRECT(Berechnungen_2!$B6&"!Nutzungsdauer")),"") ->  | G36: =IF(Berechnungen_2!C6,IF(ISERROR(INDIRECT(Berechnungen_2!$B6&"!Einstufung")),"",INDIRECT(Berechnungen_2!$B6&"!Einstufung")),"") ->  | H36: ja | I36: =IF(H36="nein",0,IF(Berechnungen_2!C6,IF(ISERROR(INDIRECT(Berechnungen_2!$B6&"!Stromeinsparung")),"",INDIRECT(Berechnungen_2!$B6&"!Stromeinsparung")),"")) ->  | J36: =VLOOKUP(E36,'THG-Faktoren'!$B$4:$D$16,2,FALSE) ->  | K36: ='THG-Faktoren'!$G$3 -> 401 | L36: =IF(OR(E36="Biogas BHKW",E36="Biomasse Festbrennst. BHKW",E36="Solarthermie",E36="Biogasanlage mit Kavitation",E36="Künstlicher_Dämmstoff",E36="Naturdämmstoff",E36="Wärmepumpe"),"ja","nein") -> nein | M36: =IF(L36="nein",0,IF(Berechnungen_2!C6,IF(ISERROR(INDIRECT(Berechnungen_2!$B6&"!Wärmeeinsparung")),"",INDIRECT(Berechnungen_2!$B6&"!Wärmeeinsparung")),"")) -> 0 | N36: =VLOOKUP(E36,'THG-Faktoren'!$B$4:$D$16,3,FALSE) ->  | O36: =IFERROR(VLOOKUP(G36,'THG-Faktoren'!$F$6:$G$9,2,FALSE),0) -> 0 | Q36: =(K36*I36+O36*M36)/1000000 ->  | R36: =IFERROR(ROUND((Q36-P36)*F36,0),"") ->  | S36: =ROUNDDOWN(R36,0) ->  | T36: =INDIRECT(C36&"!GHGZ") ->  | U36: =MAX(R36,T36) -> 0
C37: PJ3 | D37: FALSE | E37: =IF(Berechnungen_2!C7,IF(ISERROR(INDIRECT(Berechnungen_2!$B7&"!Technologie")),"",INDIRECT(Berechnungen_2!$B7&"!Technologie")),"") ->  | F37: =IF(Berechnungen_2!C7,IF(ISERROR(INDIRECT(Berechnungen_2!$B7&"!Nutzungsdauer")),"",INDIRECT(Berechnungen_2!$B7&"!Nutzungsdauer")),"") ->  | G37: =IF(Berechnungen_2!C7,IF(ISERROR(INDIRECT(Berechnungen_2!$B7&"!Einstufung")),"",INDIRECT(Berechnungen_2!$B7&"!Einstufung")),"") ->  | H37: ja | I37: =IF(H37="nein",0,IF(Berechnungen_2!C7,IF(ISERROR(INDIRECT(Berechnungen_2!$B7&"!Stromeinsparung")),"",INDIRECT(Berechnungen_2!$B7&"!Stromeinsparung")),"")) ->  | J37: =VLOOKUP(E37,'THG-Faktoren'!$B$4:$D$16,2,FALSE) ->  | K37: ='THG-Faktoren'!$G$3 -> 401 | L37: nein | M37: =IF(L37="nein",0,IF(Berechnungen_2!C7,IF(ISERROR(INDIRECT(Berechnungen_2!$B7&"!Wärmeeinsparung")),"",INDIRECT(Berechnungen_2!$B7&"!Wärmeeinsparung")),"")) -> 0 | N37: =VLOOKUP(E37,'THG-Faktoren'!$B$4:$D$16,3,FALSE) ->  | O37: =IFERROR(VLOOKUP(G37,'THG-Faktoren'!$F$6:$G$9,2,FALSE),0) -> 0 | Q37: =(K37*I37+O37*M37)/1000000 ->  | S37: =ROUNDDOWN(R37,0) ->  | T37: =INDIRECT(C37&"!GHGZ") ->  | U37: =MAX(R37,T37) -> 0
C38: PJ4 | D38: FALSE | E38: =IF(Berechnungen_2!C8,IF(ISERROR(INDIRECT(Berechnungen_2!$B8&"!Technologie")),"",INDIRECT(Berechnungen_2!$B8&"!Technologie")),"") ->  | F38: =IF(Berechnungen_2!C8,IF(ISERROR(INDIRECT(Berechnungen_2!$B8&"!Nutzungsdauer")),"",INDIRECT(Berechnungen_2!$B8&"!Nutzungsdauer")),"") ->  | G38: =IF(Berechnungen_2!C8,IF(ISERROR(INDIRECT(Berechnungen_2!$B8&"!Einstufung")),"",INDIRECT(Berechnungen_2!$B8&"!Einstufung")),"") ->  | H38: ja | I38: =IF(H38="nein",0,IF(Berechnungen_2!C8,IF(ISERROR(INDIRECT(Berechnungen_2!$B8&"!Stromeinsparung")),"",INDIRECT(Berechnungen_2!$B8&"!Stromeinsparung")),"")) ->  | J38: =VLOOKUP(E38,'THG-Faktoren'!$B$4:$D$16,2,FALSE) ->  | K38: ='THG-Faktoren'!$G$3 -> 401 | L38: nein | M38: =IF(L38="nein",0,IF(Berechnungen_2!C8,IF(ISERROR(INDIRECT(Berechnungen_2!$B8&"!Wärmeeinsparung")),"",INDIRECT(Berechnungen_2!$B8&"!Wärmeeinsparung")),"")) -> 0 | N38: =VLOOKUP(E38,'THG-Faktoren'!$B$4:$D$16,3,FALSE) ->  | O38: =IFERROR(VLOOKUP(G38,'THG-Faktoren'!$F$6:$G$9,2,FALSE),0) -> 0 | T38: =INDIRECT(C38&"!GHGZ") ->  | U38: 0
C39: PJ5 | D39: FALSE | E39: =IF(Berechnungen_2!C9,IF(ISERROR(INDIRECT(Berechnungen_2!$B9&"!Technologie")),"",INDIRECT(Berechnungen_2!$B9&"!Technologie")),"") ->  | F39: =IF(Berechnungen_2!C9,IF(ISERROR(INDIRECT(Berechnungen_2!$B9&"!Nutzungsdauer")),"",INDIRECT(Berechnungen_2!$B9&"!Nutzungsdauer")),"") ->  | G39: =IF(Berechnungen_2!C9,IF(ISERROR(INDIRECT(Berechnungen_2!$B9&"!Einstufung")),"",INDIRECT(Berechnungen_2!$B9&"!Einstufung")),"") ->  | H39: ja | I39: =IF(H39="nein",0,IF(Berechnungen_2!C9,IF(ISERROR(INDIRECT(Berechnungen_2!$B9&"!Stromeinsparung")),"",INDIRECT(Berechnungen_2!$B9&"!Stromeinsparung")),"")) ->  | J39: =VLOOKUP(E39,'THG-Faktoren'!$B$4:$D$16,2,FALSE) ->  | K39: ='THG-Faktoren'!$G$3 -> 401 | L39: nein | M39: =IF(L39="nein",0,IF(Berechnungen_2!C9,IF(ISERROR(INDIRECT(Berechnungen_2!$B9&"!Wärmeeinsparung")),"",INDIRECT(Berechnungen_2!$B9&"!Wärmeeinsparung")),"")) -> 0 | N39: =VLOOKUP(E39,'THG-Faktoren'!$B$4:$D$16,3,FALSE) ->  | O39: =IFERROR(VLOOKUP(G39,'THG-Faktoren'!$F$6:$G$9,2,FALSE),0) -> 0 | T39: =INDIRECT(C39&"!GHGZ") ->  | U39: 0
C40: PJ6 | D40: FALSE | E40: =IF(Berechnungen_2!C10,IF(ISERROR(INDIRECT(Berechnungen_2!$B10&"!Technologie")),"",INDIRECT(Berechnungen_2!$B10&"!Technologie")),"") ->  | F40: =IF(Berechnungen_2!C10,IF(ISERROR(INDIRECT(Berechnungen_2!$B10&"!Nutzungsdauer")),"",INDIRECT(Berechnungen_2!$B10&"!Nutzungsdauer")),"") ->  | G40: =IF(Berechnungen_2!C10,IF(ISERROR(INDIRECT(Berechnungen_2!$B10&"!Einstufung")),"",INDIRECT(Berechnungen_2!$B10&"!Einstufung")),"") ->  | H40: ja | I40: =IF(H40="nein",0,IF(Berechnungen_2!C10,IF(ISERROR(INDIRECT(Berechnungen_2!$B10&"!Stromeinsparung")),"",INDIRECT(Berechnungen_2!$B10&"!Stromeinsparung")),"")) ->  | J40: =VLOOKUP(E40,'THG-Faktoren'!$B$4:$D$16,2,FALSE) ->  | K40: ='THG-Faktoren'!$G$3 -> 401 | L40: nein | M40: =IF(L40="nein",0,IF(Berechnungen_2!C10,IF(ISERROR(INDIRECT(Berechnungen_2!$B10&"!Wärmeeinsparung")),"",INDIRECT(Berechnungen_2!$B10&"!Wärmeeinsparung")),"")) -> 0 | N40: =VLOOKUP(E40,'THG-Faktoren'!$B$4:$D$16,3,FALSE) ->  | O40: =IFERROR(VLOOKUP(G40,'THG-Faktoren'!$F$6:$G$9,2,FALSE),0) -> 0 | T40: =INDIRECT(C40&"!GHGZ") ->  | U40: 0
C41: PJ7 | D41: FALSE | E41: =IF(Berechnungen_2!C11,IF(ISERROR(INDIRECT(Berechnungen_2!$B11&"!Technologie")),"",INDIRECT(Berechnungen_2!$B11&"!Technologie")),"") ->  | F41: =IF(Berechnungen_2!C11,IF(ISERROR(INDIRECT(Berechnungen_2!$B11&"!Nutzungsdauer")),"",INDIRECT(Berechnungen_2!$B11&"!Nutzungsdauer")),"") ->  | G41: =IF(Berechnungen_2!C11,IF(ISERROR(INDIRECT(Berechnungen_2!$B11&"!Einstufung")),"",INDIRECT(Berechnungen_2!$B11&"!Einstufung")),"") ->  | H41: ja | I41: =IF(H41="nein",0,IF(Berechnungen_2!C11,IF(ISERROR(INDIRECT(Berechnungen_2!$B11&"!Stromeinsparung")),"",INDIRECT(Berechnungen_2!$B11&"!Stromeinsparung")),"")) ->  | J41: =VLOOKUP(E41,'THG-Faktoren'!$B$4:$D$16,2,FALSE) ->  | K41: ='THG-Faktoren'!$G$3 -> 401 | L41: nein | M41: =IF(L41="nein",0,IF(Berechnungen_2!C11,IF(ISERROR(INDIRECT(Berechnungen_2!$B11&"!Wärmeeinsparung")),"",INDIRECT(Berechnungen_2!$B11&"!Wärmeeinsparung")),"")) -> 0 | N41: =VLOOKUP(E41,'THG-Faktoren'!$B$4:$D$16,3,FALSE) ->  | O41: =IFERROR(VLOOKUP(G41,'THG-Faktoren'!$F$6:$G$9,2,FALSE),0) -> 0 | T41: =INDIRECT(C41&"!GHGZ") ->  | U41: 0
C42: PJ8 | D42: FALSE | E42: =IF(Berechnungen_2!C12,IF(ISERROR(INDIRECT(Berechnungen_2!$B12&"!Technologie")),"",INDIRECT(Berechnungen_2!$B12&"!Technologie")),"") ->  | F42: =IF(Berechnungen_2!C12,IF(ISERROR(INDIRECT(Berechnungen_2!$B12&"!Nutzungsdauer")),"",INDIRECT(Berechnungen_2!$B12&"!Nutzungsdauer")),"") ->  | G42: =IF(Berechnungen_2!C12,IF(ISERROR(INDIRECT(Berechnungen_2!$B12&"!Einstufung")),"",INDIRECT(Berechnungen_2!$B12&"!Einstufung")),"") ->  | H42: ja | I42: =IF(H42="nein",0,IF(Berechnungen_2!C12,IF(ISERROR(INDIRECT(Berechnungen_2!$B12&"!Stromeinsparung")),"",INDIRECT(Berechnungen_2!$B12&"!Stromeinsparung")),"")) ->  | J42: =VLOOKUP(E42,'THG-Faktoren'!$B$4:$D$16,2,FALSE) ->  | K42: ='THG-Faktoren'!$G$3 -> 401 | L42: nein | M42: =IF(L42="nein",0,IF(Berechnungen_2!C12,IF(ISERROR(INDIRECT(Berechnungen_2!$B12&"!Wärmeeinsparung")),"",INDIRECT(Berechnungen_2!$B12&"!Wärmeeinsparung")),"")) -> 0 | N42: =VLOOKUP(E42,'THG-Faktoren'!$B$4:$D$16,3,FALSE) ->  | O42: =IFERROR(VLOOKUP(G42,'THG-Faktoren'!$F$6:$G$9,2,FALSE),0) -> 0 | T42: =INDIRECT(C42&"!GHGZ") ->  | U42: 0
C43: PJ9 | D43: FALSE | E43: =IF(Berechnungen_2!C13,IF(ISERROR(INDIRECT(Berechnungen_2!$B13&"!Technologie")),"",INDIRECT(Berechnungen_2!$B13&"!Technologie")),"") ->  | F43: =IF(Berechnungen_2!C13,IF(ISERROR(INDIRECT(Berechnungen_2!$B13&"!Nutzungsdauer")),"",INDIRECT(Berechnungen_2!$B13&"!Nutzungsdauer")),"") ->  | G43: =IF(Berechnungen_2!C13,IF(ISERROR(INDIRECT(Berechnungen_2!$B13&"!Einstufung")),"",INDIRECT(Berechnungen_2!$B13&"!Einstufung")),"") ->  | H43: ja | I43: =IF(H43="nein",0,IF(Berechnungen_2!C13,IF(ISERROR(INDIRECT(Berechnungen_2!$B13&"!Stromeinsparung")),"",INDIRECT(Berechnungen_2!$B13&"!Stromeinsparung")),"")) ->  | J43: =VLOOKUP(E43,'THG-Faktoren'!$B$4:$D$16,2,FALSE) ->  | K43: ='THG-Faktoren'!$G$3 -> 401 | L43: nein | M43: =IF(L43="nein",0,IF(Berechnungen_2!C13,IF(ISERROR(INDIRECT(Berechnungen_2!$B13&"!Wärmeeinsparung")),"",INDIRECT(Berechnungen_2!$B13&"!Wärmeeinsparung")),"")) -> 0 | N43: =VLOOKUP(E43,'THG-Faktoren'!$B$4:$D$16,3,FALSE) ->  | O43: =IFERROR(VLOOKUP(G43,'THG-Faktoren'!$F$6:$G$9,2,FALSE),0) -> 0 | T43: =INDIRECT(C43&"!GHGZ") ->  | U43: 0
C44: PJ10 | D44: FALSE | E44: =IF(Berechnungen_2!C14,IF(ISERROR(INDIRECT(Berechnungen_2!$B14&"!Technologie")),"",INDIRECT(Berechnungen_2!$B14&"!Technologie")),"") ->  | F44: =IF(Berechnungen_2!C14,IF(ISERROR(INDIRECT(Berechnungen_2!$B14&"!Nutzungsdauer")),"",INDIRECT(Berechnungen_2!$B14&"!Nutzungsdauer")),"") ->  | G44: =IF(Berechnungen_2!C14,IF(ISERROR(INDIRECT(Berechnungen_2!$B14&"!Einstufung")),"",INDIRECT(Berechnungen_2!$B14&"!Einstufung")),"") ->  | H44: ja | I44: =IF(H44="nein",0,IF(Berechnungen_2!C14,IF(ISERROR(INDIRECT(Berechnungen_2!$B14&"!Stromeinsparung")),"",INDIRECT(Berechnungen_2!$B14&"!Stromeinsparung")),"")) ->  | J44: =VLOOKUP(E44,'THG-Faktoren'!$B$4:$D$16,2,FALSE) ->  | K44: ='THG-Faktoren'!$G$3 -> 401 | L44: nein | M44: =IF(L44="nein",0,IF(Berechnungen_2!C14,IF(ISERROR(INDIRECT(Berechnungen_2!$B14&"!Wärmeeinsparung")),"",INDIRECT(Berechnungen_2!$B14&"!Wärmeeinsparung")),"")) -> 0 | N44: =VLOOKUP(E44,'THG-Faktoren'!$B$4:$D$16,3,FALSE) ->  | O44: =IFERROR(VLOOKUP(G44,'THG-Faktoren'!$F$6:$G$9,2,FALSE),0) -> 0 | T44: =INDIRECT(C44&"!GHGZ") ->  | U44: =MAX(R44,T44) -> 0
R45: =SUM(U35:U44) -> 0 | S45: =ROUNDDOWN(R45,0) -> 0
D47: Anzahl an BPkt
C48: PJ1 | D48: =IF(Berechnungen_2!C5,IF(ISERROR(INDIRECT(Berechnungen_2!$B5&"!Anzahl_BPkt")),"",INDIRECT(Berechnungen_2!$B5&"!Anzahl_BPkt")),"") -> 
C49: PJ2 | D49: =IF(Berechnungen_2!C6,IF(ISERROR(INDIRECT(Berechnungen_2!$B6&"!Anzahl_BPkt")),"",INDIRECT(Berechnungen_2!$B6&"!Anzahl_BPkt")),"") -> 
C50: PJ3 | D50: =IF(Berechnungen_2!C7,IF(ISERROR(INDIRECT(Berechnungen_2!$B7&"!Anzahl_BPkt")),"",INDIRECT(Berechnungen_2!$B7&"!Anzahl_BPkt")),"") -> 
C51: PJ4 | D51: =IF(Berechnungen_2!C8,IF(ISERROR(INDIRECT(Berechnungen_2!$B8&"!Anzahl_BPkt")),"",INDIRECT(Berechnungen_2!$B8&"!Anzahl_BPkt")),"") -> 
C52: PJ5 | D52: =IF(Berechnungen_2!C9,IF(ISERROR(INDIRECT(Berechnungen_2!$B9&"!Anzahl_BPkt")),"",INDIRECT(Berechnungen_2!$B9&"!Anzahl_BPkt")),"") -> 
C53: PJ6 | D53: =IF(Berechnungen_2!C10,IF(ISERROR(INDIRECT(Berechnungen_2!$B10&"!Anzahl_BPkt")),"",INDIRECT(Berechnungen_2!$B10&"!Anzahl_BPkt")),"") -> 
C54: PJ7 | D54: =IF(Berechnungen_2!C11,IF(ISERROR(INDIRECT(Berechnungen_2!$B11&"!Anzahl_BPkt")),"",INDIRECT(Berechnungen_2!$B11&"!Anzahl_BPkt")),"") -> 
C55: PJ8 | D55: =IF(Berechnungen_2!C12,IF(ISERROR(INDIRECT(Berechnungen_2!$B12&"!Anzahl_BPkt")),"",INDIRECT(Berechnungen_2!$B12&"!Anzahl_BPkt")),"") -> 
C56: PJ9 | D56: =IF(Berechnungen_2!C13,IF(ISERROR(INDIRECT(Berechnungen_2!$B13&"!Anzahl_BPkt")),"",INDIRECT(Berechnungen_2!$B13&"!Anzahl_BPkt")),"") -> 
C57: PJ10 | D57: =IF(Berechnungen_2!C14,IF(ISERROR(INDIRECT(Berechnungen_2!$B14&"!Anzahl_BPkt")),"",INDIRECT(Berechnungen_2!$B14&"!Anzahl_BPkt")),"") -> 

Sheet Berechnungen_2 (hidden)
H3: Ausgangssituation (Punkte) | K3: Z1 | L3: Rest Z | P3: Z2 | Q3: Rest Z | S3: Z3 | T3: Rest Z | U3: Gold | V3: Silber | W3: Bronze | AC3: Hinweistexte | AR3: Berechnung | AS3: Regionale Wertschöpfung | BH3: Hilfsspalte Zeilenindex
C4: Ausw_LS_aktiv | D4: GHGZ | E4: Anzahl an WZ(pkt) | F4: Max. Anzahl WZ | G4: Max Anz an Zert | H4: Gold | I4: Silber | J4: Bronze | K4: Gold | M4: Rest Gold | N4: Silber | O4: Bronze | P4: Silber | R4: Bronze | S4: Bronze | U4: Wert Z | V4: Wert Z | W4: Wert Z | X4: Wert Zertifikate | Y4: Technologie | Z4: Erzeugte thermische Energie | AA4: Erzeugte elektrische Energie | AB4: Investition | AC4: PIAbfr_PJ_EnEf | AD4: PlAbfr_PJ_RW | AE4: PlAbfr_PJ_PB | AF4: PlAbfr_PJ_FL | AG4: PlAbfr_PJ_SP | AH4: PlAbfr_PJ_AP | AI4: PIAbfr_BD | AJ4: PIAbfr_PJ_Max | AK4: PIAbfr_PJ_01 | AL4: PIAbfr_PJ_NaturP | AM4: PIAbfr_PJ_allg | AN4: Notwendige Punkte Bronze | AO4: Notwendige Punkte Silber | AP4: Notwendige Punkte Gold | AQ4: Investition | AR4: RWS | AS4: LED | AT4: Brauchwasserpumpe | AU4: Heizungspumpe | AV4: GreenIT | AW4: Lüftungsanlage_oder_Klimaanlage | AX4: Heizungstausch | AY4: Wind | AZ4: Photovoltaik | BA4: Wasserkraft | BB4: Biogas BHKW | BC4: Biomasse Festbrennst. BHKW | BD4: Solarthermie (nur Warmwasser) | BE4: Biogasanlage mit Kavitation | BF4: Naturdämmstoff | BG4: Künstlicher_Dämmstoff | BH4: 1
B5: PJ1 | C5: =IF(ISERROR(INDIRECT($B5&"!Ausw_PJ_aktiv")),FALSE,INDIRECT($B5&"!Ausw_PJ_aktiv")) -> FALSE | D5: =ROUNDDOWN(IF(C5,IF(ISERROR(INDIRECT($B5&"!GHGZ")),"",INDIRECT($B5&"!GHGZ")),""),0) ->  | E5: =IF(C5,IF(ISERROR(INDIRECT($B5&"!GHGZ")),"",INDIRECT($B5&"!GHGZ")),"") ->  | F5: =IF(C5,IF(ISERROR(INDIRECT($B5&"!WZ")),"",INDIRECT($B5&"!WZ")),"") ->  | G5: =IF(OR(E5="",E5<=0),0,IF(E5=0,0,ROUNDDOWN(AVERAGE(E5:F5),0))) -> 0 | H5: =IF(ISERROR(INDIRECT($B5&"!Gold")),FALSE,INDIRECT($B5&"!Gold")) -> 0 | I5: =IF(ISERROR(INDIRECT($B5&"!Silber")),FALSE,INDIRECT($B5&"!Silber")) -> 0 | J5: =IF(ISERROR(INDIRECT($B5&"!Bronze")),FALSE,INDIRECT($B5&"!Bronze")) -> 0 | K5: =IF(ROUNDDOWN(MIN((H5/5),(H5+I5)/10,(H5+I5+J5)/20),0)>G5,G5,ROUNDDOWN(MIN((H5/5),(H5+I5)/10,(H5+I5+J5)/20),0)) -> 0 | L5: =IF(K5>G5,G5-G5,G5-K5) -> 0 | M5: =IF(J5>K5*10,((K5*20-IF(J5>K5*10,K5*10,J5)-IF(I5>K5*20-IF(J5>K5*10,K5*10,J5),K5*5+H5))*-1),IF(-K5*20+IF(J5>K5*10,K5*10,J5)+IF(I5>K5*15,K5*15,I5)+H5<=0,0,-K5*20+IF(J5>K5*10,K5*10,J5)+IF(I5>K5*15,K5*15,I5)+H5)) -> 0 | N5: =I5-(K5*20-J5+O5-H5+M5)+M5 -> 0 | O5: =IF(J5>K5*10,J5-K5*10,0) -> 0 | P5: =IF(ROUNDDOWN(MIN((N5)/5,(N5+O5)/15),0)>L5,L5,ROUNDDOWN(MIN((N5)/5,(N5+O5)/15),0)) -> 0 | Q5: =L5-P5 -> 0 | R5: =SUM(N5:O5)-P5*15 -> 0 | S5: =IF(ROUNDDOWN(R5/10,0)>Q5,Q5,ROUNDDOWN(R5/10,0)) -> 0 | T5: =Q5-S5 -> 0 | U5: =K5*75 -> 0 | V5: =P5*50 -> 0 | W5: =S5*25 -> 0 | X5: =SUM(U5:W5) -> 0 | Y5: =IF(C5,IF(ISERROR(INDIRECT(Berechnungen_2!$B5&"!Projekt")),"",INDIRECT(Berechnungen_2!$B5&"!Projekt")),"") ->  | Z5: =IF(C5,IF(ISERROR(INDIRECT(Berechnungen_2!$B5&"!Eingrenzung")),"",INDIRECT(Berechnungen_2!$B5&"!Eingrenzung")),"") ->  | AA5: =IF(C5,IF(ISERROR(INDIRECT(Berechnungen_2!$B5&"!Stromeinsparung")),"",INDIRECT(Berechnungen_2!$B5&"!Stromeinsparung")),"") ->  | AB5: =IF(C5,IF(ISERROR(INDIRECT(Berechnungen_2!$B5&"!Investition")),"",INDIRECT(Berechnungen_2!$B5&"!Investition")),"") ->  | AC5: =IF(ISERROR(INDIRECT(Berechnungen_2!$B5&"!PIAbfr_PJ_EnEf")),"",INDIRECT(Berechnungen_2!$B5&"!PIAbfr_PJ_EnEf")) -> 1 | AD5: =IF(ISERROR(INDIRECT(Berechnungen_2!$B5&"!PlAbfr_PJ_RW")),"",INDIRECT(Berechnungen_2!$B5&"!PlAbfr_PJ_RW")) -> 1 | AE5: =IF(ISERROR(INDIRECT(Berechnungen_2!$B5&"!PlAbfr_PJ_PB")),"",INDIRECT(Berechnungen_2!$B5&"!PlAbfr_PJ_PB")) -> 1 | AF5: =IF(ISERROR(INDIRECT(Berechnungen_2!$B5&"!PlAbfr_PJ_FL")),"",INDIRECT(Berechnungen_2!$B5&"!PlAbfr_PJ_FL")) -> 1 | AG5: =IF(ISERROR(INDIRECT(Berechnungen_2!$B5&"!PlAbfr_PJ_SP")),"",INDIRECT(Berechnungen_2!$B5&"!PlAbfr_PJ_SP")) -> 1 | AH5: =IF(ISERROR(INDIRECT(Berechnungen_2!$B5&"!PlAbfr_PJ_AP")),"",INDIRECT(Berechnungen_2!$B5&"!PlAbfr_PJ_AP")) -> 1 | AI5: =IF(ISERROR(INDIRECT(Berechnungen_2!$B5&"!PIAbfr_BD")),"",INDIRECT(Berechnungen_2!$B5&"!PIAbfr_BD")) -> -2 | AJ5: =IF(ISERROR(INDIRECT(Berechnungen_2!$B5&"!PIAbfr_PJ_Max")),"",INDIRECT(Berechnungen_2!$B5&"!PIAbfr_PJ_Max")) -> 1 | AK5: =IF(ISERROR(INDIRECT(Berechnungen_2!$B5&"!PIAbfr_PJ_01")),"",INDIRECT(Berechnungen_2!$B5&"!PIAbfr_PJ_01")) -> 1 | AL5: =IF(ISERROR(INDIRECT(Berechnungen_2!$B5&"!PIAbfr_PJ_NaturP")),"",INDIRECT(Berechnungen_2!$B5&"!PIAbfr_PJ_NaturP")) -> 1 | AM5: =IF(ISERROR(INDIRECT(Berechnungen_2!$B5&"!PIAbfr_PJ_allg")),"",INDIRECT(Berechnungen_2!$B5&"!PIAbfr_PJ_allg")) -> 2 | AN5: =IF(C5,IF(ISERROR(T5*10),"",(T5*10)),"") ->  | AO5: =IF(C5,IF(ISERROR(T5*15),"",(T5*15)),"") ->  | AP5: =IF(C5,IF(ISERROR(T5*20),"",(T5*20)),"") ->  | AQ5: =IFERROR(IF(AB5>0,AB5,0),"") ->  | AR5: =IF(IFERROR(AQ5*HLOOKUP(Y5,$AS$4:$BG$14,BH5,FALSE),"")<0,0,IFERROR(AQ5*HLOOKUP(Y5,$AS$4:$BG$14,BH5,FALSE),"")) ->  | AS5: =IFERROR(SRWS1,"") ->  | AT5: =IFERROR(SRWS1,"") ->  | AU5: =IFERROR(SRWS1,"") ->  | AV5: =IFERROR(SRWS1,"") ->  | AW5: =IFERROR(SRWS1,"") ->  | AX5: =IFERROR(HRWS1,"") ->  | AY5: 1.01 | AZ5: 1.29 | BA5: 1.5 | BB5: 3.15 | BC5: 5.85 | BD5: 1.5 | BE5: 3.15 | BF5: =IFERROR(WRWS1,"") ->  | BG5: =IFERROR(WRWS1,"") ->  | BH5: 2
B6: PJ2 | C6: FALSE | D6: =ROUNDDOWN(IF(C6,IF(ISERROR(INDIRECT($B6&"!GHGZ")),"",INDIRECT($B6&"!GHGZ")),""),0) ->  | E6: =IF(C6,IF(ISERROR(INDIRECT($B6&"!GHGZ")),"",INDIRECT($B6&"!GHGZ")),"") ->  | F6: =IF(C6,IF(ISERROR(INDIRECT($B6&"!WZ")),"",INDIRECT($B6&"!WZ")),"") ->  | G6: =IF(OR(E6="",E6<=0),0,IF(E6=0,0,ROUNDDOWN(AVERAGE(E6:F6),0))) -> 0 | H6: =IF(ISERROR(INDIRECT($B6&"!Gold")),FALSE,INDIRECT($B6&"!Gold")) -> 0 | I6: 0 | J6: =IF(ISERROR(INDIRECT($B6&"!Bronze")),FALSE,INDIRECT($B6&"!Bronze")) -> 0 | K6: =IF(ROUNDDOWN(MIN((H6/5),(H6+I6)/10,(H6+I6+J6)/20),0)>G6,G6,ROUNDDOWN(MIN((H6/5),(H6+I6)/10,(H6+I6+J6)/20),0)) -> 0 | L6: =IF(G6="",0,IF(K6>G6,G6-G6,G6-K6)) -> 0 | M6: =IF(J6>K6*10,((K6*20-IF(J6>K6*10,K6*10,J6)-IF(I6>K6*20-IF(J6>K6*10,K6*10,J6),K6*5+H6))*-1),IF(-K6*20+IF(J6>K6*10,K6*10,J6)+IF(I6>K6*15,K6*15,I6)+H6<=0,0,-K6*20+IF(J6>K6*10,K6*10,J6)+IF(I6>K6*15,K6*15,I6)+H6)) -> 0 | N6: =I6-(K6*20-J6+O6-H6+M6)+M6 -> 0 | O6: =IF(J6>K6*10,J6-K6*10,0) -> 0 | P6: =IF(ROUNDDOWN(MIN((N6)/5,(N6+O6)/15),0)>L6,L6,ROUNDDOWN(MIN((N6)/5,(N6+O6)/15),0)) -> 0 | Q6: =L6-P6 -> 0 | R6: =SUM(N6:O6)-P6*15 -> 0 | S6: =IF(ROUNDDOWN(R6/10,0)>Q6,Q6,ROUNDDOWN(R6/10,0)) -> 0 | T6: =Q6-S6 -> 0 | U6: =K6*75 -> 0 | V6: 0 | W6: =S6*25 -> 0 | X6: =SUM(U6:W6) -> 0 | Y6: =IF(C6,IF(ISERROR(INDIRECT(Berechnungen_2!$B6&"!Projekt")),"",INDIRECT(Berechnungen_2!$B6&"!Projekt")),"") ->  | Z6: =IF(C6,IF(ISERROR(INDIRECT(Berechnungen_2!$B6&"!Eingrenzung")),"",INDIRECT(Berechnungen_2!$B6&"!Eingrenzung")),"") ->  | AA6: =IF(C6,IF(ISERROR(INDIRECT(Berechnungen_2!$B6&"!Stromeinsparung")),"",INDIRECT(Berechnungen_2!$B6&"!Stromeinsparung")),"") ->  | AB6: =IF(C6,IF(ISERROR(INDIRECT(Berechnungen_2!$B6&"!Investition")),"",INDIRECT(Berechnungen_2!$B6&"!Investition")),"") ->  | AC6: =IF(ISERROR(INDIRECT(Berechnungen_2!$B6&"!PIAbfr_PJ_EnEf")),"",INDIRECT(Berechnungen_2!$B6&"!PIAbfr_PJ_EnEf")) -> 1 | AD6: =IF(ISERROR(INDIRECT(Berechnungen_2!$B6&"!PlAbfr_PJ_RW")),"",INDIRECT(Berechnungen_2!$B6&"!PlAbfr_PJ_RW")) -> 1 | AE6: =IF(ISERROR(INDIRECT(Berechnungen_2!$B6&"!PlAbfr_PJ_PB")),"",INDIRECT(Berechnungen_2!$B6&"!PlAbfr_PJ_PB")) -> 1 | AF6: =IF(ISERROR(INDIRECT(Berechnungen_2!$B6&"!PlAbfr_PJ_FL")),"",INDIRECT(Berechnungen_2!$B6&"!PlAbfr_PJ_FL")) -> 1 | AG6: =IF(ISERROR(INDIRECT(Berechnungen_2!$B6&"!PlAbfr_PJ_SP")),"",INDIRECT(Berechnungen_2!$B6&"!PlAbfr_PJ_SP")) -> 1 | AH6: =IF(ISERROR(INDIRECT(Berechnungen_2!$B6&"!PlAbfr_PJ_AP")),"",INDIRECT(Berechnungen_2!$B6&"!PlAbfr_PJ_AP")) -> 1 | AI6: =IF(ISERROR(INDIRECT(Berechnungen_2!$B6&"!PIAbfr_BD")),"",INDIRECT(Berechnungen_2!$B6&"!PIAbfr_BD")) -> -2 | AJ6: =IF(ISERROR(INDIRECT(Berechnungen_2!$B6&"!PIAbfr_PJ_Max")),"",INDIRECT(Berechnungen_2!$B6&"!PIAbfr_PJ_Max")) -> 1 | AK6: =IF(ISERROR(INDIRECT(Berechnungen_2!$B6&"!PIAbfr_PJ_01")),"",INDIRECT(Berechnungen_2!$B6&"!PIAbfr_PJ_01")) -> 1 | AL6: =IF(ISERROR(INDIRECT(Berechnungen_2!$B6&"!PIAbfr_PJ_NaturP")),"",INDIRECT(Berechnungen_2!$B6&"!PIAbfr_PJ_NaturP")) -> 1 | AM6: =IF(ISERROR(INDIRECT(Berechnungen_2!$B6&"!PIAbfr_PJ_allg")),"",INDIRECT(Berechnungen_2!$B6&"!PIAbfr_PJ_allg")) -> 2 | AN6: =IF(C6,IF(ISERROR(T6*10),"",(T6*10)),"") ->  | AO6: =IF(C6,IF(ISERROR(T6*15),"",(T6*15)),"") ->  | AP6: =IF(C6,IF(ISERROR(T6*20),"",(T6*20)),"") ->  | AQ6: =IFERROR(IF(AB6>0,AB6,0),"") ->  | AS6: =IFERROR(SRWS2,"") ->  | AT6: =IFERROR(SRWS2,"") ->  | AU6: =IFERROR(SRWS2,"") ->  | AV6: =IFERROR(SRWS2,"") ->  | AW6: =IFERROR(SRWS2,"") ->  | AX6: =IFERROR(HRWS2,"") ->  | AY6: =AY5 -> 1.01 | AZ6: =AZ5 -> 1.29 | BA6: =BA5 -> 1.5 | BB6: =BB5 -> 3.15 | BC6: 5.85 | BD6: =BD5 -> 1.5 | BE6: =BE5 -> 3.15 | BF6: =IFERROR(WRWS2,"") ->  | BG6: =IFERROR(WRWS2,"") ->  | BH6: 3
B7: PJ3 | C7: FALSE | D7: =ROUNDDOWN(IF(C7,IF(ISERROR(INDIRECT($B7&"!GHGZ")),"",INDIRECT($B7&"!GHGZ")),""),0) ->  | G7: =IF(OR(E7="",E7<=0),0,IF(E7=0,0,ROUNDDOWN(AVERAGE(E7:F7),0))) -> 0 | H7: =IF(ISERROR(INDIRECT($B7&"!Gold")),FALSE,INDIRECT($B7&"!Gold")) -> 0 | I7: 0 | J7: 0 | K7: =IF(ROUNDDOWN(MIN((H7/5),(H7+I7)/10,(H7+I7+J7)/20),0)>G7,G7,ROUNDDOWN(MIN((H7/5),(H7+I7)/10,(H7+I7+J7)/20),0)) -> 0 | L7: =IF(G7="",0,IF(K7>G7,G7-G7,G7-K7)) -> 0 | M7: 0 | N7: 0 | O7: 0 | P7: 0 | Q7: 0 | R7: 0 | S7: 0 | T7: 0 | U7: 0 | V7: 0 | W7: 0 | X7: 0 | Y7: =IF(C7,IF(ISERROR(INDIRECT(Berechnungen_2!$B7&"!Projekt")),"",INDIRECT(Berechnungen_2!$B7&"!Projekt")),"") ->  | Z7: =IF(C7,IF(ISERROR(INDIRECT(Berechnungen_2!$B7&"!Eingrenzung")),"",INDIRECT(Berechnungen_2!$B7&"!Eingrenzung")),"") ->  | AA7: =IF(C7,IF(ISERROR(INDIRECT(Berechnungen_2!$B7&"!Stromeinsparung")),"",INDIRECT(Berechnungen_2!$B7&"!Stromeinsparung")),"") ->  | AB7: =IF(C7,IF(ISERROR(INDIRECT(Berechnungen_2!$B7&"!Investition")),"",INDIRECT(Berechnungen_2!$B7&"!Investition")),"") ->  | AC7: =IF(ISERROR(INDIRECT(Berechnungen_2!$B7&"!PIAbfr_PJ_EnEf")),"",INDIRECT(Berechnungen_2!$B7&"!PIAbfr_PJ_EnEf")) -> 1 | AD7: =IF(ISERROR(INDIRECT(Berechnungen_2!$B7&"!PlAbfr_PJ_RW")),"",INDIRECT(Berechnungen_2!$B7&"!PlAbfr_PJ_RW")) -> 1 | AE7: =IF(ISERROR(INDIRECT(Berechnungen_2!$B7&"!PlAbfr_PJ_PB")),"",INDIRECT(Berechnungen_2!$B7&"!PlAbfr_PJ_PB")) -> 1 | AF7: =IF(ISERROR(INDIRECT(Berechnungen_2!$B7&"!PlAbfr_PJ_FL")),"",INDIRECT(Berechnungen_2!$B7&"!PlAbfr_PJ_FL")) -> 1 | AG7: =IF(ISERROR(INDIRECT(Berechnungen_2!$B7&"!PlAbfr_PJ_SP")),"",INDIRECT(Berechnungen_2!$B7&"!PlAbfr_PJ_SP")) -> 1 | AH7: =IF(ISERROR(INDIRECT(Berechnungen_2!$B7&"!PlAbfr_PJ_AP")),"",INDIRECT(Berechnungen_2!$B7&"!PlAbfr_PJ_AP")) -> 1 | AI7: =IF(ISERROR(INDIRECT(Berechnungen_2!$B7&"!PIAbfr_BD")),"",INDIRECT(Berechnungen_2!$B7&"!PIAbfr_BD")) -> -2 | AJ7: =IF(ISERROR(INDIRECT(Berechnungen_2!$B7&"!PIAbfr_PJ_Max")),"",INDIRECT(Berechnungen_2!$B7&"!PIAbfr_PJ_Max")) -> 1 | AK7: =IF(ISERROR(INDIRECT(Berechnungen_2!$B7&"!PIAbfr_PJ_01")),"",INDIRECT(Berechnungen_2!$B7&"!PIAbfr_PJ_01")) -> 1 | AL7: =IF(ISERROR(INDIRECT(Berechnungen_2!$B7&"!PIAbfr_PJ_NaturP")),"",INDIRECT(Berechnungen_2!$B7&"!PIAbfr_PJ_NaturP")) -> 1 | AM7: =IF(ISERROR(INDIRECT(Berechnungen_2!$B7&"!PIAbfr_PJ_allg")),"",INDIRECT(Berechnungen_2!$B7&"!PIAbfr_PJ_allg")) -> 2 | AS7: =IFERROR(SRWS3,"") ->  | AT7: =IFERROR(SRWS3,"") ->  | AU7: =IFERROR(SRWS3,"") ->  | AV7: =IFERROR(SRWS3,"") ->  | AW7: =IFERROR(SRWS3,"") ->  | AX7: =IFERROR(HRWS3,"") ->  | AY7: =AY6 -> 1.01 | AZ7: =AZ6 -> 1.29 | BA7: =BA6 -> 1.5 | BB7: =BB6 -> 3.15 | BC7: =BC6 -> 5.85 | BD7: =BD6 -> 1.5 | BE7: =BE6 -> 3.15 | BF7: =IFERROR(WRWS3,"") ->  | BG7: =IFERROR(WRWS3,"") ->  | BH7: 4
B8: PJ4 | C8: FALSE | G8: 0 | H8: 0 | I8: 0 | J8: 0 | K8: 0 | L8: 0 | M8: 0 | N8: 0 | O8: 0 | P8: 0 | Q8: 0 | R8: 0 | S8: 0 | T8: 0 | U8: 0 | V8: 0 | W8: 0 | X8: 0 | Y8: =IF(C8,IF(ISERROR(INDIRECT(Berechnungen_2!$B8&"!Projekt")),"",INDIRECT(Berechnungen_2!$B8&"!Projekt")),"") ->  | Z8: =IF(C8,IF(ISERROR(INDIRECT(Berechnungen_2!$B8&"!Eingrenzung")),"",INDIRECT(Berechnungen_2!$B8&"!Eingrenzung")),"") ->  | AA8: =IF(C8,IF(ISERROR(INDIRECT(Berechnungen_2!$B8&"!Stromeinsparung")),"",INDIRECT(Berechnungen_2!$B8&"!Stromeinsparung")),"") ->  | AB8: =IF(C8,IF(ISERROR(INDIRECT(Berechnungen_2!$B8&"!Investition")),"",INDIRECT(Berechnungen_2!$B8&"!Investition")),"") ->  | AC8: =IF(ISERROR(INDIRECT(Berechnungen_2!$B8&"!PIAbfr_PJ_EnEf")),"",INDIRECT(Berechnungen_2!$B8&"!PIAbfr_PJ_EnEf")) -> 1 | AD8: =IF(ISERROR(INDIRECT(Berechnungen_2!$B8&"!PlAbfr_PJ_RW")),"",INDIRECT(Berechnungen_2!$B8&"!PlAbfr_PJ_RW")) -> 1 | AE8: =IF(ISERROR(INDIRECT(Berechnungen_2!$B8&"!PlAbfr_PJ_PB")),"",INDIRECT(Berechnungen_2!$B8&"!PlAbfr_PJ_PB")) -> 1 | AF8: =IF(ISERROR(INDIRECT(Berechnungen_2!$B8&"!PlAbfr_PJ_FL")),"",INDIRECT(Berechnungen_2!$B8&"!PlAbfr_PJ_FL")) -> 1 | AG8: =IF(ISERROR(INDIRECT(Berechnungen_2!$B8&"!PlAbfr_PJ_SP")),"",INDIRECT(Berechnungen_2!$B8&"!PlAbfr_PJ_SP")) -> 1 | AH8: =IF(ISERROR(INDIRECT(Berechnungen_2!$B8&"!PlAbfr_PJ_AP")),"",INDIRECT(Berechnungen_2!$B8&"!PlAbfr_PJ_AP")) -> 1 | AI8: =IF(ISERROR(INDIRECT(Berechnungen_2!$B8&"!PIAbfr_BD")),"",INDIRECT(Berechnungen_2!$B8&"!PIAbfr_BD")) -> -2 | AJ8: =IF(ISERROR(INDIRECT(Berechnungen_2!$B8&"!PIAbfr_PJ_Max")),"",INDIRECT(Berechnungen_2!$B8&"!PIAbfr_PJ_Max")) -> 1 | AK8: =IF(ISERROR(INDIRECT(Berechnungen_2!$B8&"!PIAbfr_PJ_01")),"",INDIRECT(Berechnungen_2!$B8&"!PIAbfr_PJ_01")) -> 1 | AL8: =IF(ISERROR(INDIRECT(Berechnungen_2!$B8&"!PIAbfr_PJ_NaturP")),"",INDIRECT(Berechnungen_2!$B8&"!PIAbfr_PJ_NaturP")) -> 1 | AM8: =IF(ISERROR(INDIRECT(Berechnungen_2!$B8&"!PIAbfr_PJ_allg")),"",INDIRECT(Berechnungen_2!$B8&"!PIAbfr_PJ_allg")) -> 2 | AR8: =IF(IFERROR(AQ8*HLOOKUP(Y8,$AS$4:$BG$14,BH8,FALSE),"")<0,0,IFERROR(AQ8*HLOOKUP(Y8,$AS$4:$BG$14,BH8,FALSE),"")) ->  | AS8: =IFERROR(SRWS4,"") ->  | AT8: =IFERROR(SRWS4,"") ->  | AU8: =IFERROR(SRWS4,"") ->  | AV8: =IFERROR(SRWS4,"") ->  | AW8: =IFERROR(SRWS4,"") ->  | AX8: =IFERROR(HRWS4,"") ->  | AY8: 1.01 | AZ8: =AZ7 -> 1.29 | BA8: 1.5 | BB8: 3.15 | BC8: 5.85 | BD8: 1.5 | BE8: 3.15 | BF8: =IFERROR(WRWS4,"") ->  | BG8: =IFERROR(WRWS4,"") ->  | BH8: 5
B9: PJ5 | C9: FALSE | G9: 0 | H9: 0 | I9: 0 | J9: 0 | K9: 0 | L9: 0 | M9: 0 | N9: 0 | O9: 0 | P9: 0 | Q9: 0 | R9: 0 | S9: 0 | T9: 0 | U9: 0 | V9: 0 | W9: 0 | X9: 0 | Y9: =IF(C9,IF(ISERROR(INDIRECT(Berechnungen_2!$B9&"!Projekt")),"",INDIRECT(Berechnungen_2!$B9&"!Projekt")),"") ->  | Z9: =IF(C9,IF(ISERROR(INDIRECT(Berechnungen_2!$B9&"!Eingrenzung")),"",INDIRECT(Berechnungen_2!$B9&"!Eingrenzung")),"") ->  | AA9: =IF(C9,IF(ISERROR(INDIRECT(Berechnungen_2!$B9&"!Stromeinsparung")),"",INDIRECT(Berechnungen_2!$B9&"!Stromeinsparung")),"") ->  | AB9: =IF(C9,IF(ISERROR(INDIRECT(Berechnungen_2!$B9&"!Investition")),"",INDIRECT(Berechnungen_2!$B9&"!Investition")),"") ->  | AC9: =IF(ISERROR(INDIRECT(Berechnungen_2!$B9&"!PIAbfr_PJ_EnEf")),"",INDIRECT(Berechnungen_2!$B9&"!PIAbfr_PJ_EnEf")) -> 1 | AD9: =IF(ISERROR(INDIRECT(Berechnungen_2!$B9&"!PlAbfr_PJ_RW")),"",INDIRECT(Berechnungen_2!$B9&"!PlAbfr_PJ_RW")) -> 1 | AE9: =IF(ISERROR(INDIRECT(Berechnungen_2!$B9&"!PlAbfr_PJ_PB")),"",INDIRECT(Berechnungen_2!$B9&"!PlAbfr_PJ_PB")) -> 1 | AF9: =IF(ISERROR(INDIRECT(Berechnungen_2!$B9&"!PlAbfr_PJ_FL")),"",INDIRECT(Berechnungen_2!$B9&"!PlAbfr_PJ_FL")) -> 1 | AG9: =IF(ISERROR(INDIRECT(Berechnungen_2!$B9&"!PlAbfr_PJ_SP")),"",INDIRECT(Berechnungen_2!$B9&"!PlAbfr_PJ_SP")) -> 1 | AH9: =IF(ISERROR(INDIRECT(Berechnungen_2!$B9&"!PlAbfr_PJ_AP")),"",INDIRECT(Berechnungen_2!$B9&"!PlAbfr_PJ_AP")) -> 1 | AI9: =IF(ISERROR(INDIRECT(Berechnungen_2!$B9&"!PIAbfr_BD")),"",INDIRECT(Berechnungen_2!$B9&"!PIAbfr_BD")) -> -2 | AJ9: =IF(ISERROR(INDIRECT(Berechnungen_2!$B9&"!PIAbfr_PJ_Max")),"",INDIRECT(Berechnungen_2!$B9&"!PIAbfr_PJ_Max")) -> 1 | AK9: =IF(ISERROR(INDIRECT(Berechnungen_2!$B9&"!PIAbfr_PJ_01")),"",INDIRECT(Berechnungen_2!$B9&"!PIAbfr_PJ_01")) -> 1 | AL9: =IF(ISERROR(INDIRECT(Berechnungen_2!$B9&"!PIAbfr_PJ_NaturP")),"",INDIRECT(Berechnungen_2!$B9&"!PIAbfr_PJ_NaturP")) -> 1 | AM9: =IF(ISERROR(INDIRECT(Berechnungen_2!$B9&"!PIAbfr_PJ_allg")),"",INDIRECT(Berechnungen_2!$B9&"!PIAbfr_PJ_allg")) -> 2 | AS9: =IFERROR(SRWS5,"") ->  | AT9: =IFERROR(SRWS5,"") ->  | AU9: =IFERROR(SRWS5,"") ->  | AV9: =IFERROR(SRWS5,"") ->  | AW9: =IFERROR(SRWS5,"") ->  | AX9: =IFERROR(HRWS5,"") ->  | AY9: 1.01 | AZ9: 1.29 | BA9: 1.5 | BB9: 3.15 | BC9: 5.85 | BD9: 1.5 | BE9: 3.15 | BF9: =IFERROR(WRWS5,"") ->  | BG9: =IFERROR(WRWS5,"") ->  | BH9: 6
B10: PJ6 | C10: FALSE | E10: =IF(C10,IF(ISERROR(INDIRECT($B10&"!GHGZ")),"",INDIRECT($B10&"!GHGZ")),"") ->  | F10: =IF(C10,IF(ISERROR(INDIRECT($B10&"!WZ")),"",INDIRECT($B10&"!WZ")),"") ->  | G10: 0 | H10: 0 | I10: 0 | J10: 0 | K10: =IF(ROUNDDOWN(MIN((H10/5),(H10+I10)/10,(H10+I10+J10)/20),0)>G10,G10,ROUNDDOWN(MIN((H10/5),(H10+I10)/10,(H10+I10+J10)/20),0)) -> 0 | L10: 0 | M10: 0 | N10: 0 | O10: 0 | P10: 0 | Q10: 0 | R10: 0 | S10: 0 | T10: 0 | U10: 0 | V10: 0 | W10: 0 | X10: 0 | Y10: =IF(C10,IF(ISERROR(INDIRECT(Berechnungen_2!$B10&"!Projekt")),"",INDIRECT(Berechnungen_2!$B10&"!Projekt")),"") ->  | Z10: =IF(C10,IF(ISERROR(INDIRECT(Berechnungen_2!$B10&"!Eingrenzung")),"",INDIRECT(Berechnungen_2!$B10&"!Eingrenzung")),"") ->  | AA10: =IF(C10,IF(ISERROR(INDIRECT(Berechnungen_2!$B10&"!Stromeinsparung")),"",INDIRECT(Berechnungen_2!$B10&"!Stromeinsparung")),"") ->  | AB10: =IF(C10,IF(ISERROR(INDIRECT(Berechnungen_2!$B10&"!Investition")),"",INDIRECT(Berechnungen_2!$B10&"!Investition")),"") ->  | AC10: =IF(ISERROR(INDIRECT(Berechnungen_2!$B10&"!PIAbfr_PJ_EnEf")),"",INDIRECT(Berechnungen_2!$B10&"!PIAbfr_PJ_EnEf")) -> 1 | AD10: =IF(ISERROR(INDIRECT(Berechnungen_2!$B10&"!PlAbfr_PJ_RW")),"",INDIRECT(Berechnungen_2!$B10&"!PlAbfr_PJ_RW")) -> 1 | AE10: =IF(ISERROR(INDIRECT(Berechnungen_2!$B10&"!PlAbfr_PJ_PB")),"",INDIRECT(Berechnungen_2!$B10&"!PlAbfr_PJ_PB")) -> 1 | AF10: =IF(ISERROR(INDIRECT(Berechnungen_2!$B10&"!PlAbfr_PJ_FL")),"",INDIRECT(Berechnungen_2!$B10&"!PlAbfr_PJ_FL")) -> 1 | AG10: =IF(ISERROR(INDIRECT(Berechnungen_2!$B10&"!PlAbfr_PJ_SP")),"",INDIRECT(Berechnungen_2!$B10&"!PlAbfr_PJ_SP")) -> 1 | AH10: =IF(ISERROR(INDIRECT(Berechnungen_2!$B10&"!PlAbfr_PJ_AP")),"",INDIRECT(Berechnungen_2!$B10&"!PlAbfr_PJ_AP")) -> 1 | AI10: =IF(ISERROR(INDIRECT(Berechnungen_2!$B10&"!PIAbfr_BD")),"",INDIRECT(Berechnungen_2!$B10&"!PIAbfr_BD")) -> -2 | AJ10: =IF(ISERROR(INDIRECT(Berechnungen_2!$B10&"!PIAbfr_PJ_Max")),"",INDIRECT(Berechnungen_2!$B10&"!PIAbfr_PJ_Max")) -> 1 | AK10: =IF(ISERROR(INDIRECT(Berechnungen_2!$B10&"!PIAbfr_PJ_01")),"",INDIRECT(Berechnungen_2!$B10&"!PIAbfr_PJ_01")) -> 1 | AL10: =IF(ISERROR(INDIRECT(Berechnungen_2!$B10&"!PIAbfr_PJ_NaturP")),"",INDIRECT(Berechnungen_2!$B10&"!PIAbfr_PJ_NaturP")) -> 1 | AM10: =IF(ISERROR(INDIRECT(Berechnungen_2!$B10&"!PIAbfr_PJ_allg")),"",INDIRECT(Berechnungen_2!$B10&"!PIAbfr_PJ_allg")) -> 2 | AS10: =IFERROR(SRWS6,"") ->  | AT10: =IFERROR(SRWS6,"") ->  | AU10: =IFERROR(SRWS6,"") ->  | AV10: =IFERROR(SRWS6,"") ->  | AW10: =IFERROR(SRWS6,"") ->  | AX10: =IFERROR(HRWS6,"") ->  | AY10: 1.01 | AZ10: 1.29 | BA10: 1.5 | BB10: 3.15 | BC10: 5.85 | BD10: 1.5 | BE10: 3.15 | BF10: =IFERROR(WRWS6,"") ->  | BG10: =IFERROR(WRWS6,"") ->  | BH10: 7
B11: PJ7 | C11: FALSE | G11: 0 | H11: 0 | I11: 0 | J11: 0 | K11: =IF(ROUNDDOWN(MIN((H11/5),(H11+I11)/10,(H11+I11+J11)/20),0)>G11,G11,ROUNDDOWN(MIN((H11/5),(H11+I11)/10,(H11+I11+J11)/20),0)) -> 0 | L11: 0 | M11: 0 | N11: 0 | O11: 0 | P11: 0 | Q11: 0 | R11: 0 | S11: 0 | T11: 0 | U11: 0 | V11: 0 | W11: 0 | X11: 0 | Y11: =IF(C11,IF(ISERROR(INDIRECT(Berechnungen_2!$B11&"!Projekt")),"",INDIRECT(Berechnungen_2!$B11&"!Projekt")),"") ->  | Z11: =IF(C11,IF(ISERROR(INDIRECT(Berechnungen_2!$B11&"!Eingrenzung")),"",INDIRECT(Berechnungen_2!$B11&"!Eingrenzung")),"") ->  | AA11: =IF(C11,IF(ISERROR(INDIRECT(Berechnungen_2!$B11&"!Stromeinsparung")),"",INDIRECT(Berechnungen_2!$B11&"!Stromeinsparung")),"") ->  | AB11: =IF(C11,IF(ISERROR(INDIRECT(Berechnungen_2!$B11&"!Investition")),"",INDIRECT(Berechnungen_2!$B11&"!Investition")),"") ->  | AC11: =IF(ISERROR(INDIRECT(Berechnungen_2!$B11&"!PIAbfr_PJ_EnEf")),"",INDIRECT(Berechnungen_2!$B11&"!PIAbfr_PJ_EnEf")) -> 1 | AD11: =IF(ISERROR(INDIRECT(Berechnungen_2!$B11&"!PlAbfr_PJ_RW")),"",INDIRECT(Berechnungen_2!$B11&"!PlAbfr_PJ_RW")) -> 1 | AE11: =IF(ISERROR(INDIRECT(Berechnungen_2!$B11&"!PlAbfr_PJ_PB")),"",INDIRECT(Berechnungen_2!$B11&"!PlAbfr_PJ_PB")) -> 1 | AF11: =IF(ISERROR(INDIRECT(Berechnungen_2!$B11&"!PlAbfr_PJ_FL")),"",INDIRECT(Berechnungen_2!$B11&"!PlAbfr_PJ_FL")) -> 1 | AG11: =IF(ISERROR(INDIRECT(Berechnungen_2!$B11&"!PlAbfr_PJ_SP")),"",INDIRECT(Berechnungen_2!$B11&"!PlAbfr_PJ_SP")) -> 1 | AH11: =IF(ISERROR(INDIRECT(Berechnungen_2!$B11&"!PlAbfr_PJ_AP")),"",INDIRECT(Berechnungen_2!$B11&"!PlAbfr_PJ_AP")) -> 1 | AI11: =IF(ISERROR(INDIRECT(Berechnungen_2!$B11&"!PIAbfr_BD")),"",INDIRECT(Berechnungen_2!$B11&"!PIAbfr_BD")) -> -2 | AJ11: =IF(ISERROR(INDIRECT(Berechnungen_2!$B11&"!PIAbfr_PJ_Max")),"",INDIRECT(Berechnungen_2!$B11&"!PIAbfr_PJ_Max")) -> 1 | AK11: =IF(ISERROR(INDIRECT(Berechnungen_2!$B11&"!PIAbfr_PJ_01")),"",INDIRECT(Berechnungen_2!$B11&"!PIAbfr_PJ_01")) -> 1 | AL11: =IF(ISERROR(INDIRECT(Berechnungen_2!$B11&"!PIAbfr_PJ_NaturP")),"",INDIRECT(Berechnungen_2!$B11&"!PIAbfr_PJ_NaturP")) -> 1 | AM11: =IF(ISERROR(INDIRECT(Berechnungen_2!$B11&"!PIAbfr_PJ_allg")),"",INDIRECT(Berechnungen_2!$B11&"!PIAbfr_PJ_allg")) -> 2 | AS11: =IFERROR(SRWS7,"") ->  | AT11: =IFERROR(SRWS7,"") ->  | AU11: =IFERROR(SRWS7,"") ->  | AV11: =IFERROR(SRWS7,"") ->  | AW11: =IFERROR(SRWS7,"") ->  | AX11: =IFERROR(HRWS7,"") ->  | AY11: 1.01 | AZ11: 1.29 | BA11: 1.5 | BB11: 3.15 | BC11: 5.85 | BD11: 1.5 | BE11: 3.15 | BF11: =IFERROR(WRWS7,"") ->  | BG11: =IFERROR(WRWS7,"") ->  | BH11: 8
B12: PJ8 | C12: FALSE | G12: 0 | H12: 0 | I12: 0 | J12: 0 | K12: =IF(ROUNDDOWN(MIN((H12/5),(H12+I12)/10,(H12+I12+J12)/20),0)>G12,G12,ROUNDDOWN(MIN((H12/5),(H12+I12)/10,(H12+I12+J12)/20),0)) -> 0 | L12: 0 | M12: 0 | N12: 0 | O12: 0 | P12: 0 | Q12: 0 | R12: 0 | S12: 0 | T12: 0 | U12: 0 | V12: 0 | W12: 0 | X12: 0 | Y12: =IF(C12,IF(ISERROR(INDIRECT(Berechnungen_2!$B12&"!Projekt")),"",INDIRECT(Berechnungen_2!$B12&"!Projekt")),"") ->  | Z12: =IF(C12,IF(ISERROR(INDIRECT(Berechnungen_2!$B12&"!Eingrenzung")),"",INDIRECT(Berechnungen_2!$B12&"!Eingrenzung")),"") ->  | AA12: =IF(C12,IF(ISERROR(INDIRECT(Berechnungen_2!$B12&"!Stromeinsparung")),"",INDIRECT(Berechnungen_2!$B12&"!Stromeinsparung")),"") ->  | AB12: =IF(C12,IF(ISERROR(INDIRECT(Berechnungen_2!$B12&"!Investition")),"",INDIRECT(Berechnungen_2!$B12&"!Investition")),"") ->  | AC12: =IF(ISERROR(INDIRECT(Berechnungen_2!$B12&"!PIAbfr_PJ_EnEf")),"",INDIRECT(Berechnungen_2!$B12&"!PIAbfr_PJ_EnEf")) -> 1 | AD12: =IF(ISERROR(INDIRECT(Berechnungen_2!$B12&"!PlAbfr_PJ_RW")),"",INDIRECT(Berechnungen_2!$B12&"!PlAbfr_PJ_RW")) -> 1 | AE12: =IF(ISERROR(INDIRECT(Berechnungen_2!$B12&"!PlAbfr_PJ_PB")),"",INDIRECT(Berechnungen_2!$B12&"!PlAbfr_PJ_PB")) -> 1 | AF12: =IF(ISERROR(INDIRECT(Berechnungen_2!$B12&"!PlAbfr_PJ_FL")),"",INDIRECT(Berechnungen_2!$B12&"!PlAbfr_PJ_FL")) -> 1 | AG12: =IF(ISERROR(INDIRECT(Berechnungen_2!$B12&"!PlAbfr_PJ_SP")),"",INDIRECT(Berechnungen_2!$B12&"!PlAbfr_PJ_SP")) -> 1 | AH12: =IF(ISERROR(INDIRECT(Berechnungen_2!$B12&"!PlAbfr_PJ_AP")),"",INDIRECT(Berechnungen_2!$B12&"!PlAbfr_PJ_AP")) -> 1 | AI12: =IF(ISERROR(INDIRECT(Berechnungen_2!$B12&"!PIAbfr_BD")),"",INDIRECT(Berechnungen_2!$B12&"!PIAbfr_BD")) -> -2 | AJ12: =IF(ISERROR(INDIRECT(Berechnungen_2!$B12&"!PIAbfr_PJ_Max")),"",INDIRECT(Berechnungen_2!$B12&"!PIAbfr_PJ_Max")) -> 1 | AK12: =IF(ISERROR(INDIRECT(Berechnungen_2!$B12&"!PIAbfr_PJ_01")),"",INDIRECT(Berechnungen_2!$B12&"!PIAbfr_PJ_01")) -> 1 | AL12: =IF(ISERROR(INDIRECT(Berechnungen_2!$B12&"!PIAbfr_PJ_NaturP")),"",INDIRECT(Berechnungen_2!$B12&"!PIAbfr_PJ_NaturP")) -> 1 | AM12: =IF(ISERROR(INDIRECT(Berechnungen_2!$B12&"!PIAbfr_PJ_allg")),"",INDIRECT(Berechnungen_2!$B12&"!PIAbfr_PJ_allg")) -> 2 | AS12: =IFERROR(SRWS8,"") ->  | AT12: =IFERROR(SRWS8,"") ->  | AU12: =IFERROR(SRWS8,"") ->  | AV12: =IFERROR(SRWS8,"") ->  | AW12: =IFERROR(SRWS8,"") ->  | AX12: =IFERROR(HRWS8,"") ->  | AY12: 1.01 | AZ12: 1.29 | BA12: 1.5 | BB12: 3.15 | BC12: 5.85 | BD12: 1.5 | BE12: 3.15 | BF12: =IFERROR(WRWS8,"") ->  | BG12: =IFERROR(WRWS8,"") ->  | BH12: 9
B13: PJ9 | C13: FALSE | G13: 0 | H13: 0 | I13: 0 | J13: 0 | K13: 0 | L13: 0 | M13: 0 | N13: 0 | O13: 0 | P13: 0 | Q13: 0 | R13: 0 | S13: 0 | T13: 0 | U13: 0 | V13: 0 | W13: 0 | X13: 0 | Y13: =IF(C13,IF(ISERROR(INDIRECT(Berechnungen_2!$B13&"!Projekt")),"",INDIRECT(Berechnungen_2!$B13&"!Projekt")),"") ->  | Z13: =IF(C13,IF(ISERROR(INDIRECT(Berechnungen_2!$B13&"!Eingrenzung")),"",INDIRECT(Berechnungen_2!$B13&"!Eingrenzung")),"") ->  | AA13: =IF(C13,IF(ISERROR(INDIRECT(Berechnungen_2!$B13&"!Stromeinsparung")),"",INDIRECT(Berechnungen_2!$B13&"!Stromeinsparung")),"") ->  | AB13: =IF(C13,IF(ISERROR(INDIRECT(Berechnungen_2!$B13&"!Investition")),"",INDIRECT(Berechnungen_2!$B13&"!Investition")),"") ->  | AC13: =IF(ISERROR(INDIRECT(Berechnungen_2!$B13&"!PIAbfr_PJ_EnEf")),"",INDIRECT(Berechnungen_2!$B13&"!PIAbfr_PJ_EnEf")) -> 1 | AD13: =IF(ISERROR(INDIRECT(Berechnungen_2!$B13&"!PlAbfr_PJ_RW")),"",INDIRECT(Berechnungen_2!$B13&"!PlAbfr_PJ_RW")) -> 1 | AE13: =IF(ISERROR(INDIRECT(Berechnungen_2!$B13&"!PlAbfr_PJ_PB")),"",INDIRECT(Berechnungen_2!$B13&"!PlAbfr_PJ_PB")) -> 1 | AF13: =IF(ISERROR(INDIRECT(Berechnungen_2!$B13&"!PlAbfr_PJ_FL")),"",INDIRECT(Berechnungen_2!$B13&"!PlAbfr_PJ_FL")) -> 1 | AG13: =IF(ISERROR(INDIRECT(Berechnungen_2!$B13&"!PlAbfr_PJ_SP")),"",INDIRECT(Berechnungen_2!$B13&"!PlAbfr_PJ_SP")) -> 1 | AH13: =IF(ISERROR(INDIRECT(Berechnungen_2!$B13&"!PlAbfr_PJ_AP")),"",INDIRECT(Berechnungen_2!$B13&"!PlAbfr_PJ_AP")) -> 1 | AI13: =IF(ISERROR(INDIRECT(Berechnungen_2!$B13&"!PIAbfr_BD")),"",INDIRECT(Berechnungen_2!$B13&"!PIAbfr_BD")) -> -2 | AJ13: =IF(ISERROR(INDIRECT(Berechnungen_2!$B13&"!PIAbfr_PJ_Max")),"",INDIRECT(Berechnungen_2!$B13&"!PIAbfr_PJ_Max")) -> 1 | AK13: =IF(ISERROR(INDIRECT(Berechnungen_2!$B13&"!PIAbfr_PJ_01")),"",INDIRECT(Berechnungen_2!$B13&"!PIAbfr_PJ_01")) -> 1 | AL13: =IF(ISERROR(INDIRECT(Berechnungen_2!$B13&"!PIAbfr_PJ_NaturP")),"",INDIRECT(Berechnungen_2!$B13&"!PIAbfr_PJ_NaturP")) -> 1 | AM13: =IF(ISERROR(INDIRECT(Berechnungen_2!$B13&"!PIAbfr_PJ_allg")),"",INDIRECT(Berechnungen_2!$B13&"!PIAbfr_PJ_allg")) -> 2 | AS13: =IFERROR(SRWS9,"") ->  | AT13: =IFERROR(SRWS9,"") ->  | AU13: =IFERROR(SRWS9,"") ->  | AV13: =IFERROR(SRWS9,"") ->  | AW13: =IFERROR(SRWS9,"") ->  | AX13: =IFERROR(HRWS9,"") ->  | AY13: 1.01 | AZ13: 1.29 | BA13: 1.5 | BB13: 3.15 | BC13: 5.85 | BD13: 1.5 | BE13: 3.15 | BF13: =IFERROR(WRWS9,"") ->  | BG13: =IFERROR(WRWS9,"") ->  | BH13: 10
